Workbook

Sheet Raw Data (hidden)
D1: 1. Total Unique Visitors | M1: 2. Visits from Organic Search | U1: 3. Visits from Paid Search | AC1: 4. Visits from Type-Ins in Browser or Bookmark | AK1: 5. Visits from Link Clicks on Other Sites | AS1: 6. Mobile Visits | BG1: 6.1 Non-Mobile Visits | BO1: Summary - Total Unique Visitors | BS1: Summary - Total Organic Visits | BW1: Summary - Total Paid Visits | CA1: Summary - Visits from Type-Ins in Browser or Bookmark | CH1: Summary - Visits from Link Clicks on Other Sites | CZ1: 7. Paid Search Performance | DH1: Paid Search | DL1: All Channels | DQ1: 8. Last Month Traffic and Conversion Sources, All Data | DY1: 9. Last Month Content Performance, All Data | EI1: 10. Engagement by Browser and Device
A2: Dates: | B2: Start Date Last Month | C2: End Date last Month | D2: Start Date Last Year | E2: End Date Last Year | F2: Start Date This Year | G2: End Date This Year | H2: Start Date Two Years Ago | I2: End Date Two Years Ago | J2: Start Date Last Three Months | K2: End Date Last Three Months
B3: =#REF! ->  | C3: =#REF! ->  | D3: =#REF! ->  | E3: =#REF! ->  | F3: =#REF! ->  | G3: =#REF! ->  | H3: =#REF! ->  | I3: =#REF! ->  | J3: =#REF! ->  | K3: =#REF! -> 
A4: Google Analytics ID to Use: | B4: ga:598802
DE9: NOTE: Cost Per Conversion is Incorrect if Conversions Includes
DE10: Multiple Goals. What's Used in The Sheet is instead a Calculated Value.
DA11: Last Year + This Year | DI11: Last Year + This Year
E12: This Year | G12: Last Year | I12: Two Years Ago | N12: This Year | P12: Last Year | R12: Two Years Ago | V12: This Year | X12: Last Year | Z12: Two Years Ago | AD12: This Year | AF12: Last Year | AH12: Two Years Ago | AL12: This Year | AN12: Last Year | AP12: Two Years Ago | AT12: This Year | AV12: Last Year | AX12: Two Years Ago | AY12: This Year | AZ12: This Year | BA12: Last Year | BB12: Last Year | BC12: Two Years Ago | BD12: Two Years Ago | BH12: This Year | BJ12: Last Year | BL12: Two Years Ago | BO12: This Year | BP12: Last Year | BQ12: Two Years Ago | BS12: This Year | BT12: Last Year | BU12: Two Years Ago | BW12: This Year | BX12: Last Year | BY12: Two Years Ago | CA12: This Year | CB12: Last Year | CC12: Two Years Ago | CH12: This Year | CI12: Last Year | CJ12: Two Years Ago | CR12: Summary of Traffic Sources, This Year | DA12: ga:year | DB12: ga:impressions | DC12: ga:adClicks | DD12: ga:CPC | DE12: ga:adCost | DF12: ga:goal4Completions | DI12: ga:year | DJ12: ga:visits | DK12: ga:goal4Completions | DM12: ga:year | DN12: ga:visits | DO12: ga:goal4Completions | DR12: ga:medium | DS12: ga:adMatchedQuery | DT12: ga:keyword | DU12: ga:visitors | DV12: ga:goalCompletionsAll | DZ12: ga:organicSearches | EA12: ga:pageviewsPerVisit | EB12: ga:avgTimeOnPage | EC12: ga:goalCompletionsAll | ED12: ga:entranceBounceRate | EE12: ga:visitBounceRate | EF12: ga:avgTimeOnSite | EK12: Total | EL12: Weighted Avg Time on Site | EM12: Weighted Avg Entrance Bounce Rate | EN12: Weighted Avg Visit Bounce Rate
B13: Month for Axis | C13: Actual Date | E13: ga:visitors | G13: ga:visitors | I13: ga:visitors | N13: ga:organicSearches | P13: ga:organicSearches | R13: ga:organicSearches | V13: ga:adClicks | X13: ga:adClicks | Z13: ga:adClicks | AD13: ga:visitors | AF13: ga:visitors | AH13: ga:visitors | AL13: ga:visitors | AN13: ga:visitors | AP13: ga:visitors | AT13: ga:visitors | AV13: ga:visitors | AX13: ga:visitors | AY13: Mobile % of Total | AZ13: Cleaned Up | BA13: Mobile % of Total | BB13: Cleaned Up | BC13: Mobile % of Total | BD13: Cleaned Up | BH13: Non-Mobile Visitors | BJ13: Non-Mobile Visitors | BL13: Non-Mobile Visitors | CR13: Organic Search | CS13: Paid Search | CT13: Type in/Bookmark | CU13: Link Clicks on Other Sites | CV13: Total | CY13: January | CZ13: 1 | DA13: 2012 | DB13: 24890 | DC13: 419 | DD13: 1.236396181 | DE13: 518.05 | DF13: 0 | DH13: 1 | DI13: 2012 | DJ13: 445 | DK13: 0 | DL13: 1 | DM13: 2012 | DN13: 1260 | DO13: 0 | DQ13: (direct) | DR13: (none) | DS13: (not set) | DT13: (not set) | DU13: 66 | DV13: 10 | DY13: Security Guards RI | Security Services | Licensed Number 1 | Industrial Security | DZ13: 84 | EA13: 1.382022472 | EB13: 59.17741935 | EC13: 20 | ED13: 0.4494382022 | EE13: 0.4494382022 | EF13: 143.7191011 | EI13: Average | EK13: 929 | EL13: 147.2735059 | EM13: 0.4657042147 | EN13: 0.4653670184
B14: =C14 -> 2012-01-07 | C14: 2012-01-07 | D14: 1 | E14: 260 | F14: 1 | G14: 191 | H14: 1 | I14: 10 | L14: =C14 -> 2012-01-07 | M14: 1 | N14: 41 | O14: 1 | P14: 61 | Q14: 1 | R14: 1 | T14: =C14 -> 2012-01-07 | U14: 1 | V14: 170 | W14: 1 | X14: 63 | Y14: 1 | Z14: 7 | AB14: =C14 -> 2012-01-07 | AC14: 1 | AD14: 44 | AE14: 1 | AF14: 42 | AG14: 1 | AH14: 0 | AJ14: =C14 -> 2012-01-07 | AK14: 1 | AL14: 26 | AM14: 1 | AN14: 36 | AO14: 1 | AP14: 0 | AR14: =C14 -> 2012-01-07 | AS14: 1 | AT14: 33 | AU14: 1 | AV14: 7 | AW14: 1 | AX14: 1 | AY14: =AT14/(E14+0.00000001) -> 0.1269230769 | AZ14: =IF(AY15=0,#N/A,AY14) -> 0.1269230769 | BA14: =AV14/(G14+0.00000001) -> 0.03664921466 | BB14: =IF(BA14=0,#N/A,BA14) -> 0.03664921466 | BC14: =AX14/(I14+0.00000001) -> 0.0999999999 | BD14: =IF(BC14=0,#N/A,BC14) -> 0.0999999999 | BF14: =C14 -> 2012-01-07 | BG14: =D14 -> 1 | BH14: =E14-AT14 -> 227 | BI14: =D14 -> 1 | BJ14: =G14-AV14 -> 184 | BK14: =D14 -> 1 | BL14: =I14-AX14 -> 9 | BN14: =T14 -> 2012-01-07 | BO14: =IF(E14=0,#N/A,E14) -> 260 | BP14: =IF(G14=0,#N/A,G14) -> 191 | BQ14: =IF(I14=0,#N/A,I14) -> 10 | BS14: =IF(N14=0,#N/A,N14) -> 41 | BT14: =IF(P14=0,#N/A,P14) -> 61 | BU14: =IF(R14=0,#N/A,R14) -> 1 | BW14: =IF(V14=0,#N/A,V14) -> 170 | BX14: =IF(X14=0,#N/A,X14) -> 63 | BY14: =IF(Z14=0,#N/A,Z14) -> 7 | CA14: =IF(AD14=0,#N/A,AD14) -> 44 | CB14: =IF(AF14=0,#N/A,AF14) -> 42 | CC14: =IF(AH14=0,#N/A,AH14) ->  | CH14: =IF(AL14=0,#N/A,AL14) -> 26 | CI14: =IF(AN14=0,#N/A,AN14) -> 36 | CJ14: =IF(AP14=0,#N/A,AP14) ->  | CQ14: Yearly Sum | CR14: =SUM(N14:N65) -> 2605 | CS14: =SUM(V14:V65) -> 9826 | CT14: =200 -> 200 | CU14: =200 -> 200 | CV14: =SUM(CR14:CU14) -> 12831 | CY14: February | CZ14: 2 | DA14: 2012 | DB14: 23157 | DC14: 480 | DD14: 1.195833333 | DE14: 574 | DF14: 0 | DH14: 2 | DI14: 2012 | DJ14: 489 | DK14: 0 | DL14: 2 | DM14: 2012 | DN14: 1299 | DO14: 0 | DQ14: google | DR14: organic | DS14: (not set) | DT14: (not provided) | DU14: 26 | DV14: 8 | DY14: Security Tips: Security Awareness | Industrial Security | DZ14: 8 | EA14: 2 | EB14: 20.375 | EC14: 0 | ED14: 0.5 | EE14: 0.5 | EF14: 37.75 | EJ14: ga:operatingSystem | EK14: ga:visitors | EL14: ga:avgTimeOnSite | EM14: ga:entranceBounceRate | EN14: ga:visitBounceRate | EO14: Weighted | EP14: Weighted | EQ14: Weighted | ER14: Bounce Rate Seems Out of Whack | ES14: Time On Site Seems Out of Whack | ET14: Both Seem Out of Whack | EU14: Percent of Total
B15: =C15 -> 2012-01-14 | C15: =C14+7 -> 2012-01-14 | D15: 2 | E15: 495 | F15: 2 | G15: 246 | H15: 2 | I15: 152 | L15: =C15 -> 2012-01-14 | M15: 2 | N15: 99 | O15: 2 | P15: 74 | Q15: 2 | R15: 42 | T15: =C15 -> 2012-01-14 | U15: 2 | V15: 301 | W15: 2 | X15: 118 | Y15: 2 | Z15: 97 | AB15: =C15 -> 2012-01-14 | AC15: 2 | AD15: 78 | AE15: 2 | AF15: 34 | AG15: 2 | AH15: 1 | AJ15: =C15 -> 2012-01-14 | AK15: 2 | AL15: 57 | AM15: 2 | AN15: 44 | AO15: 2 | AP15: 0 | AR15: =C15 -> 2012-01-14 | AS15: 2 | AT15: 31 | AU15: 2 | AV15: 11 | AW15: 2 | AX15: 2 | AY15: 0.06262626262 | AZ15: =IF(AY16=0,#N/A,AY15) -> 0.06262626262 | BA15: 0.04471544715 | BB15: =IF(BA15=0,#N/A,BA15) -> 0.04471544715 | BC15: 0.01315789474 | BD15: =IF(BC15=0,#N/A,BC15) -> 0.01315789474 | BF15: =C15 -> 2012-01-14 | BG15: =D15 -> 2 | BH15: 464 | BI15: =D15 -> 2 | BJ15: 235 | BK15: =D15 -> 2 | BL15: 150 | BN15: =T15 -> 2012-01-14 | BO15: =IF(E15=0,#N/A,E15) -> 495 | BP15: =IF(G15=0,#N/A,G15) -> 246 | BQ15: =IF(I15=0,#N/A,I15) -> 152 | BS15: =IF(N15=0,#N/A,N15) -> 99 | BT15: =IF(P15=0,#N/A,P15) -> 74 | BU15: =IF(R15=0,#N/A,R15) -> 42 | BW15: =IF(V15=0,#N/A,V15) -> 301 | BX15: =IF(X15=0,#N/A,X15) -> 118 | BY15: =IF(Z15=0,#N/A,Z15) -> 97 | CA15: =IF(AD15=0,#N/A,AD15) -> 78 | CB15: =IF(AF15=0,#N/A,AF15) -> 34 | CC15: =IF(AH15=0,#N/A,AH15) -> 1 | CH15: =IF(AL15=0,#N/A,AL15) -> 57 | CI15: =IF(AN15=0,#N/A,AN15) -> 44 | CJ15: =IF(AP15=0,#N/A,AP15) ->  | CQ15: Percent of Total | CR15: =CR14/$CV$14 -> 0.2030239264 | CS15: =CS14/$CV$14 -> 0.7658015743 | CT15: =CT14/$CV$14 -> 0.01558724963 | CU15: =CU14/$CV$14 -> 0.01558724963 | CV15: =CV14/$CV$14 -> 1 | CY15: March | CZ15: 3 | DA15: 2012 | DB15: 29150 | DC15: 468 | DD15: 1.165405983 | DE15: 545.41 | DF15: 0 | DH15: 3 | DI15: 2012 | DJ15: 482 | DK15: 0 | DL15: 3 | DM15: 2012 | DN15: 1310 | DO15: 0 | DQ15: google | DR15: cpc | DS15: ribi security | DT15: ribi security | DU15: 10 | DV15: 1 | DY15: Armed Security Guards: ATM Security Escorts | Industrial Security | DZ15: 6 | EA15: 1.666666667 | EB15: 41 | EC15: 3 | ED15: 0.3333333333 | EE15: 0.3333333333 | EF15: 40.66666667 | EI15: Internet Explorer | EJ15: Windows | EK15: 325 | EL15: 133.1606648 | EM15: 0.4847645429 | EN15: 0.4847645429 | EO15: 43277.21607 | EP15: 157.5484765 | EQ15: 157.5484765 | ER15: FALSE | ES15: FALSE | ET15: FALSE | EU15: 0.3498385361
B16: 2012-01-21 | C16: =C15+7 -> 2012-01-21 | D16: 3 | E16: 478 | F16: 3 | G16: 280 | H16: 3 | I16: 158 | L16: 2012-01-21 | M16: 3 | N16: 122 | O16: 3 | P16: 83 | Q16: 3 | R16: 52 | T16: 2012-01-21 | U16: 3 | V16: 275 | W16: 3 | X16: 91 | Y16: 3 | Z16: 87 | AB16: 2012-01-21 | AC16: 3 | AD16: 60 | AE16: 3 | AF16: 78 | AG16: 3 | AH16: 0 | AJ16: 2012-01-21 | AK16: 3 | AL16: 62 | AM16: 3 | AN16: 33 | AO16: 3 | AP16: 0 | AR16: 2012-01-21 | AS16: 3 | AT16: 38 | AU16: 3 | AV16: 8 | AW16: 3 | AX16: 5 | AY16: 0.07949790795 | AZ16: 0.07949790795 | BA16: 0.02857142857 | BB16: 0.02857142857 | BC16: 0.03164556962 | BD16: 0.03164556962 | BF16: 2012-01-21 | BG16: 3 | BH16: 440 | BI16: 3 | BJ16: 272 | BK16: 3 | BL16: 153 | BN16: 2012-01-21 | BO16: 478 | BP16: 280 | BQ16: 158 | BS16: 122 | BT16: 83 | BU16: 52 | BW16: 275 | BX16: 91 | BY16: 87 | CA16: 60 | CB16: 78 | CH16: 62 | CI16: 33 | CY16: April | CZ16: 4 | DA16: 2012 | DB16: 34075 | DC16: 432 | DD16: 1.18 | DE16: 509.76 | DF16: 0 | DH16: 4 | DI16: 2012 | DJ16: 452 | DK16: 0 | DL16: 4 | DM16: 2012 | DN16: 1340 | DO16: 0 | DQ16: google | DR16: organic | DS16: (not set) | DT16: industrial security ri | DU16: 7 | DV16: 1 | DY16: Private Security: Apartments Complex Security | Industrial Security | DZ16: 4 | EA16: 1.25 | EB16: 1 | EC16: 0 | ED16: 1 | EE16: 1 | EF16: 0 | EI16: Chrome | EJ16: Windows | EK16: 156 | EL16: 286.0948617 | EM16: 0.4308300395 | EN16: 0.4308300395 | EO16: 44630.79842 | EP16: 67.20948617 | EQ16: 67.20948617 | ER16: FALSE | ES16: FALSE | ET16: FALSE | EU16: 0.1679224973
B17: 2012-01-28 | C17: 2012-01-28 | D17: 4 | E17: 449 | F17: 4 | G17: 266 | H17: 4 | I17: 176 | L17: 2012-01-28 | M17: 4 | N17: 91 | O17: 4 | P17: 73 | Q17: 4 | R17: 52 | T17: 2012-01-28 | U17: 4 | V17: 269 | W17: 4 | X17: 98 | Y17: 4 | Z17: 105 | AB17: 2012-01-28 | AC17: 4 | AD17: 56 | AE17: 4 | AF17: 29 | AG17: 4 | AH17: 0 | AJ17: 2012-01-28 | AK17: 4 | AL17: 65 | AM17: 4 | AN17: 55 | AO17: 4 | AP17: 0 | AR17: 2012-01-28 | AS17: 4 | AT17: 45 | AU17: 4 | AV17: 9 | AW17: 4 | AX17: 5 | AY17: 0.1002227171 | AZ17: 0.1002227171 | BA17: 0.03383458646 | BB17: 0.03383458646 | BC17: 0.02840909091 | BD17: 0.02840909091 | BF17: 2012-01-28 | BG17: 4 | BH17: 404 | BI17: 4 | BJ17: 257 | BK17: 4 | BL17: 171 | BN17: 2012-01-28 | BO17: 449 | BP17: 266 | BQ17: 176 | BS17: 91 | BT17: 73 | BU17: 52 | BW17: 269 | BX17: 98 | BY17: 105 | CA17: 56 | CB17: 29 | CH17: 65 | CI17: 55 | CY17: May | CZ17: 5 | DA17: 2012 | DB17: 29333 | DC17: 424 | DD17: 1.320165094 | DE17: 559.75 | DF17: 0 | DH17: 5 | DI17: 2012 | DJ17: 479 | DK17: 0 | DL17: 5 | DM17: 2012 | DN17: 1325 | DO17: 0 | DQ17: comcast | DR17: organic | DS17: (not set) | DT17: securityri.com | DU17: 2 | DV17: 1 | DY17: Courier: Delivery Services | Industrial Security | DZ17: 2 | EA17: 3.5 | EB17: 100.3333333 | EC17: 2 | ED17: 0.5 | EE17: 0.5 | EF17: 60 | EI17: Safari | EJ17: iOS | EK17: 121 | EL17: 91.04255319 | EM17: 0.4734042553 | EN17: 0.4734042553 | EO17: 11016.14894 | EP17: 57.28191489 | EQ17: 57.28191489 | ER17: FALSE | ES17: FALSE | ET17: FALSE | EU17: 0.130247578
B18: 2012-02-04 | C18: 2012-02-04 | D18: 5 | E18: 569 | F18: 5 | G18: 235 | H18: 5 | I18: 200 | L18: 2012-02-04 | M18: 5 | N18: 97 | O18: 5 | P18: 68 | Q18: 5 | R18: 70 | T18: 2012-02-04 | U18: 5 | V18: 337 | W18: 5 | X18: 98 | Y18: 5 | Z18: 102 | AB18: 2012-02-04 | AC18: 5 | AD18: 66 | AE18: 5 | AF18: 38 | AG18: 5 | AH18: 0 | AJ18: 2012-02-04 | AK18: 5 | AL18: 77 | AM18: 5 | AN18: 38 | AO18: 5 | AP18: 0 | AR18: 2012-02-04 | AS18: 5 | AT18: 49 | AU18: 5 | AV18: 14 | AW18: 5 | AX18: 10 | AY18: 0.08611599297 | AZ18: 0.08611599297 | BA18: 0.05957446808 | BB18: 0.05957446808 | BC18: 0.05 | BD18: 0.05 | BF18: 2012-02-04 | BG18: 5 | BH18: 520 | BI18: 5 | BJ18: 221 | BK18: 5 | BL18: 190 | BN18: 2012-02-04 | BO18: 569 | BP18: 235 | BQ18: 200 | BS18: 97 | BT18: 68 | BU18: 70 | BW18: 337 | BX18: 98 | BY18: 102 | CA18: 66 | CB18: 38 | CH18: 77 | CI18: 38 | CY18: June | CZ18: 6 | DA18: 2012 | DB18: 36336 | DC18: 602 | DD18: 1.441843854 | DE18: 867.99 | DF18: 0 | DH18: 6 | DI18: 2012 | DJ18: 623 | DK18: 0 | DL18: 6 | DM18: 2012 | DN18: 1405 | DO18: 0 | DQ18: google | DR18: cpc | DS18: apg security ri | DT18: +security +ri | DU18: 2 | DV18: 1 | DY18: Security RI: Rhode Island Security Guards | Industrial Security | DZ18: 2 | EA18: 14 | EB18: 31.32 | EC18: 14 | ED18: 0.5 | EE18: 0.5 | EF18: 24.5 | EI18: Firefox | EJ18: Windows | EK18: 112 | EL18: 110.1619718 | EM18: 0.3971631206 | EN18: 0.3943661972 | EO18: 12338.14085 | EP18: 44.4822695 | EQ18: 44.16901408 | ER18: FALSE | ES18: FALSE | ET18: FALSE | EU18: 0.1205597417
B19: 2012-02-11 | C19: 2012-02-11 | D19: 6 | E19: 606 | F19: 6 | G19: 314 | H19: 6 | I19: 192 | L19: 2012-02-11 | M19: 6 | N19: 94 | O19: 6 | P19: 96 | Q19: 6 | R19: 68 | T19: 2012-02-11 | U19: 6 | V19: 316 | W19: 6 | X19: 114 | Y19: 6 | Z19: 110 | AB19: 2012-02-11 | AC19: 6 | AD19: 62 | AE19: 6 | AF19: 57 | AG19: 6 | AH19: 1 | AJ19: 2012-02-11 | AK19: 6 | AL19: 89 | AM19: 6 | AN19: 64 | AO19: 6 | AP19: 0 | AR19: 2012-02-11 | AS19: 6 | AT19: 56 | AU19: 6 | AV19: 19 | AW19: 6 | AX19: 8 | AY19: 0.09240924092 | AZ19: 0.09240924092 | BA19: 0.06050955414 | BB19: 0.06050955414 | BC19: 0.04166666666 | BD19: 0.04166666666 | BF19: 2012-02-11 | BG19: 6 | BH19: 550 | BI19: 6 | BJ19: 295 | BK19: 6 | BL19: 184 | BN19: 2012-02-11 | BO19: 606 | BP19: 314 | BQ19: 192 | BS19: 94 | BT19: 96 | BU19: 68 | BW19: 316 | BX19: 114 | BY19: 110 | CA19: 62 | CB19: 57 | CC19: 1 | CH19: 89 | CI19: 64 | CY19: July | CZ19: 7 | DA19: 2012 | DB19: 41608 | DC19: 702 | DD19: 1.382592593 | DE19: 970.58 | DF19: 0 | DH19: 7 | DI19: 2012 | DJ19: 756 | DK19: 0 | DL19: 7 | DM19: 2012 | DN19: 1640 | DO19: 0 | DQ19: google | DR19: cpc | DS19: providence security | DT19: +security +providence | DU19: 2 | DV19: 1 | DY19: Security: Private Security for Golf Courses | Industrial Security | DZ19: 2 | EA19: 1.5 | EB19: 0 | EC19: 0 | ED19: 1 | EE19: 1 | EF19: 0 | EI19: Android Browser | EJ19: Android | EK19: 82 | EL19: 165.4016393 | EM19: 0.4344262295 | EN19: 0.4344262295 | EO19: 13562.93443 | EP19: 35.62295082 | EQ19: 35.62295082 | ER19: FALSE | ES19: FALSE | ET19: FALSE | EU19: 0.08826695371
B20: 2012-02-18 | C20: 2012-02-18 | D20: 7 | E20: 545 | F20: 7 | G20: 262 | H20: 7 | I20: 166 | L20: 2012-02-18 | M20: 7 | N20: 75 | O20: 7 | P20: 100 | Q20: 7 | R20: 55 | T20: 2012-02-18 | U20: 7 | V20: 326 | W20: 7 | X20: 114 | Y20: 7 | Z20: 79 | AB20: 2012-02-18 | AC20: 7 | AD20: 56 | AE20: 7 | AF20: 29 | AG20: 7 | AH20: 0 | AJ20: 2012-02-18 | AK20: 7 | AL20: 63 | AM20: 7 | AN20: 39 | AO20: 7 | AP20: 1 | AR20: 2012-02-18 | AS20: 7 | AT20: 53 | AU20: 7 | AV20: 11 | AW20: 7 | AX20: 6 | AY20: 0.09724770642 | AZ20: 0.09724770642 | BA20: 0.04198473282 | BB20: 0.04198473282 | BC20: 0.03614457831 | BD20: 0.03614457831 | BF20: 2012-02-18 | BG20: 7 | BH20: 492 | BI20: 7 | BJ20: 251 | BK20: 7 | BL20: 160 | BN20: 2012-02-18 | BO20: 545 | BP20: 262 | BQ20: 166 | BS20: 75 | BT20: 100 | BU20: 55 | BW20: 326 | BX20: 114 | BY20: 79 | CA20: 56 | CB20: 29 | CH20: 63 | CI20: 39 | CJ20: 1 | CY20: August | CZ20: 8 | DA20: 2012 | DB20: 47843 | DC20: 800 | DD20: 1.4277375 | DE20: 1142.19 | DF20: 10 | DH20: 8 | DI20: 2012 | DJ20: 849 | DK20: 3 | DL20: 8 | DM20: 2012 | DN20: 1742 | DO20: 10 | DQ20: google.com | DR20: referral | DS20: (not set) | DT20: (not set) | DU20: 2 | DV20: 1 | DY20: Security: Private Security for Labor Strikes | Industrial Security | DZ20: 2 | EA20: 3 | EB20: 33.5 | EC20: 0 | ED20: 0 | EE20: 0 | EF20: 38.5 | EI20: Safari | EJ20: Macintosh | EK20: 53 | EL20: 106.8730159 | EM20: 0.4444444444 | EN20: 0.4444444444 | EO20: 5664.269841 | EP20: 23.55555556 | EQ20: 23.55555556 | ER20: FALSE | ES20: FALSE | ET20: FALSE | EU20: 0.05705059203
B21: 2012-02-25 | C21: 2012-02-25 | D21: 8 | E21: 573 | F21: 8 | G21: 302 | H21: 8 | I21: 185 | L21: 2012-02-25 | M21: 8 | N21: 85 | O21: 8 | P21: 97 | Q21: 8 | R21: 77 | T21: 2012-02-25 | U21: 8 | V21: 327 | W21: 8 | X21: 125 | Y21: 8 | Z21: 78 | AB21: 2012-02-25 | AC21: 8 | AD21: 52 | AE21: 8 | AF21: 36 | AG21: 8 | AH21: 0 | AJ21: 2012-02-25 | AK21: 8 | AL21: 91 | AM21: 8 | AN21: 65 | AO21: 8 | AP21: 0 | AR21: 2012-02-25 | AS21: 8 | AT21: 41 | AU21: 8 | AV21: 13 | AW21: 8 | AX21: 3 | AY21: 0.07155322862 | AZ21: 0.07155322862 | BA21: 0.04304635761 | BB21: 0.04304635761 | BC21: 0.01621621622 | BD21: 0.01621621622 | BF21: 2012-02-25 | BG21: 8 | BH21: 532 | BI21: 8 | BJ21: 289 | BK21: 8 | BL21: 182 | BN21: 2012-02-25 | BO21: 573 | BP21: 302 | BQ21: 185 | BS21: 85 | BT21: 97 | BU21: 77 | BW21: 327 | BX21: 125 | BY21: 78 | CA21: 52 | CB21: 36 | CH21: 91 | CI21: 65 | CY21: September | CZ21: 9 | DA21: 2012 | DB21: 93920 | DC21: 1044 | DD21: 1.445076628 | DE21: 1508.66 | DF21: 43 | DH21: 9 | DI21: 2012 | DJ21: 1048 | DK21: 10 | DL21: 9 | DM21: 2012 | DN21: 1965 | DO21: 43 | DQ21: bing | DR21: organic | DS21: (not set) | DT21: industrial security ri | DU21: 1 | DV21: 1 | DY21: Armed and Unarmed Security Guards | Industrial Security | DZ21: 1 | EA21: 4 | EB21: 12.33333333 | EC21: 0 | ED21: 1 | EE21: 1 | EF21: 0 | EI21: Chrome | EJ21: Macintosh | EK21: 8 | EL21: 54.17647059 | EM21: 0.4117647059 | EN21: 0.4117647059 | EO21: 433.4117647 | EP21: 3.294117647 | EQ21: 3.294117647 | ER21: FALSE | ES21: FALSE | ET21: FALSE | EU21: 0.008611410118
B22: 2012-03-03 | C22: 2012-03-03 | D22: 9 | E22: 557 | F22: 9 | G22: 289 | H22: 9 | I22: 171 | L22: 2012-03-03 | M22: 9 | N22: 94 | O22: 9 | P22: 97 | Q22: 9 | R22: 49 | T22: 2012-03-03 | U22: 9 | V22: 319 | W22: 9 | X22: 122 | Y22: 9 | Z22: 84 | AB22: 2012-03-03 | AC22: 9 | AD22: 68 | AE22: 9 | AF22: 39 | AG22: 9 | AH22: 1 | AJ22: 2012-03-03 | AK22: 9 | AL22: 65 | AM22: 9 | AN22: 59 | AO22: 9 | AP22: 0 | AR22: 2012-03-03 | AS22: 9 | AT22: 41 | AU22: 9 | AV22: 12 | AW22: 9 | AX22: 3 | AY22: 0.07360861759 | AZ22: 0.07360861759 | BA22: 0.04152249135 | BB22: 0.04152249135 | BC22: 0.01754385965 | BD22: 0.01754385965 | BF22: 2012-03-03 | BG22: 9 | BH22: 516 | BI22: 9 | BJ22: 277 | BK22: 9 | BL22: 168 | BN22: 2012-03-03 | BO22: 557 | BP22: 289 | BQ22: 171 | BS22: 94 | BT22: 97 | BU22: 49 | BW22: 319 | BX22: 122 | BY22: 84 | CA22: 68 | CB22: 39 | CC22: 1 | CH22: 65 | CI22: 59 | CY22: October | CZ22: 10 | DA22: 2012 | DB22: 123052 | DC22: 1269 | DD22: 1.566887313 | DE22: 1988.38 | DF22: 41 | DH22: 10 | DI22: 2012 | DJ22: 1288 | DK22: 16 | DL22: 10 | DM22: 2012 | DN22: 2323 | DO22: 41 | DQ22: bing | DR22: organic | DS22: (not set) | DT22: isi security in rhode island | DU22: 1 | DV22: 1 | DY22: Concierge Security Services: Lobby Attendant | Industrial Security | DZ22: 1 | EA22: 7 | EB22: 197.3333333 | EC22: 0 | ED22: 1 | EE22: 1 | EF22: 0 | EI22: Safari (in-app) | EJ22: iOS | EK22: 8 | EL22: 65.33333333 | EM22: 0.5555555556 | EN22: 0.5555555556 | EO22: 522.6666667 | EP22: 4.444444444 | EQ22: 4.444444444 | ER22: FALSE | ES22: FALSE | ET22: FALSE | EU22: 0.008611410118
B23: 2012-03-10 | C23: 2012-03-10 | D23: 10 | E23: 533 | F23: 10 | G23: 248 | H23: 10 | I23: 159 | L23: 2012-03-10 | M23: 10 | N23: 86 | O23: 10 | P23: 78 | Q23: 10 | R23: 54 | T23: 2012-03-10 | U23: 10 | V23: 290 | W23: 10 | X23: 109 | Y23: 10 | Z23: 79 | AB23: 2012-03-10 | AC23: 10 | AD23: 70 | AE23: 10 | AF23: 31 | AG23: 10 | AH23: 0 | AJ23: 2012-03-10 | AK23: 10 | AL23: 54 | AM23: 10 | AN23: 48 | AO23: 10 | AP23: 0 | AR23: 2012-03-10 | AS23: 10 | AT23: 56 | AU23: 10 | AV23: 10 | AW23: 10 | AX23: 7 | AY23: 0.105065666 | AZ23: 0.105065666 | BA23: 0.04032258064 | BB23: 0.04032258064 | BC23: 0.04402515723 | BD23: 0.04402515723 | BF23: 2012-03-10 | BG23: 10 | BH23: 477 | BI23: 10 | BJ23: 238 | BK23: 10 | BL23: 152 | BN23: 2012-03-10 | BO23: 533 | BP23: 248 | BQ23: 159 | BS23: 86 | BT23: 78 | BU23: 54 | BW23: 290 | BX23: 109 | BY23: 79 | CA23: 70 | CB23: 31 | CH23: 54 | CI23: 48 | CY23: November | CZ23: 11 | DA23: 2012 | DB23: 106286 | DC23: 1242 | DD23: 1.573824477 | DE23: 1954.69 | DF23: 32 | DH23: 11 | DI23: 2012 | DJ23: 1241 | DK23: 15 | DL23: 11 | DM23: 2012 | DN23: 2407 | DO23: 32 | DQ23: google | DR23: cpc | DS23: apollo security providence ri | DT23: +security +providence | DU23: 1 | DV23: 1 | DY23: Contact Us Today! | Industrial Security | DZ23: 1 | EA23: 31 | EB23: 74.36 | EC23: 21 | ED23: 0 | EE23: 0 | EF23: 570 | EI23: Chrome | EJ23: Android | EK23: 7 | EL23: 39 | EM23: 0.6 | EN23: 0.6 | EO23: 273 | EP23: 4.2 | EQ23: 4.2 | ER23: FALSE | ES23: FALSE | ET23: FALSE | EU23: 0.007534983854
B24: 2012-03-17 | C24: 2012-03-17 | D24: 11 | E24: 485 | F24: 11 | G24: 271 | H24: 11 | I24: 159 | L24: 2012-03-17 | M24: 11 | N24: 72 | O24: 11 | P24: 90 | Q24: 11 | R24: 40 | T24: 2012-03-17 | U24: 11 | V24: 245 | W24: 11 | X24: 102 | Y24: 11 | Z24: 102 | AB24: 2012-03-17 | AC24: 11 | AD24: 50 | AE24: 11 | AF24: 52 | AG24: 11 | AH24: 0 | AJ24: 2012-03-17 | AK24: 11 | AL24: 62 | AM24: 11 | AN24: 43 | AO24: 11 | AP24: 0 | AR24: 2012-03-17 | AS24: 11 | AT24: 36 | AU24: 11 | AV24: 9 | AW24: 11 | AX24: 3 | AY24: 0.07422680412 | AZ24: 0.07422680412 | BA24: 0.0332103321 | BB24: 0.0332103321 | BC24: 0.01886792453 | BD24: 0.01886792453 | BF24: 2012-03-17 | BG24: 11 | BH24: 449 | BI24: 11 | BJ24: 262 | BK24: 11 | BL24: 156 | BN24: 2012-03-17 | BO24: 485 | BP24: 271 | BQ24: 159 | BS24: 72 | BT24: 90 | BU24: 40 | BW24: 245 | BX24: 102 | BY24: 102 | CA24: 50 | CB24: 52 | CH24: 62 | CI24: 43 | CY24: December | CZ24: 12 | DA24: 2012 | DB24: 73003 | DC24: 886 | DD24: 1.614537246 | DE24: 1430.48 | DF24: 29 | DH24: 12 | DI24: 2012 | DJ24: 889 | DK24: 17 | DL24: 12 | DM24: 2012 | DN24: 1684 | DO24: 29 | DQ24: google | DR24: cpc | DS24: security company in newport ri | DT24: +security +newport | DU24: 1 | DV24: 1 | DY24: Private Investigations: Investigation Services | Industrial Security | DZ24: 1 | EA24: 5 | EB24: 18 | EC24: 1 | ED24: 0 | EE24: 0 | EF24: 29 | EI24: Firefox | EJ24: Firefox OS | EK24: 6 | EL24: 0 | EM24: 1 | EN24: 1 | EO24: 0 | EP24: 6 | EQ24: 6 | ER24: FALSE | ES24: FALSE | ET24: FALSE | EU24: 0.006458557589
B25: 2012-03-24 | C25: 2012-03-24 | D25: 12 | E25: 516 | F25: 12 | G25: 246 | H25: 12 | I25: 192 | L25: 2012-03-24 | M25: 12 | N25: 97 | O25: 12 | P25: 82 | Q25: 12 | R25: 65 | T25: 2012-03-24 | U25: 12 | V25: 279 | W25: 12 | X25: 95 | Y25: 12 | Z25: 107 | AB25: 2012-03-24 | AC25: 12 | AD25: 44 | AE25: 12 | AF25: 42 | AG25: 12 | AH25: 0 | AJ25: 2012-03-24 | AK25: 12 | AL25: 60 | AM25: 12 | AN25: 41 | AO25: 12 | AP25: 0 | AR25: 2012-03-24 | AS25: 12 | AT25: 34 | AU25: 12 | AV25: 9 | AW25: 12 | AX25: 2 | AY25: 0.06589147287 | AZ25: 0.06589147287 | BA25: 0.03658536585 | BB25: 0.03658536585 | BC25: 0.01041666667 | BD25: 0.01041666667 | BF25: 2012-03-24 | BG25: 12 | BH25: 482 | BI25: 12 | BJ25: 237 | BK25: 12 | BL25: 190 | BN25: 2012-03-24 | BO25: 516 | BP25: 246 | BQ25: 192 | BS25: 97 | BT25: 82 | BU25: 65 | BW25: 279 | BX25: 95 | BY25: 107 | CA25: 44 | CB25: 42 | CH25: 60 | CI25: 41 | CY25: January | CZ25: 1 | DA25: 2013 | DB25: 104463 | DC25: 1274 | DD25: 1.594152276 | DE25: 2030.95 | DF25: 44 | DH25: 1 | DI25: 2013 | DJ25: 1308 | DK25: 23 | DL25: 1 | DM25: 2013 | DN25: 2399 | DO25: 44 | DQ25: google | DR25: cpc | DS25: security in ri | DT25: +security +ri | DU25: 1 | DV25: 1 | DY25: Private Security Patrols | Industrial Security | DZ25: 1 | EA25: 4 | EB25: 1 | EC25: 0 | ED25: 1 | EE25: 1 | EF25: 0 | EI25: Playstation 3 | EJ25: Playstation 3 | EK25: 6 | EL25: 87.375 | EM25: 0.625 | EN25: 0.625 | EO25: 524.25 | EP25: 3.75 | EQ25: 3.75 | ER25: FALSE | ES25: FALSE | ET25: FALSE | EU25: 0.006458557589
B26: 2012-03-31 | C26: 2012-03-31 | D26: 13 | E26: 475 | F26: 13 | G26: 288 | H26: 13 | I26: 212 | L26: 2012-03-31 | M26: 13 | N26: 83 | O26: 13 | P26: 90 | Q26: 13 | R26: 81 | T26: 2012-03-31 | U26: 13 | V26: 251 | W26: 13 | X26: 118 | Y26: 13 | Z26: 102 | AB26: 2012-03-31 | AC26: 13 | AD26: 67 | AE26: 13 | AF26: 29 | AG26: 13 | AH26: 2 | AJ26: 2012-03-31 | AK26: 13 | AL26: 65 | AM26: 13 | AN26: 65 | AO26: 13 | AP26: 1 | AR26: 2012-03-31 | AS26: 13 | AT26: 29 | AU26: 13 | AV26: 8 | AW26: 13 | AX26: 6 | AY26: 0.06105263158 | AZ26: 0.06105263158 | BA26: 0.02777777778 | BB26: 0.02777777778 | BC26: 0.02830188679 | BD26: 0.02830188679 | BF26: 2012-03-31 | BG26: 13 | BH26: 446 | BI26: 13 | BJ26: 280 | BK26: 13 | BL26: 206 | BN26: 2012-03-31 | BO26: 475 | BP26: 288 | BQ26: 212 | BS26: 83 | BT26: 90 | BU26: 81 | BW26: 251 | BX26: 118 | BY26: 102 | CA26: 67 | CB26: 29 | CC26: 2 | CH26: 65 | CI26: 65 | CJ26: 1 | CY26: February | CZ26: 2 | DA26: 2013 | DB26: 109518 | DC26: 1306 | DD26: 1.600551302 | DE26: 2090.32 | DF26: 43 | DH26: 2 | DI26: 2013 | DJ26: 1573 | DK26: 22 | DL26: 2 | DM26: 2013 | DN26: 2523 | DO26: 43 | DQ26: google | DR26: cpc | DS26: security officer ri | DT26: +security +ri | DU26: 1 | DV26: 1 | DY26: Private Security: About Us | Industrial Security | DZ26: 1 | EA26: 5 | EB26: 22.75 | EC26: 0 | ED26: 1 | EE26: 1 | EF26: 0 | EI26: Amazon Silk | EJ26: Android | EK26: 5 | EL26: 470 | EM26: 0 | EN26: 0 | EO26: 2350 | EP26: 0 | EQ26: 0 | ER26: FALSE | ES26: FALSE | ET26: FALSE | EU26: 0.005382131324
B27: 2012-04-07 | C27: 2012-04-07 | D27: 14 | E27: 489 | F27: 14 | G27: 246 | H27: 14 | I27: 193 | L27: 2012-04-07 | M27: 14 | N27: 82 | O27: 14 | P27: 93 | Q27: 14 | R27: 49 | T27: 2012-04-07 | U27: 14 | V27: 261 | W27: 14 | X27: 89 | Y27: 14 | Z27: 106 | AB27: 2012-04-07 | AC27: 14 | AD27: 95 | AE27: 14 | AF27: 28 | AG27: 14 | AH27: 5 | AJ27: 2012-04-07 | AK27: 14 | AL27: 27 | AM27: 14 | AN27: 50 | AO27: 14 | AP27: 6 | AR27: 2012-04-07 | AS27: 14 | AT27: 42 | AU27: 14 | AV27: 17 | AW27: 14 | AX27: 4 | AY27: 0.08588957055 | AZ27: 0.08588957055 | BA27: 0.06910569105 | BB27: 0.06910569105 | BC27: 0.0207253886 | BD27: 0.0207253886 | BF27: 2012-04-07 | BG27: 14 | BH27: 447 | BI27: 14 | BJ27: 229 | BK27: 14 | BL27: 189 | BN27: 2012-04-07 | BO27: 489 | BP27: 246 | BQ27: 193 | BS27: 82 | BT27: 93 | BU27: 49 | BW27: 261 | BX27: 89 | BY27: 106 | CA27: 95 | CB27: 28 | CC27: 5 | CH27: 27 | CI27: 50 | CJ27: 6 | CY27: March | CZ27: 3 | DA27: 2013 | DB27: 112549 | DC27: 1144 | DD27: 1.700725524 | DE27: 1945.63 | DF27: 41 | DH27: 3 | DI27: 2013 | DJ27: 1512 | DK27: 18 | DL27: 3 | DM27: 2013 | DN27: 2473 | DO27: 41 | DQ27: google | DR27: cpc | DS27: vms security rhode island | DT27: +security +ri | DU27: 1 | DV27: 1 | DY27: Private Security: Temporary Security Services | Industrial Security | DZ27: 1 | EA27: 6 | EB27: 94.6 | EC27: 1 | ED27: 0 | EE27: 0 | EF27: 390 | EI27: Internet Explorer | EJ27: Windows Phone | EK27: 5 | EL27: 103 | EM27: 0.4 | EN27: 0.4 | EO27: 515 | EP27: 2 | EQ27: 2 | ER27: FALSE | ES27: FALSE | ET27: FALSE | EU27: 0.005382131324
B28: 2012-04-14 | C28: 2012-04-14 | D28: 15 | E28: 482 | F28: 15 | G28: 255 | H28: 15 | I28: 199 | L28: 2012-04-14 | M28: 15 | N28: 90 | O28: 15 | P28: 90 | Q28: 15 | R28: 60 | T28: 2012-04-14 | U28: 15 | V28: 274 | W28: 15 | X28: 87 | Y28: 15 | Z28: 113 | AB28: 2012-04-14 | AC28: 15 | AD28: 86 | AE28: 15 | AF28: 33 | AG28: 15 | AH28: 17 | AJ28: 2012-04-14 | AK28: 15 | AL28: 31 | AM28: 15 | AN28: 57 | AO28: 15 | AP28: 23 | AR28: 2012-04-14 | AS28: 15 | AT28: 41 | AU28: 15 | AV28: 19 | AW28: 15 | AX28: 4 | AY28: 0.08506224066 | AZ28: 0.08506224066 | BA28: 0.07450980392 | BB28: 0.07450980392 | BC28: 0.02010050251 | BD28: 0.02010050251 | BF28: 2012-04-14 | BG28: 15 | BH28: 441 | BI28: 15 | BJ28: 236 | BK28: 15 | BL28: 195 | BN28: 2012-04-14 | BO28: 482 | BP28: 255 | BQ28: 199 | BS28: 90 | BT28: 90 | BU28: 60 | BW28: 274 | BX28: 87 | BY28: 113 | CA28: 86 | CB28: 33 | CC28: 17 | CH28: 31 | CI28: 57 | CJ28: 23 | CY28: April | CZ28: 4 | DA28: 2013 | DB28: 104278 | DC28: 1139 | DD28: 1.7714223 | DE28: 2017.65 | DF28: 31 | DH28: 4 | DI28: 2013 | DJ28: 1400 | DK28: 21 | DL28: 4 | DM28: 2013 | DN28: 2430 | DO28: 31 | DQ28: google | DR28: cpc | DS28: www securityri com | DT28: +security +ri | DU28: 1 | DV28: 1 | DY28: Security Tips: Work Security | Industrial Security | DZ28: 1 | EA28: 3 | EB28: 43.5 | EC28: 0 | ED28: 1 | EE28: 1 | EF28: 0 | EI28: Mozilla Compatible Agent | EJ28: Windows | EK28: 5 | EL28: 0 | EM28: 1 | EN28: 1 | EO28: 0 | EP28: 5 | EQ28: 5 | ER28: FALSE | ES28: FALSE | ET28: FALSE | EU28: 0.005382131324
B29: 2012-04-21 | C29: 2012-04-21 | D29: 16 | E29: 450 | F29: 16 | G29: 309 | H29: 16 | I29: 206 | L29: 2012-04-21 | M29: 16 | N29: 71 | O29: 16 | P29: 91 | Q29: 16 | R29: 53 | T29: 2012-04-21 | U29: 16 | V29: 246 | W29: 16 | X29: 118 | Y29: 16 | Z29: 116 | AB29: 2012-04-21 | AC29: 16 | AD29: 59 | AE29: 16 | AF29: 61 | AG29: 16 | AH29: 20 | AJ29: 2012-04-21 | AK29: 16 | AL29: 58 | AM29: 16 | AN29: 57 | AO29: 16 | AP29: 22 | AR29: 2012-04-21 | AS29: 16 | AT29: 31 | AU29: 16 | AV29: 8 | AW29: 16 | AX29: 4 | AY29: 0.06888888889 | AZ29: 0.06888888889 | BA29: 0.02588996764 | BB29: 0.02588996764 | BC29: 0.01941747573 | BD29: 0.01941747573 | BF29: 2012-04-21 | BG29: 16 | BH29: 419 | BI29: 16 | BJ29: 301 | BK29: 16 | BL29: 202 | BN29: 2012-04-21 | BO29: 450 | BP29: 309 | BQ29: 206 | BS29: 71 | BT29: 91 | BU29: 53 | BW29: 246 | BX29: 118 | BY29: 116 | CA29: 59 | CB29: 61 | CC29: 20 | CH29: 58 | CI29: 57 | CJ29: 22 | CY29: May | CZ29: 5 | DA29: 2013 | DB29: 114083 | DC29: 1009 | DD29: 1.900505451 | DE29: 1917.61 | DF29: 25 | DH29: 5 | DI29: 2013 | DJ29: 1272 | DK29: 13 | DL29: 5 | DM29: 2013 | DN29: 2038 | DO29: 25 | DQ29: google | DR29: organic | DS29: (not set) | DT29: armed security companies in rhode island | DU29: 1 | DV29: 1 | DY29: Security Training and Certification | Industrial Security | DZ29: 1 | EA29: 13.5 | EB29: 42.34782609 | EC29: 3 | ED29: 0 | EE29: 0 | EF29: 14.5 | EI29: Opera Mini | EJ29: (not set) | EK29: 4 | EL29: 158.75 | EM29: 0.75 | EN29: 0.75 | EO29: 635 | EP29: 3 | EQ29: 3 | ER29: FALSE | ES29: FALSE | ET29: FALSE | EU29: 0.004305705059
B30: 2012-04-28 | C30: 2012-04-28 | D30: 17 | E30: 506 | F30: 17 | G30: 293 | H30: 17 | I30: 201 | L30: 2012-04-28 | M30: 17 | N30: 84 | O30: 17 | P30: 85 | Q30: 17 | R30: 73 | T30: 2012-04-28 | U30: 17 | V30: 255 | W30: 17 | X30: 106 | Y30: 17 | Z30: 89 | AB30: 2012-04-28 | AC30: 17 | AD30: 69 | AE30: 17 | AF30: 67 | AG30: 17 | AH30: 26 | AJ30: 2012-04-28 | AK30: 17 | AL30: 72 | AM30: 17 | AN30: 48 | AO30: 17 | AP30: 28 | AR30: 2012-04-28 | AS30: 17 | AT30: 37 | AU30: 17 | AV30: 15 | AW30: 17 | AX30: 8 | AY30: 0.07312252964 | AZ30: 0.07312252964 | BA30: 0.05119453925 | BB30: 0.05119453925 | BC30: 0.03980099502 | BD30: 0.03980099502 | BF30: 2012-04-28 | BG30: 17 | BH30: 469 | BI30: 17 | BJ30: 278 | BK30: 17 | BL30: 193 | BN30: 2012-04-28 | BO30: 506 | BP30: 293 | BQ30: 201 | BS30: 84 | BT30: 85 | BU30: 73 | BW30: 255 | BX30: 106 | BY30: 89 | CA30: 69 | CB30: 67 | CC30: 26 | CH30: 72 | CI30: 48 | CJ30: 28 | CY30: June | CZ30: 6 | DA30: 2013 | DB30: 128553 | DC30: 1081 | DD30: 2.302331175 | DE30: 2488.82 | DF30: 27 | DH30: 6 | DI30: 2013 | DJ30: 1326 | DK30: 13 | DL30: 6 | DM30: 2013 | DN30: 2155 | DO30: 27 | DQ30: google | DR30: organic | DS30: (not set) | DT30: http://www.securityri.com/ | DU30: 1 | DV30: 1 | DY30: Security: Manufacturing Security | Industrial Security | DZ30: 1 | EA30: 2 | EB30: 1 | EC30: 0 | ED30: 1 | EE30: 1 | EF30: 0 | EI30: Chrome | EJ30: iOS | EK30: 3 | EL30: 12.25 | EM30: 0.5 | EN30: 0.5 | EO30: 36.75 | EP30: 1.5 | EQ30: 1.5 | ER30: FALSE | ES30: FALSE | ET30: FALSE | EU30: 0.003229278794
B31: 2012-05-05 | C31: 2012-05-05 | D31: 18 | E31: 457 | F31: 18 | G31: 294 | H31: 18 | I31: 236 | L31: 2012-05-05 | M31: 18 | N31: 92 | O31: 18 | P31: 93 | Q31: 18 | R31: 65 | T31: 2012-05-05 | U31: 18 | V31: 233 | W31: 18 | X31: 110 | Y31: 18 | Z31: 113 | AB31: 2012-05-05 | AC31: 18 | AD31: 62 | AE31: 18 | AF31: 47 | AG31: 18 | AH31: 34 | AJ31: 2012-05-05 | AK31: 18 | AL31: 61 | AM31: 18 | AN31: 60 | AO31: 18 | AP31: 35 | AR31: 2012-05-05 | AS31: 18 | AT31: 46 | AU31: 18 | AV31: 17 | AW31: 18 | AX31: 5 | AY31: 0.1006564551 | AZ31: 0.1006564551 | BA31: 0.05782312925 | BB31: 0.05782312925 | BC31: 0.02118644068 | BD31: 0.02118644068 | BF31: 2012-05-05 | BG31: 18 | BH31: 411 | BI31: 18 | BJ31: 277 | BK31: 18 | BL31: 231 | BN31: 2012-05-05 | BO31: 457 | BP31: 294 | BQ31: 236 | BS31: 92 | BT31: 93 | BU31: 65 | BW31: 233 | BX31: 110 | BY31: 113 | CA31: 62 | CB31: 47 | CC31: 34 | CH31: 61 | CI31: 60 | CJ31: 35 | CY31: July | CZ31: 7 | DA31: 2013 | DB31: 87224 | DC31: 1167 | DD31: 2.491276778 | DE31: 2907.32 | DF31: 28 | DH31: 7 | DI31: 2013 | DJ31: 1435 | DK31: 24 | DL31: 7 | DM31: 2013 | DN31: 2091 | DO31: 28 | DQ31: google | DR31: organic | DS31: (not set) | DT31: industrial security | DU31: 1 | DV31: 1 | DY31: Security: Private Security for Hotels & Resorts | Industrial Security | DZ31: 1 | EA31: 2 | EB31: 31.5 | EC31: 1 | ED31: 0 | EE31: 0 | EF31: 332 | EI31: Firefox | EJ31: Linux | EK31: 3 | EL31: 18.33333333 | EM31: 0.6666666667 | EN31: 0.6666666667 | EO31: 55 | EP31: 2 | EQ31: 2 | ER31: FALSE | ES31: FALSE | ET31: FALSE | EU31: 0.003229278794
B32: 2012-05-12 | C32: 2012-05-12 | D32: 19 | E32: 397 | F32: 19 | G32: 274 | H32: 19 | I32: 158 | L32: 2012-05-12 | M32: 19 | N32: 61 | O32: 19 | P32: 78 | Q32: 19 | R32: 46 | T32: 2012-05-12 | U32: 19 | V32: 197 | W32: 19 | X32: 106 | Y32: 19 | Z32: 91 | AB32: 2012-05-12 | AC32: 19 | AD32: 50 | AE32: 19 | AF32: 43 | AG32: 19 | AH32: 19 | AJ32: 2012-05-12 | AK32: 19 | AL32: 51 | AM32: 19 | AN32: 52 | AO32: 19 | AP32: 17 | AR32: 2012-05-12 | AS32: 19 | AT32: 33 | AU32: 19 | AV32: 16 | AW32: 19 | AX32: 3 | AY32: 0.08312342569 | AZ32: 0.08312342569 | BA32: 0.05839416058 | BB32: 0.05839416058 | BC32: 0.01898734177 | BD32: 0.01898734177 | BF32: 2012-05-12 | BG32: 19 | BH32: 364 | BI32: 19 | BJ32: 258 | BK32: 19 | BL32: 155 | BN32: 2012-05-12 | BO32: 397 | BP32: 274 | BQ32: 158 | BS32: 61 | BT32: 78 | BU32: 46 | BW32: 197 | BX32: 106 | BY32: 91 | CA32: 50 | CB32: 43 | CC32: 19 | CH32: 51 | CI32: 52 | CJ32: 17 | CY32: August | CZ32: 8 | DA32: 2013 | DB32: 116989 | DC32: 1706 | DD32: 2.562684642 | DE32: 4371.94 | DF32: 65 | DH32: 8 | DI32: 2013 | DJ32: 1923 | DK32: 47 | DL32: 8 | DM32: 2013 | DN32: 2562 | DO32: 65 | DQ32: google | DR32: organic | DS32: (not set) | DT32: industrial security & investigators, inc | DU32: 1 | DV32: 1 | EI32: Firefox | EJ32: Macintosh | EK32: 3 | EL32: 75 | EM32: 0.25 | EN32: 0.25 | EO32: 225 | EP32: 0.75 | EQ32: 0.75 | ER32: FALSE | ES32: FALSE | ET32: FALSE | EU32: 0.003229278794
B33: 2012-05-19 | C33: 2012-05-19 | D33: 20 | E33: 442 | F33: 20 | G33: 267 | H33: 20 | I33: 184 | L33: 2012-05-19 | M33: 20 | N33: 69 | O33: 20 | P33: 93 | Q33: 20 | R33: 48 | T33: 2012-05-19 | U33: 20 | V33: 258 | W33: 20 | X33: 95 | Y33: 20 | Z33: 85 | AB33: 2012-05-19 | AC33: 20 | AD33: 53 | AE33: 20 | AF33: 40 | AG33: 20 | AH33: 34 | AJ33: 2012-05-19 | AK33: 20 | AL33: 30 | AM33: 20 | AN33: 51 | AO33: 20 | AP33: 25 | AR33: 2012-05-19 | AS33: 20 | AT33: 54 | AU33: 20 | AV33: 15 | AW33: 20 | AX33: 4 | AY33: 0.1221719457 | AZ33: 0.1221719457 | BA33: 0.05617977528 | BB33: 0.05617977528 | BC33: 0.02173913043 | BD33: 0.02173913043 | BF33: 2012-05-19 | BG33: 20 | BH33: 388 | BI33: 20 | BJ33: 252 | BK33: 20 | BL33: 180 | BN33: 2012-05-19 | BO33: 442 | BP33: 267 | BQ33: 184 | BS33: 69 | BT33: 93 | BU33: 48 | BW33: 258 | BX33: 95 | BY33: 85 | CA33: 53 | CB33: 40 | CC33: 34 | CH33: 30 | CI33: 51 | CJ33: 25 | CY33: September | DQ33: google | DR33: organic | DS33: (not set) | DT33: industrial security, ri | DU33: 1 | DV33: 1 | EI33: Safari | EJ33: Linux | EK33: 3 | EL33: 0 | EM33: 1 | EN33: 1 | EO33: 0 | EP33: 3 | EQ33: 3 | ER33: FALSE | ES33: FALSE | ET33: FALSE | EU33: 0.003229278794
B34: 2012-05-26 | C34: 2012-05-26 | D34: 21 | E34: 360 | F34: 21 | G34: 208 | H34: 21 | I34: 177 | L34: 2012-05-26 | M34: 21 | N34: 46 | O34: 21 | P34: 58 | Q34: 21 | R34: 68 | T34: 2012-05-26 | U34: 21 | V34: 225 | W34: 21 | X34: 81 | Y34: 21 | Z34: 74 | AB34: 2012-05-26 | AC34: 21 | AD34: 36 | AE34: 21 | AF34: 33 | AG34: 21 | AH34: 27 | AJ34: 2012-05-26 | AK34: 21 | AL34: 39 | AM34: 21 | AN34: 42 | AO34: 21 | AP34: 19 | AR34: 2012-05-26 | AS34: 21 | AT34: 54 | AU34: 21 | AV34: 9 | AW34: 21 | AX34: 6 | AY34: 0.15 | AZ34: 0.15 | BA34: 0.04326923077 | BB34: 0.04326923077 | BC34: 0.03389830508 | BD34: 0.03389830508 | BF34: 2012-05-26 | BG34: 21 | BH34: 306 | BI34: 21 | BJ34: 199 | BK34: 21 | BL34: 171 | BN34: 2012-05-26 | BO34: 360 | BP34: 208 | BQ34: 177 | BS34: 46 | BT34: 58 | BU34: 68 | BW34: 225 | BX34: 81 | BY34: 74 | CA34: 36 | CB34: 33 | CC34: 27 | CH34: 39 | CI34: 42 | CJ34: 19 | CY34: October | DQ34: google | DR34: organic | DS34: (not set) | DT34: private investigations, inc | DU34: 1 | DV34: 1 | EI34: Safari | EJ34: Windows | EK34: 3 | EL34: 40.5 | EM34: 0.5 | EN34: 0.5 | EO34: 121.5 | EP34: 1.5 | EQ34: 1.5 | ER34: FALSE | ES34: FALSE | ET34: FALSE | EU34: 0.003229278794
B35: 2012-06-02 | C35: 2012-06-02 | D35: 22 | E35: 371 | F35: 22 | G35: 218 | H35: 22 | I35: 177 | L35: 2012-06-02 | M35: 22 | N35: 51 | O35: 22 | P35: 74 | Q35: 22 | R35: 59 | T35: 2012-06-02 | U35: 22 | V35: 236 | W35: 22 | X35: 85 | Y35: 22 | Z35: 83 | AB35: 2012-06-02 | AC35: 22 | AD35: 40 | AE35: 22 | AF35: 42 | AG35: 22 | AH35: 26 | AJ35: 2012-06-02 | AK35: 22 | AL35: 39 | AM35: 22 | AN35: 32 | AO35: 22 | AP35: 23 | AR35: 2012-06-02 | AS35: 22 | AT35: 39 | AU35: 22 | AV35: 10 | AW35: 22 | AX35: 4 | AY35: 0.1051212938 | AZ35: 0.1051212938 | BA35: 0.04587155963 | BB35: 0.04587155963 | BC35: 0.02259887006 | BD35: 0.02259887006 | BF35: 2012-06-02 | BG35: 22 | BH35: 332 | BI35: 22 | BJ35: 208 | BK35: 22 | BL35: 173 | BN35: 2012-06-02 | BO35: 371 | BP35: 218 | BQ35: 177 | BS35: 51 | BT35: 74 | BU35: 59 | BW35: 236 | BX35: 85 | BY35: 83 | CA35: 40 | CB35: 42 | CC35: 26 | CH35: 39 | CI35: 32 | CJ35: 23 | CY35: November | DQ35: google | DR35: organic | DS35: (not set) | DT35: security companies in ri | DU35: 1 | DV35: 1 | EI35: IE with Chrome Frame | EJ35: Windows | EK35: 2 | EL35: 27.5 | EM35: 0.5 | EN35: 0.5 | EO35: 55 | EP35: 1 | EQ35: 1 | ER35: FALSE | ES35: FALSE | ET35: FALSE | EU35: 0.00215285253
B36: 2012-06-09 | C36: 2012-06-09 | D36: 23 | E36: 418 | F36: 23 | G36: 280 | H36: 23 | I36: 146 | L36: 2012-06-09 | M36: 23 | N36: 71 | O36: 23 | P36: 77 | Q36: 23 | R36: 43 | T36: 2012-06-09 | U36: 23 | V36: 256 | W36: 23 | X36: 150 | Y36: 23 | Z36: 72 | AB36: 2012-06-09 | AC36: 23 | AD36: 31 | AE36: 23 | AF36: 44 | AG36: 23 | AH36: 16 | AJ36: 2012-06-09 | AK36: 23 | AL36: 43 | AM36: 23 | AN36: 41 | AO36: 23 | AP36: 23 | AR36: 2012-06-09 | AS36: 23 | AT36: 47 | AU36: 23 | AV36: 14 | AW36: 23 | AX36: 5 | AY36: 0.1124401914 | AZ36: 0.1124401914 | BA36: 0.05 | BB36: 0.05 | BC36: 0.03424657534 | BD36: 0.03424657534 | BF36: 2012-06-09 | BG36: 23 | BH36: 371 | BI36: 23 | BJ36: 266 | BK36: 23 | BL36: 141 | BN36: 2012-06-09 | BO36: 418 | BP36: 280 | BQ36: 146 | BS36: 71 | BT36: 77 | BU36: 43 | BW36: 256 | BX36: 150 | BY36: 72 | CA36: 31 | CB36: 44 | CC36: 16 | CH36: 43 | CI36: 41 | CJ36: 23 | CY36: December | DQ36: yahoo | DR36: organic | DS36: (not set) | DT36: private security companies in ri | DU36: 1 | DV36: 1 | EI36: (not set) | EJ36: (not set) | EK36: 1 | EL36: 0 | EM36: 1 | EN36: 1 | EO36: 0 | EP36: 1 | EQ36: 1 | ER36: FALSE | ES36: FALSE | ET36: FALSE | EU36: 0.001076426265
B37: 2012-06-16 | C37: 2012-06-16 | D37: 24 | E37: 462 | F37: 24 | G37: 270 | H37: 24 | I37: 152 | L37: 2012-06-16 | M37: 24 | N37: 62 | O37: 24 | P37: 74 | Q37: 24 | R37: 51 | T37: 2012-06-16 | U37: 24 | V37: 253 | W37: 24 | X37: 123 | Y37: 24 | Z37: 70 | AB37: 2012-06-16 | AC37: 24 | AD37: 86 | AE37: 24 | AF37: 38 | AG37: 24 | AH37: 20 | AJ37: 2012-06-16 | AK37: 24 | AL37: 38 | AM37: 24 | AN37: 50 | AO37: 24 | AP37: 24 | AR37: 2012-06-16 | AS37: 24 | AT37: 49 | AU37: 24 | AV37: 14 | AW37: 24 | AX37: 3 | AY37: 0.1060606061 | AZ37: 0.1060606061 | BA37: 0.05185185185 | BB37: 0.05185185185 | BC37: 0.0197368421 | BD37: 0.0197368421 | BF37: 2012-06-16 | BG37: 24 | BH37: 413 | BI37: 24 | BJ37: 256 | BK37: 24 | BL37: 149 | BN37: 2012-06-16 | BO37: 462 | BP37: 270 | BQ37: 152 | BS37: 62 | BT37: 74 | BU37: 51 | BW37: 253 | BX37: 123 | BY37: 70 | CA37: 86 | CB37: 38 | CC37: 20 | CH37: 38 | CI37: 50 | CJ37: 24 | DQ37: yahoo | DR37: organic | DS37: (not set) | DT37: security courier pickup companies in dekalb county | DU37: 1 | DV37: 1 | EI37: BlackBerry | EJ37: BlackBerry | EK37: 1 | EL37: 65 | EM37: 0.5 | EN37: 0.5 | EO37: 65 | EP37: 0.5 | EQ37: 0.5 | ER37: FALSE | ES37: FALSE | ET37: FALSE | EU37: 0.001076426265
B38: 2012-06-23 | C38: 2012-06-23 | D38: 25 | E38: 493 | F38: 25 | G38: 277 | H38: 25 | I38: 189 | L38: 2012-06-23 | M38: 25 | N38: 83 | O38: 25 | P38: 69 | Q38: 25 | R38: 55 | T38: 2012-06-23 | U38: 25 | V38: 260 | W38: 25 | X38: 144 | Y38: 25 | Z38: 101 | AB38: 2012-06-23 | AC38: 25 | AD38: 97 | AE38: 25 | AF38: 38 | AG38: 25 | AH38: 31 | AJ38: 2012-06-23 | AK38: 25 | AL38: 39 | AM38: 25 | AN38: 45 | AO38: 25 | AP38: 22 | AR38: 2012-06-23 | AS38: 25 | AT38: 98 | AU38: 25 | AV38: 11 | AW38: 25 | AX38: 4 | AY38: 0.1987829615 | AZ38: 0.1987829615 | BA38: 0.03971119133 | BB38: 0.03971119133 | BC38: 0.02116402116 | BD38: 0.02116402116 | BF38: 2012-06-23 | BG38: 25 | BH38: 395 | BI38: 25 | BJ38: 266 | BK38: 25 | BL38: 185 | BN38: 2012-06-23 | BO38: 493 | BP38: 277 | BQ38: 189 | BS38: 83 | BT38: 69 | BU38: 55 | BW38: 260 | BX38: 144 | BY38: 101 | CA38: 97 | CB38: 38 | CC38: 31 | CH38: 39 | CI38: 45 | CJ38: 22 | DQ38: yelp.com | DR38: referral | DS38: (not set) | DT38: (not set) | DU38: 1 | DV38: 1 | EI38: BlackBerry8530 | EJ38: BlackBerry | EK38: 1 | EL38: 0 | EM38: 1 | EN38: 1 | EO38: 0 | EP38: 1 | EQ38: 1 | ER38: FALSE | ES38: FALSE | ET38: FALSE | EU38: 0.001076426265
B39: 2012-06-30 | C39: 2012-06-30 | D39: 26 | E39: 436 | F39: 26 | G39: 308 | H39: 26 | I39: 163 | L39: 2012-06-30 | M39: 26 | N39: 76 | O39: 26 | P39: 85 | Q39: 26 | R39: 40 | T39: 2012-06-30 | U39: 26 | V39: 261 | W39: 26 | X39: 164 | Y39: 26 | Z39: 80 | AB39: 2012-06-30 | AC39: 26 | AD39: 34 | AE39: 26 | AF39: 39 | AG39: 26 | AH39: 20 | AJ39: 2012-06-30 | AK39: 26 | AL39: 50 | AM39: 26 | AN39: 46 | AO39: 26 | AP39: 32 | AR39: 2012-06-30 | AS39: 26 | AT39: 49 | AU39: 26 | AV39: 14 | AW39: 26 | AX39: 5 | AY39: 0.1123853211 | AZ39: 0.1123853211 | BA39: 0.04545454545 | BB39: 0.04545454545 | BC39: 0.03067484662 | BD39: 0.03067484662 | BF39: 2012-06-30 | BG39: 26 | BH39: 387 | BI39: 26 | BJ39: 294 | BK39: 26 | BL39: 158 | BN39: 2012-06-30 | BO39: 436 | BP39: 308 | BQ39: 163 | BS39: 76 | BT39: 85 | BU39: 40 | BW39: 261 | BX39: 164 | BY39: 80 | CA39: 34 | CB39: 39 | CC39: 20 | CH39: 50 | CI39: 46 | CJ39: 32 | DQ39: google | DR39: cpc | DS39: securitas | DT39: securitas | DU39: 5 | DV39: 0 | EI39: Chrome | EJ39: Chrome OS | EK39: 1 | EL39: 96 | EM39: 0 | EN39: 0 | EO39: 96 | EP39: 0 | EQ39: 0 | ER39: FALSE | ES39: FALSE | ET39: FALSE | EU39: 0.001076426265
B40: 2012-07-07 | C40: 2012-07-07 | D40: 27 | E40: 487 | F40: 27 | G40: 269 | H40: 27 | I40: 158 | L40: 2012-07-07 | M40: 27 | N40: 32 | O40: 27 | P40: 76 | Q40: 27 | R40: 60 | T40: 2012-07-07 | U40: 27 | V40: 215 | W40: 27 | X40: 120 | Y40: 27 | Z40: 69 | AB40: 2012-07-07 | AC40: 27 | AD40: 179 | AE40: 27 | AF40: 43 | AG40: 27 | AH40: 15 | AJ40: 2012-07-07 | AK40: 27 | AL40: 19 | AM40: 27 | AN40: 43 | AO40: 27 | AP40: 34 | AR40: 2012-07-07 | AS40: 27 | AT40: 33 | AU40: 27 | AV40: 18 | AW40: 27 | AX40: 5 | AY40: 0.06776180698 | AZ40: 0.06776180698 | BA40: 0.06691449814 | BB40: 0.06691449814 | BC40: 0.03164556962 | BD40: 0.03164556962 | BF40: 2012-07-07 | BG40: 27 | BH40: 454 | BI40: 27 | BJ40: 251 | BK40: 27 | BL40: 153 | BN40: 2012-07-07 | BO40: 487 | BP40: 269 | BQ40: 158 | BS40: 32 | BT40: 76 | BU40: 60 | BW40: 215 | BX40: 120 | BY40: 69 | CA40: 179 | CB40: 43 | CC40: 15 | CH40: 19 | CI40: 43 | CJ40: 34 | DQ40: google | DR40: organic | DS40: (not set) | DT40: industrial security tips | DU40: 4 | DV40: 0 | EI40: Chrome | EJ40: Linux | EK40: 1 | EL40: 247 | EM40: 0 | EN40: 0 | EO40: 247 | EP40: 0 | EQ40: 0 | ER40: FALSE | ES40: FALSE | ET40: FALSE | EU40: 0.001076426265
B41: 2012-07-14 | C41: 2012-07-14 | D41: 28 | E41: 431 | F41: 28 | G41: 316 | H41: 28 | I41: 146 | L41: 2012-07-14 | M41: 28 | N41: 73 | O41: 28 | P41: 83 | Q41: 28 | R41: 43 | T41: 2012-07-14 | U41: 28 | V41: 261 | W41: 28 | X41: 147 | Y41: 28 | Z41: 75 | AB41: 2012-07-14 | AC41: 28 | AD41: 46 | AE41: 28 | AF41: 46 | AG41: 28 | AH41: 19 | AJ41: 2012-07-14 | AK41: 28 | AL41: 18 | AM41: 28 | AN41: 50 | AO41: 28 | AP41: 27 | AR41: 2012-07-14 | AS41: 28 | AT41: 32 | AU41: 28 | AV41: 22 | AW41: 28 | AX41: 4 | AY41: 0.07424593967 | AZ41: 0.07424593967 | BA41: 0.06962025316 | BB41: 0.06962025316 | BC41: 0.02739726027 | BD41: 0.02739726027 | BF41: 2012-07-14 | BG41: 28 | BH41: 399 | BI41: 28 | BJ41: 294 | BK41: 28 | BL41: 142 | BN41: 2012-07-14 | BO41: 431 | BP41: 316 | BQ41: 146 | BS41: 73 | BT41: 83 | BU41: 43 | BW41: 261 | BX41: 147 | BY41: 75 | CA41: 46 | CB41: 46 | CC41: 19 | CH41: 18 | CI41: 50 | CJ41: 27 | DQ41: google | DR41: cpc | DS41: industrial security ri | DT41: +security +ri | DU41: 3 | DV41: 0 | EI41: Mozilla | EJ41: Windows | EK41: 1 | EL41: 173 | EM41: 0 | EN41: 0 | EO41: 173 | EP41: 0 | EQ41: 0 | ER41: FALSE | ES41: FALSE | ET41: FALSE | EU41: 0.001076426265
B42: 2012-07-21 | C42: 2012-07-21 | D42: 29 | E42: 395 | F42: 29 | G42: 345 | H42: 29 | I42: 185 | L42: 2012-07-21 | M42: 29 | N42: 64 | O42: 29 | P42: 89 | Q42: 29 | R42: 60 | T42: 2012-07-21 | U42: 29 | V42: 230 | W42: 29 | X42: 172 | Y42: 29 | Z42: 97 | AB42: 2012-07-21 | AC42: 29 | AD42: 35 | AE42: 29 | AF42: 49 | AG42: 29 | AH42: 23 | AJ42: 2012-07-21 | AK42: 29 | AL42: 13 | AM42: 29 | AN42: 48 | AO42: 29 | AP42: 27 | AR42: 2012-07-21 | AS42: 29 | AT42: 30 | AU42: 29 | AV42: 25 | AW42: 29 | AX42: 6 | AY42: 0.07594936709 | AZ42: 0.07594936709 | BA42: 0.07246376811 | BB42: 0.07246376811 | BC42: 0.03243243243 | BD42: 0.03243243243 | BF42: 2012-07-21 | BG42: 29 | BH42: 365 | BI42: 29 | BJ42: 320 | BK42: 29 | BL42: 179 | BN42: 2012-07-21 | BO42: 395 | BP42: 345 | BQ42: 185 | BS42: 64 | BT42: 89 | BU42: 60 | BW42: 230 | BX42: 172 | BY42: 97 | CA42: 35 | CB42: 49 | CC42: 23 | CH42: 13 | CI42: 48 | CJ42: 27 | DQ42: linkedin.com | DR42: referral | DS42: (not set) | DT42: (not set) | DU42: 3 | DV42: 0 | EI42: Mozilla Compatible Agent | EJ42: Macintosh | EK42: 1 | EL42: 0 | EM42: 1 | EN42: 1 | EO42: 0 | EP42: 1 | EQ42: 1 | ER42: FALSE | ES42: FALSE | ET42: FALSE | EU42: 0.001076426265
B43: 2012-07-28 | C43: 2012-07-28 | D43: 30 | E43: 407 | F43: 30 | G43: 358 | H43: 30 | I43: 206 | L43: 2012-07-28 | M43: 30 | N43: 62 | O43: 30 | P43: 61 | Q43: 30 | R43: 66 | T43: 2012-07-28 | U43: 30 | V43: 276 | W43: 30 | X43: 192 | Y43: 30 | Z43: 111 | AB43: 2012-07-28 | AC43: 30 | AD43: 50 | AE43: 30 | AF43: 57 | AG43: 30 | AH43: 25 | AJ43: 2012-07-28 | AK43: 30 | AL43: 15 | AM43: 30 | AN43: 67 | AO43: 30 | AP43: 36 | AR43: 2012-07-28 | AS43: 30 | AT43: 27 | AU43: 30 | AV43: 16 | AW43: 30 | AX43: 8 | AY43: 0.06633906634 | AZ43: 0.06633906634 | BA43: 0.04469273743 | BB43: 0.04469273743 | BC43: 0.03883495145 | BD43: 0.03883495145 | BF43: 2012-07-28 | BG43: 30 | BH43: 380 | BI43: 30 | BJ43: 342 | BK43: 30 | BL43: 198 | BN43: 2012-07-28 | BO43: 407 | BP43: 358 | BQ43: 206 | BS43: 62 | BT43: 61 | BU43: 66 | BW43: 276 | BX43: 192 | BY43: 111 | CA43: 50 | CB43: 57 | CC43: 25 | CH43: 15 | CI43: 67 | CJ43: 36 | DQ43: slideshare.net | DR43: referral | DS43: (not set) | DT43: (not set) | DU43: 3 | DV43: 0 | EI43: Opera | EJ43: Macintosh | EK43: 1 | EL43: 0 | EM43: 1 | EN43: 1 | EO43: 0 | EP43: 1 | EQ43: 1 | ER43: FALSE | ES43: FALSE | ET43: FALSE | EU43: 0.001076426265
B44: 2012-08-04 | C44: 2012-08-04 | D44: 31 | E44: 446 | F44: 31 | G44: 334 | H44: 31 | I44: 212 | L44: 2012-08-04 | M44: 31 | N44: 53 | O44: 31 | P44: 85 | Q44: 31 | R44: 69 | T44: 2012-08-04 | U44: 31 | V44: 365 | W44: 31 | X44: 149 | Y44: 31 | Z44: 98 | AB44: 2012-08-04 | AC44: 31 | AD44: 30 | AE44: 31 | AF44: 54 | AG44: 31 | AH44: 29 | AJ44: 2012-08-04 | AK44: 31 | AL44: 15 | AM44: 31 | AN44: 55 | AO44: 31 | AP44: 35 | AR44: 2012-08-04 | AS44: 31 | AT44: 53 | AU44: 31 | AV44: 31 | AW44: 31 | AX44: 7 | AY44: 0.1188340807 | AZ44: 0.1188340807 | BA44: 0.09281437125 | BB44: 0.09281437125 | BC44: 0.03301886792 | BD44: 0.03301886792 | BF44: 2012-08-04 | BG44: 31 | BH44: 393 | BI44: 31 | BJ44: 303 | BK44: 31 | BL44: 205 | BN44: 2012-08-04 | BO44: 446 | BP44: 334 | BQ44: 212 | BS44: 53 | BT44: 85 | BU44: 69 | BW44: 365 | BX44: 149 | BY44: 98 | CA44: 30 | CB44: 54 | CC44: 29 | CH44: 15 | CI44: 55 | CJ44: 35 | DQ44: google | DR44: cpc | DS44: nesctc security ri | DT44: +security +ri | DU44: 2 | DV44: 0 | EI44: S40 Ovi Browser | EJ44: Series40 | EK44: 1 | EL44: 0 | EM44: 1 | EN44: 1 | EO44: 0 | EP44: 1 | EQ44: 1 | ER44: FALSE | ES44: FALSE | ET44: FALSE | EU44: 0.001076426265
B45: 2012-08-11 | C45: 2012-08-11 | D45: 32 | E45: 413 | F45: 32 | G45: 311 | H45: 32 | I45: 207 | L45: 2012-08-11 | M45: 32 | N45: 62 | O45: 32 | P45: 69 | Q45: 32 | R45: 67 | T45: 2012-08-11 | U45: 32 | V45: 294 | W45: 32 | X45: 171 | Y45: 32 | Z45: 104 | AB45: 2012-08-11 | AC45: 32 | AD45: 27 | AE45: 32 | AF45: 33 | AG45: 32 | AH45: 30 | AJ45: 2012-08-11 | AK45: 32 | AL45: 22 | AM45: 32 | AN45: 59 | AO45: 32 | AP45: 29 | AR45: 2012-08-11 | AS45: 32 | AT45: 61 | AU45: 32 | AV45: 32 | AW45: 32 | AX45: 5 | AY45: 0.1476997579 | AZ45: 0.1476997579 | BA45: 0.1028938907 | BB45: 0.1028938907 | BC45: 0.02415458937 | BD45: 0.02415458937 | BF45: 2012-08-11 | BG45: 32 | BH45: 352 | BI45: 32 | BJ45: 279 | BK45: 32 | BL45: 202 | BN45: 2012-08-11 | BO45: 413 | BP45: 311 | BQ45: 207 | BS45: 62 | BT45: 69 | BU45: 67 | BW45: 294 | BX45: 171 | BY45: 104 | CA45: 27 | CB45: 33 | CC45: 30 | CH45: 22 | CI45: 59 | CJ45: 29 | DQ45: google | DR45: cpc | DS45: rhode island hospital security | DT45: +security +ri | DU45: 2 | DV45: 0 | EO45: 0 | EP45: 0 | EQ45: 0 | ER45: FALSE | ES45: FALSE
B46: 2012-08-18 | C46: 2012-08-18 | D46: 33 | E46: 542 | F46: 33 | G46: 304 | H46: 33 | I46: 209 | L46: 2012-08-18 | M46: 33 | N46: 72 | O46: 33 | P46: 64 | Q46: 33 | R46: 81 | T46: 2012-08-18 | U46: 33 | V46: 405 | W46: 33 | X46: 183 | Y46: 33 | Z46: 96 | AB46: 2012-08-18 | AC46: 33 | AD46: 35 | AE46: 33 | AF46: 40 | AG46: 33 | AH46: 25 | AJ46: 2012-08-18 | AK46: 33 | AL46: 34 | AM46: 33 | AN46: 43 | AO46: 33 | AP46: 42 | AR46: 2012-08-18 | AS46: 33 | AT46: 66 | AU46: 33 | AV46: 34 | AW46: 33 | AX46: 12 | AY46: =AT46/(E46+0.00000001) -> 0.1217712177 | AZ46: 0.1217712177 | BA46: =AV46/(G46+0.00000001) -> 0.1118421053 | BB46: 0.1118421053 | BC46: =AX46/(I46+0.00000001) -> 0.05741626794 | BD46: 0.05741626794 | BF46: 2012-08-18 | BG46: 33 | BH46: =E46-AT46 -> 476 | BI46: 33 | BJ46: =G46-AV46 -> 270 | BK46: 33 | BL46: =I46-AX46 -> 197 | BN46: 2012-08-18 | BO46: 542 | BP46: 304 | BQ46: 209 | BS46: 72 | BT46: 64 | BU46: 81 | BW46: 405 | BX46: 183 | BY46: 96 | CA46: 35 | CB46: 40 | CC46: 25 | CH46: 34 | CI46: 43 | CJ46: 42 | DQ46: google | DR46: cpc | DS46: securitas rhode island | DT46: securitas | DU46: 2 | DV46: 0 | EO46: 0 | EP46: 0 | EQ46: 0 | ER46: FALSE | ES46: FALSE
B47: 2012-08-25 | C47: 2012-08-25 | D47: 34 | E47: 589 | F47: 34 | G47: 319 | H47: 34 | I47: 236 | L47: 2012-08-25 | M47: 34 | N47: 58 | O47: 34 | P47: 56 | Q47: 34 | R47: 79 | T47: 2012-08-25 | U47: 34 | V47: 420 | W47: 34 | X47: 186 | Y47: 34 | Z47: 118 | AB47: 2012-08-25 | AC47: 34 | AD47: 43 | AE47: 34 | AF47: 40 | AG47: 34 | AH47: 44 | AJ47: 2012-08-25 | AK47: 34 | AL47: 39 | AM47: 34 | AN47: 52 | AO47: 34 | AP47: 30 | AR47: 2012-08-25 | AS47: 34 | AT47: 67 | AU47: 34 | AV47: 25 | AW47: 34 | AX47: 5 | AY47: 0.1137521222 | AZ47: 0.1137521222 | BA47: 0.07836990595 | BB47: 0.07836990595 | BC47: 0.02118644068 | BD47: 0.02118644068 | BF47: 2012-08-25 | BG47: 34 | BH47: 522 | BI47: 34 | BJ47: 294 | BK47: 34 | BL47: 231 | BN47: 2012-08-25 | BO47: 589 | BP47: 319 | BQ47: 236 | BS47: 58 | BT47: 56 | BU47: 79 | BW47: 420 | BX47: 186 | BY47: 118 | CA47: 43 | CB47: 40 | CC47: 44 | CH47: 39 | CI47: 52 | CJ47: 30 | DQ47: google | DR47: cpc | DS47: security companies in rhode island | DT47: +security +ri | DU47: 2 | DV47: 0 | EO47: 0 | EP47: 0 | EQ47: 0 | ER47: FALSE | ES47: FALSE
B48: 2012-09-01 | C48: 2012-09-01 | D48: 35 | E48: 547 | F48: 35 | G48: 362 | H48: 35 | I48: 200 | L48: 2012-09-01 | M48: 35 | N48: 55 | O48: 35 | P48: 65 | Q48: 35 | R48: 51 | T48: 2012-09-01 | U48: 35 | V48: 440 | W48: 35 | X48: 196 | Y48: 35 | Z48: 83 | AB48: 2012-09-01 | AC48: 35 | AD48: 38 | AE48: 35 | AF48: 58 | AG48: 35 | AH48: 34 | AJ48: 2012-09-01 | AK48: 35 | AL48: 40 | AM48: 35 | AN48: 63 | AO48: 35 | AP48: 43 | AR48: 2012-09-01 | AS48: 35 | AT48: 88 | AU48: 35 | AV48: 24 | AW48: 35 | AX48: 6 | AY48: 0.1608775137 | BA48: 0.06629834254 | BB48: 0.06629834254 | BC48: 0.03 | BD48: 0.03 | BF48: 2012-09-01 | BG48: 35 | BH48: 459 | BI48: 35 | BJ48: 338 | BK48: 35 | BL48: 194 | BN48: 2012-09-01 | BO48: 547 | BP48: 362 | BQ48: 200 | BS48: 55 | BT48: 65 | BU48: 51 | BW48: 440 | BX48: 196 | BY48: 83 | CA48: 38 | CB48: 58 | CC48: 34 | CH48: 40 | CI48: 63 | CJ48: 43 | DQ48: google | DR48: cpc | DS48: security guard in ri | DT48: +security +guard | DU48: 2 | DV48: 0 | EO48: 0 | EP48: 0 | EQ48: 0 | ER48: FALSE | ES48: FALSE
B49: 2012-09-08 | C49: 2012-09-08 | F49: 36 | G49: 357 | H49: 36 | I49: 194 | L49: 2012-09-08 | O49: 36 | P49: 68 | Q49: 36 | R49: 69 | T49: 2012-09-08 | W49: 36 | X49: 232 | Y49: 36 | Z49: 79 | AB49: 2012-09-08 | AE49: 36 | AF49: 41 | AG49: 36 | AH49: 29 | AJ49: 2012-09-08 | AM49: 36 | AN49: 43 | AO49: 36 | AP49: 27 | AR49: 2012-09-08 | AU49: 36 | AV49: 28 | AW49: 36 | AX49: 3 | AY49: 0 | BA49: 0.07843137255 | BB49: 0.07843137255 | BC49: 0.01546391752 | BD49: 0.01546391752 | BF49: 2012-09-08 | BG49: 0 | BH49: 0 | BI49: 0 | BJ49: 329 | BK49: 0 | BL49: 191 | BN49: 2012-09-08 | BP49: 357 | BQ49: 194 | BT49: 68 | BU49: 69 | BX49: 232 | BY49: 79 | CB49: 41 | CC49: 29 | CI49: 43 | CJ49: 27 | DQ49: google | DR49: cpc | DS49: warren security | DT49: +security +warren | DU49: 2 | DV49: 0 | EO49: 0 | EP49: 0 | EQ49: 0 | ER49: FALSE | ES49: FALSE
B50: 2012-09-15 | C50: 2012-09-15 | F50: 37 | G50: 384 | H50: 37 | I50: 238 | L50: 2012-09-15 | O50: 37 | P50: 72 | Q50: 37 | R50: 66 | T50: 2012-09-15 | W50: 37 | X50: 199 | Y50: 37 | Z50: 137 | AB50: 2012-09-15 | AE50: 37 | AF50: 56 | AG50: 37 | AH50: 32 | AJ50: 2012-09-15 | AM50: 37 | AN50: 77 | AO50: 37 | AP50: 23 | AR50: 2012-09-15 | AU50: 37 | AV50: 36 | AW50: 37 | AX50: 6 | AY50: 0 | BA50: 0.09375 | BB50: 0.09375 | BC50: 0.02521008403 | BD50: 0.02521008403 | BF50: 2012-09-15 | BG50: 0 | BH50: 0 | BI50: 0 | BJ50: 348 | BK50: 0 | BL50: 232 | BN50: 2012-09-15 | BP50: 384 | BQ50: 238 | BT50: 72 | BU50: 66 | BX50: 199 | BY50: 137 | CB50: 56 | CC50: 32 | CI50: 77 | CJ50: 23 | DQ50: google | DR50: organic | DS50: (not set) | DT50: industrial security awareness | DU50: 2 | DV50: 0 | EO50: 0 | EP50: 0 | EQ50: 0 | ER50: FALSE | ES50: FALSE
B51: 2012-09-22 | C51: 2012-09-22 | F51: 38 | G51: 430 | H51: 38 | I51: 236 | L51: 2012-09-22 | O51: 38 | P51: 75 | Q51: 38 | R51: 94 | T51: 2012-09-22 | W51: 38 | X51: 272 | Y51: 38 | Z51: 117 | AB51: 2012-09-22 | AE51: 38 | AF51: 48 | AG51: 38 | AH51: 30 | AJ51: 2012-09-22 | AM51: 38 | AN51: 66 | AO51: 38 | AP51: 27 | AR51: 2012-09-22 | AU51: 38 | AV51: 37 | AW51: 38 | AX51: 10 | AY51: 0 | BA51: 0.08604651163 | BB51: 0.08604651163 | BC51: 0.04237288135 | BD51: 0.04237288135 | BF51: 2012-09-22 | BG51: 0 | BH51: 0 | BI51: 0 | BJ51: 393 | BK51: 0 | BL51: 226 | BN51: 2012-09-22 | BP51: 430 | BQ51: 236 | BT51: 75 | BU51: 94 | BX51: 272 | BY51: 117 | CB51: 48 | CC51: 30 | CI51: 66 | CJ51: 27 | DQ51: r.duckduckgo.com | DR51: referral | DS51: (not set) | DT51: (not set) | DU51: 2 | DV51: 0 | EO51: 0 | EP51: 0 | EQ51: 0 | ER51: FALSE | ES51: FALSE
B52: 2012-09-29 | C52: 2012-09-29 | F52: 39 | G52: 468 | H52: 39 | I52: 331 | L52: 2012-09-29 | O52: 39 | P52: 78 | Q52: 39 | R52: 103 | T52: 2012-09-29 | W52: 39 | X52: 288 | Y52: 39 | Z52: 169 | AB52: 2012-09-29 | AE52: 39 | AF52: 85 | AG52: 39 | AH52: 56 | AJ52: 2012-09-29 | AM52: 39 | AN52: 58 | AO52: 39 | AP52: 34 | AR52: 2012-09-29 | AU52: 39 | AV52: 43 | AW52: 39 | AX52: 10 | AY52: 0 | BA52: 0.09188034188 | BB52: 0.09188034188 | BC52: 0.03021148036 | BD52: 0.03021148036 | BF52: 2012-09-29 | BG52: 0 | BH52: 0 | BI52: 0 | BJ52: 425 | BK52: 0 | BL52: 321 | BN52: 2012-09-29 | BP52: 468 | BQ52: 331 | BT52: 78 | BU52: 103 | BX52: 288 | BY52: 169 | CB52: 85 | CC52: 56 | CI52: 58 | CJ52: 34 | DQ52: 192.9.200.7 | DR52: referral | DS52: (not set) | DT52: (not set) | DU52: 1 | DV52: 0 | EO52: 0 | EP52: 0 | EQ52: 0 | ER52: FALSE | ES52: FALSE
B53: 2012-10-06 | C53: 2012-10-06 | F53: 40 | G53: 466 | H53: 40 | I53: 303 | L53: 2012-10-06 | O53: 40 | P53: 83 | Q53: 40 | R53: 90 | T53: 2012-10-06 | W53: 40 | X53: 293 | Y53: 40 | Z53: 133 | AB53: 2012-10-06 | AE53: 40 | AF53: 65 | AG53: 40 | AH53: 65 | AJ53: 2012-10-06 | AM53: 40 | AN53: 66 | AO53: 40 | AP53: 28 | AR53: 2012-10-06 | AU53: 40 | AV53: 40 | AW53: 40 | AX53: 7 | AY53: 0 | BA53: 0.08583690987 | BB53: 0.08583690987 | BC53: 0.02310231023 | BD53: 0.02310231023 | BF53: 2012-10-06 | BG53: 0 | BH53: 0 | BI53: 0 | BJ53: 426 | BK53: 0 | BL53: 296 | BN53: 2012-10-06 | BP53: 466 | BQ53: 303 | BT53: 83 | BU53: 90 | BX53: 293 | BY53: 133 | CB53: 65 | CC53: 65 | CI53: 66 | CJ53: 28 | DQ53: aol | DR53: organic | DS53: (not set) | DT53: industrial security and investigators | DU53: 1 | DV53: 0 | EO53: 0 | EP53: 0 | EQ53: 0 | ER53: FALSE | ES53: FALSE
B54: 2012-10-13 | C54: 2012-10-13 | F54: 41 | G54: 458 | H54: 41 | I54: 285 | L54: 2012-10-13 | O54: 41 | P54: 81 | Q54: 41 | R54: 96 | T54: 2012-10-13 | W54: 41 | X54: 307 | Y54: 41 | Z54: 143 | AB54: 2012-10-13 | AE54: 41 | AF54: 67 | AG54: 41 | AH54: 53 | AJ54: 2012-10-13 | AM54: 41 | AN54: 49 | AO54: 41 | AP54: 21 | AR54: 2012-10-13 | AU54: 41 | AV54: 33 | AW54: 41 | AX54: 11 | AY54: 0 | BA54: 0.07205240175 | BB54: 0.07205240175 | BC54: 0.03859649123 | BD54: 0.03859649123 | BF54: 2012-10-13 | BG54: 0 | BH54: 0 | BI54: 0 | BJ54: 425 | BK54: 0 | BL54: 274 | BN54: 2012-10-13 | BP54: 458 | BQ54: 285 | BT54: 81 | BU54: 96 | BX54: 307 | BY54: 143 | CB54: 67 | CC54: 53 | CI54: 49 | CJ54: 21 | DQ54: aol | DR54: organic | DS54: (not set) | DT54: ri security | DU54: 1 | DV54: 0 | EO54: 0 | EP54: 0 | EQ54: 0 | ER54: FALSE | ES54: FALSE
B55: 2012-10-20 | C55: 2012-10-20 | F55: 42 | G55: 418 | H55: 42 | I55: 272 | L55: 2012-10-20 | O55: 42 | P55: 76 | Q55: 42 | R55: 89 | T55: 2012-10-20 | W55: 42 | X55: 239 | Y55: 42 | Z55: 160 | AB55: 2012-10-20 | AE55: 42 | AF55: 57 | AG55: 42 | AH55: 38 | AJ55: 2012-10-20 | AM55: 42 | AN55: 69 | AO55: 42 | AP55: 24 | AR55: 2012-10-20 | AU55: 42 | AV55: 25 | AW55: 42 | AX55: 11 | AY55: 0 | BA55: 0.05980861244 | BB55: 0.05980861244 | BC55: 0.04044117647 | BD55: 0.04044117647 | BF55: 2012-10-20 | BG55: 0 | BH55: 0 | BI55: 0 | BJ55: 393 | BK55: 0 | BL55: 261 | BN55: 2012-10-20 | BP55: 418 | BQ55: 272 | BT55: 76 | BU55: 89 | BX55: 239 | BY55: 160 | CB55: 57 | CC55: 38 | CI55: 69 | CJ55: 24 | DQ55: bing | DR55: organic | DS55: (not set) | DT55: cpi certified computer operations of rhode island | DU55: 1 | DV55: 0 | EO55: 0 | EP55: 0 | EQ55: 0 | ER55: FALSE | ES55: FALSE
B56: 2012-10-27 | C56: 2012-10-27 | F56: 43 | G56: 472 | H56: 43 | I56: 333 | L56: 2012-10-27 | O56: 43 | P56: 86 | Q56: 43 | R56: 88 | T56: 2012-10-27 | W56: 43 | X56: 298 | Y56: 43 | Z56: 192 | AB56: 2012-10-27 | AE56: 43 | AF56: 75 | AG56: 43 | AH56: 48 | AJ56: 2012-10-27 | AM56: 43 | AN56: 54 | AO56: 43 | AP56: 31 | AR56: 2012-10-27 | AU56: 43 | AV56: 30 | AW56: 43 | AX56: 12 | AY56: 0 | BA56: 0.06355932203 | BB56: 0.06355932203 | BC56: 0.03603603603 | BD56: 0.03603603603 | BF56: 2012-10-27 | BG56: 0 | BH56: 0 | BI56: 0 | BJ56: 442 | BK56: 0 | BL56: 321 | BN56: 2012-10-27 | BP56: 472 | BQ56: 333 | BT56: 86 | BU56: 88 | BX56: 298 | BY56: 192 | CB56: 75 | CC56: 48 | CI56: 54 | CJ56: 31 | DQ56: bing | DR56: organic | DS56: (not set) | DT56: industrial security and investigators jobs in rhode island | DU56: 1 | DV56: 0 | EO56: 0 | EP56: 0 | EQ56: 0 | ER56: FALSE | ES56: FALSE
B57: 2012-11-03 | C57: 2012-11-03 | F57: 44 | G57: 405 | H57: 44 | I57: 315 | L57: 2012-11-03 | O57: 44 | P57: 72 | Q57: 44 | R57: 79 | T57: 2012-11-03 | W57: 44 | X57: 280 | Y57: 44 | Z57: 191 | AB57: 2012-11-03 | AE57: 44 | AF57: 55 | AG57: 44 | AH57: 27 | AJ57: 2012-11-03 | AM57: 44 | AN57: 56 | AO57: 44 | AP57: 37 | AR57: 2012-11-03 | AU57: 44 | AV57: 20 | AW57: 44 | AX57: 19 | AY57: 0 | BA57: 0.04938271605 | BB57: 0.04938271605 | BC57: 0.06031746032 | BD57: 0.06031746032 | BF57: 2012-11-03 | BG57: 0 | BH57: 0 | BI57: 0 | BJ57: 385 | BK57: 0 | BL57: 296 | BN57: 2012-11-03 | BP57: 405 | BQ57: 315 | BT57: 72 | BU57: 79 | BX57: 280 | BY57: 191 | CB57: 55 | CC57: 27 | CI57: 56 | CJ57: 37 | DQ57: bing | DR57: organic | DS57: (not set) | DT57: industrial security tips | DU57: 1 | DV57: 0 | EO57: 0 | EP57: 0 | EQ57: 0 | ER57: FALSE | ES57: FALSE
B58: 2012-11-10 | C58: 2012-11-10 | F58: 45 | G58: 485 | H58: 45 | I58: 289 | L58: 2012-11-10 | O58: 45 | P58: 99 | Q58: 45 | R58: 61 | T58: 2012-11-10 | W58: 45 | X58: 311 | Y58: 45 | Z58: 147 | AB58: 2012-11-10 | AE58: 45 | AF58: 47 | AG58: 45 | AH58: 57 | AJ58: 2012-11-10 | AM58: 45 | AN58: 67 | AO58: 45 | AP58: 35 | AR58: 2012-11-10 | AU58: 45 | AV58: 24 | AW58: 45 | AX58: 9 | AY58: 0 | BA58: 0.04948453608 | BB58: 0.04948453608 | BC58: 0.03114186851 | BD58: 0.03114186851 | BF58: 2012-11-10 | BG58: 0 | BH58: 0 | BI58: 0 | BJ58: 461 | BK58: 0 | BL58: 280 | BN58: 2012-11-10 | BP58: 485 | BQ58: 289 | BT58: 99 | BU58: 61 | BX58: 311 | BY58: 147 | CB58: 47 | CC58: 57 | CI58: 67 | CJ58: 35 | DQ58: bing | DR58: organic | DS58: (not set) | DT58: manufacturing site security measures | DU58: 1 | DV58: 0 | EO58: 0 | EP58: 0 | EQ58: 0 | ER58: FALSE | ES58: FALSE
B59: 2012-11-17 | C59: 2012-11-17 | F59: 46 | G59: 515 | H59: 46 | I59: 268 | L59: 2012-11-17 | O59: 46 | P59: 81 | Q59: 46 | R59: 89 | T59: 2012-11-17 | W59: 46 | X59: 281 | Y59: 46 | Z59: 128 | AB59: 2012-11-17 | AE59: 46 | AF59: 132 | AG59: 46 | AH59: 40 | AJ59: 2012-11-17 | AM59: 46 | AN59: 59 | AO59: 46 | AP59: 19 | AR59: 2012-11-17 | AU59: 46 | AV59: 15 | AW59: 46 | AX59: 10 | AY59: 0 | BA59: 0.02912621359 | BB59: 0.02912621359 | BC59: 0.03731343283 | BD59: 0.03731343283 | BF59: 2012-11-17 | BG59: 0 | BH59: 0 | BI59: 0 | BJ59: 500 | BK59: 0 | BL59: 258 | BN59: 2012-11-17 | BP59: 515 | BQ59: 268 | BT59: 81 | BU59: 89 | BX59: 281 | BY59: 128 | CB59: 132 | CC59: 40 | CI59: 59 | CJ59: 19 | DQ59: bing | DR59: organic | DS59: (not set) | DT59: nonviolent security | DU59: 1 | DV59: 0 | EO59: 0 | EP59: 0 | EQ59: 0 | ER59: FALSE | ES59: FALSE
B60: 2012-11-24 | C60: 2012-11-24 | F60: 47 | G60: 394 | H60: 47 | I60: 335 | L60: 2012-11-24 | O60: 47 | P60: 87 | Q60: 47 | R60: 90 | T60: 2012-11-24 | W60: 47 | X60: 239 | Y60: 47 | Z60: 194 | AB60: 2012-11-24 | AE60: 47 | AF60: 54 | AG60: 47 | AH60: 46 | AJ60: 2012-11-24 | AM60: 47 | AN60: 42 | AO60: 47 | AP60: 38 | AR60: 2012-11-24 | AU60: 47 | AV60: 34 | AW60: 47 | AX60: 13 | AY60: 0 | BA60: 0.08629441624 | BB60: 0.08629441624 | BC60: 0.03880597015 | BD60: 0.03880597015 | BF60: 2012-11-24 | BG60: 0 | BH60: 0 | BI60: 0 | BJ60: 360 | BK60: 0 | BL60: 322 | BN60: 2012-11-24 | BP60: 394 | BQ60: 335 | BT60: 87 | BU60: 90 | BX60: 239 | BY60: 194 | CB60: 54 | CC60: 46 | CI60: 42 | CJ60: 38 | DQ60: bing | DR60: organic | DS60: (not set) | DT60: number for security gaurds | DU60: 1 | DV60: 0 | EO60: 0 | EP60: 0 | EQ60: 0 | ER60: FALSE | ES60: FALSE
B61: 2012-12-01 | C61: 2012-12-01 | F61: 48 | G61: 601 | H61: 48 | I61: 220 | L61: 2012-12-01 | O61: 48 | P61: 120 | Q61: 48 | R61: 57 | T61: 2012-12-01 | W61: 48 | X61: 328 | Y61: 48 | Z61: 130 | AB61: 2012-12-01 | AE61: 48 | AF61: 90 | AG61: 48 | AH61: 28 | AJ61: 2012-12-01 | AM61: 48 | AN61: 105 | AO61: 48 | AP61: 18 | AR61: 2012-12-01 | AU61: 48 | AV61: 42 | AW61: 48 | AX61: 7 | AY61: 0 | BA61: 0.06988352745 | BB61: 0.06988352745 | BC61: 0.03181818182 | BD61: 0.03181818182 | BF61: 2012-12-01 | BG61: 0 | BH61: 0 | BI61: 0 | BJ61: 559 | BK61: 0 | BL61: 213 | BN61: 2012-12-01 | BP61: 601 | BQ61: 220 | BT61: 120 | BU61: 57 | BX61: 328 | BY61: 130 | CB61: 90 | CC61: 28 | CI61: 105 | CJ61: 18 | DQ61: bing | DR61: organic | DS61: (not set) | DT61: private security contractors rhode island | DU61: 1 | DV61: 0 | EO61: 0 | EP61: 0 | EQ61: 0 | ER61: FALSE | ES61: FALSE
B62: 2012-12-08 | C62: 2012-12-08 | F62: 49 | G62: 512 | H62: 49 | I62: 257 | L62: 2012-12-08 | O62: 49 | P62: 108 | Q62: 49 | R62: 77 | T62: 2012-12-08 | W62: 49 | X62: 294 | Y62: 49 | Z62: 148 | AB62: 2012-12-08 | AE62: 49 | AF62: 68 | AG62: 49 | AH62: 27 | AJ62: 2012-12-08 | AM62: 49 | AN62: 76 | AO62: 49 | AP62: 27 | AR62: 2012-12-08 | AU62: 49 | AV62: 31 | AW62: 49 | AX62: 10 | AY62: 0 | BA62: 0.060546875 | BB62: 0.060546875 | BC62: 0.03891050584 | BD62: 0.03891050584 | BF62: 2012-12-08 | BG62: 0 | BH62: 0 | BI62: 0 | BJ62: 481 | BK62: 0 | BL62: 247 | BN62: 2012-12-08 | BP62: 512 | BQ62: 257 | BT62: 108 | BU62: 77 | BX62: 294 | BY62: 148 | CB62: 68 | CC62: 27 | CI62: 76 | CJ62: 27 | DQ62: bing | DR62: organic | DS62: (not set) | DT62: private security industrial service | DU62: 1 | DV62: 0 | EO62: 0 | EP62: 0 | EQ62: 0 | ER62: FALSE | ES62: FALSE
B63: 2012-12-15 | C63: 2012-12-15 | F63: 50 | G63: 361 | H63: 50 | I63: 270 | L63: 2012-12-15 | O63: 50 | P63: 63 | Q63: 50 | R63: 73 | T63: 2012-12-15 | W63: 50 | X63: 237 | Y63: 50 | Z63: 132 | AB63: 2012-12-15 | AE63: 50 | AF63: 47 | AG63: 50 | AH63: 44 | AJ63: 2012-12-15 | AM63: 50 | AN63: 45 | AO63: 50 | AP63: 39 | AR63: 2012-12-15 | AU63: 50 | AV63: 10 | AW63: 50 | AX63: 10 | AY63: 0 | BA63: 0.02770083102 | BB63: 0.02770083102 | BC63: 0.03703703704 | BD63: 0.03703703704 | BF63: 2012-12-15 | BG63: 0 | BH63: 0 | BI63: 0 | BJ63: 351 | BK63: 0 | BL63: 260 | BN63: 2012-12-15 | BP63: 361 | BQ63: 270 | BT63: 63 | BU63: 73 | BX63: 237 | BY63: 132 | CB63: 47 | CC63: 44 | CI63: 45 | CJ63: 39 | DQ63: bing | DR63: organic | DS63: (not set) | DT63: random patrols help security company articel | DU63: 1 | DV63: 0 | EO63: 0 | EP63: 0 | EQ63: 0 | ER63: FALSE | ES63: FALSE
B64: 2012-12-22 | C64: 2012-12-22 | F64: 51 | G64: 313 | H64: 51 | I64: 201 | L64: 2012-12-22 | O64: 51 | P64: 49 | Q64: 51 | R64: 63 | T64: 2012-12-22 | W64: 51 | X64: 188 | Y64: 51 | Z64: 106 | AB64: 2012-12-22 | AE64: 51 | AF64: 57 | AG64: 51 | AH64: 24 | AJ64: 2012-12-22 | AM64: 51 | AN64: 38 | AO64: 51 | AP64: 34 | AR64: 2012-12-22 | AU64: 51 | AV64: 32 | AW64: 51 | AX64: 13 | AY64: 0 | BA64: 0.1022364217 | BB64: 0.1022364217 | BC64: 0.06467661691 | BD64: 0.06467661691 | BF64: 2012-12-22 | BG64: 0 | BH64: 0 | BI64: 0 | BJ64: 281 | BK64: 0 | BL64: 188 | BN64: 2012-12-22 | BP64: 313 | BQ64: 201 | BT64: 49 | BU64: 63 | BX64: 188 | BY64: 106 | CB64: 57 | CC64: 24 | CI64: 38 | CJ64: 34 | DQ64: bing | DR64: organic | DS64: (not set) | DT64: ri security officer license certification | DU64: 1 | DV64: 0 | EO64: 0 | EP64: 0 | EQ64: 0 | ER64: FALSE | ES64: FALSE
B65: 2012-12-29 | C65: 2012-12-29 | F65: 52 | G65: 175 | H65: 52 | I65: 151 | L65: 2012-12-29 | O65: 52 | P65: 32 | Q65: 52 | R65: 47 | T65: 2012-12-29 | W65: 52 | X65: 109 | Y65: 52 | Z65: 60 | AB65: 2012-12-29 | AE65: 52 | AF65: 25 | AG65: 52 | AH65: 30 | AJ65: 2012-12-29 | AM65: 52 | AN65: 27 | AO65: 52 | AP65: 23 | AR65: 2012-12-29 | AU65: 52 | AV65: 23 | AW65: 52 | AX65: 6 | AY65: 0 | BA65: 0.1314285714 | BB65: 0.1314285714 | BC65: 0.03973509934 | BD65: 0.03973509934 | BF65: 2012-12-29 | BG65: 0 | BH65: 0 | BI65: 0 | BJ65: 152 | BK65: 0 | BL65: 145 | BN65: 2012-12-29 | BP65: 175 | BQ65: 151 | BT65: 32 | BU65: 47 | BX65: 109 | BY65: 60 | CB65: 25 | CC65: 30 | CI65: 27 | CJ65: 23 | DQ65: bing | DR65: organic | DS65: (not set) | DT65: security companies in rhode island | DU65: 1 | DV65: 0 | EO65: 0 | EP65: 0 | EQ65: 0 | ER65: FALSE | ES65: FALSE
DQ66: bing | DR66: organic | DS66: (not set) | DT66: security companies in ri | DU66: 1 | DV66: 0 | EO66: 0 | EP66: 0 | EQ66: 0 | ER66: FALSE | ES66: FALSE
DQ67: bing | DR67: organic | DS67: (not set) | DT67: security company rhode island | DU67: 1 | DV67: 0 | EO67: 0 | EP67: 0 | EQ67: 0 | ER67: FALSE | ES67: FALSE
DQ68: bing | DR68: organic | DS68: (not set) | DT68: security for apartment complexes | DU68: 1 | DV68: 0 | EO68: 0 | EP68: 0 | EQ68: 0 | ER68: FALSE | ES68: FALSE
DQ69: bing | DR69: organic | DS69: (not set) | DT69: security guards southeastern mass | DU69: 1 | DV69: 0 | EO69: 0 | EP69: 0 | EQ69: 0 | ER69: FALSE | ES69: FALSE
DQ70: bing | DR70: organic | DS70: (not set) | DT70: security ri | DU70: 1 | DV70: 0 | EO70: 0 | EP70: 0 | EQ70: 0 | ER70: FALSE | ES70: FALSE
DQ71: bing | DR71: organic | DS71: (not set) | DT71: state of rhode isalnd security guard agency licensing | DU71: 1 | DV71: 0 | EO71: 0 | EP71: 0 | EQ71: 0 | ER71: FALSE | ES71: FALSE
DQ72: bing | DR72: organic | DS72: (not set) | DT72: work security tips | DU72: 1 | DV72: 0 | EO72: 0 | EP72: 0 | EQ72: 0 | ER72: FALSE | ES72: FALSE
DQ73: brainshark.com | DR73: referral | DS73: (not set) | DT73: (not set) | DU73: 1 | DV73: 0 | EO73: 0 | EP73: 0 | EQ73: 0 | ER73: FALSE | ES73: FALSE
DQ74: google | DR74: cpc | DS74: alliance security rhode island | DT74: +security +rhode +island | DU74: 1 | DV74: 0 | EO74: 0 | EP74: 0 | EQ74: 0 | ER74: FALSE | ES74: FALSE
DQ75: google | DR75: cpc | DS75: amg unarmed security | DT75: +unarmed +security | DU75: 1 | DV75: 0 | EO75: 0 | EP75: 0 | EQ75: 0 | ER75: FALSE | ES75: FALSE
DQ76: google | DR76: cpc | DS76: apollo security pawtucket ri | DT76: +security +ri | DU76: 1 | DV76: 0 | EO76: 0 | EP76: 0 | EQ76: 0 | ER76: FALSE | ES76: FALSE
DQ77: google | DR77: cpc | DS77: armed rhode island security guard firms | DT77: +security +guard +firms | DU77: 1 | DV77: 0 | EO77: 0 | EP77: 0 | EQ77: 0 | ER77: FALSE | ES77: FALSE
DQ78: google | DR78: cpc | DS78: armed security guard rhode island | DT78: +security +guard | DU78: 1 | DV78: 0 | EO78: 0 | EP78: 0 | EQ78: 0 | ER78: FALSE | ES78: FALSE
DQ79: google | DR79: cpc | DS79: aron security inc rhode island ri | DT79: +security +ri | DU79: 1 | DV79: 0 | EO79: 0 | EP79: 0 | EQ79: 0 | ER79: FALSE | ES79: FALSE
DQ80: google | DR80: cpc | DS80: bristol county security | DT80: +security +bristol | DU80: 1 | DV80: 0 | EO80: 0 | EP80: 0 | EQ80: 0 | ER80: FALSE | ES80: FALSE
DQ81: google | DR81: cpc | DS81: c and j security cranston ri | DT81: +security +ri | DU81: 1 | DV81: 0 | EO81: 0 | EP81: 0 | EQ81: 0 | ER81: FALSE | ES81: FALSE
DQ82: google | DR82: cpc | DS82: classified craigslist in rhode island federal security officers | DT82: +security +ri | DU82: 1 | DV82: 0 | EO82: 0 | EP82: 0 | EQ82: 0 | ER82: FALSE | ES82: FALSE
DQ83: google | DR83: cpc | DS83: companies looking for security guards | DT83: +security +guard +company | DU83: 1 | DV83: 0 | EO83: 0 | EP83: 0 | EQ83: 0 | ER83: FALSE | ES83: FALSE
DQ84: google | DR84: cpc | DS84: csc security ri | DT84: +security +ri | DU84: 1 | DV84: 0 | EO84: 0 | EP84: 0 | EQ84: 0 | ER84: FALSE | ES84: FALSE
DQ85: google | DR85: cpc | DS85: elite security rhode island | DT85: +security +ri | DU85: 1 | DV85: 0 | EO85: 0 | EP85: 0 | EQ85: 0 | ER85: FALSE | ES85: FALSE
DQ86: google | DR86: cpc | DS86: event security providence ri | DT86: +event +security | DU86: 1 | DV86: 0 | EO86: 0 | EP86: 0 | EQ86: 0 | ER86: FALSE | ES86: FALSE
DQ87: google | DR87: cpc | DS87: g4s security rhode island | DT87: +security +ri | DU87: 1 | DV87: 0 | EO87: 0 | EP87: 0 | EQ87: 0 | ER87: FALSE | ES87: FALSE
DQ88: google | DR88: cpc | DS88: g4s security ri | DT88: +security +ri | DU88: 1 | DV88: 0 | EO88: 0 | EP88: 0 | EQ88: 0 | ER88: FALSE | ES88: FALSE
DQ89: google | DR89: cpc | DS89: gene riccio security ri 401 444 | DT89: +security +ri | DU89: 1 | DV89: 0 | EO89: 0 | EP89: 0 | EQ89: 0 | ER89: FALSE | ES89: FALSE
DQ90: google | DR90: cpc | DS90: goddard security ri | DT90: +security +ri | DU90: 1 | DV90: 0 | EO90: 0 | EP90: 0 | EQ90: 0 | ER90: FALSE | ES90: FALSE
DQ91: google | DR91: cpc | DS91: how can i find security guard for a private event in warwick ri | DT91: +event +security | DU91: 1 | DV91: 0 | EO91: 0 | EP91: 0 | EQ91: 0 | ER91: FALSE | ES91: FALSE
DQ92: google | DR92: cpc | DS92: how can i hire a security guard in warwick ri for a private party | DT92: +security +guard | DU92: 1 | DV92: 0 | EO92: 0 | EP92: 0 | EQ92: 0 | ER92: FALSE | ES92: FALSE
DQ93: google | DR93: cpc | DS93: how much school do you need to be private security | DT93: +private +security | DU93: 1 | DV93: 0 | EO93: 0 | EP93: 0 | EQ93: 0 | ER93: FALSE | ES93: FALSE
DQ94: google | DR94: cpc | DS94: how to get an armed security guard cirtification | DT94: +security +guard | DU94: 1 | DV94: 0 | EO94: 0 | EP94: 0 | EQ94: 0 | ER94: FALSE | ES94: FALSE
DQ95: google | DR95: cpc | DS95: how to start a security company in ri | DT95: +security +ri | DU95: 1 | DV95: 0 | EO95: 0 | EP95: 0 | EQ95: 0 | ER95: FALSE | ES95: FALSE
DQ96: google | DR96: cpc | DS96: industrial enforcement security | DT96: +industrial +security | DU96: 1 | DV96: 0 | EO96: 0 | EP96: 0 | EQ96: 0 | ER96: FALSE | ES96: FALSE
DQ97: google | DR97: cpc | DS97: industrial security & investigations inc | DT97: +industrial +security | DU97: 1 | DV97: 0 | EO97: 0 | EP97: 0 | EQ97: 0 | ER97: FALSE | ES97: FALSE
DQ98: google | DR98: cpc | DS98: industrialsecurity | DT98: +industrial +security | DU98: 1 | DV98: 0 | EO98: 0 | EP98: 0 | EQ98: 0 | ER98: FALSE | ES98: FALSE
DQ99: google | DR99: cpc | DS99: is soc secuity in warwick open on vj day 8 11 13 | DT99: +security +warwick | DU99: 1 | DV99: 0 | EO99: 0 | EP99: 0 | EQ99: 0 | ER99: FALSE | ES99: FALSE
DQ100: google | DR100: cpc | DS100: iti security north providence | DT100: +security +north providence | DU100: 1 | DV100: 0 | EO100: 0 | EP100: 0 | EQ100: 0 | ER100: FALSE | ES100: FALSE
DQ101: google | DR101: cpc | DS101: jfa security middletown ri | DT101: +security +middletown | DU101: 1 | DV101: 0 | EO101: 0 | EP101: 0 | EQ101: 0 | ER101: FALSE | ES101: FALSE
DQ102: google | DR102: cpc | DS102: joe securitas lincoln ri | DT102: securitas | DU102: 1 | DV102: 0 | EO102: 0 | EP102: 0 | EQ102: 0 | ER102: FALSE | ES102: FALSE
DQ103: google | DR103: cpc | DS103: my night watchman infosec | DT103: +night +watchman | DU103: 1 | DV103: 0 | EO103: 0 | EP103: 0 | EQ103: 0 | ER103: FALSE | ES103: FALSE
DQ104: google | DR104: cpc | DS104: name of security gaurd places in rhode island | DT104: +security +guard | DU104: 1 | DV104: 0 | EO104: 0 | EP104: 0 | EQ104: 0 | ER104: FALSE | ES104: FALSE
DQ105: google | DR105: cpc | DS105: navsta security dept 1373 simonpietri drive newport ri | DT105: +security +newport | DU105: 1 | DV105: 0 | EO105: 0 | EP105: 0 | EQ105: 0 | ER105: FALSE | ES105: FALSE
DQ106: google | DR106: cpc | DS106: newport naval station base security phone | DT106: +security +newport | DU106: 1 | DV106: 0 | EO106: 0 | EP106: 0 | EQ106: 0 | ER106: FALSE | ES106: FALSE
DQ107: google | DR107: cpc | DS107: northeast security in ri | DT107: +security +ri | DU107: 1 | DV107: 0 | EO107: 0 | EP107: 0 | EQ107: 0 | ER107: FALSE | ES107: FALSE
DQ108: google | DR108: cpc | DS108: off duty officers as security in warwick ri | DT108: +security +ri | DU108: 1 | DV108: 0 | EO108: 0 | EP108: 0 | EQ108: 0 | ER108: FALSE | ES108: FALSE
DQ109: google | DR109: cpc | DS109: personal security details ri | DT109: +security +ri | DU109: 1 | DV109: 0 | EO109: 0 | EP109: 0 | EQ109: 0 | ER109: FALSE | ES109: FALSE
DQ110: google | DR110: cpc | DS110: pinkerton security rhode island | DT110: +security +ri | DU110: 1 | DV110: 0 | EO110: 0 | EP110: 0 | EQ110: 0 | ER110: FALSE | ES110: FALSE
DQ111: google | DR111: cpc | DS111: private party security in ri | DT111: +private +security | DU111: 1 | DV111: 0 | EO111: 0 | EP111: 0 | EQ111: 0 | ER111: FALSE | ES111: FALSE
DQ112: google | DR112: cpc | DS112: private party security in warwick ri | DT112: +private +security | DU112: 1 | DV112: 0 | EO112: 0 | EP112: 0 | EQ112: 0 | ER112: FALSE | ES112: FALSE
DQ113: google | DR113: cpc | DS113: private security | DT113: +private +security | DU113: 1 | DV113: 0 | EO113: 0 | EP113: 0 | EQ113: 0 | ER113: FALSE | ES113: FALSE
DQ114: google | DR114: cpc | DS114: private security ri | DT114: +private +security | DU114: 1 | DV114: 0 | EO114: 0 | EP114: 0 | EQ114: 0 | ER114: FALSE | ES114: FALSE
DQ115: google | DR115: cpc | DS115: professional property security services rhode island | DT115: +security +ri | DU115: 1 | DV115: 0 | EO115: 0 | EP115: 0 | EQ115: 0 | ER115: FALSE | ES115: FALSE
DQ116: google | DR116: cpc | DS116: professional security ri | DT116: +security +ri | DU116: 1 | DV116: 0 | EO116: 0 | EP116: 0 | EQ116: 0 | ER116: FALSE | ES116: FALSE
DQ117: google | DR117: cpc | DS117: professional security services ri | DT117: +security +ri | DU117: 1 | DV117: 0 | EO117: 0 | EP117: 0 | EQ117: 0 | ER117: FALSE | ES117: FALSE
DQ118: google | DR118: cpc | DS118: providence airport security | DT118: +security +providence | DU118: 1 | DV118: 0 | EO118: 0 | EP118: 0 | EQ118: 0 | ER118: FALSE | ES118: FALSE
DQ119: google | DR119: cpc | DS119: providence hospital security | DT119: +security +providence | DU119: 1 | DV119: 0 | EO119: 0 | EP119: 0 | EQ119: 0 | ER119: FALSE | ES119: FALSE
DQ120: google | DR120: cpc | DS120: providence housing security offc 335 hartford ave providence ri 4014216980 | DT120: +security +ri | DU120: 1 | DV120: 0 | EO120: 0 | EP120: 0 | EQ120: 0 | ER120: FALSE | ES120: FALSE
DQ121: google | DR121: cpc | DS121: providence place mall security | DT121: +security +providence | DU121: 1 | DV121: 0 | EO121: 0 | EP121: 0 | EQ121: 0 | ER121: FALSE | ES121: FALSE
DQ122: google | DR122: cpc | DS122: providence security officer | DT122: +security +providence | DU122: 1 | DV122: 0 | EO122: 0 | EP122: 0 | EQ122: 0 | ER122: FALSE | ES122: FALSE
DQ123: google | DR123: cpc | DS123: providence security services llc | DT123: +security +providence | DU123: 1 | DV123: 0 | EO123: 0 | EP123: 0 | EQ123: 0 | ER123: FALSE | ES123: FALSE
DQ124: google | DR124: cpc | DS124: rhode island security companies | DT124: +security +rhode +island | DU124: 1 | DV124: 0 | EO124: 0 | EP124: 0 | EQ124: 0 | ER124: FALSE | ES124: FALSE
DQ125: google | DR125: cpc | DS125: rhode island state security | DT125: +security +rhode +island | DU125: 1 | DV125: 0 | EO125: 0 | EP125: 0 | EQ125: 0 | ER125: FALSE | ES125: FALSE
DQ126: google | DR126: cpc | DS126: ri hospital security | DT126: +security +ri | DU126: 1 | DV126: 0 | EO126: 0 | EP126: 0 | EQ126: 0 | ER126: FALSE | ES126: FALSE
DQ127: google | DR127: cpc | DS127: ri state licensed security | DT127: +security +ri | DU127: 1 | DV127: 0 | EO127: 0 | EP127: 0 | EQ127: 0 | ER127: FALSE | ES127: FALSE
DQ128: google | DR128: cpc | DS128: ri state lobs security guards | DT128: +security +guards | DU128: 1 | DV128: 0 | EO128: 0 | EP128: 0 | EQ128: 0 | ER128: FALSE | ES128: FALSE
DQ129: google | DR129: cpc | DS129: ri state security | DT129: +security +ri | DU129: 1 | DV129: 0 | EO129: 0 | EP129: 0 | EQ129: 0 | ER129: FALSE | ES129: FALSE
DQ130: google | DR130: cpc | DS130: ribi security providence ri | DT130: ribi security | DU130: 1 | DV130: 0 | EO130: 0 | EP130: 0 | EQ130: 0 | ER130: FALSE | ES130: FALSE
DQ131: google | DR131: cpc | DS131: ronny rodriguez security guard | DT131: +security +guard | DU131: 1 | DV131: 0 | EO131: 0 | EP131: 0 | EQ131: 0 | ER131: FALSE | ES131: FALSE
DQ132: google | DR132: cpc | DS132: scc security patrol | DT132: +security +patrol | DU132: 1 | DV132: 0 | EO132: 0 | EP132: 0 | EQ132: 0 | ER132: FALSE | ES132: FALSE
DQ133: google | DR133: cpc | DS133: sectronics security rhode island | DT133: +security +ri | DU133: 1 | DV133: 0 | EO133: 0 | EP133: 0 | EQ133: 0 | ER133: FALSE | ES133: FALSE
DQ134: google | DR134: cpc | DS134: secure a key providence ri | DT134: +security +providence | DU134: 1 | DV134: 0 | EO134: 0 | EP134: 0 | EQ134: 0 | ER134: FALSE | ES134: FALSE
DQ135: google | DR135: cpc | DS135: secure ri dmv | DT135: +security +ri | DU135: 1 | DV135: 0 | EO135: 0 | EP135: 0 | EQ135: 0 | ER135: FALSE | ES135: FALSE
DQ136: google | DR136: cpc | DS136: secure transportation ri | DT136: +security +ri | DU136: 1 | DV136: 0 | EO136: 0 | EP136: 0 | EQ136: 0 | ER136: FALSE | ES136: FALSE
DQ137: google | DR137: cpc | DS137: securitas ri | DT137: securitas | DU137: 1 | DV137: 0 | EO137: 0 | EP137: 0 | EQ137: 0 | ER137: FALSE | ES137: FALSE
DQ138: google | DR138: cpc | DS138: securitas security | DT138: securitas | DU138: 1 | DV138: 0 | EO138: 0 | EP138: 0 | EQ138: 0 | ER138: FALSE | ES138: FALSE
DQ139: google | DR139: cpc | DS139: security and access control cumberland ri | DT139: +security +ri | DU139: 1 | DV139: 0 | EO139: 0 | EP139: 0 | EQ139: 0 | ER139: FALSE | ES139: FALSE
DQ140: google | DR140: cpc | DS140: security badge rhode island | DT140: +security +ri | DU140: 1 | DV140: 0 | EO140: 0 | EP140: 0 | EQ140: 0 | ER140: FALSE | ES140: FALSE
DQ141: google | DR141: cpc | DS141: security doors rhode island | DT141: +security +ri | DU141: 1 | DV141: 0 | EO141: 0 | EP141: 0 | EQ141: 0 | ER141: FALSE | ES141: FALSE
DQ142: google | DR142: cpc | DS142: security guard | DT142: +security +guard | DU142: 1 | DV142: 0 | EO142: 0 | EP142: 0 | EQ142: 0 | ER142: FALSE | ES142: FALSE
DQ143: google | DR143: cpc | DS143: security guard belt | DT143: +security +guard | DU143: 1 | DV143: 0 | EO143: 0 | EP143: 0 | EQ143: 0 | ER143: FALSE | ES143: FALSE
DQ144: google | DR144: cpc | DS144: security guard companies in ri | DT144: +security +guard +companies | DU144: 1 | DV144: 0 | EO144: 0 | EP144: 0 | EQ144: 0 | ER144: FALSE | ES144: FALSE
DQ145: google | DR145: cpc | DS145: security guard hours and travel | DT145: +security +guard | DU145: 1 | DV145: 0 | EO145: 0 | EP145: 0 | EQ145: 0 | ER145: FALSE | ES145: FALSE
DQ146: google | DR146: cpc | DS146: security guard procedures | DT146: +security +guard | DU146: 1 | DV146: 0 | EO146: 0 | EP146: 0 | EQ146: 0 | ER146: FALSE | ES146: FALSE
DQ147: google | DR147: cpc | DS147: security guard service ri | DT147: +security +guard +services | DU147: 1 | DV147: 0 | EO147: 0 | EP147: 0 | EQ147: 0 | ER147: FALSE | ES147: FALSE
DQ148: google | DR148: cpc | DS148: security guard waterman st ri | DT148: +security +guard | DU148: 1 | DV148: 0 | EO148: 0 | EP148: 0 | EQ148: 0 | ER148: FALSE | ES148: FALSE
DQ149: google | DR149: cpc | DS149: security guard website | DT149: +security +guard | DU149: 1 | DV149: 0 | EO149: 0 | EP149: 0 | EQ149: 0 | ER149: FALSE | ES149: FALSE
DQ150: google | DR150: cpc | DS150: security officer at securitas security services interview | DT150: +security +officers +services | DU150: 1 | DV150: 0 | EO150: 0 | EP150: 0 | EQ150: 0 | ER150: FALSE | ES150: FALSE
DQ151: google | DR151: cpc | DS151: security offices in ri | DT151: +security +ri | DU151: 1 | DV151: 0 | EO151: 0 | EP151: 0 | EQ151: 0 | ER151: FALSE | ES151: FALSE
DQ152: google | DR152: cpc | DS152: security prefessionals ri | DT152: +security +ri | DU152: 1 | DV152: 0 | EO152: 0 | EP152: 0 | EQ152: 0 | ER152: FALSE | ES152: FALSE
DQ153: google | DR153: cpc | DS153: security rhode island | DT153: +security +ri | DU153: 1 | DV153: 0 | EO153: 0 | EP153: 0 | EQ153: 0 | ER153: FALSE | ES153: FALSE
DQ154: google | DR154: cpc | DS154: security ri com | DT154: +security +ri | DU154: 1 | DV154: 0 | EO154: 0 | EP154: 0 | EQ154: 0 | ER154: FALSE | ES154: FALSE
DQ155: google | DR155: cpc | DS155: security safes in ri | DT155: +security +ri | DU155: 1 | DV155: 0 | EO155: 0 | EP155: 0 | EQ155: 0 | ER155: FALSE | ES155: FALSE
DQ156: google | DR156: cpc | DS156: security school in providence ri | DT156: +security +ri | DU156: 1 | DV156: 0 | EO156: 0 | EP156: 0 | EQ156: 0 | ER156: FALSE | ES156: FALSE
DQ157: google | DR157: cpc | DS157: security stores ri | DT157: +security +ri | DU157: 1 | DV157: 0 | EO157: 0 | EP157: 0 | EQ157: 0 | ER157: FALSE | ES157: FALSE
DQ158: google | DR158: cpc | DS158: security wsi rhode island | DT158: +security +ri | DU158: 1 | DV158: 0 | EO158: 0 | EP158: 0 | EQ158: 0 | ER158: FALSE | ES158: FALSE
DQ159: google | DR159: cpc | DS159: securityguards ri | DT159: +security +guard | DU159: 1 | DV159: 0 | EO159: 0 | EP159: 0 | EQ159: 0 | ER159: FALSE | ES159: FALSE
DQ160: google | DR160: cpc | DS160: sparrow point 3 security warwick ri | DT160: +security +ri | DU160: 1 | DV160: 0 | EO160: 0 | EP160: 0 | EQ160: 0 | ER160: FALSE | ES160: FALSE
DQ161: google | DR161: cpc | DS161: taylor swift security guard | DT161: +security +guard | DU161: 1 | DV161: 0 | EO161: 0 | EP161: 0 | EQ161: 0 | ER161: FALSE | ES161: FALSE
DQ162: google | DR162: cpc | DS162: travel safe security rhode island | DT162: +security +ri | DU162: 1 | DV162: 0 | EO162: 0 | EP162: 0 | EQ162: 0 | ER162: FALSE | ES162: FALSE
DQ163: google | DR163: cpc | DS163: vault guaqrd dumbar secuirty | DT163: +security +guard | DU163: 1 | DV163: 0 | EO163: 0 | EP163: 0 | EQ163: 0 | ER163: FALSE | ES163: FALSE
DQ164: google | DR164: cpc | DS164: veritas security guards | DT164: +security +guards | DU164: 1 | DV164: 0 | EO164: 0 | EP164: 0 | EQ164: 0 | ER164: FALSE | ES164: FALSE
DQ165: google | DR165: cpc | DS165: what does a private security officer do | DT165: +private +security | DU165: 1 | DV165: 0 | EO165: 0 | EP165: 0 | EQ165: 0 | ER165: FALSE | ES165: FALSE
DQ166: google | DR166: cpc | DS166: who does the security detail at price rite rhode island | DT166: +security +ri | DU166: 1 | DV166: 0 | EO166: 0 | EP166: 0 | EQ166: 0 | ER166: FALSE | ES166: FALSE
DQ167: google | DR167: cpc | DS167: who does the security for price rite in rhode island | DT167: +security +ri | DU167: 1 | DV167: 0 | EO167: 0 | EP167: 0 | EQ167: 0 | ER167: FALSE | ES167: FALSE
DQ168: google | DR168: cpc | DS168: window security bars ri | DT168: +security +ri | DU168: 1 | DV168: 0 | EO168: 0 | EP168: 0 | EQ168: 0 | ER168: FALSE | ES168: FALSE
DQ169: google | DR169: organic | DS169: (not set) | DT169: apartments looking for security guards | DU169: 1 | DV169: 0 | EO169: 0 | EP169: 0 | EQ169: 0 | ER169: FALSE | ES169: FALSE
DQ170: google | DR170: organic | DS170: (not set) | DT170: apg security ri | DU170: 1 | DV170: 0 | EO170: 0 | EP170: 0 | EQ170: 0 | ER170: FALSE | ES170: FALSE
DQ171: google | DR171: organic | DS171: (not set) | DT171: armed guards that work with the atm machine | DU171: 1 | DV171: 0 | EO171: 0 | EP171: 0 | EQ171: 0 | ER171: FALSE | ES171: FALSE
DQ172: google | DR172: organic | DS172: (not set) | DT172: brandon daurhety security,ri | DU172: 1 | DV172: 0 | EO172: 0 | EP172: 0 | EQ172: 0 | ER172: FALSE | ES172: FALSE
DQ173: google | DR173: organic | DS173: (not set) | DT173: es delivery courier security company | DU173: 1 | DV173: 0 | EO173: 0 | EP173: 0 | EQ173: 0 | ER173: FALSE | ES173: FALSE
DQ174: google | DR174: organic | DS174: (not set) | DT174: golf course security | DU174: 1 | DV174: 0 | EO174: 0 | EP174: 0 | EQ174: 0 | ER174: FALSE | ES174: FALSE
DQ175: google | DR175: organic | DS175: (not set) | DT175: how to get security licence in rhode island | DU175: 1 | DV175: 0 | EO175: 0 | EP175: 0 | EQ175: 0 | ER175: FALSE | ES175: FALSE
DQ176: google | DR176: organic | DS176: (not set) | DT176: industrial security & investigations inc | DU176: 1 | DV176: 0 | EO176: 0 | EP176: 0 | EQ176: 0 | ER176: FALSE | ES176: FALSE
DQ177: google | DR177: organic | DS177: (not set) | DT177: industrial security and investigators, inc (indust north providence ri | DU177: 1 | DV177: 0 | EO177: 0 | EP177: 0 | EQ177: 0 | ER177: FALSE | ES177: FALSE
DQ178: google | DR178: organic | DS178: (not set) | DT178: industrial security ri hours | DU178: 1 | DV178: 0 | EO178: 0 | EP178: 0 | EQ178: 0 | ER178: FALSE | ES178: FALSE
DQ179: google | DR179: organic | DS179: (not set) | DT179: industrial security ri indeed | DU179: 1 | DV179: 0 | EO179: 0 | EP179: 0 | EQ179: 0 | ER179: FALSE | ES179: FALSE
DQ180: google | DR180: organic | DS180: (not set) | DT180: medium security prison ri | DU180: 1 | DV180: 0 | EO180: 0 | EP180: 0 | EQ180: 0 | ER180: FALSE | ES180: FALSE
DQ181: google | DR181: organic | DS181: (not set) | DT181: newport security | DU181: 1 | DV181: 0 | EO181: 0 | EP181: 0 | EQ181: 0 | ER181: FALSE | ES181: FALSE
DQ182: google | DR182: organic | DS182: (not set) | DT182: private security | DU182: 1 | DV182: 0 | EO182: 0 | EP182: 0 | EQ182: 0 | ER182: FALSE | ES182: FALSE
DQ183: google | DR183: organic | DS183: (not set) | DT183: private security companies | DU183: 1 | DV183: 0 | EO183: 0 | EP183: 0 | EQ183: 0 | ER183: FALSE | ES183: FALSE
DQ184: google | DR184: organic | DS184: (not set) | DT184: private security contractors | DU184: 1 | DV184: 0 | EO184: 0 | EP184: 0 | EQ184: 0 | ER184: FALSE | ES184: FALSE
DQ185: google | DR185: organic | DS185: (not set) | DT185: private security for an event in ri | DU185: 1 | DV185: 0 | EO185: 0 | EP185: 0 | EQ185: 0 | ER185: FALSE | ES185: FALSE
DQ186: google | DR186: organic | DS186: (not set) | DT186: providence hospital washington dc security | DU186: 1 | DV186: 0 | EO186: 0 | EP186: 0 | EQ186: 0 | ER186: FALSE | ES186: FALSE
DQ187: google | DR187: organic | DS187: (not set) | DT187: providence security | DU187: 1 | DV187: 0 | EO187: 0 | EP187: 0 | EQ187: 0 | ER187: FALSE | ES187: FALSE
DQ188: google | DR188: organic | DS188: (not set) | DT188: rhode island security guard | DU188: 1 | DV188: 0 | EO188: 0 | EP188: 0 | EQ188: 0 | ER188: FALSE | ES188: FALSE
DQ189: google | DR189: organic | DS189: (not set) | DT189: ribi security | DU189: 1 | DV189: 0 | EO189: 0 | EP189: 0 | EQ189: 0 | ER189: FALSE | ES189: FALSE
DQ190: google | DR190: organic | DS190: (not set) | DT190: securitas | DU190: 1 | DV190: 0 | EO190: 0 | EP190: 0 | EQ190: 0 | ER190: FALSE | ES190: FALSE
DQ191: google | DR191: organic | DS191: (not set) | DT191: securiti i ri i | DU191: 1 | DV191: 0 | EO191: 0 | EP191: 0 | EQ191: 0 | ER191: FALSE | ES191: FALSE
DQ192: google | DR192: organic | DS192: (not set) | DT192: security in ri | DU192: 1 | DV192: 0 | EO192: 0 | EP192: 0 | EQ192: 0 | ER192: FALSE | ES192: FALSE
DQ193: google | DR193: organic | DS193: (not set) | DT193: security ri | DU193: 1 | DV193: 0 | EO193: 0 | EP193: 0 | EQ193: 0 | ER193: FALSE | ES193: FALSE
DQ194: google | DR194: organic | DS194: (not set) | DT194: security ri .com | DU194: 1 | DV194: 0 | EO194: 0 | EP194: 0 | EQ194: 0 | ER194: FALSE | ES194: FALSE
DQ195: google | DR195: organic | DS195: (not set) | DT195: securityri.com | DU195: 1 | DV195: 0 | EO195: 0 | EP195: 0 | EQ195: 0 | ER195: FALSE | ES195: FALSE
DQ196: google | DR196: organic | DS196: (not set) | DT196: shs security ri | DU196: 1 | DV196: 0 | EO196: 0 | EP196: 0 | EQ196: 0 | ER196: FALSE | ES196: FALSE
DQ197: google | DR197: organic | DS197: (not set) | DT197: sintex security services in ri | DU197: 1 | DV197: 0 | EO197: 0 | EP197: 0 | EQ197: 0 | ER197: FALSE | ES197: FALSE
DQ198: google | DR198: organic | DS198: (not set) | DT198: tony iannotti security ri | DU198: 1 | DV198: 0 | EO198: 0 | EP198: 0 | EQ198: 0 | ER198: FALSE | ES198: FALSE
DQ199: google | DR199: organic | DS199: (not set) | DT199: what do i need to be a security guard | DU199: 1 | DV199: 0 | EO199: 0 | EP199: 0 | EQ199: 0 | ER199: FALSE | ES199: FALSE
DQ200: google | DR200: organic | DS200: (not set) | DT200: www.industrialsecurity.net | DU200: 1 | DV200: 0 | EO200: 0 | EP200: 0 | EQ200: 0 | ER200: FALSE | ES200: FALSE
DQ201: google | DR201: organic | DS201: (not set) | DT201: www.securityri.com | DU201: 1 | DV201: 0 | EO201: 0 | EP201: 0 | EQ201: 0 | ER201: FALSE | ES201: FALSE
DQ202: info.com | DR202: referral | DS202: (not set) | DT202: (not set) | DU202: 1 | DV202: 0 | EO202: 0 | EP202: 0 | EQ202: 0 | ER202: FALSE | ES202: FALSE
DQ203: manta.com | DR203: referral | DS203: (not set) | DT203: (not set) | DU203: 1 | DV203: 0 | EO203: 0 | EP203: 0 | EQ203: 0 | ER203: FALSE | ES203: FALSE
DQ204: muckrack.com | DR204: referral | DS204: (not set) | DT204: (not set) | DU204: 1 | DV204: 0 | EO204: 0 | EP204: 0 | EQ204: 0 | ER204: FALSE | ES204: FALSE
... 358 more rows

Sheet Traffic Trends
B2: Traffic Trends (Weekly) | F2: Website: | G2: sample (anonymized from several sites)
F3: Date: | G3: 2018-06-21
K4: Copyright Ted Ives, 2018, All Rights Reserved.
B5: Unique Visitors (Weekly) | G5: Visits from Organic Search | J5: Visits from Paid Search
C19: Sources of Visitors (Last 12 Months) | F19: Visits from Type-Ins in Browser or Bookmark | J19: Visits from Link Clicks on Other Sites
J33: Copyright Ted Ives, 2018 All Rights Reserved.

Sheet Paid Search Performance
B2: Paid Search Performance
M4: Copyright Ted Ives, 2018, All Rights Reserved.
B5: "Conversions" are online only, it does not count phone calls, for instance. The "Traffic Trends" sheet often shows Paid Search is correlated with other traffic;
B6: Often it is providing "assists" to other channels, for instance someone may bookmark the site, come back later, and convert. So Paid Search may not get all the credit it should.
M7: For Comparison
D8: Impressions | E8: Click-Through-Rate | F8: Clicks | G8: Conversion Rate | H8: Conversions | I8: Cost-per- Thousand Impressions | J8: Cost-per- Click | K8: Cost-per- Conversion | L8: Total Spend | M8: All Other Clicks | N8: All Other Conversions
B9: Last Year | C9: January | D9: =IF('Raw Data'!DB13=0,"",'Raw Data'!DB13) -> 24890 | E9: =IF(NOT(ISERROR(F9/D9)),F9/D9,"") -> 0.01683406991 | F9: =IF('Raw Data'!DC13=0,"",'Raw Data'!DC13) -> 419 | G9: =IF(NOT(ISERROR(H9/F9)),H9/F9,"") ->  | H9: =IF('Raw Data'!DK13=0,"",'Raw Data'!DK13) ->  | I9: =IF(NOT(ISERROR(L9/(D9/1000))),L9/(D9/1000),"") -> 20.81357975 | J9: =IF('Raw Data'!DD13=0,"",'Raw Data'!DD13) -> 1.236396181 | K9: =IF(L9<>"",IF(H9="","",(L9/H9)),"") ->  | L9: =IF(F9="","",F9*J9) -> 518.05 | M9: =IF('Raw Data'!DN13=0,"",('Raw Data'!DN13-'Raw Data'!DC13)) -> 841 | N9: =IF('Raw Data'!DO13=0,"",('Raw Data'!DO13-'Raw Data'!DK13)) -> 
C10: February | D10: =IF('Raw Data'!DB14=0,"",'Raw Data'!DB14) -> 23157 | E10: =IF(NOT(ISERROR(F10/D10)),F10/D10,"") -> 0.02072807358 | F10: =IF('Raw Data'!DC14=0,"",'Raw Data'!DC14) -> 480 | G10: =IF(NOT(ISERROR(H10/F10)),H10/F10,"") ->  | H10: =IF('Raw Data'!DK14=0,"",'Raw Data'!DK14) ->  | I10: =IF(NOT(ISERROR(L10/(D10/1000))),L10/(D10/1000),"") -> 24.78732133 | J10: =IF('Raw Data'!DD14=0,"",'Raw Data'!DD14) -> 1.195833333 | K10: =IF(L10<>"",IF(H10="","",(L10/H10)),"") ->  | L10: =IF(F10="","",F10*J10) -> 574 | M10: =IF('Raw Data'!DN14=0,"",('Raw Data'!DN14-'Raw Data'!DC14)) -> 819 | N10: =IF('Raw Data'!DO14=0,"",('Raw Data'!DO14-'Raw Data'!DK14)) -> 
C11: March | D11: =IF('Raw Data'!DB15=0,"",'Raw Data'!DB15) -> 29150 | E11: 0.01605488851 | F11: =IF('Raw Data'!DC15=0,"",'Raw Data'!DC15) -> 468 | H11: =IF('Raw Data'!DK15=0,"",'Raw Data'!DK15) ->  | I11: 18.71046312 | J11: =IF('Raw Data'!DD15=0,"",'Raw Data'!DD15) -> 1.165405983 | L11: 545.41 | M11: =IF('Raw Data'!DN15=0,"",('Raw Data'!DN15-'Raw Data'!DC15)) -> 842 | N11: =IF('Raw Data'!DO15=0,"",('Raw Data'!DO15-'Raw Data'!DK15)) -> 
C12: April | D12: =IF('Raw Data'!DB16=0,"",'Raw Data'!DB16) -> 34075 | E12: 0.01267791636 | F12: =IF('Raw Data'!DC16=0,"",'Raw Data'!DC16) -> 432 | H12: =IF('Raw Data'!DK16=0,"",'Raw Data'!DK16) ->  | I12: 14.95994131 | J12: =IF('Raw Data'!DD16=0,"",'Raw Data'!DD16) -> 1.18 | L12: 509.76 | M12: =IF('Raw Data'!DN16=0,"",('Raw Data'!DN16-'Raw Data'!DC16)) -> 908 | N12: =IF('Raw Data'!DO16=0,"",('Raw Data'!DO16-'Raw Data'!DK16)) -> 
C13: May | D13: =IF('Raw Data'!DB17=0,"",'Raw Data'!DB17) -> 29333 | E13: 0.01445470971 | F13: =IF('Raw Data'!DC17=0,"",'Raw Data'!DC17) -> 424 | H13: =IF('Raw Data'!DK17=0,"",'Raw Data'!DK17) ->  | I13: 19.08260321 | J13: =IF('Raw Data'!DD17=0,"",'Raw Data'!DD17) -> 1.320165094 | L13: 559.75 | M13: =IF('Raw Data'!DN17=0,"",('Raw Data'!DN17-'Raw Data'!DC17)) -> 901 | N13: =IF('Raw Data'!DO17=0,"",('Raw Data'!DO17-'Raw Data'!DK17)) -> 
C14: June | D14: =IF('Raw Data'!DB18=0,"",'Raw Data'!DB18) -> 36336 | E14: 0.01656759137 | F14: =IF('Raw Data'!DC18=0,"",'Raw Data'!DC18) -> 602 | H14: =IF('Raw Data'!DK18=0,"",'Raw Data'!DK18) ->  | I14: 23.88787979 | J14: =IF('Raw Data'!DD18=0,"",'Raw Data'!DD18) -> 1.441843854 | L14: 867.99 | M14: =IF('Raw Data'!DN18=0,"",('Raw Data'!DN18-'Raw Data'!DC18)) -> 803 | N14: =IF('Raw Data'!DO18=0,"",('Raw Data'!DO18-'Raw Data'!DK18)) -> 
C15: July | D15: =IF('Raw Data'!DB19=0,"",'Raw Data'!DB19) -> 41608 | E15: 0.01687175543 | F15: =IF('Raw Data'!DC19=0,"",'Raw Data'!DC19) -> 702 | H15: =IF('Raw Data'!DK19=0,"",'Raw Data'!DK19) ->  | I15: 23.32676408 | J15: =IF('Raw Data'!DD19=0,"",'Raw Data'!DD19) -> 1.382592593 | L15: 970.58 | M15: =IF('Raw Data'!DN19=0,"",('Raw Data'!DN19-'Raw Data'!DC19)) -> 938 | N15: =IF('Raw Data'!DO19=0,"",('Raw Data'!DO19-'Raw Data'!DK19)) -> 
C16: August | D16: =IF('Raw Data'!DB20=0,"",'Raw Data'!DB20) -> 47843 | E16: 0.01672135945 | F16: =IF('Raw Data'!DC20=0,"",'Raw Data'!DC20) -> 800 | G16: 0.00375 | H16: =IF('Raw Data'!DK20=0,"",'Raw Data'!DK20) -> 3 | I16: 23.87371193 | J16: =IF('Raw Data'!DD20=0,"",'Raw Data'!DD20) -> 1.4277375 | K16: 380.73 | L16: 1142.19 | M16: =IF('Raw Data'!DN20=0,"",('Raw Data'!DN20-'Raw Data'!DC20)) -> 942 | N16: =IF('Raw Data'!DO20=0,"",('Raw Data'!DO20-'Raw Data'!DK20)) -> 7
C17: September | D17: =IF('Raw Data'!DB21=0,"",'Raw Data'!DB21) -> 93920 | E17: 0.01111584327 | F17: =IF('Raw Data'!DC21=0,"",'Raw Data'!DC21) -> 1044 | G17: 0.009578544061 | H17: =IF('Raw Data'!DK21=0,"",'Raw Data'!DK21) -> 10 | I17: 16.06324532 | J17: =IF('Raw Data'!DD21=0,"",'Raw Data'!DD21) -> 1.445076628 | K17: 150.866 | L17: 1508.66 | M17: =IF('Raw Data'!DN21=0,"",('Raw Data'!DN21-'Raw Data'!DC21)) -> 921 | N17: =IF('Raw Data'!DO21=0,"",('Raw Data'!DO21-'Raw Data'!DK21)) -> 33
C18: October | D18: =IF('Raw Data'!DB22=0,"",'Raw Data'!DB22) -> 123052 | E18: 0.01031271332 | F18: =IF('Raw Data'!DC22=0,"",'Raw Data'!DC22) -> 1269 | G18: 0.01260835303 | H18: =IF('Raw Data'!DK22=0,"",'Raw Data'!DK22) -> 16 | I18: 16.15885967 | J18: =IF('Raw Data'!DD22=0,"",'Raw Data'!DD22) -> 1.566887313 | K18: 124.27375 | L18: 1988.38 | M18: =IF('Raw Data'!DN22=0,"",('Raw Data'!DN22-'Raw Data'!DC22)) -> 1054 | N18: =IF('Raw Data'!DO22=0,"",('Raw Data'!DO22-'Raw Data'!DK22)) -> 25
C19: November | D19: =IF('Raw Data'!DB23=0,"",'Raw Data'!DB23) -> 106286 | E19: 0.01168545246 | F19: =IF('Raw Data'!DC23=0,"",'Raw Data'!DC23) -> 1242 | G19: 0.01207729469 | H19: =IF('Raw Data'!DK23=0,"",'Raw Data'!DK23) -> 15 | I19: 18.3908511 | J19: =IF('Raw Data'!DD23=0,"",'Raw Data'!DD23) -> 1.573824477 | K19: 130.3126667 | L19: 1954.69 | M19: =IF('Raw Data'!DN23=0,"",('Raw Data'!DN23-'Raw Data'!DC23)) -> 1165 | N19: =IF('Raw Data'!DO23=0,"",('Raw Data'!DO23-'Raw Data'!DK23)) -> 17
C20: December | D20: =IF('Raw Data'!DB24=0,"",'Raw Data'!DB24) -> 73003 | E20: 0.01213648754 | F20: =IF('Raw Data'!DC24=0,"",'Raw Data'!DC24) -> 886 | G20: 0.01918735892 | H20: =IF('Raw Data'!DK24=0,"",'Raw Data'!DK24) -> 17 | I20: 19.59481117 | J20: =IF('Raw Data'!DD24=0,"",'Raw Data'!DD24) -> 1.614537246 | K20: 84.14588235 | L20: 1430.48 | M20: =IF('Raw Data'!DN24=0,"",('Raw Data'!DN24-'Raw Data'!DC24)) -> 798 | N20: =IF('Raw Data'!DO24=0,"",('Raw Data'!DO24-'Raw Data'!DK24)) -> 12
B21: This Year | C21: January | D21: =IF('Raw Data'!DB25=0,"",'Raw Data'!DB25) -> 104463 | E21: 0.01219570566 | F21: =IF('Raw Data'!DC25=0,"",'Raw Data'!DC25) -> 1274 | G21: 0.0180533752 | H21: =IF('Raw Data'!DK25=0,"",'Raw Data'!DK25) -> 23 | I21: 19.44181193 | J21: =IF('Raw Data'!DD25=0,"",'Raw Data'!DD25) -> 1.594152276 | K21: 88.30217391 | L21: 2030.95 | M21: =IF('Raw Data'!DN25=0,"",('Raw Data'!DN25-'Raw Data'!DC25)) -> 1125 | N21: =IF('Raw Data'!DO25=0,"",('Raw Data'!DO25-'Raw Data'!DK25)) -> 21
C22: February | D22: =IF('Raw Data'!DB26=0,"",'Raw Data'!DB26) -> 109518 | E22: 0.01192498037 | F22: =IF('Raw Data'!DC26=0,"",'Raw Data'!DC26) -> 1306 | G22: 0.01684532925 | H22: =IF('Raw Data'!DK26=0,"",'Raw Data'!DK26) -> 22 | I22: 19.08654285 | J22: =IF('Raw Data'!DD26=0,"",'Raw Data'!DD26) -> 1.600551302 | K22: 95.01454545 | L22: 2090.32 | M22: =IF('Raw Data'!DN26=0,"",('Raw Data'!DN26-'Raw Data'!DC26)) -> 1217 | N22: =IF('Raw Data'!DO26=0,"",('Raw Data'!DO26-'Raw Data'!DK26)) -> 21
C23: March | D23: =IF('Raw Data'!DB27=0,"",'Raw Data'!DB27) -> 112549 | E23: 0.0101644617 | F23: =IF('Raw Data'!DC27=0,"",'Raw Data'!DC27) -> 1144 | G23: 0.01573426573 | H23: =IF('Raw Data'!DK27=0,"",'Raw Data'!DK27) -> 18 | I23: 17.28695946 | J23: =IF('Raw Data'!DD27=0,"",'Raw Data'!DD27) -> 1.700725524 | K23: 108.0905556 | L23: 1945.63 | M23: =IF('Raw Data'!DN27=0,"",('Raw Data'!DN27-'Raw Data'!DC27)) -> 1329 | N23: =IF('Raw Data'!DO27=0,"",('Raw Data'!DO27-'Raw Data'!DK27)) -> 23
C24: April | D24: =IF('Raw Data'!DB28=0,"",'Raw Data'!DB28) -> 104278 | E24: 0.01092272579 | F24: =IF('Raw Data'!DC28=0,"",'Raw Data'!DC28) -> 1139 | G24: 0.01843722564 | H24: =IF('Raw Data'!DK28=0,"",'Raw Data'!DK28) -> 21 | I24: 19.34876005 | J24: =IF('Raw Data'!DD28=0,"",'Raw Data'!DD28) -> 1.7714223 | K24: 96.07857143 | L24: 2017.65 | M24: =IF('Raw Data'!DN28=0,"",('Raw Data'!DN28-'Raw Data'!DC28)) -> 1291 | N24: =IF('Raw Data'!DO28=0,"",('Raw Data'!DO28-'Raw Data'!DK28)) -> 10
C25: May | D25: =IF('Raw Data'!DB29=0,"",'Raw Data'!DB29) -> 114083 | E25: 0.008844437822 | F25: =IF('Raw Data'!DC29=0,"",'Raw Data'!DC29) -> 1009 | G25: 0.01288404361 | H25: =IF('Raw Data'!DK29=0,"",'Raw Data'!DK29) -> 13 | I25: 16.80890229 | J25: =IF('Raw Data'!DD29=0,"",'Raw Data'!DD29) -> 1.900505451 | K25: 147.5084615 | L25: 1917.61 | M25: =IF('Raw Data'!DN29=0,"",('Raw Data'!DN29-'Raw Data'!DC29)) -> 1029 | N25: =IF('Raw Data'!DO29=0,"",('Raw Data'!DO29-'Raw Data'!DK29)) -> 12
C26: June | D26: =IF('Raw Data'!DB30=0,"",'Raw Data'!DB30) -> 128553 | E26: 0.008408983065 | F26: =IF('Raw Data'!DC30=0,"",'Raw Data'!DC30) -> 1081 | G26: 0.01202590194 | H26: =IF('Raw Data'!DK30=0,"",'Raw Data'!DK30) -> 13 | I26: 19.36026386 | J26: =IF('Raw Data'!DD30=0,"",'Raw Data'!DD30) -> 2.302331175 | K26: 191.4476923 | L26: 2488.82 | M26: =IF('Raw Data'!DN30=0,"",('Raw Data'!DN30-'Raw Data'!DC30)) -> 1074 | N26: =IF('Raw Data'!DO30=0,"",('Raw Data'!DO30-'Raw Data'!DK30)) -> 14
C27: July | D27: =IF('Raw Data'!DB31=0,"",'Raw Data'!DB31) -> 87224 | E27: 0.01337934513 | F27: =IF('Raw Data'!DC31=0,"",'Raw Data'!DC31) -> 1167 | G27: 0.0205655527 | H27: =IF('Raw Data'!DK31=0,"",'Raw Data'!DK31) -> 24 | I27: 33.33165184 | J27: =IF('Raw Data'!DD31=0,"",'Raw Data'!DD31) -> 2.491276778 | K27: 121.1383333 | L27: 2907.32 | M27: =IF('Raw Data'!DN31=0,"",('Raw Data'!DN31-'Raw Data'!DC31)) -> 924 | N27: =IF('Raw Data'!DO31=0,"",('Raw Data'!DO31-'Raw Data'!DK31)) -> 4
C28: August | D28: =IF('Raw Data'!DB32=0,"",'Raw Data'!DB32) -> 116989 | E28: 0.01458256759 | F28: =IF('Raw Data'!DC32=0,"",'Raw Data'!DC32) -> 1706 | G28: 0.02754982415 | H28: =IF('Raw Data'!DK32=0,"",'Raw Data'!DK32) -> 47 | I28: 37.37052201 | J28: =IF('Raw Data'!DD32=0,"",'Raw Data'!DD32) -> 2.562684642 | K28: 93.02 | L28: 4371.94 | M28: =IF('Raw Data'!DN32=0,"",('Raw Data'!DN32-'Raw Data'!DC32)) -> 856 | N28: =IF('Raw Data'!DO32=0,"",('Raw Data'!DO32-'Raw Data'!DK32)) -> 18
C29: September | D29: =IF('Raw Data'!DB33=0,"",'Raw Data'!DB33) ->  | F29: =IF('Raw Data'!DC33=0,"",'Raw Data'!DC33) ->  | H29: =IF('Raw Data'!DK33=0,"",'Raw Data'!DK33) ->  | J29: =IF('Raw Data'!DD33=0,"",'Raw Data'!DD33) ->  | M29: =IF('Raw Data'!DN33=0,"",('Raw Data'!DN33-'Raw Data'!DC33)) ->  | N29: =IF('Raw Data'!DO33=0,"",('Raw Data'!DO33-'Raw Data'!DK33)) -> 
C30: October | D30: =IF('Raw Data'!DB34=0,"",'Raw Data'!DB34) ->  | F30: =IF('Raw Data'!DC34=0,"",'Raw Data'!DC34) ->  | H30: =IF('Raw Data'!DK34=0,"",'Raw Data'!DK34) ->  | J30: =IF('Raw Data'!DD34=0,"",'Raw Data'!DD34) ->  | M30: =IF('Raw Data'!DN34=0,"",('Raw Data'!DN34-'Raw Data'!DC34)) ->  | N30: =IF('Raw Data'!DO34=0,"",('Raw Data'!DO34-'Raw Data'!DK34)) -> 
C31: November | D31: =IF('Raw Data'!DB35=0,"",'Raw Data'!DB35) ->  | F31: =IF('Raw Data'!DC35=0,"",'Raw Data'!DC35) ->  | H31: =IF('Raw Data'!DK35=0,"",'Raw Data'!DK35) ->  | J31: =IF('Raw Data'!DD35=0,"",'Raw Data'!DD35) ->  | M31: =IF('Raw Data'!DN35=0,"",('Raw Data'!DN35-'Raw Data'!DC35)) ->  | N31: =IF('Raw Data'!DO35=0,"",('Raw Data'!DO35-'Raw Data'!DK35)) -> 
C32: December | D32: =IF('Raw Data'!DB36=0,"",'Raw Data'!DB36) ->  | F32: =IF('Raw Data'!DC36=0,"",'Raw Data'!DC36) ->  | H32: =IF('Raw Data'!DK36=0,"",'Raw Data'!DK36) ->  | J32: =IF('Raw Data'!DD36=0,"",'Raw Data'!DD36) ->  | M32: =IF('Raw Data'!DN36=0,"",('Raw Data'!DN36-'Raw Data'!DC36)) ->  | N32: =IF('Raw Data'!DO36=0,"",('Raw Data'!DO36-'Raw Data'!DK36)) -> 

Sheet Mobile Trend and Engagement
B2: Mobile Trend and Enagement by Browser Type
G4: Copyright Ted Ives, 2016, All Rights Reserved.
B5: Note: Mobile includes Tablet and Smartphone.
B6: Google Analytics, if you drill into it, allows you to separate these but it's not available yet via API. | G6: Mobile % of All Visitors (Weekly)
B7: If detail on that is of interest, let me know.
B9: Should You Create a Mobile Version of Your Website?
B10: Most pure B-to-B sites see numbers between 10-15% for all of mobile.
B11: Most pure B-to-C businesses see numbers between 25-35% for all of mobile.
B12: If your number is over 20% you should check your mobile experience on various platforms, and if
B13: you don't think it's a good one, consider creating a dedicated mobile experience.
B14: For most B-to-B businesses, simply being able to zoom and having menus work properly is usually
B15: fine though; I would suggest at least checking for problems with those.
B16: Most B-to-C businesses should *seriously consider* a mobile version of their website foucsing on use-cases
B17: (i.e. book a room, make a reservation, obtain a quote, check showtimes, etc.)
B19: Check the Table Below for Problems!
B20: Below is traffic broken out by browser and Operating system.
B21: If a particular one has minutes on site or a bounce rate that vary widely from the weighted average shown at the top, it will show as a "Possible Problem".
B22: If so, and if there are enough visitors to matter, you might test out your user experience and make sure that the poor engagement is not due to browser or OS issues with your site.
B24: Note - the data below is for the last ninety days. | G24: Note: All with < 10 visitors are marked "Seems Fine" since not enough data to tell.
B26: Browser | C26: Operating System | D26: Visitors | E26: Avg. Minutes on Site | F26: Avg. Bounce Rate (%) | G26: Possible Problem | H26: % of all Visitors
B27: Overall | C27: N/A | D27: ='Raw Data'!EK13 -> 929 | E27: ='Raw Data'!EL13/60 -> 2.454558431 | F27: ='Raw Data'!EM13 -> 0.4657042147 | G27: With User Experience? | H27: 1
B28: =IF('Raw Data'!EI15="","",'Raw Data'!EI15) -> Internet Explorer | C28: =IF('Raw Data'!EJ15="(not set)","Unknown OS",IF('Raw Data'!EJ15="","",'Raw Data'!EJ15)) -> Windows | D28: =IF('Raw Data'!EK15="","",'Raw Data'!EK15) -> 325 | E28: =IF('Raw Data'!EL15="","",('Raw Data'!EL15/60)) -> 2.219344414 | F28: =IF('Raw Data'!EM15="","",'Raw Data'!EM15) -> 0.4847645429 | G28: =IF('Raw Data'!ET15=TRUE,"Possible Problem",IF('Raw Data'!ET15="","","Seems Fine")) -> Seems Fine | H28: =IF('Raw Data'!EU15="","",'Raw Data'!EU15) -> 0.3498385361
B29: =IF('Raw Data'!EI16="","",'Raw Data'!EI16) -> Chrome | C29: =IF('Raw Data'!EJ16="(not set)","Unknown OS",IF('Raw Data'!EJ16="","",'Raw Data'!EJ16)) -> Windows | D29: =IF('Raw Data'!EK16="","",'Raw Data'!EK16) -> 156 | E29: =IF('Raw Data'!EL16="","",('Raw Data'!EL16/60)) -> 4.768247694 | F29: =IF('Raw Data'!EM16="","",'Raw Data'!EM16) -> 0.4308300395 | G29: =IF('Raw Data'!ET16=TRUE,"Possible Problem",IF('Raw Data'!ET16="","","Seems Fine")) -> Seems Fine | H29: =IF('Raw Data'!EU16="","",'Raw Data'!EU16) -> 0.1679224973
B30: =IF('Raw Data'!EI17="","",'Raw Data'!EI17) -> Safari | C30: =IF('Raw Data'!EJ17="(not set)","Unknown OS",IF('Raw Data'!EJ17="","",'Raw Data'!EJ17)) -> iOS | D30: =IF('Raw Data'!EK17="","",'Raw Data'!EK17) -> 121 | E30: =IF('Raw Data'!EL17="","",('Raw Data'!EL17/60)) -> 1.517375887 | F30: =IF('Raw Data'!EM17="","",'Raw Data'!EM17) -> 0.4734042553 | G30: =IF('Raw Data'!ET17=TRUE,"Possible Problem",IF('Raw Data'!ET17="","","Seems Fine")) -> Seems Fine | H30: =IF('Raw Data'!EU17="","",'Raw Data'!EU17) -> 0.130247578
B31: =IF('Raw Data'!EI18="","",'Raw Data'!EI18) -> Firefox | C31: =IF('Raw Data'!EJ18="(not set)","Unknown OS",IF('Raw Data'!EJ18="","",'Raw Data'!EJ18)) -> Windows | D31: =IF('Raw Data'!EK18="","",'Raw Data'!EK18) -> 112 | E31: =IF('Raw Data'!EL18="","",('Raw Data'!EL18/60)) -> 1.836032864 | F31: =IF('Raw Data'!EM18="","",'Raw Data'!EM18) -> 0.3971631206 | G31: =IF('Raw Data'!ET18=TRUE,"Possible Problem",IF('Raw Data'!ET18="","","Seems Fine")) -> Seems Fine | H31: =IF('Raw Data'!EU18="","",'Raw Data'!EU18) -> 0.1205597417
B32: =IF('Raw Data'!EI19="","",'Raw Data'!EI19) -> Android Browser | C32: =IF('Raw Data'!EJ19="(not set)","Unknown OS",IF('Raw Data'!EJ19="","",'Raw Data'!EJ19)) -> Android | D32: =IF('Raw Data'!EK19="","",'Raw Data'!EK19) -> 82 | E32: =IF('Raw Data'!EL19="","",('Raw Data'!EL19/60)) -> 2.756693989 | F32: =IF('Raw Data'!EM19="","",'Raw Data'!EM19) -> 0.4344262295 | G32: =IF('Raw Data'!ET19=TRUE,"Possible Problem",IF('Raw Data'!ET19="","","Seems Fine")) -> Seems Fine | H32: =IF('Raw Data'!EU19="","",'Raw Data'!EU19) -> 0.08826695371
B33: =IF('Raw Data'!EI20="","",'Raw Data'!EI20) -> Safari | C33: =IF('Raw Data'!EJ20="(not set)","Unknown OS",IF('Raw Data'!EJ20="","",'Raw Data'!EJ20)) -> Macintosh | D33: =IF('Raw Data'!EK20="","",'Raw Data'!EK20) -> 53 | E33: =IF('Raw Data'!EL20="","",('Raw Data'!EL20/60)) -> 1.781216931 | F33: =IF('Raw Data'!EM20="","",'Raw Data'!EM20) -> 0.4444444444 | G33: =IF('Raw Data'!ET20=TRUE,"Possible Problem",IF('Raw Data'!ET20="","","Seems Fine")) -> Seems Fine | H33: =IF('Raw Data'!EU20="","",'Raw Data'!EU20) -> 0.05705059203
B34: =IF('Raw Data'!EI21="","",'Raw Data'!EI21) -> Chrome | C34: =IF('Raw Data'!EJ21="(not set)","Unknown OS",IF('Raw Data'!EJ21="","",'Raw Data'!EJ21)) -> Macintosh | D34: =IF('Raw Data'!EK21="","",'Raw Data'!EK21) -> 8 | E34: =IF('Raw Data'!EL21="","",('Raw Data'!EL21/60)) -> 0.9029411765 | F34: =IF('Raw Data'!EM21="","",'Raw Data'!EM21) -> 0.4117647059 | G34: =IF('Raw Data'!ET21=TRUE,"Possible Problem",IF('Raw Data'!ET21="","","Seems Fine")) -> Seems Fine | H34: =IF('Raw Data'!EU21="","",'Raw Data'!EU21) -> 0.008611410118
B35: =IF('Raw Data'!EI22="","",'Raw Data'!EI22) -> Safari (in-app) | C35: =IF('Raw Data'!EJ22="(not set)","Unknown OS",IF('Raw Data'!EJ22="","",'Raw Data'!EJ22)) -> iOS | D35: =IF('Raw Data'!EK22="","",'Raw Data'!EK22) -> 8 | E35: =IF('Raw Data'!EL22="","",('Raw Data'!EL22/60)) -> 1.088888889 | F35: =IF('Raw Data'!EM22="","",'Raw Data'!EM22) -> 0.5555555556 | G35: =IF('Raw Data'!ET22=TRUE,"Possible Problem",IF('Raw Data'!ET22="","","Seems Fine")) -> Seems Fine | H35: =IF('Raw Data'!EU22="","",'Raw Data'!EU22) -> 0.008611410118
B36: =IF('Raw Data'!EI23="","",'Raw Data'!EI23) -> Chrome | C36: =IF('Raw Data'!EJ23="(not set)","Unknown OS",IF('Raw Data'!EJ23="","",'Raw Data'!EJ23)) -> Android | D36: =IF('Raw Data'!EK23="","",'Raw Data'!EK23) -> 7 | E36: =IF('Raw Data'!EL23="","",('Raw Data'!EL23/60)) -> 0.65 | F36: =IF('Raw Data'!EM23="","",'Raw Data'!EM23) -> 0.6 | G36: =IF('Raw Data'!ET23=TRUE,"Possible Problem",IF('Raw Data'!ET23="","","Seems Fine")) -> Seems Fine | H36: =IF('Raw Data'!EU23="","",'Raw Data'!EU23) -> 0.007534983854
B37: =IF('Raw Data'!EI24="","",'Raw Data'!EI24) -> Firefox | C37: =IF('Raw Data'!EJ24="(not set)","Unknown OS",IF('Raw Data'!EJ24="","",'Raw Data'!EJ24)) -> Firefox OS | D37: =IF('Raw Data'!EK24="","",'Raw Data'!EK24) -> 6 | E37: =IF('Raw Data'!EL24="","",('Raw Data'!EL24/60)) -> 0 | F37: =IF('Raw Data'!EM24="","",'Raw Data'!EM24) -> 1 | G37: =IF('Raw Data'!ET24=TRUE,"Possible Problem",IF('Raw Data'!ET24="","","Seems Fine")) -> Seems Fine | H37: =IF('Raw Data'!EU24="","",'Raw Data'!EU24) -> 0.006458557589
B38: =IF('Raw Data'!EI25="","",'Raw Data'!EI25) -> Playstation 3 | C38: =IF('Raw Data'!EJ25="(not set)","Unknown OS",IF('Raw Data'!EJ25="","",'Raw Data'!EJ25)) -> Playstation 3 | D38: =IF('Raw Data'!EK25="","",'Raw Data'!EK25) -> 6 | E38: =IF('Raw Data'!EL25="","",('Raw Data'!EL25/60)) -> 1.45625 | F38: =IF('Raw Data'!EM25="","",'Raw Data'!EM25) -> 0.625 | G38: =IF('Raw Data'!ET25=TRUE,"Possible Problem",IF('Raw Data'!ET25="","","Seems Fine")) -> Seems Fine | H38: =IF('Raw Data'!EU25="","",'Raw Data'!EU25) -> 0.006458557589
B39: =IF('Raw Data'!EI26="","",'Raw Data'!EI26) -> Amazon Silk | C39: =IF('Raw Data'!EJ26="(not set)","Unknown OS",IF('Raw Data'!EJ26="","",'Raw Data'!EJ26)) -> Android | D39: =IF('Raw Data'!EK26="","",'Raw Data'!EK26) -> 5 | E39: =IF('Raw Data'!EL26="","",('Raw Data'!EL26/60)) -> 7.833333333 | F39: =IF('Raw Data'!EM26="","",'Raw Data'!EM26) -> 0 | G39: =IF('Raw Data'!ET26=TRUE,"Possible Problem",IF('Raw Data'!ET26="","","Seems Fine")) -> Seems Fine | H39: =IF('Raw Data'!EU26="","",'Raw Data'!EU26) -> 0.005382131324
B40: =IF('Raw Data'!EI27="","",'Raw Data'!EI27) -> Internet Explorer | C40: =IF('Raw Data'!EJ27="(not set)","Unknown OS",IF('Raw Data'!EJ27="","",'Raw Data'!EJ27)) -> Windows Phone | D40: =IF('Raw Data'!EK27="","",'Raw Data'!EK27) -> 5 | E40: =IF('Raw Data'!EL27="","",('Raw Data'!EL27/60)) -> 1.716666667 | F40: =IF('Raw Data'!EM27="","",'Raw Data'!EM27) -> 0.4 | G40: =IF('Raw Data'!ET27=TRUE,"Possible Problem",IF('Raw Data'!ET27="","","Seems Fine")) -> Seems Fine | H40: =IF('Raw Data'!EU27="","",'Raw Data'!EU27) -> 0.005382131324
B41: =IF('Raw Data'!EI28="","",'Raw Data'!EI28) -> Mozilla Compatible Agent | C41: =IF('Raw Data'!EJ28="(not set)","Unknown OS",IF('Raw Data'!EJ28="","",'Raw Data'!EJ28)) -> Windows | D41: =IF('Raw Data'!EK28="","",'Raw Data'!EK28) -> 5 | E41: =IF('Raw Data'!EL28="","",('Raw Data'!EL28/60)) -> 0 | F41: =IF('Raw Data'!EM28="","",'Raw Data'!EM28) -> 1 | G41: =IF('Raw Data'!ET28=TRUE,"Possible Problem",IF('Raw Data'!ET28="","","Seems Fine")) -> Seems Fine | H41: =IF('Raw Data'!EU28="","",'Raw Data'!EU28) -> 0.005382131324
B42: =IF('Raw Data'!EI29="","",'Raw Data'!EI29) -> Opera Mini | C42: =IF('Raw Data'!EJ29="(not set)","Unknown OS",IF('Raw Data'!EJ29="","",'Raw Data'!EJ29)) -> Unknown OS | D42: =IF('Raw Data'!EK29="","",'Raw Data'!EK29) -> 4 | E42: =IF('Raw Data'!EL29="","",('Raw Data'!EL29/60)) -> 2.645833333 | F42: =IF('Raw Data'!EM29="","",'Raw Data'!EM29) -> 0.75 | G42: =IF('Raw Data'!ET29=TRUE,"Possible Problem",IF('Raw Data'!ET29="","","Seems Fine")) -> Seems Fine | H42: =IF('Raw Data'!EU29="","",'Raw Data'!EU29) -> 0.004305705059
B43: =IF('Raw Data'!EI30="","",'Raw Data'!EI30) -> Chrome | C43: =IF('Raw Data'!EJ30="(not set)","Unknown OS",IF('Raw Data'!EJ30="","",'Raw Data'!EJ30)) -> iOS | D43: =IF('Raw Data'!EK30="","",'Raw Data'!EK30) -> 3 | E43: =IF('Raw Data'!EL30="","",('Raw Data'!EL30/60)) -> 0.2041666667 | F43: =IF('Raw Data'!EM30="","",'Raw Data'!EM30) -> 0.5 | G43: =IF('Raw Data'!ET30=TRUE,"Possible Problem",IF('Raw Data'!ET30="","","Seems Fine")) -> Seems Fine | H43: =IF('Raw Data'!EU30="","",'Raw Data'!EU30) -> 0.003229278794
B44: =IF('Raw Data'!EI31="","",'Raw Data'!EI31) -> Firefox | C44: =IF('Raw Data'!EJ31="(not set)","Unknown OS",IF('Raw Data'!EJ31="","",'Raw Data'!EJ31)) -> Linux | D44: =IF('Raw Data'!EK31="","",'Raw Data'!EK31) -> 3 | E44: =IF('Raw Data'!EL31="","",('Raw Data'!EL31/60)) -> 0.3055555556 | F44: =IF('Raw Data'!EM31="","",'Raw Data'!EM31) -> 0.6666666667 | G44: =IF('Raw Data'!ET31=TRUE,"Possible Problem",IF('Raw Data'!ET31="","","Seems Fine")) -> Seems Fine | H44: =IF('Raw Data'!EU31="","",'Raw Data'!EU31) -> 0.003229278794
B45: =IF('Raw Data'!EI32="","",'Raw Data'!EI32) -> Firefox | C45: =IF('Raw Data'!EJ32="(not set)","Unknown OS",IF('Raw Data'!EJ32="","",'Raw Data'!EJ32)) -> Macintosh | D45: =IF('Raw Data'!EK32="","",'Raw Data'!EK32) -> 3 | E45: =IF('Raw Data'!EL32="","",('Raw Data'!EL32/60)) -> 1.25 | F45: =IF('Raw Data'!EM32="","",'Raw Data'!EM32) -> 0.25 | G45: =IF('Raw Data'!ET32=TRUE,"Possible Problem",IF('Raw Data'!ET32="","","Seems Fine")) -> Seems Fine | H45: =IF('Raw Data'!EU32="","",'Raw Data'!EU32) -> 0.003229278794
B46: =IF('Raw Data'!EI33="","",'Raw Data'!EI33) -> Safari | C46: =IF('Raw Data'!EJ33="(not set)","Unknown OS",IF('Raw Data'!EJ33="","",'Raw Data'!EJ33)) -> Linux | D46: =IF('Raw Data'!EK33="","",'Raw Data'!EK33) -> 3 | E46: =IF('Raw Data'!EL33="","",('Raw Data'!EL33/60)) -> 0 | F46: =IF('Raw Data'!EM33="","",'Raw Data'!EM33) -> 1 | G46: =IF('Raw Data'!ET33=TRUE,"Possible Problem",IF('Raw Data'!ET33="","","Seems Fine")) -> Seems Fine | H46: =IF('Raw Data'!EU33="","",'Raw Data'!EU33) -> 0.003229278794
B47: =IF('Raw Data'!EI34="","",'Raw Data'!EI34) -> Safari | C47: =IF('Raw Data'!EJ34="(not set)","Unknown OS",IF('Raw Data'!EJ34="","",'Raw Data'!EJ34)) -> Windows | D47: =IF('Raw Data'!EK34="","",'Raw Data'!EK34) -> 3 | E47: =IF('Raw Data'!EL34="","",('Raw Data'!EL34/60)) -> 0.675 | F47: =IF('Raw Data'!EM34="","",'Raw Data'!EM34) -> 0.5 | G47: =IF('Raw Data'!ET34=TRUE,"Possible Problem",IF('Raw Data'!ET34="","","Seems Fine")) -> Seems Fine | H47: =IF('Raw Data'!EU34="","",'Raw Data'!EU34) -> 0.003229278794
B48: =IF('Raw Data'!EI35="","",'Raw Data'!EI35) -> IE with Chrome Frame | C48: =IF('Raw Data'!EJ35="(not set)","Unknown OS",IF('Raw Data'!EJ35="","",'Raw Data'!EJ35)) -> Windows | D48: =IF('Raw Data'!EK35="","",'Raw Data'!EK35) -> 2 | E48: =IF('Raw Data'!EL35="","",('Raw Data'!EL35/60)) -> 0.4583333333 | F48: =IF('Raw Data'!EM35="","",'Raw Data'!EM35) -> 0.5 | G48: =IF('Raw Data'!ET35=TRUE,"Possible Problem",IF('Raw Data'!ET35="","","Seems Fine")) -> Seems Fine | H48: =IF('Raw Data'!EU35="","",'Raw Data'!EU35) -> 0.00215285253
B49: =IF('Raw Data'!EI36="","",'Raw Data'!EI36) -> (not set) | C49: =IF('Raw Data'!EJ36="(not set)","Unknown OS",IF('Raw Data'!EJ36="","",'Raw Data'!EJ36)) -> Unknown OS | D49: =IF('Raw Data'!EK36="","",'Raw Data'!EK36) -> 1 | E49: =IF('Raw Data'!EL36="","",('Raw Data'!EL36/60)) -> 0 | F49: =IF('Raw Data'!EM36="","",'Raw Data'!EM36) -> 1 | G49: =IF('Raw Data'!ET36=TRUE,"Possible Problem",IF('Raw Data'!ET36="","","Seems Fine")) -> Seems Fine | H49: =IF('Raw Data'!EU36="","",'Raw Data'!EU36) -> 0.001076426265
B50: =IF('Raw Data'!EI37="","",'Raw Data'!EI37) -> BlackBerry | C50: =IF('Raw Data'!EJ37="(not set)","Unknown OS",IF('Raw Data'!EJ37="","",'Raw Data'!EJ37)) -> BlackBerry | D50: =IF('Raw Data'!EK37="","",'Raw Data'!EK37) -> 1 | E50: =IF('Raw Data'!EL37="","",('Raw Data'!EL37/60)) -> 1.083333333 | F50: =IF('Raw Data'!EM37="","",'Raw Data'!EM37) -> 0.5 | G50: =IF('Raw Data'!ET37=TRUE,"Possible Problem",IF('Raw Data'!ET37="","","Seems Fine")) -> Seems Fine | H50: =IF('Raw Data'!EU37="","",'Raw Data'!EU37) -> 0.001076426265
B51: =IF('Raw Data'!EI38="","",'Raw Data'!EI38) -> BlackBerry8530 | C51: =IF('Raw Data'!EJ38="(not set)","Unknown OS",IF('Raw Data'!EJ38="","",'Raw Data'!EJ38)) -> BlackBerry | D51: =IF('Raw Data'!EK38="","",'Raw Data'!EK38) -> 1 | E51: =IF('Raw Data'!EL38="","",('Raw Data'!EL38/60)) -> 0 | F51: =IF('Raw Data'!EM38="","",'Raw Data'!EM38) -> 1 | G51: =IF('Raw Data'!ET38=TRUE,"Possible Problem",IF('Raw Data'!ET38="","","Seems Fine")) -> Seems Fine | H51: =IF('Raw Data'!EU38="","",'Raw Data'!EU38) -> 0.001076426265
B52: =IF('Raw Data'!EI39="","",'Raw Data'!EI39) -> Chrome | C52: =IF('Raw Data'!EJ39="(not set)","Unknown OS",IF('Raw Data'!EJ39="","",'Raw Data'!EJ39)) -> Chrome OS | D52: =IF('Raw Data'!EK39="","",'Raw Data'!EK39) -> 1 | E52: =IF('Raw Data'!EL39="","",('Raw Data'!EL39/60)) -> 1.6 | F52: =IF('Raw Data'!EM39="","",'Raw Data'!EM39) -> 0 | G52: =IF('Raw Data'!ET39=TRUE,"Possible Problem",IF('Raw Data'!ET39="","","Seems Fine")) -> Seems Fine | H52: =IF('Raw Data'!EU39="","",'Raw Data'!EU39) -> 0.001076426265
B53: =IF('Raw Data'!EI40="","",'Raw Data'!EI40) -> Chrome | C53: =IF('Raw Data'!EJ40="(not set)","Unknown OS",IF('Raw Data'!EJ40="","",'Raw Data'!EJ40)) -> Linux | D53: =IF('Raw Data'!EK40="","",'Raw Data'!EK40) -> 1 | E53: =IF('Raw Data'!EL40="","",('Raw Data'!EL40/60)) -> 4.116666667 | F53: =IF('Raw Data'!EM40="","",'Raw Data'!EM40) -> 0 | G53: =IF('Raw Data'!ET40=TRUE,"Possible Problem",IF('Raw Data'!ET40="","","Seems Fine")) -> Seems Fine | H53: =IF('Raw Data'!EU40="","",'Raw Data'!EU40) -> 0.001076426265
B54: =IF('Raw Data'!EI41="","",'Raw Data'!EI41) -> Mozilla | C54: =IF('Raw Data'!EJ41="(not set)","Unknown OS",IF('Raw Data'!EJ41="","",'Raw Data'!EJ41)) -> Windows | D54: =IF('Raw Data'!EK41="","",'Raw Data'!EK41) -> 1 | E54: =IF('Raw Data'!EL41="","",('Raw Data'!EL41/60)) -> 2.883333333 | F54: =IF('Raw Data'!EM41="","",'Raw Data'!EM41) -> 0 | G54: =IF('Raw Data'!ET41=TRUE,"Possible Problem",IF('Raw Data'!ET41="","","Seems Fine")) -> Seems Fine | H54: =IF('Raw Data'!EU41="","",'Raw Data'!EU41) -> 0.001076426265
B55: =IF('Raw Data'!EI42="","",'Raw Data'!EI42) -> Mozilla Compatible Agent | C55: =IF('Raw Data'!EJ42="(not set)","Unknown OS",IF('Raw Data'!EJ42="","",'Raw Data'!EJ42)) -> Macintosh | D55: =IF('Raw Data'!EK42="","",'Raw Data'!EK42) -> 1 | E55: =IF('Raw Data'!EL42="","",('Raw Data'!EL42/60)) -> 0 | F55: =IF('Raw Data'!EM42="","",'Raw Data'!EM42) -> 1 | G55: =IF('Raw Data'!ET42=TRUE,"Possible Problem",IF('Raw Data'!ET42="","","Seems Fine")) -> Seems Fine | H55: =IF('Raw Data'!EU42="","",'Raw Data'!EU42) -> 0.001076426265
B56: =IF('Raw Data'!EI43="","",'Raw Data'!EI43) -> Opera | C56: =IF('Raw Data'!EJ43="(not set)","Unknown OS",IF('Raw Data'!EJ43="","",'Raw Data'!EJ43)) -> Macintosh | D56: =IF('Raw Data'!EK43="","",'Raw Data'!EK43) -> 1 | E56: =IF('Raw Data'!EL43="","",('Raw Data'!EL43/60)) -> 0 | F56: =IF('Raw Data'!EM43="","",'Raw Data'!EM43) -> 1 | G56: =IF('Raw Data'!ET43=TRUE,"Possible Problem",IF('Raw Data'!ET43="","","Seems Fine")) -> Seems Fine | H56: =IF('Raw Data'!EU43="","",'Raw Data'!EU43) -> 0.001076426265
B57: =IF('Raw Data'!EI44="","",'Raw Data'!EI44) -> S40 Ovi Browser | C57: =IF('Raw Data'!EJ44="(not set)","Unknown OS",IF('Raw Data'!EJ44="","",'Raw Data'!EJ44)) -> Series40 | D57: =IF('Raw Data'!EK44="","",'Raw Data'!EK44) -> 1 | E57: =IF('Raw Data'!EL44="","",('Raw Data'!EL44/60)) -> 0 | F57: =IF('Raw Data'!EM44="","",'Raw Data'!EM44) -> 1 | G57: =IF('Raw Data'!ET44=TRUE,"Possible Problem",IF('Raw Data'!ET44="","","Seems Fine")) -> Seems Fine | H57: =IF('Raw Data'!EU44="","",'Raw Data'!EU44) -> 0.001076426265
B58: =IF('Raw Data'!EI45="","",'Raw Data'!EI45) ->  | C58: =IF('Raw Data'!EJ45="(not set)","Unknown OS",IF('Raw Data'!EJ45="","",'Raw Data'!EJ45)) ->  | D58: =IF('Raw Data'!EK45="","",'Raw Data'!EK45) ->  | E58: =IF('Raw Data'!EL45="","",('Raw Data'!EL45/60)) ->  | F58: =IF('Raw Data'!EM45="","",'Raw Data'!EM45) ->  | G58: =IF('Raw Data'!ET45=TRUE,"Possible Problem",IF('Raw Data'!ET45="","","Seems Fine")) ->  | H58: =IF('Raw Data'!EU45="","",'Raw Data'!EU45) -> 
B59: =IF('Raw Data'!EI46="","",'Raw Data'!EI46) ->  | C59: =IF('Raw Data'!EJ46="(not set)","Unknown OS",IF('Raw Data'!EJ46="","",'Raw Data'!EJ46)) ->  | D59: =IF('Raw Data'!EK46="","",'Raw Data'!EK46) ->  | E59: =IF('Raw Data'!EL46="","",('Raw Data'!EL46/60)) ->  | F59: =IF('Raw Data'!EM46="","",'Raw Data'!EM46) ->  | G59: =IF('Raw Data'!ET46=TRUE,"Possible Problem",IF('Raw Data'!ET46="","","Seems Fine")) ->  | H59: =IF('Raw Data'!EU46="","",'Raw Data'!EU46) -> 
B60: =IF('Raw Data'!EI47="","",'Raw Data'!EI47) ->  | C60: =IF('Raw Data'!EJ47="(not set)","Unknown OS",IF('Raw Data'!EJ47="","",'Raw Data'!EJ47)) ->  | D60: =IF('Raw Data'!EK47="","",'Raw Data'!EK47) ->  | E60: =IF('Raw Data'!EL47="","",('Raw Data'!EL47/60)) ->  | F60: =IF('Raw Data'!EM47="","",'Raw Data'!EM47) ->  | G60: =IF('Raw Data'!ET47=TRUE,"Possible Problem",IF('Raw Data'!ET47="","","Seems Fine")) ->  | H60: =IF('Raw Data'!EU47="","",'Raw Data'!EU47) -> 
B61: =IF('Raw Data'!EI48="","",'Raw Data'!EI48) ->  | C61: =IF('Raw Data'!EJ48="(not set)","Unknown OS",IF('Raw Data'!EJ48="","",'Raw Data'!EJ48)) ->  | D61: =IF('Raw Data'!EK48="","",'Raw Data'!EK48) ->  | E61: =IF('Raw Data'!EL48="","",('Raw Data'!EL48/60)) ->  | F61: =IF('Raw Data'!EM48="","",'Raw Data'!EM48) ->  | G61: =IF('Raw Data'!ET48=TRUE,"Possible Problem",IF('Raw Data'!ET48="","","Seems Fine")) ->  | H61: =IF('Raw Data'!EU48="","",'Raw Data'!EU48) -> 
B62: =IF('Raw Data'!EI49="","",'Raw Data'!EI49) ->  | C62: =IF('Raw Data'!EJ49="(not set)","Unknown OS",IF('Raw Data'!EJ49="","",'Raw Data'!EJ49)) ->  | D62: =IF('Raw Data'!EK49="","",'Raw Data'!EK49) ->  | E62: =IF('Raw Data'!EL49="","",('Raw Data'!EL49/60)) ->  | F62: =IF('Raw Data'!EM49="","",'Raw Data'!EM49) ->  | G62: =IF('Raw Data'!ET49=TRUE,"Possible Problem",IF('Raw Data'!ET49="","","Seems Fine")) ->  | H62: =IF('Raw Data'!EU49="","",'Raw Data'!EU49) -> 
B63: =IF('Raw Data'!EI50="","",'Raw Data'!EI50) ->  | C63: =IF('Raw Data'!EJ50="(not set)","Unknown OS",IF('Raw Data'!EJ50="","",'Raw Data'!EJ50)) ->  | D63: =IF('Raw Data'!EK50="","",'Raw Data'!EK50) ->  | E63: =IF('Raw Data'!EL50="","",('Raw Data'!EL50/60)) ->  | F63: =IF('Raw Data'!EM50="","",'Raw Data'!EM50) ->  | G63: =IF('Raw Data'!ET50=TRUE,"Possible Problem",IF('Raw Data'!ET50="","","Seems Fine")) ->  | H63: =IF('Raw Data'!EU50="","",'Raw Data'!EU50) -> 
B64: =IF('Raw Data'!EI51="","",'Raw Data'!EI51) ->  | C64: =IF('Raw Data'!EJ51="(not set)","Unknown OS",IF('Raw Data'!EJ51="","",'Raw Data'!EJ51)) ->  | D64: =IF('Raw Data'!EK51="","",'Raw Data'!EK51) ->  | E64: =IF('Raw Data'!EL51="","",('Raw Data'!EL51/60)) ->  | F64: =IF('Raw Data'!EM51="","",'Raw Data'!EM51) ->  | G64: =IF('Raw Data'!ET51=TRUE,"Possible Problem",IF('Raw Data'!ET51="","","Seems Fine")) ->  | H64: =IF('Raw Data'!EU51="","",'Raw Data'!EU51) -> 
B65: =IF('Raw Data'!EI52="","",'Raw Data'!EI52) ->  | C65: =IF('Raw Data'!EJ52="(not set)","Unknown OS",IF('Raw Data'!EJ52="","",'Raw Data'!EJ52)) ->  | D65: =IF('Raw Data'!EK52="","",'Raw Data'!EK52) ->  | E65: =IF('Raw Data'!EL52="","",('Raw Data'!EL52/60)) ->  | F65: =IF('Raw Data'!EM52="","",'Raw Data'!EM52) ->  | G65: =IF('Raw Data'!ET52=TRUE,"Possible Problem",IF('Raw Data'!ET52="","","Seems Fine")) ->  | H65: =IF('Raw Data'!EU52="","",'Raw Data'!EU52) -> 
B66: =IF('Raw Data'!EI53="","",'Raw Data'!EI53) ->  | C66: =IF('Raw Data'!EJ53="(not set)","Unknown OS",IF('Raw Data'!EJ53="","",'Raw Data'!EJ53)) ->  | D66: =IF('Raw Data'!EK53="","",'Raw Data'!EK53) ->  | E66: =IF('Raw Data'!EL53="","",('Raw Data'!EL53/60)) ->  | F66: =IF('Raw Data'!EM53="","",'Raw Data'!EM53) ->  | G66: =IF('Raw Data'!ET53=TRUE,"Possible Problem",IF('Raw Data'!ET53="","","Seems Fine")) ->  | H66: =IF('Raw Data'!EU53="","",'Raw Data'!EU53) -> 
B67: =IF('Raw Data'!EI54="","",'Raw Data'!EI54) ->  | C67: =IF('Raw Data'!EJ54="(not set)","Unknown OS",IF('Raw Data'!EJ54="","",'Raw Data'!EJ54)) ->  | D67: =IF('Raw Data'!EK54="","",'Raw Data'!EK54) ->  | E67: =IF('Raw Data'!EL54="","",('Raw Data'!EL54/60)) ->  | F67: =IF('Raw Data'!EM54="","",'Raw Data'!EM54) ->  | G67: =IF('Raw Data'!ET54=TRUE,"Possible Problem",IF('Raw Data'!ET54="","","Seems Fine")) ->  | H67: =IF('Raw Data'!EU54="","",'Raw Data'!EU54) -> 
B68: =IF('Raw Data'!EI55="","",'Raw Data'!EI55) ->  | C68: =IF('Raw Data'!EJ55="(not set)","Unknown OS",IF('Raw Data'!EJ55="","",'Raw Data'!EJ55)) ->  | D68: =IF('Raw Data'!EK55="","",'Raw Data'!EK55) ->  | E68: =IF('Raw Data'!EL55="","",('Raw Data'!EL55/60)) ->  | F68: =IF('Raw Data'!EM55="","",'Raw Data'!EM55) ->  | G68: =IF('Raw Data'!ET55=TRUE,"Possible Problem",IF('Raw Data'!ET55="","","Seems Fine")) ->  | H68: =IF('Raw Data'!EU55="","",'Raw Data'!EU55) -> 
B69: =IF('Raw Data'!EI56="","",'Raw Data'!EI56) ->  | C69: =IF('Raw Data'!EJ56="(not set)","Unknown OS",IF('Raw Data'!EJ56="","",'Raw Data'!EJ56)) ->  | D69: =IF('Raw Data'!EK56="","",'Raw Data'!EK56) ->  | E69: =IF('Raw Data'!EL56="","",('Raw Data'!EL56/60)) ->  | F69: =IF('Raw Data'!EM56="","",'Raw Data'!EM56) ->  | G69: =IF('Raw Data'!ET56=TRUE,"Possible Problem",IF('Raw Data'!ET56="","","Seems Fine")) ->  | H69: =IF('Raw Data'!EU56="","",'Raw Data'!EU56) -> 
B70: =IF('Raw Data'!EI57="","",'Raw Data'!EI57) ->  | C70: =IF('Raw Data'!EJ57="(not set)","Unknown OS",IF('Raw Data'!EJ57="","",'Raw Data'!EJ57)) ->  | D70: =IF('Raw Data'!EK57="","",'Raw Data'!EK57) ->  | E70: =IF('Raw Data'!EL57="","",('Raw Data'!EL57/60)) ->  | F70: =IF('Raw Data'!EM57="","",'Raw Data'!EM57) ->  | G70: =IF('Raw Data'!ET57=TRUE,"Possible Problem",IF('Raw Data'!ET57="","","Seems Fine")) ->  | H70: =IF('Raw Data'!EU57="","",'Raw Data'!EU57) -> 
B71: =IF('Raw Data'!EI58="","",'Raw Data'!EI58) ->  | C71: =IF('Raw Data'!EJ58="(not set)","Unknown OS",IF('Raw Data'!EJ58="","",'Raw Data'!EJ58)) ->  | D71: =IF('Raw Data'!EK58="","",'Raw Data'!EK58) ->  | E71: =IF('Raw Data'!EL58="","",('Raw Data'!EL58/60)) ->  | F71: =IF('Raw Data'!EM58="","",'Raw Data'!EM58) ->  | G71: =IF('Raw Data'!ET58=TRUE,"Possible Problem",IF('Raw Data'!ET58="","","Seems Fine")) ->  | H71: =IF('Raw Data'!EU58="","",'Raw Data'!EU58) -> 
B72: =IF('Raw Data'!EI59="","",'Raw Data'!EI59) ->  | C72: =IF('Raw Data'!EJ59="(not set)","Unknown OS",IF('Raw Data'!EJ59="","",'Raw Data'!EJ59)) ->  | D72: =IF('Raw Data'!EK59="","",'Raw Data'!EK59) ->  | E72: =IF('Raw Data'!EL59="","",('Raw Data'!EL59/60)) ->  | F72: =IF('Raw Data'!EM59="","",'Raw Data'!EM59) ->  | G72: =IF('Raw Data'!ET59=TRUE,"Possible Problem",IF('Raw Data'!ET59="","","Seems Fine")) ->  | H72: =IF('Raw Data'!EU59="","",'Raw Data'!EU59) -> 
B73: =IF('Raw Data'!EI60="","",'Raw Data'!EI60) ->  | C73: =IF('Raw Data'!EJ60="(not set)","Unknown OS",IF('Raw Data'!EJ60="","",'Raw Data'!EJ60)) ->  | D73: =IF('Raw Data'!EK60="","",'Raw Data'!EK60) ->  | E73: =IF('Raw Data'!EL60="","",('Raw Data'!EL60/60)) ->  | F73: =IF('Raw Data'!EM60="","",'Raw Data'!EM60) ->  | G73: =IF('Raw Data'!ET60=TRUE,"Possible Problem",IF('Raw Data'!ET60="","","Seems Fine")) ->  | H73: =IF('Raw Data'!EU60="","",'Raw Data'!EU60) -> 
B74: =IF('Raw Data'!EI61="","",'Raw Data'!EI61) ->  | C74: =IF('Raw Data'!EJ61="(not set)","Unknown OS",IF('Raw Data'!EJ61="","",'Raw Data'!EJ61)) ->  | D74: =IF('Raw Data'!EK61="","",'Raw Data'!EK61) ->  | E74: =IF('Raw Data'!EL61="","",('Raw Data'!EL61/60)) ->  | F74: =IF('Raw Data'!EM61="","",'Raw Data'!EM61) ->  | G74: =IF('Raw Data'!ET61=TRUE,"Possible Problem",IF('Raw Data'!ET61="","","Seems Fine")) ->  | H74: =IF('Raw Data'!EU61="","",'Raw Data'!EU61) -> 
B75: =IF('Raw Data'!EI62="","",'Raw Data'!EI62) ->  | C75: =IF('Raw Data'!EJ62="(not set)","Unknown OS",IF('Raw Data'!EJ62="","",'Raw Data'!EJ62)) ->  | D75: =IF('Raw Data'!EK62="","",'Raw Data'!EK62) ->  | E75: =IF('Raw Data'!EL62="","",('Raw Data'!EL62/60)) ->  | F75: =IF('Raw Data'!EM62="","",'Raw Data'!EM62) ->  | G75: =IF('Raw Data'!ET62=TRUE,"Possible Problem",IF('Raw Data'!ET62="","","Seems Fine")) ->  | H75: =IF('Raw Data'!EU62="","",'Raw Data'!EU62) -> 
B76: =IF('Raw Data'!EI63="","",'Raw Data'!EI63) ->  | C76: =IF('Raw Data'!EJ63="(not set)","Unknown OS",IF('Raw Data'!EJ63="","",'Raw Data'!EJ63)) ->  | D76: =IF('Raw Data'!EK63="","",'Raw Data'!EK63) ->  | E76: =IF('Raw Data'!EL63="","",('Raw Data'!EL63/60)) ->  | F76: =IF('Raw Data'!EM63="","",'Raw Data'!EM63) ->  | G76: =IF('Raw Data'!ET63=TRUE,"Possible Problem",IF('Raw Data'!ET63="","","Seems Fine")) ->  | H76: =IF('Raw Data'!EU63="","",'Raw Data'!EU63) -> 
B77: =IF('Raw Data'!EI64="","",'Raw Data'!EI64) ->  | C77: =IF('Raw Data'!EJ64="(not set)","Unknown OS",IF('Raw Data'!EJ64="","",'Raw Data'!EJ64)) ->  | D77: =IF('Raw Data'!EK64="","",'Raw Data'!EK64) ->  | E77: =IF('Raw Data'!EL64="","",('Raw Data'!EL64/60)) ->  | F77: =IF('Raw Data'!EM64="","",'Raw Data'!EM64) ->  | G77: =IF('Raw Data'!ET64=TRUE,"Possible Problem",IF('Raw Data'!ET64="","","Seems Fine")) ->  | H77: =IF('Raw Data'!EU64="","",'Raw Data'!EU64) -> 
B78: =IF('Raw Data'!EI65="","",'Raw Data'!EI65) ->  | C78: =IF('Raw Data'!EJ65="(not set)","Unknown OS",IF('Raw Data'!EJ65="","",'Raw Data'!EJ65)) ->  | D78: =IF('Raw Data'!EK65="","",'Raw Data'!EK65) ->  | E78: =IF('Raw Data'!EL65="","",('Raw Data'!EL65/60)) ->  | F78: =IF('Raw Data'!EM65="","",'Raw Data'!EM65) ->  | G78: =IF('Raw Data'!ET65=TRUE,"Possible Problem",IF('Raw Data'!ET65="","","Seems Fine")) ->  | H78: =IF('Raw Data'!EU65="","",'Raw Data'!EU65) -> 
B79: =IF('Raw Data'!EI66="","",'Raw Data'!EI66) ->  | C79: =IF('Raw Data'!EJ66="(not set)","Unknown OS",IF('Raw Data'!EJ66="","",'Raw Data'!EJ66)) ->  | D79: =IF('Raw Data'!EK66="","",'Raw Data'!EK66) ->  | E79: =IF('Raw Data'!EL66="","",('Raw Data'!EL66/60)) ->  | F79: =IF('Raw Data'!EM66="","",'Raw Data'!EM66) ->  | G79: =IF('Raw Data'!ET66=TRUE,"Possible Problem",IF('Raw Data'!ET66="","","Seems Fine")) ->  | H79: =IF('Raw Data'!EU66="","",'Raw Data'!EU66) -> 
B80: =IF('Raw Data'!EI67="","",'Raw Data'!EI67) ->  | C80: =IF('Raw Data'!EJ67="(not set)","Unknown OS",IF('Raw Data'!EJ67="","",'Raw Data'!EJ67)) ->  | D80: =IF('Raw Data'!EK67="","",'Raw Data'!EK67) ->  | E80: =IF('Raw Data'!EL67="","",('Raw Data'!EL67/60)) ->  | F80: =IF('Raw Data'!EM67="","",'Raw Data'!EM67) ->  | G80: =IF('Raw Data'!ET67=TRUE,"Possible Problem",IF('Raw Data'!ET67="","","Seems Fine")) ->  | H80: =IF('Raw Data'!EU67="","",'Raw Data'!EU67) -> 
B81: =IF('Raw Data'!EI68="","",'Raw Data'!EI68) ->  | C81: =IF('Raw Data'!EJ68="(not set)","Unknown OS",IF('Raw Data'!EJ68="","",'Raw Data'!EJ68)) ->  | D81: =IF('Raw Data'!EK68="","",'Raw Data'!EK68) ->  | E81: =IF('Raw Data'!EL68="","",('Raw Data'!EL68/60)) ->  | F81: =IF('Raw Data'!EM68="","",'Raw Data'!EM68) ->  | G81: =IF('Raw Data'!ET68=TRUE,"Possible Problem",IF('Raw Data'!ET68="","","Seems Fine")) ->  | H81: =IF('Raw Data'!EU68="","",'Raw Data'!EU68) -> 
B82: =IF('Raw Data'!EI69="","",'Raw Data'!EI69) ->  | C82: =IF('Raw Data'!EJ69="(not set)","Unknown OS",IF('Raw Data'!EJ69="","",'Raw Data'!EJ69)) ->  | D82: =IF('Raw Data'!EK69="","",'Raw Data'!EK69) ->  | E82: =IF('Raw Data'!EL69="","",('Raw Data'!EL69/60)) ->  | F82: =IF('Raw Data'!EM69="","",'Raw Data'!EM69) ->  | G82: =IF('Raw Data'!ET69=TRUE,"Possible Problem",IF('Raw Data'!ET69="","","Seems Fine")) ->  | H82: =IF('Raw Data'!EU69="","",'Raw Data'!EU69) -> 
B83: =IF('Raw Data'!EI70="","",'Raw Data'!EI70) ->  | C83: =IF('Raw Data'!EJ70="(not set)","Unknown OS",IF('Raw Data'!EJ70="","",'Raw Data'!EJ70)) ->  | D83: =IF('Raw Data'!EK70="","",'Raw Data'!EK70) ->  | E83: =IF('Raw Data'!EL70="","",('Raw Data'!EL70/60)) ->  | F83: =IF('Raw Data'!EM70="","",'Raw Data'!EM70) ->  | G83: =IF('Raw Data'!ET70=TRUE,"Possible Problem",IF('Raw Data'!ET70="","","Seems Fine")) ->  | H83: =IF('Raw Data'!EU70="","",'Raw Data'!EU70) -> 
B84: =IF('Raw Data'!EI71="","",'Raw Data'!EI71) ->  | C84: =IF('Raw Data'!EJ71="(not set)","Unknown OS",IF('Raw Data'!EJ71="","",'Raw Data'!EJ71)) ->  | D84: =IF('Raw Data'!EK71="","",'Raw Data'!EK71) ->  | E84: =IF('Raw Data'!EL71="","",('Raw Data'!EL71/60)) ->  | F84: =IF('Raw Data'!EM71="","",'Raw Data'!EM71) ->  | G84: =IF('Raw Data'!ET71=TRUE,"Possible Problem",IF('Raw Data'!ET71="","","Seems Fine")) ->  | H84: =IF('Raw Data'!EU71="","",'Raw Data'!EU71) -> 
B85: =IF('Raw Data'!EI72="","",'Raw Data'!EI72) ->  | C85: =IF('Raw Data'!EJ72="(not set)","Unknown OS",IF('Raw Data'!EJ72="","",'Raw Data'!EJ72)) ->  | D85: =IF('Raw Data'!EK72="","",'Raw Data'!EK72) ->  | E85: =IF('Raw Data'!EL72="","",('Raw Data'!EL72/60)) ->  | F85: =IF('Raw Data'!EM72="","",'Raw Data'!EM72) ->  | G85: =IF('Raw Data'!ET72=TRUE,"Possible Problem",IF('Raw Data'!ET72="","","Seems Fine")) ->  | H85: =IF('Raw Data'!EU72="","",'Raw Data'!EU72) -> 
B86: =IF('Raw Data'!EI73="","",'Raw Data'!EI73) ->  | C86: =IF('Raw Data'!EJ73="(not set)","Unknown OS",IF('Raw Data'!EJ73="","",'Raw Data'!EJ73)) ->  | D86: =IF('Raw Data'!EK73="","",'Raw Data'!EK73) ->  | E86: =IF('Raw Data'!EL73="","",('Raw Data'!EL73/60)) ->  | F86: =IF('Raw Data'!EM73="","",'Raw Data'!EM73) ->  | G86: =IF('Raw Data'!ET73=TRUE,"Possible Problem",IF('Raw Data'!ET73="","","Seems Fine")) ->  | H86: =IF('Raw Data'!EU73="","",'Raw Data'!EU73) -> 
B87: =IF('Raw Data'!EI74="","",'Raw Data'!EI74) ->  | C87: =IF('Raw Data'!EJ74="(not set)","Unknown OS",IF('Raw Data'!EJ74="","",'Raw Data'!EJ74)) ->  | D87: =IF('Raw Data'!EK74="","",'Raw Data'!EK74) ->  | E87: =IF('Raw Data'!EL74="","",('Raw Data'!EL74/60)) ->  | F87: =IF('Raw Data'!EM74="","",'Raw Data'!EM74) ->  | G87: =IF('Raw Data'!ET74=TRUE,"Possible Problem",IF('Raw Data'!ET74="","","Seems Fine")) ->  | H87: =IF('Raw Data'!EU74="","",'Raw Data'!EU74) -> 
B88: =IF('Raw Data'!EI75="","",'Raw Data'!EI75) ->  | C88: =IF('Raw Data'!EJ75="(not set)","Unknown OS",IF('Raw Data'!EJ75="","",'Raw Data'!EJ75)) ->  | D88: =IF('Raw Data'!EK75="","",'Raw Data'!EK75) ->  | E88: =IF('Raw Data'!EL75="","",('Raw Data'!EL75/60)) ->  | F88: =IF('Raw Data'!EM75="","",'Raw Data'!EM75) ->  | G88: =IF('Raw Data'!ET75=TRUE,"Possible Problem",IF('Raw Data'!ET75="","","Seems Fine")) ->  | H88: =IF('Raw Data'!EU75="","",'Raw Data'!EU75) -> 
B89: =IF('Raw Data'!EI76="","",'Raw Data'!EI76) ->  | C89: =IF('Raw Data'!EJ76="(not set)","Unknown OS",IF('Raw Data'!EJ76="","",'Raw Data'!EJ76)) ->  | D89: =IF('Raw Data'!EK76="","",'Raw Data'!EK76) ->  | E89: =IF('Raw Data'!EL76="","",('Raw Data'!EL76/60)) ->  | F89: =IF('Raw Data'!EM76="","",'Raw Data'!EM76) ->  | G89: =IF('Raw Data'!ET76=TRUE,"Possible Problem",IF('Raw Data'!ET76="","","Seems Fine")) ->  | H89: =IF('Raw Data'!EU76="","",'Raw Data'!EU76) -> 
B90: =IF('Raw Data'!EI77="","",'Raw Data'!EI77) ->  | C90: =IF('Raw Data'!EJ77="(not set)","Unknown OS",IF('Raw Data'!EJ77="","",'Raw Data'!EJ77)) ->  | D90: =IF('Raw Data'!EK77="","",'Raw Data'!EK77) ->  | E90: =IF('Raw Data'!EL77="","",('Raw Data'!EL77/60)) ->  | F90: =IF('Raw Data'!EM77="","",'Raw Data'!EM77) ->  | G90: =IF('Raw Data'!ET77=TRUE,"Possible Problem",IF('Raw Data'!ET77="","","Seems Fine")) ->  | H90: =IF('Raw Data'!EU77="","",'Raw Data'!EU77) -> 
B91: =IF('Raw Data'!EI78="","",'Raw Data'!EI78) ->  | C91: =IF('Raw Data'!EJ78="(not set)","Unknown OS",IF('Raw Data'!EJ78="","",'Raw Data'!EJ78)) ->  | D91: =IF('Raw Data'!EK78="","",'Raw Data'!EK78) ->  | E91: =IF('Raw Data'!EL78="","",('Raw Data'!EL78/60)) ->  | F91: =IF('Raw Data'!EM78="","",'Raw Data'!EM78) ->  | G91: =IF('Raw Data'!ET78=TRUE,"Possible Problem",IF('Raw Data'!ET78="","","Seems Fine")) ->  | H91: =IF('Raw Data'!EU78="","",'Raw Data'!EU78) -> 
B92: =IF('Raw Data'!EI79="","",'Raw Data'!EI79) ->  | C92: =IF('Raw Data'!EJ79="(not set)","Unknown OS",IF('Raw Data'!EJ79="","",'Raw Data'!EJ79)) ->  | D92: =IF('Raw Data'!EK79="","",'Raw Data'!EK79) ->  | E92: =IF('Raw Data'!EL79="","",('Raw Data'!EL79/60)) ->  | F92: =IF('Raw Data'!EM79="","",'Raw Data'!EM79) ->  | G92: =IF('Raw Data'!ET79=TRUE,"Possible Problem",IF('Raw Data'!ET79="","","Seems Fine")) ->  | H92: =IF('Raw Data'!EU79="","",'Raw Data'!EU79) -> 
B93: =IF('Raw Data'!EI80="","",'Raw Data'!EI80) ->  | C93: =IF('Raw Data'!EJ80="(not set)","Unknown OS",IF('Raw Data'!EJ80="","",'Raw Data'!EJ80)) ->  | D93: =IF('Raw Data'!EK80="","",'Raw Data'!EK80) ->  | E93: =IF('Raw Data'!EL80="","",('Raw Data'!EL80/60)) ->  | F93: =IF('Raw Data'!EM80="","",'Raw Data'!EM80) ->  | G93: =IF('Raw Data'!ET80=TRUE,"Possible Problem",IF('Raw Data'!ET80="","","Seems Fine")) ->  | H93: =IF('Raw Data'!EU80="","",'Raw Data'!EU80) -> 
B94: =IF('Raw Data'!EI81="","",'Raw Data'!EI81) ->  | C94: =IF('Raw Data'!EJ81="(not set)","Unknown OS",IF('Raw Data'!EJ81="","",'Raw Data'!EJ81)) ->  | D94: =IF('Raw Data'!EK81="","",'Raw Data'!EK81) ->  | E94: =IF('Raw Data'!EL81="","",('Raw Data'!EL81/60)) ->  | F94: =IF('Raw Data'!EM81="","",'Raw Data'!EM81) ->  | G94: =IF('Raw Data'!ET81=TRUE,"Possible Problem",IF('Raw Data'!ET81="","","Seems Fine")) ->  | H94: =IF('Raw Data'!EU81="","",'Raw Data'!EU81) -> 
B95: =IF('Raw Data'!EI82="","",'Raw Data'!EI82) ->  | C95: =IF('Raw Data'!EJ82="(not set)","Unknown OS",IF('Raw Data'!EJ82="","",'Raw Data'!EJ82)) ->  | D95: =IF('Raw Data'!EK82="","",'Raw Data'!EK82) ->  | E95: =IF('Raw Data'!EL82="","",('Raw Data'!EL82/60)) ->  | F95: =IF('Raw Data'!EM82="","",'Raw Data'!EM82) ->  | G95: =IF('Raw Data'!ET82=TRUE,"Possible Problem",IF('Raw Data'!ET82="","","Seems Fine")) ->  | H95: =IF('Raw Data'!EU82="","",'Raw Data'!EU82) -> 
B96: =IF('Raw Data'!EI83="","",'Raw Data'!EI83) ->  | C96: =IF('Raw Data'!EJ83="(not set)","Unknown OS",IF('Raw Data'!EJ83="","",'Raw Data'!EJ83)) ->  | D96: =IF('Raw Data'!EK83="","",'Raw Data'!EK83) ->  | E96: =IF('Raw Data'!EL83="","",('Raw Data'!EL83/60)) ->  | F96: =IF('Raw Data'!EM83="","",'Raw Data'!EM83) ->  | G96: =IF('Raw Data'!ET83=TRUE,"Possible Problem",IF('Raw Data'!ET83="","","Seems Fine")) ->  | H96: =IF('Raw Data'!EU83="","",'Raw Data'!EU83) -> 
B97: =IF('Raw Data'!EI84="","",'Raw Data'!EI84) ->  | C97: =IF('Raw Data'!EJ84="(not set)","Unknown OS",IF('Raw Data'!EJ84="","",'Raw Data'!EJ84)) ->  | D97: =IF('Raw Data'!EK84="","",'Raw Data'!EK84) ->  | E97: =IF('Raw Data'!EL84="","",('Raw Data'!EL84/60)) ->  | F97: =IF('Raw Data'!EM84="","",'Raw Data'!EM84) ->  | G97: =IF('Raw Data'!ET84=TRUE,"Possible Problem",IF('Raw Data'!ET84="","","Seems Fine")) ->  | H97: =IF('Raw Data'!EU84="","",'Raw Data'!EU84) -> 
B98: =IF('Raw Data'!EI85="","",'Raw Data'!EI85) ->  | C98: =IF('Raw Data'!EJ85="(not set)","Unknown OS",IF('Raw Data'!EJ85="","",'Raw Data'!EJ85)) ->  | D98: =IF('Raw Data'!EK85="","",'Raw Data'!EK85) ->  | E98: =IF('Raw Data'!EL85="","",('Raw Data'!EL85/60)) ->  | F98: =IF('Raw Data'!EM85="","",'Raw Data'!EM85) ->  | G98: =IF('Raw Data'!ET85=TRUE,"Possible Problem",IF('Raw Data'!ET85="","","Seems Fine")) ->  | H98: =IF('Raw Data'!EU85="","",'Raw Data'!EU85) -> 
B99: =IF('Raw Data'!EI86="","",'Raw Data'!EI86) ->  | C99: =IF('Raw Data'!EJ86="(not set)","Unknown OS",IF('Raw Data'!EJ86="","",'Raw Data'!EJ86)) ->  | D99: =IF('Raw Data'!EK86="","",'Raw Data'!EK86) ->  | E99: =IF('Raw Data'!EL86="","",('Raw Data'!EL86/60)) ->  | F99: =IF('Raw Data'!EM86="","",'Raw Data'!EM86) ->  | G99: =IF('Raw Data'!ET86=TRUE,"Possible Problem",IF('Raw Data'!ET86="","","Seems Fine")) ->  | H99: =IF('Raw Data'!EU86="","",'Raw Data'!EU86) -> 
B100: =IF('Raw Data'!EI87="","",'Raw Data'!EI87) ->  | C100: =IF('Raw Data'!EJ87="(not set)","Unknown OS",IF('Raw Data'!EJ87="","",'Raw Data'!EJ87)) ->  | D100: =IF('Raw Data'!EK87="","",'Raw Data'!EK87) ->  | E100: =IF('Raw Data'!EL87="","",('Raw Data'!EL87/60)) ->  | F100: =IF('Raw Data'!EM87="","",'Raw Data'!EM87) ->  | G100: =IF('Raw Data'!ET87=TRUE,"Possible Problem",IF('Raw Data'!ET87="","","Seems Fine")) ->  | H100: =IF('Raw Data'!EU87="","",'Raw Data'!EU87) -> 
B101: =IF('Raw Data'!EI88="","",'Raw Data'!EI88) ->  | C101: =IF('Raw Data'!EJ88="(not set)","Unknown OS",IF('Raw Data'!EJ88="","",'Raw Data'!EJ88)) ->  | D101: =IF('Raw Data'!EK88="","",'Raw Data'!EK88) ->  | E101: =IF('Raw Data'!EL88="","",('Raw Data'!EL88/60)) ->  | F101: =IF('Raw Data'!EM88="","",'Raw Data'!EM88) ->  | G101: =IF('Raw Data'!ET88=TRUE,"Possible Problem",IF('Raw Data'!ET88="","","Seems Fine")) ->  | H101: =IF('Raw Data'!EU88="","",'Raw Data'!EU88) -> 
B102: =IF('Raw Data'!EI89="","",'Raw Data'!EI89) ->  | C102: =IF('Raw Data'!EJ89="(not set)","Unknown OS",IF('Raw Data'!EJ89="","",'Raw Data'!EJ89)) ->  | D102: =IF('Raw Data'!EK89="","",'Raw Data'!EK89) ->  | E102: =IF('Raw Data'!EL89="","",('Raw Data'!EL89/60)) ->  | F102: =IF('Raw Data'!EM89="","",'Raw Data'!EM89) ->  | G102: =IF('Raw Data'!ET89=TRUE,"Possible Problem",IF('Raw Data'!ET89="","","Seems Fine")) ->  | H102: =IF('Raw Data'!EU89="","",'Raw Data'!EU89) -> 
B103: =IF('Raw Data'!EI90="","",'Raw Data'!EI90) ->  | C103: =IF('Raw Data'!EJ90="(not set)","Unknown OS",IF('Raw Data'!EJ90="","",'Raw Data'!EJ90)) ->  | D103: =IF('Raw Data'!EK90="","",'Raw Data'!EK90) ->  | E103: =IF('Raw Data'!EL90="","",('Raw Data'!EL90/60)) ->  | F103: =IF('Raw Data'!EM90="","",'Raw Data'!EM90) ->  | G103: =IF('Raw Data'!ET90=TRUE,"Possible Problem",IF('Raw Data'!ET90="","","Seems Fine")) ->  | H103: =IF('Raw Data'!EU90="","",'Raw Data'!EU90) -> 
B104: =IF('Raw Data'!EI91="","",'Raw Data'!EI91) ->  | C104: =IF('Raw Data'!EJ91="(not set)","Unknown OS",IF('Raw Data'!EJ91="","",'Raw Data'!EJ91)) ->  | D104: =IF('Raw Data'!EK91="","",'Raw Data'!EK91) ->  | E104: =IF('Raw Data'!EL91="","",('Raw Data'!EL91/60)) ->  | F104: =IF('Raw Data'!EM91="","",'Raw Data'!EM91) ->  | G104: =IF('Raw Data'!ET91=TRUE,"Possible Problem",IF('Raw Data'!ET91="","","Seems Fine")) ->  | H104: =IF('Raw Data'!EU91="","",'Raw Data'!EU91) -> 
B105: =IF('Raw Data'!EI92="","",'Raw Data'!EI92) ->  | C105: =IF('Raw Data'!EJ92="(not set)","Unknown OS",IF('Raw Data'!EJ92="","",'Raw Data'!EJ92)) ->  | D105: =IF('Raw Data'!EK92="","",'Raw Data'!EK92) ->  | E105: =IF('Raw Data'!EL92="","",('Raw Data'!EL92/60)) ->  | F105: =IF('Raw Data'!EM92="","",'Raw Data'!EM92) ->  | G105: =IF('Raw Data'!ET92=TRUE,"Possible Problem",IF('Raw Data'!ET92="","","Seems Fine")) ->  | H105: =IF('Raw Data'!EU92="","",'Raw Data'!EU92) -> 
B106: =IF('Raw Data'!EI93="","",'Raw Data'!EI93) ->  | C106: =IF('Raw Data'!EJ93="(not set)","Unknown OS",IF('Raw Data'!EJ93="","",'Raw Data'!EJ93)) ->  | D106: =IF('Raw Data'!EK93="","",'Raw Data'!EK93) ->  | E106: =IF('Raw Data'!EL93="","",('Raw Data'!EL93/60)) ->  | F106: =IF('Raw Data'!EM93="","",'Raw Data'!EM93) ->  | G106: =IF('Raw Data'!ET93=TRUE,"Possible Problem",IF('Raw Data'!ET93="","","Seems Fine")) ->  | H106: =IF('Raw Data'!EU93="","",'Raw Data'!EU93) -> 
B107: =IF('Raw Data'!EI94="","",'Raw Data'!EI94) ->  | C107: =IF('Raw Data'!EJ94="(not set)","Unknown OS",IF('Raw Data'!EJ94="","",'Raw Data'!EJ94)) ->  | D107: =IF('Raw Data'!EK94="","",'Raw Data'!EK94) ->  | E107: =IF('Raw Data'!EL94="","",('Raw Data'!EL94/60)) ->  | F107: =IF('Raw Data'!EM94="","",'Raw Data'!EM94) ->  | G107: =IF('Raw Data'!ET94=TRUE,"Possible Problem",IF('Raw Data'!ET94="","","Seems Fine")) ->  | H107: =IF('Raw Data'!EU94="","",'Raw Data'!EU94) -> 
B108: =IF('Raw Data'!EI95="","",'Raw Data'!EI95) ->  | C108: =IF('Raw Data'!EJ95="(not set)","Unknown OS",IF('Raw Data'!EJ95="","",'Raw Data'!EJ95)) ->  | D108: =IF('Raw Data'!EK95="","",'Raw Data'!EK95) ->  | E108: =IF('Raw Data'!EL95="","",('Raw Data'!EL95/60)) ->  | F108: =IF('Raw Data'!EM95="","",'Raw Data'!EM95) ->  | G108: =IF('Raw Data'!ET95=TRUE,"Possible Problem",IF('Raw Data'!ET95="","","Seems Fine")) ->  | H108: =IF('Raw Data'!EU95="","",'Raw Data'!EU95) -> 
B109: =IF('Raw Data'!EI96="","",'Raw Data'!EI96) ->  | C109: =IF('Raw Data'!EJ96="(not set)","Unknown OS",IF('Raw Data'!EJ96="","",'Raw Data'!EJ96)) ->  | D109: =IF('Raw Data'!EK96="","",'Raw Data'!EK96) ->  | E109: =IF('Raw Data'!EL96="","",('Raw Data'!EL96/60)) ->  | F109: =IF('Raw Data'!EM96="","",'Raw Data'!EM96) ->  | G109: =IF('Raw Data'!ET96=TRUE,"Possible Problem",IF('Raw Data'!ET96="","","Seems Fine")) ->  | H109: =IF('Raw Data'!EU96="","",'Raw Data'!EU96) -> 
B110: =IF('Raw Data'!EI97="","",'Raw Data'!EI97) ->  | C110: =IF('Raw Data'!EJ97="(not set)","Unknown OS",IF('Raw Data'!EJ97="","",'Raw Data'!EJ97)) ->  | D110: =IF('Raw Data'!EK97="","",'Raw Data'!EK97) ->  | E110: =IF('Raw Data'!EL97="","",('Raw Data'!EL97/60)) ->  | F110: =IF('Raw Data'!EM97="","",'Raw Data'!EM97) ->  | G110: =IF('Raw Data'!ET97=TRUE,"Possible Problem",IF('Raw Data'!ET97="","","Seems Fine")) ->  | H110: =IF('Raw Data'!EU97="","",'Raw Data'!EU97) -> 
B111: =IF('Raw Data'!EI98="","",'Raw Data'!EI98) ->  | C111: =IF('Raw Data'!EJ98="(not set)","Unknown OS",IF('Raw Data'!EJ98="","",'Raw Data'!EJ98)) ->  | D111: =IF('Raw Data'!EK98="","",'Raw Data'!EK98) ->  | E111: =IF('Raw Data'!EL98="","",('Raw Data'!EL98/60)) ->  | F111: =IF('Raw Data'!EM98="","",'Raw Data'!EM98) ->  | G111: =IF('Raw Data'!ET98=TRUE,"Possible Problem",IF('Raw Data'!ET98="","","Seems Fine")) ->  | H111: =IF('Raw Data'!EU98="","",'Raw Data'!EU98) -> 
B112: =IF('Raw Data'!EI99="","",'Raw Data'!EI99) ->  | C112: =IF('Raw Data'!EJ99="(not set)","Unknown OS",IF('Raw Data'!EJ99="","",'Raw Data'!EJ99)) ->  | D112: =IF('Raw Data'!EK99="","",'Raw Data'!EK99) ->  | E112: =IF('Raw Data'!EL99="","",('Raw Data'!EL99/60)) ->  | F112: =IF('Raw Data'!EM99="","",'Raw Data'!EM99) ->  | G112: =IF('Raw Data'!ET99=TRUE,"Possible Problem",IF('Raw Data'!ET99="","","Seems Fine")) ->  | H112: =IF('Raw Data'!EU99="","",'Raw Data'!EU99) -> 
B113: =IF('Raw Data'!EI100="","",'Raw Data'!EI100) ->  | C113: =IF('Raw Data'!EJ100="(not set)","Unknown OS",IF('Raw Data'!EJ100="","",'Raw Data'!EJ100)) ->  | D113: =IF('Raw Data'!EK100="","",'Raw Data'!EK100) ->  | E113: =IF('Raw Data'!EL100="","",('Raw Data'!EL100/60)) ->  | F113: =IF('Raw Data'!EM100="","",'Raw Data'!EM100) ->  | G113: =IF('Raw Data'!ET100=TRUE,"Possible Problem",IF('Raw Data'!ET100="","","Seems Fine")) ->  | H113: =IF('Raw Data'!EU100="","",'Raw Data'!EU100) -> 
B114: =IF('Raw Data'!EI101="","",'Raw Data'!EI101) ->  | C114: =IF('Raw Data'!EJ101="(not set)","Unknown OS",IF('Raw Data'!EJ101="","",'Raw Data'!EJ101)) ->  | D114: =IF('Raw Data'!EK101="","",'Raw Data'!EK101) ->  | E114: =IF('Raw Data'!EL101="","",('Raw Data'!EL101/60)) ->  | F114: =IF('Raw Data'!EM101="","",'Raw Data'!EM101) ->  | G114: =IF('Raw Data'!ET101=TRUE,"Possible Problem",IF('Raw Data'!ET101="","","Seems Fine")) ->  | H114: =IF('Raw Data'!EU101="","",'Raw Data'!EU101) -> 
B115: =IF('Raw Data'!EI102="","",'Raw Data'!EI102) ->  | C115: =IF('Raw Data'!EJ102="(not set)","Unknown OS",IF('Raw Data'!EJ102="","",'Raw Data'!EJ102)) ->  | D115: =IF('Raw Data'!EK102="","",'Raw Data'!EK102) ->  | E115: =IF('Raw Data'!EL102="","",('Raw Data'!EL102/60)) ->  | F115: =IF('Raw Data'!EM102="","",'Raw Data'!EM102) ->  | G115: =IF('Raw Data'!ET102=TRUE,"Possible Problem",IF('Raw Data'!ET102="","","Seems Fine")) ->  | H115: =IF('Raw Data'!EU102="","",'Raw Data'!EU102) -> 
B116: =IF('Raw Data'!EI103="","",'Raw Data'!EI103) ->  | C116: =IF('Raw Data'!EJ103="(not set)","Unknown OS",IF('Raw Data'!EJ103="","",'Raw Data'!EJ103)) ->  | D116: =IF('Raw Data'!EK103="","",'Raw Data'!EK103) ->  | E116: =IF('Raw Data'!EL103="","",('Raw Data'!EL103/60)) ->  | F116: =IF('Raw Data'!EM103="","",'Raw Data'!EM103) ->  | G116: =IF('Raw Data'!ET103=TRUE,"Possible Problem",IF('Raw Data'!ET103="","","Seems Fine")) ->  | H116: =IF('Raw Data'!EU103="","",'Raw Data'!EU103) -> 
B117: =IF('Raw Data'!EI104="","",'Raw Data'!EI104) ->  | C117: =IF('Raw Data'!EJ104="(not set)","Unknown OS",IF('Raw Data'!EJ104="","",'Raw Data'!EJ104)) ->  | D117: =IF('Raw Data'!EK104="","",'Raw Data'!EK104) ->  | E117: =IF('Raw Data'!EL104="","",('Raw Data'!EL104/60)) ->  | F117: =IF('Raw Data'!EM104="","",'Raw Data'!EM104) ->  | G117: =IF('Raw Data'!ET104=TRUE,"Possible Problem",IF('Raw Data'!ET104="","","Seems Fine")) ->  | H117: =IF('Raw Data'!EU104="","",'Raw Data'!EU104) -> 
B118: =IF('Raw Data'!EI105="","",'Raw Data'!EI105) ->  | C118: =IF('Raw Data'!EJ105="(not set)","Unknown OS",IF('Raw Data'!EJ105="","",'Raw Data'!EJ105)) ->  | D118: =IF('Raw Data'!EK105="","",'Raw Data'!EK105) ->  | E118: =IF('Raw Data'!EL105="","",('Raw Data'!EL105/60)) ->  | F118: =IF('Raw Data'!EM105="","",'Raw Data'!EM105) ->  | G118: =IF('Raw Data'!ET105=TRUE,"Possible Problem",IF('Raw Data'!ET105="","","Seems Fine")) ->  | H118: =IF('Raw Data'!EU105="","",'Raw Data'!EU105) -> 
B119: =IF('Raw Data'!EI106="","",'Raw Data'!EI106) ->  | C119: =IF('Raw Data'!EJ106="(not set)","Unknown OS",IF('Raw Data'!EJ106="","",'Raw Data'!EJ106)) ->  | D119: =IF('Raw Data'!EK106="","",'Raw Data'!EK106) ->  | E119: =IF('Raw Data'!EL106="","",('Raw Data'!EL106/60)) ->  | F119: =IF('Raw Data'!EM106="","",'Raw Data'!EM106) ->  | G119: =IF('Raw Data'!ET106=TRUE,"Possible Problem",IF('Raw Data'!ET106="","","Seems Fine")) ->  | H119: =IF('Raw Data'!EU106="","",'Raw Data'!EU106) -> 
B120: =IF('Raw Data'!EI107="","",'Raw Data'!EI107) ->  | C120: =IF('Raw Data'!EJ107="(not set)","Unknown OS",IF('Raw Data'!EJ107="","",'Raw Data'!EJ107)) ->  | D120: =IF('Raw Data'!EK107="","",'Raw Data'!EK107) ->  | E120: =IF('Raw Data'!EL107="","",('Raw Data'!EL107/60)) ->  | F120: =IF('Raw Data'!EM107="","",'Raw Data'!EM107) ->  | G120: =IF('Raw Data'!ET107=TRUE,"Possible Problem",IF('Raw Data'!ET107="","","Seems Fine")) ->  | H120: =IF('Raw Data'!EU107="","",'Raw Data'!EU107) -> 
B121: =IF('Raw Data'!EI108="","",'Raw Data'!EI108) ->  | C121: =IF('Raw Data'!EJ108="(not set)","Unknown OS",IF('Raw Data'!EJ108="","",'Raw Data'!EJ108)) ->  | D121: =IF('Raw Data'!EK108="","",'Raw Data'!EK108) ->  | E121: =IF('Raw Data'!EL108="","",('Raw Data'!EL108/60)) ->  | F121: =IF('Raw Data'!EM108="","",'Raw Data'!EM108) ->  | G121: =IF('Raw Data'!ET108=TRUE,"Possible Problem",IF('Raw Data'!ET108="","","Seems Fine")) ->  | H121: =IF('Raw Data'!EU108="","",'Raw Data'!EU108) -> 
B122: =IF('Raw Data'!EI109="","",'Raw Data'!EI109) ->  | C122: =IF('Raw Data'!EJ109="(not set)","Unknown OS",IF('Raw Data'!EJ109="","",'Raw Data'!EJ109)) ->  | D122: =IF('Raw Data'!EK109="","",'Raw Data'!EK109) ->  | E122: =IF('Raw Data'!EL109="","",('Raw Data'!EL109/60)) ->  | F122: =IF('Raw Data'!EM109="","",'Raw Data'!EM109) ->  | G122: =IF('Raw Data'!ET109=TRUE,"Possible Problem",IF('Raw Data'!ET109="","","Seems Fine")) ->  | H122: =IF('Raw Data'!EU109="","",'Raw Data'!EU109) -> 
B123: =IF('Raw Data'!EI110="","",'Raw Data'!EI110) ->  | C123: =IF('Raw Data'!EJ110="(not set)","Unknown OS",IF('Raw Data'!EJ110="","",'Raw Data'!EJ110)) ->  | D123: =IF('Raw Data'!EK110="","",'Raw Data'!EK110) ->  | E123: =IF('Raw Data'!EL110="","",('Raw Data'!EL110/60)) ->  | F123: =IF('Raw Data'!EM110="","",'Raw Data'!EM110) ->  | G123: =IF('Raw Data'!ET110=TRUE,"Possible Problem",IF('Raw Data'!ET110="","","Seems Fine")) ->  | H123: =IF('Raw Data'!EU110="","",'Raw Data'!EU110) -> 
B124: =IF('Raw Data'!EI111="","",'Raw Data'!EI111) ->  | C124: =IF('Raw Data'!EJ111="(not set)","Unknown OS",IF('Raw Data'!EJ111="","",'Raw Data'!EJ111)) ->  | D124: =IF('Raw Data'!EK111="","",'Raw Data'!EK111) ->  | E124: =IF('Raw Data'!EL111="","",('Raw Data'!EL111/60)) ->  | F124: =IF('Raw Data'!EM111="","",'Raw Data'!EM111) ->  | G124: =IF('Raw Data'!ET111=TRUE,"Possible Problem",IF('Raw Data'!ET111="","","Seems Fine")) ->  | H124: =IF('Raw Data'!EU111="","",'Raw Data'!EU111) -> 
B125: =IF('Raw Data'!EI112="","",'Raw Data'!EI112) ->  | C125: =IF('Raw Data'!EJ112="(not set)","Unknown OS",IF('Raw Data'!EJ112="","",'Raw Data'!EJ112)) ->  | D125: =IF('Raw Data'!EK112="","",'Raw Data'!EK112) ->  | E125: =IF('Raw Data'!EL112="","",('Raw Data'!EL112/60)) ->  | F125: =IF('Raw Data'!EM112="","",'Raw Data'!EM112) ->  | G125: =IF('Raw Data'!ET112=TRUE,"Possible Problem",IF('Raw Data'!ET112="","","Seems Fine")) ->  | H125: =IF('Raw Data'!EU112="","",'Raw Data'!EU112) -> 
B126: =IF('Raw Data'!EI113="","",'Raw Data'!EI113) ->  | C126: =IF('Raw Data'!EJ113="(not set)","Unknown OS",IF('Raw Data'!EJ113="","",'Raw Data'!EJ113)) ->  | D126: =IF('Raw Data'!EK113="","",'Raw Data'!EK113) ->  | E126: =IF('Raw Data'!EL113="","",('Raw Data'!EL113/60)) ->  | F126: =IF('Raw Data'!EM113="","",'Raw Data'!EM113) ->  | G126: =IF('Raw Data'!ET113=TRUE,"Possible Problem",IF('Raw Data'!ET113="","","Seems Fine")) ->  | H126: =IF('Raw Data'!EU113="","",'Raw Data'!EU113) -> 
B127: =IF('Raw Data'!EI114="","",'Raw Data'!EI114) ->  | C127: =IF('Raw Data'!EJ114="(not set)","Unknown OS",IF('Raw Data'!EJ114="","",'Raw Data'!EJ114)) ->  | D127: =IF('Raw Data'!EK114="","",'Raw Data'!EK114) ->  | E127: =IF('Raw Data'!EL114="","",('Raw Data'!EL114/60)) ->  | F127: =IF('Raw Data'!EM114="","",'Raw Data'!EM114) ->  | G127: =IF('Raw Data'!ET114=TRUE,"Possible Problem",IF('Raw Data'!ET114="","","Seems Fine")) ->  | H127: =IF('Raw Data'!EU114="","",'Raw Data'!EU114) -> 
B128: =IF('Raw Data'!EI115="","",'Raw Data'!EI115) ->  | C128: =IF('Raw Data'!EJ115="(not set)","Unknown OS",IF('Raw Data'!EJ115="","",'Raw Data'!EJ115)) ->  | D128: =IF('Raw Data'!EK115="","",'Raw Data'!EK115) ->  | E128: =IF('Raw Data'!EL115="","",('Raw Data'!EL115/60)) ->  | F128: =IF('Raw Data'!EM115="","",'Raw Data'!EM115) ->  | G128: =IF('Raw Data'!ET115=TRUE,"Possible Problem",IF('Raw Data'!ET115="","","Seems Fine")) ->  | H128: =IF('Raw Data'!EU115="","",'Raw Data'!EU115) -> 
B129: =IF('Raw Data'!EI116="","",'Raw Data'!EI116) ->  | C129: =IF('Raw Data'!EJ116="(not set)","Unknown OS",IF('Raw Data'!EJ116="","",'Raw Data'!EJ116)) ->  | D129: =IF('Raw Data'!EK116="","",'Raw Data'!EK116) ->  | E129: =IF('Raw Data'!EL116="","",('Raw Data'!EL116/60)) ->  | F129: =IF('Raw Data'!EM116="","",'Raw Data'!EM116) ->  | G129: =IF('Raw Data'!ET116=TRUE,"Possible Problem",IF('Raw Data'!ET116="","","Seems Fine")) ->  | H129: =IF('Raw Data'!EU116="","",'Raw Data'!EU116) -> 
B130: =IF('Raw Data'!EI117="","",'Raw Data'!EI117) ->  | C130: =IF('Raw Data'!EJ117="(not set)","Unknown OS",IF('Raw Data'!EJ117="","",'Raw Data'!EJ117)) ->  | D130: =IF('Raw Data'!EK117="","",'Raw Data'!EK117) ->  | E130: =IF('Raw Data'!EL117="","",('Raw Data'!EL117/60)) ->  | F130: =IF('Raw Data'!EM117="","",'Raw Data'!EM117) ->  | G130: =IF('Raw Data'!ET117=TRUE,"Possible Problem",IF('Raw Data'!ET117="","","Seems Fine")) ->  | H130: =IF('Raw Data'!EU117="","",'Raw Data'!EU117) -> 
B131: =IF('Raw Data'!EI118="","",'Raw Data'!EI118) ->  | C131: =IF('Raw Data'!EJ118="(not set)","Unknown OS",IF('Raw Data'!EJ118="","",'Raw Data'!EJ118)) ->  | D131: =IF('Raw Data'!EK118="","",'Raw Data'!EK118) ->  | E131: =IF('Raw Data'!EL118="","",('Raw Data'!EL118/60)) ->  | F131: =IF('Raw Data'!EM118="","",'Raw Data'!EM118) ->  | G131: =IF('Raw Data'!ET118=TRUE,"Possible Problem",IF('Raw Data'!ET118="","","Seems Fine")) ->  | H131: =IF('Raw Data'!EU118="","",'Raw Data'!EU118) -> 
B132: =IF('Raw Data'!EI119="","",'Raw Data'!EI119) ->  | C132: =IF('Raw Data'!EJ119="(not set)","Unknown OS",IF('Raw Data'!EJ119="","",'Raw Data'!EJ119)) ->  | D132: =IF('Raw Data'!EK119="","",'Raw Data'!EK119) ->  | E132: =IF('Raw Data'!EL119="","",('Raw Data'!EL119/60)) ->  | F132: =IF('Raw Data'!EM119="","",'Raw Data'!EM119) ->  | G132: =IF('Raw Data'!ET119=TRUE,"Possible Problem",IF('Raw Data'!ET119="","","Seems Fine")) ->  | H132: =IF('Raw Data'!EU119="","",'Raw Data'!EU119) -> 
B133: =IF('Raw Data'!EI120="","",'Raw Data'!EI120) ->  | C133: =IF('Raw Data'!EJ120="(not set)","Unknown OS",IF('Raw Data'!EJ120="","",'Raw Data'!EJ120)) ->  | D133: =IF('Raw Data'!EK120="","",'Raw Data'!EK120) ->  | E133: =IF('Raw Data'!EL120="","",('Raw Data'!EL120/60)) ->  | F133: =IF('Raw Data'!EM120="","",'Raw Data'!EM120) ->  | G133: =IF('Raw Data'!ET120=TRUE,"Possible Problem",IF('Raw Data'!ET120="","","Seems Fine")) ->  | H133: =IF('Raw Data'!EU120="","",'Raw Data'!EU120) -> 
B134: =IF('Raw Data'!EI121="","",'Raw Data'!EI121) ->  | C134: =IF('Raw Data'!EJ121="(not set)","Unknown OS",IF('Raw Data'!EJ121="","",'Raw Data'!EJ121)) ->  | D134: =IF('Raw Data'!EK121="","",'Raw Data'!EK121) ->  | E134: =IF('Raw Data'!EL121="","",('Raw Data'!EL121/60)) ->  | F134: =IF('Raw Data'!EM121="","",'Raw Data'!EM121) ->  | G134: =IF('Raw Data'!ET121=TRUE,"Possible Problem",IF('Raw Data'!ET121="","","Seems Fine")) ->  | H134: =IF('Raw Data'!EU121="","",'Raw Data'!EU121) -> 
B135: =IF('Raw Data'!EI122="","",'Raw Data'!EI122) ->  | C135: =IF('Raw Data'!EJ122="(not set)","Unknown OS",IF('Raw Data'!EJ122="","",'Raw Data'!EJ122)) ->  | D135: =IF('Raw Data'!EK122="","",'Raw Data'!EK122) ->  | E135: =IF('Raw Data'!EL122="","",('Raw Data'!EL122/60)) ->  | F135: =IF('Raw Data'!EM122="","",'Raw Data'!EM122) ->  | G135: =IF('Raw Data'!ET122=TRUE,"Possible Problem",IF('Raw Data'!ET122="","","Seems Fine")) ->  | H135: =IF('Raw Data'!EU122="","",'Raw Data'!EU122) -> 
B136: =IF('Raw Data'!EI123="","",'Raw Data'!EI123) ->  | C136: =IF('Raw Data'!EJ123="(not set)","Unknown OS",IF('Raw Data'!EJ123="","",'Raw Data'!EJ123)) ->  | D136: =IF('Raw Data'!EK123="","",'Raw Data'!EK123) ->  | E136: =IF('Raw Data'!EL123="","",('Raw Data'!EL123/60)) ->  | F136: =IF('Raw Data'!EM123="","",'Raw Data'!EM123) ->  | G136: =IF('Raw Data'!ET123=TRUE,"Possible Problem",IF('Raw Data'!ET123="","","Seems Fine")) ->  | H136: =IF('Raw Data'!EU123="","",'Raw Data'!EU123) -> 
B137: =IF('Raw Data'!EI124="","",'Raw Data'!EI124) ->  | C137: =IF('Raw Data'!EJ124="(not set)","Unknown OS",IF('Raw Data'!EJ124="","",'Raw Data'!EJ124)) ->  | D137: =IF('Raw Data'!EK124="","",'Raw Data'!EK124) ->  | E137: =IF('Raw Data'!EL124="","",('Raw Data'!EL124/60)) ->  | F137: =IF('Raw Data'!EM124="","",'Raw Data'!EM124) ->  | G137: =IF('Raw Data'!ET124=TRUE,"Possible Problem",IF('Raw Data'!ET124="","","Seems Fine")) ->  | H137: =IF('Raw Data'!EU124="","",'Raw Data'!EU124) -> 
B138: =IF('Raw Data'!EI125="","",'Raw Data'!EI125) ->  | C138: =IF('Raw Data'!EJ125="(not set)","Unknown OS",IF('Raw Data'!EJ125="","",'Raw Data'!EJ125)) ->  | D138: =IF('Raw Data'!EK125="","",'Raw Data'!EK125) ->  | E138: =IF('Raw Data'!EL125="","",('Raw Data'!EL125/60)) ->  | F138: =IF('Raw Data'!EM125="","",'Raw Data'!EM125) ->  | G138: =IF('Raw Data'!ET125=TRUE,"Possible Problem",IF('Raw Data'!ET125="","","Seems Fine")) ->  | H138: =IF('Raw Data'!EU125="","",'Raw Data'!EU125) -> 
B139: =IF('Raw Data'!EI126="","",'Raw Data'!EI126) ->  | C139: =IF('Raw Data'!EJ126="(not set)","Unknown OS",IF('Raw Data'!EJ126="","",'Raw Data'!EJ126)) ->  | D139: =IF('Raw Data'!EK126="","",'Raw Data'!EK126) ->  | E139: =IF('Raw Data'!EL126="","",('Raw Data'!EL126/60)) ->  | F139: =IF('Raw Data'!EM126="","",'Raw Data'!EM126) ->  | G139: =IF('Raw Data'!ET126=TRUE,"Possible Problem",IF('Raw Data'!ET126="","","Seems Fine")) ->  | H139: =IF('Raw Data'!EU126="","",'Raw Data'!EU126) -> 
B140: =IF('Raw Data'!EI127="","",'Raw Data'!EI127) ->  | C140: =IF('Raw Data'!EJ127="(not set)","Unknown OS",IF('Raw Data'!EJ127="","",'Raw Data'!EJ127)) ->  | D140: =IF('Raw Data'!EK127="","",'Raw Data'!EK127) ->  | E140: =IF('Raw Data'!EL127="","",('Raw Data'!EL127/60)) ->  | F140: =IF('Raw Data'!EM127="","",'Raw Data'!EM127) ->  | G140: =IF('Raw Data'!ET127=TRUE,"Possible Problem",IF('Raw Data'!ET127="","","Seems Fine")) ->  | H140: =IF('Raw Data'!EU127="","",'Raw Data'!EU127) -> 
B141: =IF('Raw Data'!EI128="","",'Raw Data'!EI128) ->  | C141: =IF('Raw Data'!EJ128="(not set)","Unknown OS",IF('Raw Data'!EJ128="","",'Raw Data'!EJ128)) ->  | D141: =IF('Raw Data'!EK128="","",'Raw Data'!EK128) ->  | E141: =IF('Raw Data'!EL128="","",('Raw Data'!EL128/60)) ->  | F141: =IF('Raw Data'!EM128="","",'Raw Data'!EM128) ->  | G141: =IF('Raw Data'!ET128=TRUE,"Possible Problem",IF('Raw Data'!ET128="","","Seems Fine")) ->  | H141: =IF('Raw Data'!EU128="","",'Raw Data'!EU128) -> 
B142: =IF('Raw Data'!EI129="","",'Raw Data'!EI129) ->  | C142: =IF('Raw Data'!EJ129="(not set)","Unknown OS",IF('Raw Data'!EJ129="","",'Raw Data'!EJ129)) ->  | D142: =IF('Raw Data'!EK129="","",'Raw Data'!EK129) ->  | E142: =IF('Raw Data'!EL129="","",('Raw Data'!EL129/60)) ->  | F142: =IF('Raw Data'!EM129="","",'Raw Data'!EM129) ->  | G142: =IF('Raw Data'!ET129=TRUE,"Possible Problem",IF('Raw Data'!ET129="","","Seems Fine")) ->  | H142: =IF('Raw Data'!EU129="","",'Raw Data'!EU129) -> 
B143: =IF('Raw Data'!EI130="","",'Raw Data'!EI130) ->  | C143: =IF('Raw Data'!EJ130="(not set)","Unknown OS",IF('Raw Data'!EJ130="","",'Raw Data'!EJ130)) ->  | D143: =IF('Raw Data'!EK130="","",'Raw Data'!EK130) ->  | E143: =IF('Raw Data'!EL130="","",('Raw Data'!EL130/60)) ->  | F143: =IF('Raw Data'!EM130="","",'Raw Data'!EM130) ->  | G143: =IF('Raw Data'!ET130=TRUE,"Possible Problem",IF('Raw Data'!ET130="","","Seems Fine")) ->  | H143: =IF('Raw Data'!EU130="","",'Raw Data'!EU130) -> 
B144: =IF('Raw Data'!EI131="","",'Raw Data'!EI131) ->  | C144: =IF('Raw Data'!EJ131="(not set)","Unknown OS",IF('Raw Data'!EJ131="","",'Raw Data'!EJ131)) ->  | D144: =IF('Raw Data'!EK131="","",'Raw Data'!EK131) ->  | E144: =IF('Raw Data'!EL131="","",('Raw Data'!EL131/60)) ->  | F144: =IF('Raw Data'!EM131="","",'Raw Data'!EM131) ->  | G144: =IF('Raw Data'!ET131=TRUE,"Possible Problem",IF('Raw Data'!ET131="","","Seems Fine")) ->  | H144: =IF('Raw Data'!EU131="","",'Raw Data'!EU131) -> 
B145: =IF('Raw Data'!EI132="","",'Raw Data'!EI132) ->  | C145: =IF('Raw Data'!EJ132="(not set)","Unknown OS",IF('Raw Data'!EJ132="","",'Raw Data'!EJ132)) ->  | D145: =IF('Raw Data'!EK132="","",'Raw Data'!EK132) ->  | E145: =IF('Raw Data'!EL132="","",('Raw Data'!EL132/60)) ->  | F145: =IF('Raw Data'!EM132="","",'Raw Data'!EM132) ->  | G145: =IF('Raw Data'!ET132=TRUE,"Possible Problem",IF('Raw Data'!ET132="","","Seems Fine")) ->  | H145: =IF('Raw Data'!EU132="","",'Raw Data'!EU132) -> 
B146: =IF('Raw Data'!EI133="","",'Raw Data'!EI133) ->  | C146: =IF('Raw Data'!EJ133="(not set)","Unknown OS",IF('Raw Data'!EJ133="","",'Raw Data'!EJ133)) ->  | D146: =IF('Raw Data'!EK133="","",'Raw Data'!EK133) ->  | E146: =IF('Raw Data'!EL133="","",('Raw Data'!EL133/60)) ->  | F146: =IF('Raw Data'!EM133="","",'Raw Data'!EM133) ->  | G146: =IF('Raw Data'!ET133=TRUE,"Possible Problem",IF('Raw Data'!ET133="","","Seems Fine")) ->  | H146: =IF('Raw Data'!EU133="","",'Raw Data'!EU133) -> 
B147: =IF('Raw Data'!EI134="","",'Raw Data'!EI134) ->  | C147: =IF('Raw Data'!EJ134="(not set)","Unknown OS",IF('Raw Data'!EJ134="","",'Raw Data'!EJ134)) ->  | D147: =IF('Raw Data'!EK134="","",'Raw Data'!EK134) ->  | E147: =IF('Raw Data'!EL134="","",('Raw Data'!EL134/60)) ->  | F147: =IF('Raw Data'!EM134="","",'Raw Data'!EM134) ->  | G147: =IF('Raw Data'!ET134=TRUE,"Possible Problem",IF('Raw Data'!ET134="","","Seems Fine")) ->  | H147: =IF('Raw Data'!EU134="","",'Raw Data'!EU134) -> 
B148: =IF('Raw Data'!EI135="","",'Raw Data'!EI135) ->  | C148: =IF('Raw Data'!EJ135="(not set)","Unknown OS",IF('Raw Data'!EJ135="","",'Raw Data'!EJ135)) ->  | D148: =IF('Raw Data'!EK135="","",'Raw Data'!EK135) ->  | E148: =IF('Raw Data'!EL135="","",('Raw Data'!EL135/60)) ->  | F148: =IF('Raw Data'!EM135="","",'Raw Data'!EM135) ->  | G148: =IF('Raw Data'!ET135=TRUE,"Possible Problem",IF('Raw Data'!ET135="","","Seems Fine")) ->  | H148: =IF('Raw Data'!EU135="","",'Raw Data'!EU135) -> 
B149: =IF('Raw Data'!EI136="","",'Raw Data'!EI136) ->  | C149: =IF('Raw Data'!EJ136="(not set)","Unknown OS",IF('Raw Data'!EJ136="","",'Raw Data'!EJ136)) ->  | D149: =IF('Raw Data'!EK136="","",'Raw Data'!EK136) ->  | E149: =IF('Raw Data'!EL136="","",('Raw Data'!EL136/60)) ->  | F149: =IF('Raw Data'!EM136="","",'Raw Data'!EM136) ->  | G149: =IF('Raw Data'!ET136=TRUE,"Possible Problem",IF('Raw Data'!ET136="","","Seems Fine")) ->  | H149: =IF('Raw Data'!EU136="","",'Raw Data'!EU136) -> 
B150: =IF('Raw Data'!EI137="","",'Raw Data'!EI137) ->  | C150: =IF('Raw Data'!EJ137="(not set)","Unknown OS",IF('Raw Data'!EJ137="","",'Raw Data'!EJ137)) ->  | D150: =IF('Raw Data'!EK137="","",'Raw Data'!EK137) ->  | E150: =IF('Raw Data'!EL137="","",('Raw Data'!EL137/60)) ->  | F150: =IF('Raw Data'!EM137="","",'Raw Data'!EM137) ->  | G150: =IF('Raw Data'!ET137=TRUE,"Possible Problem",IF('Raw Data'!ET137="","","Seems Fine")) ->  | H150: =IF('Raw Data'!EU137="","",'Raw Data'!EU137) -> 
B151: =IF('Raw Data'!EI138="","",'Raw Data'!EI138) ->  | C151: =IF('Raw Data'!EJ138="(not set)","Unknown OS",IF('Raw Data'!EJ138="","",'Raw Data'!EJ138)) ->  | D151: =IF('Raw Data'!EK138="","",'Raw Data'!EK138) ->  | E151: =IF('Raw Data'!EL138="","",('Raw Data'!EL138/60)) ->  | F151: =IF('Raw Data'!EM138="","",'Raw Data'!EM138) ->  | G151: =IF('Raw Data'!ET138=TRUE,"Possible Problem",IF('Raw Data'!ET138="","","Seems Fine")) ->  | H151: =IF('Raw Data'!EU138="","",'Raw Data'!EU138) -> 
B152: =IF('Raw Data'!EI139="","",'Raw Data'!EI139) ->  | C152: =IF('Raw Data'!EJ139="(not set)","Unknown OS",IF('Raw Data'!EJ139="","",'Raw Data'!EJ139)) ->  | D152: =IF('Raw Data'!EK139="","",'Raw Data'!EK139) ->  | E152: =IF('Raw Data'!EL139="","",('Raw Data'!EL139/60)) ->  | F152: =IF('Raw Data'!EM139="","",'Raw Data'!EM139) ->  | G152: =IF('Raw Data'!ET139=TRUE,"Possible Problem",IF('Raw Data'!ET139="","","Seems Fine")) ->  | H152: =IF('Raw Data'!EU139="","",'Raw Data'!EU139) -> 
B153: =IF('Raw Data'!EI140="","",'Raw Data'!EI140) ->  | C153: =IF('Raw Data'!EJ140="(not set)","Unknown OS",IF('Raw Data'!EJ140="","",'Raw Data'!EJ140)) ->  | D153: =IF('Raw Data'!EK140="","",'Raw Data'!EK140) ->  | E153: =IF('Raw Data'!EL140="","",('Raw Data'!EL140/60)) ->  | F153: =IF('Raw Data'!EM140="","",'Raw Data'!EM140) ->  | G153: =IF('Raw Data'!ET140=TRUE,"Possible Problem",IF('Raw Data'!ET140="","","Seems Fine")) ->  | H153: =IF('Raw Data'!EU140="","",'Raw Data'!EU140) -> 
B154: =IF('Raw Data'!EI141="","",'Raw Data'!EI141) ->  | C154: =IF('Raw Data'!EJ141="(not set)","Unknown OS",IF('Raw Data'!EJ141="","",'Raw Data'!EJ141)) ->  | D154: =IF('Raw Data'!EK141="","",'Raw Data'!EK141) ->  | E154: =IF('Raw Data'!EL141="","",('Raw Data'!EL141/60)) ->  | F154: =IF('Raw Data'!EM141="","",'Raw Data'!EM141) ->  | G154: =IF('Raw Data'!ET141=TRUE,"Possible Problem",IF('Raw Data'!ET141="","","Seems Fine")) ->  | H154: =IF('Raw Data'!EU141="","",'Raw Data'!EU141) -> 
B155: =IF('Raw Data'!EI142="","",'Raw Data'!EI142) ->  | C155: =IF('Raw Data'!EJ142="(not set)","Unknown OS",IF('Raw Data'!EJ142="","",'Raw Data'!EJ142)) ->  | D155: =IF('Raw Data'!EK142="","",'Raw Data'!EK142) ->  | E155: =IF('Raw Data'!EL142="","",('Raw Data'!EL142/60)) ->  | F155: =IF('Raw Data'!EM142="","",'Raw Data'!EM142) ->  | G155: =IF('Raw Data'!ET142=TRUE,"Possible Problem",IF('Raw Data'!ET142="","","Seems Fine")) ->  | H155: =IF('Raw Data'!EU142="","",'Raw Data'!EU142) -> 
B156: =IF('Raw Data'!EI143="","",'Raw Data'!EI143) ->  | C156: =IF('Raw Data'!EJ143="(not set)","Unknown OS",IF('Raw Data'!EJ143="","",'Raw Data'!EJ143)) ->  | D156: =IF('Raw Data'!EK143="","",'Raw Data'!EK143) ->  | E156: =IF('Raw Data'!EL143="","",('Raw Data'!EL143/60)) ->  | F156: =IF('Raw Data'!EM143="","",'Raw Data'!EM143) ->  | G156: =IF('Raw Data'!ET143=TRUE,"Possible Problem",IF('Raw Data'!ET143="","","Seems Fine")) ->  | H156: =IF('Raw Data'!EU143="","",'Raw Data'!EU143) -> 
B157: =IF('Raw Data'!EI144="","",'Raw Data'!EI144) ->  | C157: =IF('Raw Data'!EJ144="(not set)","Unknown OS",IF('Raw Data'!EJ144="","",'Raw Data'!EJ144)) ->  | D157: =IF('Raw Data'!EK144="","",'Raw Data'!EK144) ->  | E157: =IF('Raw Data'!EL144="","",('Raw Data'!EL144/60)) ->  | F157: =IF('Raw Data'!EM144="","",'Raw Data'!EM144) ->  | G157: =IF('Raw Data'!ET144=TRUE,"Possible Problem",IF('Raw Data'!ET144="","","Seems Fine")) ->  | H157: =IF('Raw Data'!EU144="","",'Raw Data'!EU144) -> 
B158: =IF('Raw Data'!EI145="","",'Raw Data'!EI145) ->  | C158: =IF('Raw Data'!EJ145="(not set)","Unknown OS",IF('Raw Data'!EJ145="","",'Raw Data'!EJ145)) ->  | D158: =IF('Raw Data'!EK145="","",'Raw Data'!EK145) ->  | E158: =IF('Raw Data'!EL145="","",('Raw Data'!EL145/60)) ->  | F158: =IF('Raw Data'!EM145="","",'Raw Data'!EM145) ->  | G158: =IF('Raw Data'!ET145=TRUE,"Possible Problem",IF('Raw Data'!ET145="","","Seems Fine")) ->  | H158: =IF('Raw Data'!EU145="","",'Raw Data'!EU145) -> 
B159: =IF('Raw Data'!EI146="","",'Raw Data'!EI146) ->  | C159: =IF('Raw Data'!EJ146="(not set)","Unknown OS",IF('Raw Data'!EJ146="","",'Raw Data'!EJ146)) ->  | D159: =IF('Raw Data'!EK146="","",'Raw Data'!EK146) ->  | E159: =IF('Raw Data'!EL146="","",('Raw Data'!EL146/60)) ->  | F159: =IF('Raw Data'!EM146="","",'Raw Data'!EM146) ->  | G159: =IF('Raw Data'!ET146=TRUE,"Possible Problem",IF('Raw Data'!ET146="","","Seems Fine")) ->  | H159: =IF('Raw Data'!EU146="","",'Raw Data'!EU146) -> 
B160: =IF('Raw Data'!EI147="","",'Raw Data'!EI147) ->  | C160: =IF('Raw Data'!EJ147="(not set)","Unknown OS",IF('Raw Data'!EJ147="","",'Raw Data'!EJ147)) ->  | D160: =IF('Raw Data'!EK147="","",'Raw Data'!EK147) ->  | E160: =IF('Raw Data'!EL147="","",('Raw Data'!EL147/60)) ->  | F160: =IF('Raw Data'!EM147="","",'Raw Data'!EM147) ->  | G160: =IF('Raw Data'!ET147=TRUE,"Possible Problem",IF('Raw Data'!ET147="","","Seems Fine")) ->  | H160: =IF('Raw Data'!EU147="","",'Raw Data'!EU147) -> 
B161: =IF('Raw Data'!EI148="","",'Raw Data'!EI148) ->  | C161: =IF('Raw Data'!EJ148="(not set)","Unknown OS",IF('Raw Data'!EJ148="","",'Raw Data'!EJ148)) ->  | D161: =IF('Raw Data'!EK148="","",'Raw Data'!EK148) ->  | E161: =IF('Raw Data'!EL148="","",('Raw Data'!EL148/60)) ->  | F161: =IF('Raw Data'!EM148="","",'Raw Data'!EM148) ->  | G161: =IF('Raw Data'!ET148=TRUE,"Possible Problem",IF('Raw Data'!ET148="","","Seems Fine")) ->  | H161: =IF('Raw Data'!EU148="","",'Raw Data'!EU148) -> 
B162: =IF('Raw Data'!EI149="","",'Raw Data'!EI149) ->  | C162: =IF('Raw Data'!EJ149="(not set)","Unknown OS",IF('Raw Data'!EJ149="","",'Raw Data'!EJ149)) ->  | D162: =IF('Raw Data'!EK149="","",'Raw Data'!EK149) ->  | E162: =IF('Raw Data'!EL149="","",('Raw Data'!EL149/60)) ->  | F162: =IF('Raw Data'!EM149="","",'Raw Data'!EM149) ->  | G162: =IF('Raw Data'!ET149=TRUE,"Possible Problem",IF('Raw Data'!ET149="","","Seems Fine")) ->  | H162: =IF('Raw Data'!EU149="","",'Raw Data'!EU149) -> 
B163: =IF('Raw Data'!EI150="","",'Raw Data'!EI150) ->  | C163: =IF('Raw Data'!EJ150="(not set)","Unknown OS",IF('Raw Data'!EJ150="","",'Raw Data'!EJ150)) ->  | D163: =IF('Raw Data'!EK150="","",'Raw Data'!EK150) ->  | E163: =IF('Raw Data'!EL150="","",('Raw Data'!EL150/60)) ->  | F163: =IF('Raw Data'!EM150="","",'Raw Data'!EM150) ->  | G163: =IF('Raw Data'!ET150=TRUE,"Possible Problem",IF('Raw Data'!ET150="","","Seems Fine")) ->  | H163: =IF('Raw Data'!EU150="","",'Raw Data'!EU150) -> 
B164: =IF('Raw Data'!EI151="","",'Raw Data'!EI151) ->  | C164: =IF('Raw Data'!EJ151="(not set)","Unknown OS",IF('Raw Data'!EJ151="","",'Raw Data'!EJ151)) ->  | D164: =IF('Raw Data'!EK151="","",'Raw Data'!EK151) ->  | E164: =IF('Raw Data'!EL151="","",('Raw Data'!EL151/60)) ->  | F164: =IF('Raw Data'!EM151="","",'Raw Data'!EM151) ->  | G164: =IF('Raw Data'!ET151=TRUE,"Possible Problem",IF('Raw Data'!ET151="","","Seems Fine")) ->  | H164: =IF('Raw Data'!EU151="","",'Raw Data'!EU151) -> 
B165: =IF('Raw Data'!EI152="","",'Raw Data'!EI152) ->  | C165: =IF('Raw Data'!EJ152="(not set)","Unknown OS",IF('Raw Data'!EJ152="","",'Raw Data'!EJ152)) ->  | D165: =IF('Raw Data'!EK152="","",'Raw Data'!EK152) ->  | E165: =IF('Raw Data'!EL152="","",('Raw Data'!EL152/60)) ->  | F165: =IF('Raw Data'!EM152="","",'Raw Data'!EM152) ->  | G165: =IF('Raw Data'!ET152=TRUE,"Possible Problem",IF('Raw Data'!ET152="","","Seems Fine")) ->  | H165: =IF('Raw Data'!EU152="","",'Raw Data'!EU152) -> 
B166: =IF('Raw Data'!EI153="","",'Raw Data'!EI153) ->  | C166: =IF('Raw Data'!EJ153="(not set)","Unknown OS",IF('Raw Data'!EJ153="","",'Raw Data'!EJ153)) ->  | D166: =IF('Raw Data'!EK153="","",'Raw Data'!EK153) ->  | E166: =IF('Raw Data'!EL153="","",('Raw Data'!EL153/60)) ->  | F166: =IF('Raw Data'!EM153="","",'Raw Data'!EM153) ->  | G166: =IF('Raw Data'!ET153=TRUE,"Possible Problem",IF('Raw Data'!ET153="","","Seems Fine")) ->  | H166: =IF('Raw Data'!EU153="","",'Raw Data'!EU153) -> 
B167: =IF('Raw Data'!EI154="","",'Raw Data'!EI154) ->  | C167: =IF('Raw Data'!EJ154="(not set)","Unknown OS",IF('Raw Data'!EJ154="","",'Raw Data'!EJ154)) ->  | D167: =IF('Raw Data'!EK154="","",'Raw Data'!EK154) ->  | E167: =IF('Raw Data'!EL154="","",('Raw Data'!EL154/60)) ->  | F167: =IF('Raw Data'!EM154="","",'Raw Data'!EM154) ->  | G167: =IF('Raw Data'!ET154=TRUE,"Possible Problem",IF('Raw Data'!ET154="","","Seems Fine")) ->  | H167: =IF('Raw Data'!EU154="","",'Raw Data'!EU154) -> 
B168: =IF('Raw Data'!EI155="","",'Raw Data'!EI155) ->  | C168: =IF('Raw Data'!EJ155="(not set)","Unknown OS",IF('Raw Data'!EJ155="","",'Raw Data'!EJ155)) ->  | D168: =IF('Raw Data'!EK155="","",'Raw Data'!EK155) ->  | E168: =IF('Raw Data'!EL155="","",('Raw Data'!EL155/60)) ->  | F168: =IF('Raw Data'!EM155="","",'Raw Data'!EM155) ->  | G168: =IF('Raw Data'!ET155=TRUE,"Possible Problem",IF('Raw Data'!ET155="","","Seems Fine")) ->  | H168: =IF('Raw Data'!EU155="","",'Raw Data'!EU155) -> 
B169: =IF('Raw Data'!EI156="","",'Raw Data'!EI156) ->  | C169: =IF('Raw Data'!EJ156="(not set)","Unknown OS",IF('Raw Data'!EJ156="","",'Raw Data'!EJ156)) ->  | D169: =IF('Raw Data'!EK156="","",'Raw Data'!EK156) ->  | E169: =IF('Raw Data'!EL156="","",('Raw Data'!EL156/60)) ->  | F169: =IF('Raw Data'!EM156="","",'Raw Data'!EM156) ->  | G169: =IF('Raw Data'!ET156=TRUE,"Possible Problem",IF('Raw Data'!ET156="","","Seems Fine")) ->  | H169: =IF('Raw Data'!EU156="","",'Raw Data'!EU156) -> 
B170: =IF('Raw Data'!EI157="","",'Raw Data'!EI157) ->  | C170: =IF('Raw Data'!EJ157="(not set)","Unknown OS",IF('Raw Data'!EJ157="","",'Raw Data'!EJ157)) ->  | D170: =IF('Raw Data'!EK157="","",'Raw Data'!EK157) ->  | E170: =IF('Raw Data'!EL157="","",('Raw Data'!EL157/60)) ->  | F170: =IF('Raw Data'!EM157="","",'Raw Data'!EM157) ->  | G170: =IF('Raw Data'!ET157=TRUE,"Possible Problem",IF('Raw Data'!ET157="","","Seems Fine")) ->  | H170: =IF('Raw Data'!EU157="","",'Raw Data'!EU157) -> 
B171: =IF('Raw Data'!EI158="","",'Raw Data'!EI158) ->  | C171: =IF('Raw Data'!EJ158="(not set)","Unknown OS",IF('Raw Data'!EJ158="","",'Raw Data'!EJ158)) ->  | D171: =IF('Raw Data'!EK158="","",'Raw Data'!EK158) ->  | E171: =IF('Raw Data'!EL158="","",('Raw Data'!EL158/60)) ->  | F171: =IF('Raw Data'!EM158="","",'Raw Data'!EM158) ->  | G171: =IF('Raw Data'!ET158=TRUE,"Possible Problem",IF('Raw Data'!ET158="","","Seems Fine")) ->  | H171: =IF('Raw Data'!EU158="","",'Raw Data'!EU158) -> 
B172: =IF('Raw Data'!EI159="","",'Raw Data'!EI159) ->  | C172: =IF('Raw Data'!EJ159="(not set)","Unknown OS",IF('Raw Data'!EJ159="","",'Raw Data'!EJ159)) ->  | D172: =IF('Raw Data'!EK159="","",'Raw Data'!EK159) ->  | E172: =IF('Raw Data'!EL159="","",('Raw Data'!EL159/60)) ->  | F172: =IF('Raw Data'!EM159="","",'Raw Data'!EM159) ->  | G172: =IF('Raw Data'!ET159=TRUE,"Possible Problem",IF('Raw Data'!ET159="","","Seems Fine")) ->  | H172: =IF('Raw Data'!EU159="","",'Raw Data'!EU159) -> 
B173: =IF('Raw Data'!EI160="","",'Raw Data'!EI160) ->  | C173: =IF('Raw Data'!EJ160="(not set)","Unknown OS",IF('Raw Data'!EJ160="","",'Raw Data'!EJ160)) ->  | D173: =IF('Raw Data'!EK160="","",'Raw Data'!EK160) ->  | E173: =IF('Raw Data'!EL160="","",('Raw Data'!EL160/60)) ->  | F173: =IF('Raw Data'!EM160="","",'Raw Data'!EM160) ->  | G173: =IF('Raw Data'!ET160=TRUE,"Possible Problem",IF('Raw Data'!ET160="","","Seems Fine")) ->  | H173: =IF('Raw Data'!EU160="","",'Raw Data'!EU160) -> 
B174: =IF('Raw Data'!EI161="","",'Raw Data'!EI161) ->  | C174: =IF('Raw Data'!EJ161="(not set)","Unknown OS",IF('Raw Data'!EJ161="","",'Raw Data'!EJ161)) ->  | D174: =IF('Raw Data'!EK161="","",'Raw Data'!EK161) ->  | E174: =IF('Raw Data'!EL161="","",('Raw Data'!EL161/60)) ->  | F174: =IF('Raw Data'!EM161="","",'Raw Data'!EM161) ->  | G174: =IF('Raw Data'!ET161=TRUE,"Possible Problem",IF('Raw Data'!ET161="","","Seems Fine")) ->  | H174: =IF('Raw Data'!EU161="","",'Raw Data'!EU161) -> 
B175: =IF('Raw Data'!EI162="","",'Raw Data'!EI162) ->  | C175: =IF('Raw Data'!EJ162="(not set)","Unknown OS",IF('Raw Data'!EJ162="","",'Raw Data'!EJ162)) ->  | D175: =IF('Raw Data'!EK162="","",'Raw Data'!EK162) ->  | E175: =IF('Raw Data'!EL162="","",('Raw Data'!EL162/60)) ->  | F175: =IF('Raw Data'!EM162="","",'Raw Data'!EM162) ->  | G175: =IF('Raw Data'!ET162=TRUE,"Possible Problem",IF('Raw Data'!ET162="","","Seems Fine")) ->  | H175: =IF('Raw Data'!EU162="","",'Raw Data'!EU162) -> 
B176: =IF('Raw Data'!EI163="","",'Raw Data'!EI163) ->  | C176: =IF('Raw Data'!EJ163="(not set)","Unknown OS",IF('Raw Data'!EJ163="","",'Raw Data'!EJ163)) ->  | D176: =IF('Raw Data'!EK163="","",'Raw Data'!EK163) ->  | E176: =IF('Raw Data'!EL163="","",('Raw Data'!EL163/60)) ->  | F176: =IF('Raw Data'!EM163="","",'Raw Data'!EM163) ->  | G176: =IF('Raw Data'!ET163=TRUE,"Possible Problem",IF('Raw Data'!ET163="","","Seems Fine")) ->  | H176: =IF('Raw Data'!EU163="","",'Raw Data'!EU163) -> 
B177: =IF('Raw Data'!EI164="","",'Raw Data'!EI164) ->  | C177: =IF('Raw Data'!EJ164="(not set)","Unknown OS",IF('Raw Data'!EJ164="","",'Raw Data'!EJ164)) ->  | D177: =IF('Raw Data'!EK164="","",'Raw Data'!EK164) ->  | E177: =IF('Raw Data'!EL164="","",('Raw Data'!EL164/60)) ->  | F177: =IF('Raw Data'!EM164="","",'Raw Data'!EM164) ->  | G177: =IF('Raw Data'!ET164=TRUE,"Possible Problem",IF('Raw Data'!ET164="","","Seems Fine")) ->  | H177: =IF('Raw Data'!EU164="","",'Raw Data'!EU164) -> 
B178: =IF('Raw Data'!EI165="","",'Raw Data'!EI165) ->  | C178: =IF('Raw Data'!EJ165="(not set)","Unknown OS",IF('Raw Data'!EJ165="","",'Raw Data'!EJ165)) ->  | D178: =IF('Raw Data'!EK165="","",'Raw Data'!EK165) ->  | E178: =IF('Raw Data'!EL165="","",('Raw Data'!EL165/60)) ->  | F178: =IF('Raw Data'!EM165="","",'Raw Data'!EM165) ->  | G178: =IF('Raw Data'!ET165=TRUE,"Possible Problem",IF('Raw Data'!ET165="","","Seems Fine")) ->  | H178: =IF('Raw Data'!EU165="","",'Raw Data'!EU165) -> 
B179: =IF('Raw Data'!EI166="","",'Raw Data'!EI166) ->  | C179: =IF('Raw Data'!EJ166="(not set)","Unknown OS",IF('Raw Data'!EJ166="","",'Raw Data'!EJ166)) ->  | D179: =IF('Raw Data'!EK166="","",'Raw Data'!EK166) ->  | E179: =IF('Raw Data'!EL166="","",('Raw Data'!EL166/60)) ->  | F179: =IF('Raw Data'!EM166="","",'Raw Data'!EM166) ->  | G179: =IF('Raw Data'!ET166=TRUE,"Possible Problem",IF('Raw Data'!ET166="","","Seems Fine")) ->  | H179: =IF('Raw Data'!EU166="","",'Raw Data'!EU166) -> 
B180: =IF('Raw Data'!EI167="","",'Raw Data'!EI167) ->  | C180: =IF('Raw Data'!EJ167="(not set)","Unknown OS",IF('Raw Data'!EJ167="","",'Raw Data'!EJ167)) ->  | D180: =IF('Raw Data'!EK167="","",'Raw Data'!EK167) ->  | E180: =IF('Raw Data'!EL167="","",('Raw Data'!EL167/60)) ->  | F180: =IF('Raw Data'!EM167="","",'Raw Data'!EM167) ->  | G180: =IF('Raw Data'!ET167=TRUE,"Possible Problem",IF('Raw Data'!ET167="","","Seems Fine")) ->  | H180: =IF('Raw Data'!EU167="","",'Raw Data'!EU167) -> 
B181: =IF('Raw Data'!EI168="","",'Raw Data'!EI168) ->  | C181: =IF('Raw Data'!EJ168="(not set)","Unknown OS",IF('Raw Data'!EJ168="","",'Raw Data'!EJ168)) ->  | D181: =IF('Raw Data'!EK168="","",'Raw Data'!EK168) ->  | E181: =IF('Raw Data'!EL168="","",('Raw Data'!EL168/60)) ->  | F181: =IF('Raw Data'!EM168="","",'Raw Data'!EM168) ->  | G181: =IF('Raw Data'!ET168=TRUE,"Possible Problem",IF('Raw Data'!ET168="","","Seems Fine")) ->  | H181: =IF('Raw Data'!EU168="","",'Raw Data'!EU168) -> 
B182: =IF('Raw Data'!EI169="","",'Raw Data'!EI169) ->  | C182: =IF('Raw Data'!EJ169="(not set)","Unknown OS",IF('Raw Data'!EJ169="","",'Raw Data'!EJ169)) ->  | D182: =IF('Raw Data'!EK169="","",'Raw Data'!EK169) ->  | E182: =IF('Raw Data'!EL169="","",('Raw Data'!EL169/60)) ->  | F182: =IF('Raw Data'!EM169="","",'Raw Data'!EM169) ->  | G182: =IF('Raw Data'!ET169=TRUE,"Possible Problem",IF('Raw Data'!ET169="","","Seems Fine")) ->  | H182: =IF('Raw Data'!EU169="","",'Raw Data'!EU169) -> 
B183: =IF('Raw Data'!EI170="","",'Raw Data'!EI170) ->  | C183: =IF('Raw Data'!EJ170="(not set)","Unknown OS",IF('Raw Data'!EJ170="","",'Raw Data'!EJ170)) ->  | D183: =IF('Raw Data'!EK170="","",'Raw Data'!EK170) ->  | E183: =IF('Raw Data'!EL170="","",('Raw Data'!EL170/60)) ->  | F183: =IF('Raw Data'!EM170="","",'Raw Data'!EM170) ->  | G183: =IF('Raw Data'!ET170=TRUE,"Possible Problem",IF('Raw Data'!ET170="","","Seems Fine")) ->  | H183: =IF('Raw Data'!EU170="","",'Raw Data'!EU170) -> 
B184: =IF('Raw Data'!EI171="","",'Raw Data'!EI171) ->  | C184: =IF('Raw Data'!EJ171="(not set)","Unknown OS",IF('Raw Data'!EJ171="","",'Raw Data'!EJ171)) ->  | D184: =IF('Raw Data'!EK171="","",'Raw Data'!EK171) ->  | E184: =IF('Raw Data'!EL171="","",('Raw Data'!EL171/60)) ->  | F184: =IF('Raw Data'!EM171="","",'Raw Data'!EM171) ->  | G184: =IF('Raw Data'!ET171=TRUE,"Possible Problem",IF('Raw Data'!ET171="","","Seems Fine")) ->  | H184: =IF('Raw Data'!EU171="","",'Raw Data'!EU171) -> 
B185: =IF('Raw Data'!EI172="","",'Raw Data'!EI172) ->  | C185: =IF('Raw Data'!EJ172="(not set)","Unknown OS",IF('Raw Data'!EJ172="","",'Raw Data'!EJ172)) ->  | D185: =IF('Raw Data'!EK172="","",'Raw Data'!EK172) ->  | E185: =IF('Raw Data'!EL172="","",('Raw Data'!EL172/60)) ->  | F185: =IF('Raw Data'!EM172="","",'Raw Data'!EM172) ->  | G185: =IF('Raw Data'!ET172=TRUE,"Possible Problem",IF('Raw Data'!ET172="","","Seems Fine")) ->  | H185: =IF('Raw Data'!EU172="","",'Raw Data'!EU172) -> 
B186: =IF('Raw Data'!EI173="","",'Raw Data'!EI173) ->  | C186: =IF('Raw Data'!EJ173="(not set)","Unknown OS",IF('Raw Data'!EJ173="","",'Raw Data'!EJ173)) ->  | D186: =IF('Raw Data'!EK173="","",'Raw Data'!EK173) ->  | E186: =IF('Raw Data'!EL173="","",('Raw Data'!EL173/60)) ->  | F186: =IF('Raw Data'!EM173="","",'Raw Data'!EM173) ->  | G186: =IF('Raw Data'!ET173=TRUE,"Possible Problem",IF('Raw Data'!ET173="","","Seems Fine")) ->  | H186: =IF('Raw Data'!EU173="","",'Raw Data'!EU173) -> 
B187: =IF('Raw Data'!EI174="","",'Raw Data'!EI174) ->  | C187: =IF('Raw Data'!EJ174="(not set)","Unknown OS",IF('Raw Data'!EJ174="","",'Raw Data'!EJ174)) ->  | D187: =IF('Raw Data'!EK174="","",'Raw Data'!EK174) ->  | E187: =IF('Raw Data'!EL174="","",('Raw Data'!EL174/60)) ->  | F187: =IF('Raw Data'!EM174="","",'Raw Data'!EM174) ->  | G187: =IF('Raw Data'!ET174=TRUE,"Possible Problem",IF('Raw Data'!ET174="","","Seems Fine")) ->  | H187: =IF('Raw Data'!EU174="","",'Raw Data'!EU174) -> 
B188: =IF('Raw Data'!EI175="","",'Raw Data'!EI175) ->  | C188: =IF('Raw Data'!EJ175="(not set)","Unknown OS",IF('Raw Data'!EJ175="","",'Raw Data'!EJ175)) ->  | D188: =IF('Raw Data'!EK175="","",'Raw Data'!EK175) ->  | E188: =IF('Raw Data'!EL175="","",('Raw Data'!EL175/60)) ->  | F188: =IF('Raw Data'!EM175="","",'Raw Data'!EM175) ->  | G188: =IF('Raw Data'!ET175=TRUE,"Possible Problem",IF('Raw Data'!ET175="","","Seems Fine")) ->  | H188: =IF('Raw Data'!EU175="","",'Raw Data'!EU175) -> 
B189: =IF('Raw Data'!EI176="","",'Raw Data'!EI176) ->  | C189: =IF('Raw Data'!EJ176="(not set)","Unknown OS",IF('Raw Data'!EJ176="","",'Raw Data'!EJ176)) ->  | D189: =IF('Raw Data'!EK176="","",'Raw Data'!EK176) ->  | E189: =IF('Raw Data'!EL176="","",('Raw Data'!EL176/60)) ->  | F189: =IF('Raw Data'!EM176="","",'Raw Data'!EM176) ->  | G189: =IF('Raw Data'!ET176=TRUE,"Possible Problem",IF('Raw Data'!ET176="","","Seems Fine")) ->  | H189: =IF('Raw Data'!EU176="","",'Raw Data'!EU176) -> 
B190: =IF('Raw Data'!EI177="","",'Raw Data'!EI177) ->  | C190: =IF('Raw Data'!EJ177="(not set)","Unknown OS",IF('Raw Data'!EJ177="","",'Raw Data'!EJ177)) ->  | D190: =IF('Raw Data'!EK177="","",'Raw Data'!EK177) ->  | E190: =IF('Raw Data'!EL177="","",('Raw Data'!EL177/60)) ->  | F190: =IF('Raw Data'!EM177="","",'Raw Data'!EM177) ->  | G190: =IF('Raw Data'!ET177=TRUE,"Possible Problem",IF('Raw Data'!ET177="","","Seems Fine")) ->  | H190: =IF('Raw Data'!EU177="","",'Raw Data'!EU177) -> 
B191: =IF('Raw Data'!EI178="","",'Raw Data'!EI178) ->  | C191: =IF('Raw Data'!EJ178="(not set)","Unknown OS",IF('Raw Data'!EJ178="","",'Raw Data'!EJ178)) ->  | D191: =IF('Raw Data'!EK178="","",'Raw Data'!EK178) ->  | E191: =IF('Raw Data'!EL178="","",('Raw Data'!EL178/60)) ->  | F191: =IF('Raw Data'!EM178="","",'Raw Data'!EM178) ->  | G191: =IF('Raw Data'!ET178=TRUE,"Possible Problem",IF('Raw Data'!ET178="","","Seems Fine")) ->  | H191: =IF('Raw Data'!EU178="","",'Raw Data'!EU178) -> 
B192: =IF('Raw Data'!EI179="","",'Raw Data'!EI179) ->  | C192: =IF('Raw Data'!EJ179="(not set)","Unknown OS",IF('Raw Data'!EJ179="","",'Raw Data'!EJ179)) ->  | D192: =IF('Raw Data'!EK179="","",'Raw Data'!EK179) ->  | E192: =IF('Raw Data'!EL179="","",('Raw Data'!EL179/60)) ->  | F192: =IF('Raw Data'!EM179="","",'Raw Data'!EM179) ->  | G192: =IF('Raw Data'!ET179=TRUE,"Possible Problem",IF('Raw Data'!ET179="","","Seems Fine")) ->  | H192: =IF('Raw Data'!EU179="","",'Raw Data'!EU179) -> 
B193: =IF('Raw Data'!EI180="","",'Raw Data'!EI180) ->  | C193: =IF('Raw Data'!EJ180="(not set)","Unknown OS",IF('Raw Data'!EJ180="","",'Raw Data'!EJ180)) ->  | D193: =IF('Raw Data'!EK180="","",'Raw Data'!EK180) ->  | E193: =IF('Raw Data'!EL180="","",('Raw Data'!EL180/60)) ->  | F193: =IF('Raw Data'!EM180="","",'Raw Data'!EM180) ->  | G193: =IF('Raw Data'!ET180=TRUE,"Possible Problem",IF('Raw Data'!ET180="","","Seems Fine")) ->  | H193: =IF('Raw Data'!EU180="","",'Raw Data'!EU180) -> 
B194: =IF('Raw Data'!EI181="","",'Raw Data'!EI181) ->  | C194: =IF('Raw Data'!EJ181="(not set)","Unknown OS",IF('Raw Data'!EJ181="","",'Raw Data'!EJ181)) ->  | D194: =IF('Raw Data'!EK181="","",'Raw Data'!EK181) ->  | E194: =IF('Raw Data'!EL181="","",('Raw Data'!EL181/60)) ->  | F194: =IF('Raw Data'!EM181="","",'Raw Data'!EM181) ->  | G194: =IF('Raw Data'!ET181=TRUE,"Possible Problem",IF('Raw Data'!ET181="","","Seems Fine")) ->  | H194: =IF('Raw Data'!EU181="","",'Raw Data'!EU181) -> 
B195: =IF('Raw Data'!EI182="","",'Raw Data'!EI182) ->  | C195: =IF('Raw Data'!EJ182="(not set)","Unknown OS",IF('Raw Data'!EJ182="","",'Raw Data'!EJ182)) ->  | D195: =IF('Raw Data'!EK182="","",'Raw Data'!EK182) ->  | E195: =IF('Raw Data'!EL182="","",('Raw Data'!EL182/60)) ->  | F195: =IF('Raw Data'!EM182="","",'Raw Data'!EM182) ->  | G195: =IF('Raw Data'!ET182=TRUE,"Possible Problem",IF('Raw Data'!ET182="","","Seems Fine")) ->  | H195: =IF('Raw Data'!EU182="","",'Raw Data'!EU182) -> 
B196: =IF('Raw Data'!EI183="","",'Raw Data'!EI183) ->  | C196: =IF('Raw Data'!EJ183="(not set)","Unknown OS",IF('Raw Data'!EJ183="","",'Raw Data'!EJ183)) ->  | D196: =IF('Raw Data'!EK183="","",'Raw Data'!EK183) ->  | E196: =IF('Raw Data'!EL183="","",('Raw Data'!EL183/60)) ->  | F196: =IF('Raw Data'!EM183="","",'Raw Data'!EM183) ->  | G196: =IF('Raw Data'!ET183=TRUE,"Possible Problem",IF('Raw Data'!ET183="","","Seems Fine")) ->  | H196: =IF('Raw Data'!EU183="","",'Raw Data'!EU183) -> 
B197: =IF('Raw Data'!EI184="","",'Raw Data'!EI184) ->  | C197: =IF('Raw Data'!EJ184="(not set)","Unknown OS",IF('Raw Data'!EJ184="","",'Raw Data'!EJ184)) ->  | D197: =IF('Raw Data'!EK184="","",'Raw Data'!EK184) ->  | E197: =IF('Raw Data'!EL184="","",('Raw Data'!EL184/60)) ->  | F197: =IF('Raw Data'!EM184="","",'Raw Data'!EM184) ->  | G197: =IF('Raw Data'!ET184=TRUE,"Possible Problem",IF('Raw Data'!ET184="","","Seems Fine")) ->  | H197: =IF('Raw Data'!EU184="","",'Raw Data'!EU184) -> 
B198: =IF('Raw Data'!EI185="","",'Raw Data'!EI185) ->  | C198: =IF('Raw Data'!EJ185="(not set)","Unknown OS",IF('Raw Data'!EJ185="","",'Raw Data'!EJ185)) ->  | D198: =IF('Raw Data'!EK185="","",'Raw Data'!EK185) ->  | E198: =IF('Raw Data'!EL185="","",('Raw Data'!EL185/60)) ->  | F198: =IF('Raw Data'!EM185="","",'Raw Data'!EM185) ->  | G198: =IF('Raw Data'!ET185=TRUE,"Possible Problem",IF('Raw Data'!ET185="","","Seems Fine")) ->  | H198: =IF('Raw Data'!EU185="","",'Raw Data'!EU185) -> 
B199: =IF('Raw Data'!EI186="","",'Raw Data'!EI186) ->  | C199: =IF('Raw Data'!EJ186="(not set)","Unknown OS",IF('Raw Data'!EJ186="","",'Raw Data'!EJ186)) ->  | D199: =IF('Raw Data'!EK186="","",'Raw Data'!EK186) ->  | E199: =IF('Raw Data'!EL186="","",('Raw Data'!EL186/60)) ->  | F199: =IF('Raw Data'!EM186="","",'Raw Data'!EM186) ->  | G199: =IF('Raw Data'!ET186=TRUE,"Possible Problem",IF('Raw Data'!ET186="","","Seems Fine")) ->  | H199: =IF('Raw Data'!EU186="","",'Raw Data'!EU186) -> 
B200: =IF('Raw Data'!EI187="","",'Raw Data'!EI187) ->  | C200: =IF('Raw Data'!EJ187="(not set)","Unknown OS",IF('Raw Data'!EJ187="","",'Raw Data'!EJ187)) ->  | D200: =IF('Raw Data'!EK187="","",'Raw Data'!EK187) ->  | E200: =IF('Raw Data'!EL187="","",('Raw Data'!EL187/60)) ->  | F200: =IF('Raw Data'!EM187="","",'Raw Data'!EM187) ->  | G200: =IF('Raw Data'!ET187=TRUE,"Possible Problem",IF('Raw Data'!ET187="","","Seems Fine")) ->  | H200: =IF('Raw Data'!EU187="","",'Raw Data'!EU187) -> 
B201: =IF('Raw Data'!EI188="","",'Raw Data'!EI188) ->  | C201: =IF('Raw Data'!EJ188="(not set)","Unknown OS",IF('Raw Data'!EJ188="","",'Raw Data'!EJ188)) ->  | D201: =IF('Raw Data'!EK188="","",'Raw Data'!EK188) ->  | E201: =IF('Raw Data'!EL188="","",('Raw Data'!EL188/60)) ->  | F201: =IF('Raw Data'!EM188="","",'Raw Data'!EM188) ->  | G201: =IF('Raw Data'!ET188=TRUE,"Possible Problem",IF('Raw Data'!ET188="","","Seems Fine")) ->  | H201: =IF('Raw Data'!EU188="","",'Raw Data'!EU188) -> 
B202: =IF('Raw Data'!EI189="","",'Raw Data'!EI189) ->  | C202: =IF('Raw Data'!EJ189="(not set)","Unknown OS",IF('Raw Data'!EJ189="","",'Raw Data'!EJ189)) ->  | D202: =IF('Raw Data'!EK189="","",'Raw Data'!EK189) ->  | E202: =IF('Raw Data'!EL189="","",('Raw Data'!EL189/60)) ->  | F202: =IF('Raw Data'!EM189="","",'Raw Data'!EM189) ->  | G202: =IF('Raw Data'!ET189=TRUE,"Possible Problem",IF('Raw Data'!ET189="","","Seems Fine")) ->  | H202: =IF('Raw Data'!EU189="","",'Raw Data'!EU189) -> 
B203: =IF('Raw Data'!EI190="","",'Raw Data'!EI190) ->  | C203: =IF('Raw Data'!EJ190="(not set)","Unknown OS",IF('Raw Data'!EJ190="","",'Raw Data'!EJ190)) ->  | D203: =IF('Raw Data'!EK190="","",'Raw Data'!EK190) ->  | E203: =IF('Raw Data'!EL190="","",('Raw Data'!EL190/60)) ->  | F203: =IF('Raw Data'!EM190="","",'Raw Data'!EM190) ->  | G203: =IF('Raw Data'!ET190=TRUE,"Possible Problem",IF('Raw Data'!ET190="","","Seems Fine")) ->  | H203: =IF('Raw Data'!EU190="","",'Raw Data'!EU190) -> 
B204: =IF('Raw Data'!EI191="","",'Raw Data'!EI191) ->  | C204: =IF('Raw Data'!EJ191="(not set)","Unknown OS",IF('Raw Data'!EJ191="","",'Raw Data'!EJ191)) ->  | D204: =IF('Raw Data'!EK191="","",'Raw Data'!EK191) ->  | E204: =IF('Raw Data'!EL191="","",('Raw Data'!EL191/60)) ->  | F204: =IF('Raw Data'!EM191="","",'Raw Data'!EM191) ->  | G204: =IF('Raw Data'!ET191=TRUE,"Possible Problem",IF('Raw Data'!ET191="","","Seems Fine")) ->  | H204: =IF('Raw Data'!EU191="","",'Raw Data'!EU191) -> 
B205: =IF('Raw Data'!EI192="","",'Raw Data'!EI192) ->  | C205: =IF('Raw Data'!EJ192="(not set)","Unknown OS",IF('Raw Data'!EJ192="","",'Raw Data'!EJ192)) ->  | D205: =IF('Raw Data'!EK192="","",'Raw Data'!EK192) ->  | E205: =IF('Raw Data'!EL192="","",('Raw Data'!EL192/60)) ->  | F205: =IF('Raw Data'!EM192="","",'Raw Data'!EM192) ->  | G205: =IF('Raw Data'!ET192=TRUE,"Possible Problem",IF('Raw Data'!ET192="","","Seems Fine")) ->  | H205: =IF('Raw Data'!EU192="","",'Raw Data'!EU192) -> 
B206: =IF('Raw Data'!EI193="","",'Raw Data'!EI193) ->  | C206: =IF('Raw Data'!EJ193="(not set)","Unknown OS",IF('Raw Data'!EJ193="","",'Raw Data'!EJ193)) ->  | D206: =IF('Raw Data'!EK193="","",'Raw Data'!EK193) ->  | E206: =IF('Raw Data'!EL193="","",('Raw Data'!EL193/60)) ->  | F206: =IF('Raw Data'!EM193="","",'Raw Data'!EM193) ->  | G206: =IF('Raw Data'!ET193=TRUE,"Possible Problem",IF('Raw Data'!ET193="","","Seems Fine")) ->  | H206: =IF('Raw Data'!EU193="","",'Raw Data'!EU193) -> 
... 808 more rows

Sheet Organic Content Performance
B2: Organic Content Performance
B4: This shows Organic Search visits to content pages (from all Search Engines), for the last thirty days.
B5: Note that some of the pages that show no visits, or no conversions, may have actually had some (showing up under "Google Does Not Provide") | G5: Copyright Ted Ives, 2018, All Rights Reserved.
B6: Also, you may note that some pages will occasionally conversions but no visits - this is an odd Google Analytics anomaly; I am pulling data directly out of Google Analytics via their API.
B8: This page illustrates the SEO principle that content attracts visitors; we should discuss this on a phone call some time because these metrics could help us figure out *what content works well*.
B10: *Some time ago, Google stopped reporting any organic traffic from users with secure connections (i.e. "https:", logged into Google etc).
B13: Traffic Source | C13: Organic Searches | D13: PageViews per Visit | E13: Avg Minutes on Page | F13: Conversions | G13: Bounce Rate (%) | H13: Avg Minutes on Site
B14: =IF('Raw Data'!DY13="","",IF('Raw Data'!DY13="(not set)","*Google Does Not Provide due to https:",IF('Raw Data'!DY13="N/A","*Google Does Not Provide due to https:",'Raw Data'!DY13))) -> Security Guards RI | Security Services | Licensed Number 1 | Industrial Security | C14: =IF('Raw Data'!DZ13="","",'Raw Data'!DZ13) -> 84 | D14: =IF('Raw Data'!EA13="","",'Raw Data'!EA13) -> 1.382022472 | E14: =IF('Raw Data'!EB13="","",'Raw Data'!EB13/60) -> 0.9862903226 | F14: =IF('Raw Data'!EC13="","",'Raw Data'!EC13) -> 20 | G14: =IF('Raw Data'!EE13="","",'Raw Data'!EE13) -> 0.4494382022 | H14: =IF('Raw Data'!EF13="","",'Raw Data'!EF13/60) -> 2.395318352
B15: =IF('Raw Data'!DY14="","",IF('Raw Data'!DY14="(not set)","*Google Does Not Provide due to https:",IF('Raw Data'!DY14="N/A","*Google Does Not Provide due to https:",'Raw Data'!DY14))) -> Security Tips: Security Awareness | Industrial Security | C15: =IF('Raw Data'!DZ14="","",'Raw Data'!DZ14) -> 8 | D15: =IF('Raw Data'!EA14="","",'Raw Data'!EA14) -> 2 | E15: =IF('Raw Data'!EB14="","",'Raw Data'!EB14/60) -> 0.3395833333 | F15: =IF('Raw Data'!EC14="","",'Raw Data'!EC14) -> 0 | G15: =IF('Raw Data'!EE14="","",'Raw Data'!EE14) -> 0.5 | H15: =IF('Raw Data'!EF14="","",'Raw Data'!EF14/60) -> 0.6291666667
B16: =IF('Raw Data'!DY15="","",IF('Raw Data'!DY15="(not set)","*Google Does Not Provide due to https:",IF('Raw Data'!DY15="N/A","*Google Does Not Provide due to https:",'Raw Data'!DY15))) -> Armed Security Guards: ATM Security Escorts | Industrial Security | C16: =IF('Raw Data'!DZ15="","",'Raw Data'!DZ15) -> 6 | D16: =IF('Raw Data'!EA15="","",'Raw Data'!EA15) -> 1.666666667 | E16: =IF('Raw Data'!EB15="","",'Raw Data'!EB15/60) -> 0.6833333333 | F16: =IF('Raw Data'!EC15="","",'Raw Data'!EC15) -> 3 | G16: =IF('Raw Data'!EE15="","",'Raw Data'!EE15) -> 0.3333333333 | H16: =IF('Raw Data'!EF15="","",'Raw Data'!EF15/60) -> 0.6777777778
B17: =IF('Raw Data'!DY16="","",IF('Raw Data'!DY16="(not set)","*Google Does Not Provide due to https:",IF('Raw Data'!DY16="N/A","*Google Does Not Provide due to https:",'Raw Data'!DY16))) -> Private Security: Apartments Complex Security | Industrial Security | C17: =IF('Raw Data'!DZ16="","",'Raw Data'!DZ16) -> 4 | D17: =IF('Raw Data'!EA16="","",'Raw Data'!EA16) -> 1.25 | E17: =IF('Raw Data'!EB16="","",'Raw Data'!EB16/60) -> 0.01666666667 | F17: =IF('Raw Data'!EC16="","",'Raw Data'!EC16) -> 0 | G17: =IF('Raw Data'!EE16="","",'Raw Data'!EE16) -> 1 | H17: =IF('Raw Data'!EF16="","",'Raw Data'!EF16/60) -> 0
B18: =IF('Raw Data'!DY17="","",IF('Raw Data'!DY17="(not set)","*Google Does Not Provide due to https:",IF('Raw Data'!DY17="N/A","*Google Does Not Provide due to https:",'Raw Data'!DY17))) -> Courier: Delivery Services | Industrial Security | C18: =IF('Raw Data'!DZ17="","",'Raw Data'!DZ17) -> 2 | D18: =IF('Raw Data'!EA17="","",'Raw Data'!EA17) -> 3.5 | E18: =IF('Raw Data'!EB17="","",'Raw Data'!EB17/60) -> 1.672222222 | F18: =IF('Raw Data'!EC17="","",'Raw Data'!EC17) -> 2 | G18: =IF('Raw Data'!EE17="","",'Raw Data'!EE17) -> 0.5 | H18: =IF('Raw Data'!EF17="","",'Raw Data'!EF17/60) -> 1
B19: =IF('Raw Data'!DY18="","",IF('Raw Data'!DY18="(not set)","*Google Does Not Provide due to https:",IF('Raw Data'!DY18="N/A","*Google Does Not Provide due to https:",'Raw Data'!DY18))) -> Security RI: Rhode Island Security Guards | Industrial Security | C19: =IF('Raw Data'!DZ18="","",'Raw Data'!DZ18) -> 2 | D19: =IF('Raw Data'!EA18="","",'Raw Data'!EA18) -> 14 | E19: =IF('Raw Data'!EB18="","",'Raw Data'!EB18/60) -> 0.522 | F19: =IF('Raw Data'!EC18="","",'Raw Data'!EC18) -> 14 | G19: =IF('Raw Data'!EE18="","",'Raw Data'!EE18) -> 0.5 | H19: =IF('Raw Data'!EF18="","",'Raw Data'!EF18/60) -> 0.4083333333
B20: =IF('Raw Data'!DY19="","",IF('Raw Data'!DY19="(not set)","*Google Does Not Provide due to https:",IF('Raw Data'!DY19="N/A","*Google Does Not Provide due to https:",'Raw Data'!DY19))) -> Security: Private Security for Golf Courses | Industrial Security | C20: =IF('Raw Data'!DZ19="","",'Raw Data'!DZ19) -> 2 | D20: =IF('Raw Data'!EA19="","",'Raw Data'!EA19) -> 1.5 | E20: =IF('Raw Data'!EB19="","",'Raw Data'!EB19/60) -> 0 | F20: =IF('Raw Data'!EC19="","",'Raw Data'!EC19) -> 0 | G20: =IF('Raw Data'!EE19="","",'Raw Data'!EE19) -> 1 | H20: =IF('Raw Data'!EF19="","",'Raw Data'!EF19/60) -> 0
B21: =IF('Raw Data'!DY20="","",IF('Raw Data'!DY20="(not set)","*Google Does Not Provide due to https:",IF('Raw Data'!DY20="N/A","*Google Does Not Provide due to https:",'Raw Data'!DY20))) -> Security: Private Security for Labor Strikes | Industrial Security | C21: =IF('Raw Data'!DZ20="","",'Raw Data'!DZ20) -> 2 | D21: =IF('Raw Data'!EA20="","",'Raw Data'!EA20) -> 3 | E21: =IF('Raw Data'!EB20="","",'Raw Data'!EB20/60) -> 0.5583333333 | F21: =IF('Raw Data'!EC20="","",'Raw Data'!EC20) -> 0 | G21: =IF('Raw Data'!EE20="","",'Raw Data'!EE20) -> 0 | H21: =IF('Raw Data'!EF20="","",'Raw Data'!EF20/60) -> 0.6416666667
B22: =IF('Raw Data'!DY21="","",IF('Raw Data'!DY21="(not set)","*Google Does Not Provide due to https:",IF('Raw Data'!DY21="N/A","*Google Does Not Provide due to https:",'Raw Data'!DY21))) -> Armed and Unarmed Security Guards | Industrial Security | C22: =IF('Raw Data'!DZ21="","",'Raw Data'!DZ21) -> 1 | D22: =IF('Raw Data'!EA21="","",'Raw Data'!EA21) -> 4 | E22: =IF('Raw Data'!EB21="","",'Raw Data'!EB21/60) -> 0.2055555556 | F22: =IF('Raw Data'!EC21="","",'Raw Data'!EC21) -> 0 | G22: =IF('Raw Data'!EE21="","",'Raw Data'!EE21) -> 1 | H22: =IF('Raw Data'!EF21="","",'Raw Data'!EF21/60) -> 0
B23: =IF('Raw Data'!DY22="","",IF('Raw Data'!DY22="(not set)","*Google Does Not Provide due to https:",IF('Raw Data'!DY22="N/A","*Google Does Not Provide due to https:",'Raw Data'!DY22))) -> Concierge Security Services: Lobby Attendant | Industrial Security | C23: =IF('Raw Data'!DZ22="","",'Raw Data'!DZ22) -> 1 | D23: =IF('Raw Data'!EA22="","",'Raw Data'!EA22) -> 7 | E23: =IF('Raw Data'!EB22="","",'Raw Data'!EB22/60) -> 3.288888889 | F23: =IF('Raw Data'!EC22="","",'Raw Data'!EC22) -> 0 | G23: =IF('Raw Data'!EE22="","",'Raw Data'!EE22) -> 1 | H23: =IF('Raw Data'!EF22="","",'Raw Data'!EF22/60) -> 0
B24: =IF('Raw Data'!DY23="","",IF('Raw Data'!DY23="(not set)","*Google Does Not Provide due to https:",IF('Raw Data'!DY23="N/A","*Google Does Not Provide due to https:",'Raw Data'!DY23))) -> Contact Us Today! | Industrial Security | C24: =IF('Raw Data'!DZ23="","",'Raw Data'!DZ23) -> 1 | D24: =IF('Raw Data'!EA23="","",'Raw Data'!EA23) -> 31 | E24: =IF('Raw Data'!EB23="","",'Raw Data'!EB23/60) -> 1.239333333 | F24: =IF('Raw Data'!EC23="","",'Raw Data'!EC23) -> 21 | G24: =IF('Raw Data'!EE23="","",'Raw Data'!EE23) -> 0 | H24: =IF('Raw Data'!EF23="","",'Raw Data'!EF23/60) -> 9.5
B25: =IF('Raw Data'!DY24="","",IF('Raw Data'!DY24="(not set)","*Google Does Not Provide due to https:",IF('Raw Data'!DY24="N/A","*Google Does Not Provide due to https:",'Raw Data'!DY24))) -> Private Investigations: Investigation Services | Industrial Security | C25: =IF('Raw Data'!DZ24="","",'Raw Data'!DZ24) -> 1 | D25: =IF('Raw Data'!EA24="","",'Raw Data'!EA24) -> 5 | E25: =IF('Raw Data'!EB24="","",'Raw Data'!EB24/60) -> 0.3 | F25: =IF('Raw Data'!EC24="","",'Raw Data'!EC24) -> 1 | G25: =IF('Raw Data'!EE24="","",'Raw Data'!EE24) -> 0 | H25: =IF('Raw Data'!EF24="","",'Raw Data'!EF24/60) -> 0.4833333333
B26: =IF('Raw Data'!DY25="","",IF('Raw Data'!DY25="(not set)","*Google Does Not Provide due to https:",IF('Raw Data'!DY25="N/A","*Google Does Not Provide due to https:",'Raw Data'!DY25))) -> Private Security Patrols | Industrial Security | C26: =IF('Raw Data'!DZ25="","",'Raw Data'!DZ25) -> 1 | D26: =IF('Raw Data'!EA25="","",'Raw Data'!EA25) -> 4 | E26: =IF('Raw Data'!EB25="","",'Raw Data'!EB25/60) -> 0.01666666667 | F26: =IF('Raw Data'!EC25="","",'Raw Data'!EC25) -> 0 | G26: =IF('Raw Data'!EE25="","",'Raw Data'!EE25) -> 1 | H26: =IF('Raw Data'!EF25="","",'Raw Data'!EF25/60) -> 0
B27: =IF('Raw Data'!DY26="","",IF('Raw Data'!DY26="(not set)","*Google Does Not Provide due to https:",IF('Raw Data'!DY26="N/A","*Google Does Not Provide due to https:",'Raw Data'!DY26))) -> Private Security: About Us | Industrial Security | C27: =IF('Raw Data'!DZ26="","",'Raw Data'!DZ26) -> 1 | D27: =IF('Raw Data'!EA26="","",'Raw Data'!EA26) -> 5 | E27: =IF('Raw Data'!EB26="","",'Raw Data'!EB26/60) -> 0.3791666667 | F27: =IF('Raw Data'!EC26="","",'Raw Data'!EC26) -> 0 | G27: =IF('Raw Data'!EE26="","",'Raw Data'!EE26) -> 1 | H27: =IF('Raw Data'!EF26="","",'Raw Data'!EF26/60) -> 0
B28: =IF('Raw Data'!DY27="","",IF('Raw Data'!DY27="(not set)","*Google Does Not Provide due to https:",IF('Raw Data'!DY27="N/A","*Google Does Not Provide due to https:",'Raw Data'!DY27))) -> Private Security: Temporary Security Services | Industrial Security | C28: =IF('Raw Data'!DZ27="","",'Raw Data'!DZ27) -> 1 | D28: =IF('Raw Data'!EA27="","",'Raw Data'!EA27) -> 6 | E28: =IF('Raw Data'!EB27="","",'Raw Data'!EB27/60) -> 1.576666667 | F28: =IF('Raw Data'!EC27="","",'Raw Data'!EC27) -> 1 | G28: =IF('Raw Data'!EE27="","",'Raw Data'!EE27) -> 0 | H28: =IF('Raw Data'!EF27="","",'Raw Data'!EF27/60) -> 6.5
B29: =IF('Raw Data'!DY28="","",IF('Raw Data'!DY28="(not set)","*Google Does Not Provide due to https:",IF('Raw Data'!DY28="N/A","*Google Does Not Provide due to https:",'Raw Data'!DY28))) -> Security Tips: Work Security | Industrial Security | C29: =IF('Raw Data'!DZ28="","",'Raw Data'!DZ28) -> 1 | D29: =IF('Raw Data'!EA28="","",'Raw Data'!EA28) -> 3 | E29: =IF('Raw Data'!EB28="","",'Raw Data'!EB28/60) -> 0.725 | F29: =IF('Raw Data'!EC28="","",'Raw Data'!EC28) -> 0 | G29: =IF('Raw Data'!EE28="","",'Raw Data'!EE28) -> 1 | H29: =IF('Raw Data'!EF28="","",'Raw Data'!EF28/60) -> 0
B30: =IF('Raw Data'!DY29="","",IF('Raw Data'!DY29="(not set)","*Google Does Not Provide due to https:",IF('Raw Data'!DY29="N/A","*Google Does Not Provide due to https:",'Raw Data'!DY29))) -> Security Training and Certification | Industrial Security | C30: =IF('Raw Data'!DZ29="","",'Raw Data'!DZ29) -> 1 | D30: =IF('Raw Data'!EA29="","",'Raw Data'!EA29) -> 13.5 | E30: =IF('Raw Data'!EB29="","",'Raw Data'!EB29/60) -> 0.7057971014 | F30: =IF('Raw Data'!EC29="","",'Raw Data'!EC29) -> 3 | G30: =IF('Raw Data'!EE29="","",'Raw Data'!EE29) -> 0 | H30: =IF('Raw Data'!EF29="","",'Raw Data'!EF29/60) -> 0.2416666667
B31: =IF('Raw Data'!DY30="","",IF('Raw Data'!DY30="(not set)","*Google Does Not Provide due to https:",IF('Raw Data'!DY30="N/A","*Google Does Not Provide due to https:",'Raw Data'!DY30))) -> Security: Manufacturing Security | Industrial Security | C31: =IF('Raw Data'!DZ30="","",'Raw Data'!DZ30) -> 1 | D31: =IF('Raw Data'!EA30="","",'Raw Data'!EA30) -> 2 | E31: =IF('Raw Data'!EB30="","",'Raw Data'!EB30/60) -> 0.01666666667 | F31: =IF('Raw Data'!EC30="","",'Raw Data'!EC30) -> 0 | G31: =IF('Raw Data'!EE30="","",'Raw Data'!EE30) -> 1 | H31: =IF('Raw Data'!EF30="","",'Raw Data'!EF30/60) -> 0
B32: =IF('Raw Data'!DY31="","",IF('Raw Data'!DY31="(not set)","*Google Does Not Provide due to https:",IF('Raw Data'!DY31="N/A","*Google Does Not Provide due to https:",'Raw Data'!DY31))) -> Security: Private Security for Hotels & Resorts | Industrial Security | C32: =IF('Raw Data'!DZ31="","",'Raw Data'!DZ31) -> 1 | D32: =IF('Raw Data'!EA31="","",'Raw Data'!EA31) -> 2 | E32: =IF('Raw Data'!EB31="","",'Raw Data'!EB31/60) -> 0.525 | F32: =IF('Raw Data'!EC31="","",'Raw Data'!EC31) -> 1 | G32: =IF('Raw Data'!EE31="","",'Raw Data'!EE31) -> 0 | H32: =IF('Raw Data'!EF31="","",'Raw Data'!EF31/60) -> 5.533333333
B33: =IF('Raw Data'!DY32="","",IF('Raw Data'!DY32="(not set)","*Google Does Not Provide due to https:",IF('Raw Data'!DY32="N/A","*Google Does Not Provide due to https:",'Raw Data'!DY32))) ->  | C33: =IF('Raw Data'!DZ32="","",'Raw Data'!DZ32) ->  | D33: =IF('Raw Data'!EA32="","",'Raw Data'!EA32) ->  | E33: =IF('Raw Data'!EB32="","",'Raw Data'!EB32/60) ->  | F33: =IF('Raw Data'!EC32="","",'Raw Data'!EC32) ->  | G33: =IF('Raw Data'!EE32="","",'Raw Data'!EE32) ->  | H33: =IF('Raw Data'!EF32="","",'Raw Data'!EF32/60) -> 
B34: =IF('Raw Data'!DY33="","",IF('Raw Data'!DY33="(not set)","*Google Does Not Provide due to https:",IF('Raw Data'!DY33="N/A","*Google Does Not Provide due to https:",'Raw Data'!DY33))) ->  | C34: =IF('Raw Data'!DZ33="","",'Raw Data'!DZ33) ->  | D34: =IF('Raw Data'!EA33="","",'Raw Data'!EA33) ->  | E34: =IF('Raw Data'!EB33="","",'Raw Data'!EB33/60) ->  | F34: =IF('Raw Data'!EC33="","",'Raw Data'!EC33) ->  | G34: =IF('Raw Data'!EE33="","",'Raw Data'!EE33) ->  | H34: =IF('Raw Data'!EF33="","",'Raw Data'!EF33/60) -> 
B35: =IF('Raw Data'!DY34="","",IF('Raw Data'!DY34="(not set)","*Google Does Not Provide due to https:",IF('Raw Data'!DY34="N/A","*Google Does Not Provide due to https:",'Raw Data'!DY34))) ->  | C35: =IF('Raw Data'!DZ34="","",'Raw Data'!DZ34) ->  | D35: =IF('Raw Data'!EA34="","",'Raw Data'!EA34) ->  | E35: =IF('Raw Data'!EB34="","",'Raw Data'!EB34/60) ->  | F35: =IF('Raw Data'!EC34="","",'Raw Data'!EC34) ->  | G35: =IF('Raw Data'!EE34="","",'Raw Data'!EE34) ->  | H35: =IF('Raw Data'!EF34="","",'Raw Data'!EF34/60) -> 
B36: =IF('Raw Data'!DY35="","",IF('Raw Data'!DY35="(not set)","*Google Does Not Provide due to https:",IF('Raw Data'!DY35="N/A","*Google Does Not Provide due to https:",'Raw Data'!DY35))) ->  | C36: =IF('Raw Data'!DZ35="","",'Raw Data'!DZ35) ->  | D36: =IF('Raw Data'!EA35="","",'Raw Data'!EA35) ->  | E36: =IF('Raw Data'!EB35="","",'Raw Data'!EB35/60) ->  | F36: =IF('Raw Data'!EC35="","",'Raw Data'!EC35) ->  | G36: =IF('Raw Data'!EE35="","",'Raw Data'!EE35) ->  | H36: =IF('Raw Data'!EF35="","",'Raw Data'!EF35/60) -> 
B37: =IF('Raw Data'!DY36="","",IF('Raw Data'!DY36="(not set)","*Google Does Not Provide due to https:",IF('Raw Data'!DY36="N/A","*Google Does Not Provide due to https:",'Raw Data'!DY36))) ->  | C37: =IF('Raw Data'!DZ36="","",'Raw Data'!DZ36) ->  | D37: =IF('Raw Data'!EA36="","",'Raw Data'!EA36) ->  | E37: =IF('Raw Data'!EB36="","",'Raw Data'!EB36/60) ->  | F37: =IF('Raw Data'!EC36="","",'Raw Data'!EC36) ->  | G37: =IF('Raw Data'!EE36="","",'Raw Data'!EE36) ->  | H37: =IF('Raw Data'!EF36="","",'Raw Data'!EF36/60) -> 
B38: =IF('Raw Data'!DY37="","",IF('Raw Data'!DY37="(not set)","*Google Does Not Provide due to https:",IF('Raw Data'!DY37="N/A","*Google Does Not Provide due to https:",'Raw Data'!DY37))) ->  | C38: =IF('Raw Data'!DZ37="","",'Raw Data'!DZ37) ->  | D38: =IF('Raw Data'!EA37="","",'Raw Data'!EA37) ->  | E38: =IF('Raw Data'!EB37="","",'Raw Data'!EB37/60) ->  | F38: =IF('Raw Data'!EC37="","",'Raw Data'!EC37) ->  | G38: =IF('Raw Data'!EE37="","",'Raw Data'!EE37) ->  | H38: =IF('Raw Data'!EF37="","",'Raw Data'!EF37/60) -> 
B39: =IF('Raw Data'!DY38="","",IF('Raw Data'!DY38="(not set)","*Google Does Not Provide due to https:",IF('Raw Data'!DY38="N/A","*Google Does Not Provide due to https:",'Raw Data'!DY38))) ->  | C39: =IF('Raw Data'!DZ38="","",'Raw Data'!DZ38) ->  | D39: =IF('Raw Data'!EA38="","",'Raw Data'!EA38) ->  | E39: =IF('Raw Data'!EB38="","",'Raw Data'!EB38/60) ->  | F39: =IF('Raw Data'!EC38="","",'Raw Data'!EC38) ->  | G39: =IF('Raw Data'!EE38="","",'Raw Data'!EE38) ->  | H39: =IF('Raw Data'!EF38="","",'Raw Data'!EF38/60) -> 
B40: =IF('Raw Data'!DY39="","",IF('Raw Data'!DY39="(not set)","*Google Does Not Provide due to https:",IF('Raw Data'!DY39="N/A","*Google Does Not Provide due to https:",'Raw Data'!DY39))) ->  | C40: =IF('Raw Data'!DZ39="","",'Raw Data'!DZ39) ->  | D40: =IF('Raw Data'!EA39="","",'Raw Data'!EA39) ->  | E40: =IF('Raw Data'!EB39="","",'Raw Data'!EB39/60) ->  | F40: =IF('Raw Data'!EC39="","",'Raw Data'!EC39) ->  | G40: =IF('Raw Data'!EE39="","",'Raw Data'!EE39) ->  | H40: =IF('Raw Data'!EF39="","",'Raw Data'!EF39/60) -> 
B41: =IF('Raw Data'!DY40="","",IF('Raw Data'!DY40="(not set)","*Google Does Not Provide due to https:",IF('Raw Data'!DY40="N/A","*Google Does Not Provide due to https:",'Raw Data'!DY40))) ->  | C41: =IF('Raw Data'!DZ40="","",'Raw Data'!DZ40) ->  | D41: =IF('Raw Data'!EA40="","",'Raw Data'!EA40) ->  | E41: =IF('Raw Data'!EB40="","",'Raw Data'!EB40/60) ->  | F41: =IF('Raw Data'!EC40="","",'Raw Data'!EC40) ->  | G41: =IF('Raw Data'!EE40="","",'Raw Data'!EE40) ->  | H41: =IF('Raw Data'!EF40="","",'Raw Data'!EF40/60) -> 
B42: =IF('Raw Data'!DY41="","",IF('Raw Data'!DY41="(not set)","*Google Does Not Provide due to https:",IF('Raw Data'!DY41="N/A","*Google Does Not Provide due to https:",'Raw Data'!DY41))) ->  | C42: =IF('Raw Data'!DZ41="","",'Raw Data'!DZ41) ->  | D42: =IF('Raw Data'!EA41="","",'Raw Data'!EA41) ->  | E42: =IF('Raw Data'!EB41="","",'Raw Data'!EB41/60) ->  | F42: =IF('Raw Data'!EC41="","",'Raw Data'!EC41) ->  | G42: =IF('Raw Data'!EE41="","",'Raw Data'!EE41) ->  | H42: =IF('Raw Data'!EF41="","",'Raw Data'!EF41/60) -> 
B43: =IF('Raw Data'!DY42="","",IF('Raw Data'!DY42="(not set)","*Google Does Not Provide due to https:",IF('Raw Data'!DY42="N/A","*Google Does Not Provide due to https:",'Raw Data'!DY42))) ->  | C43: =IF('Raw Data'!DZ42="","",'Raw Data'!DZ42) ->  | D43: =IF('Raw Data'!EA42="","",'Raw Data'!EA42) ->  | E43: =IF('Raw Data'!EB42="","",'Raw Data'!EB42/60) ->  | F43: =IF('Raw Data'!EC42="","",'Raw Data'!EC42) ->  | G43: =IF('Raw Data'!EE42="","",'Raw Data'!EE42) ->  | H43: =IF('Raw Data'!EF42="","",'Raw Data'!EF42/60) -> 
B44: =IF('Raw Data'!DY43="","",IF('Raw Data'!DY43="(not set)","*Google Does Not Provide due to https:",IF('Raw Data'!DY43="N/A","*Google Does Not Provide due to https:",'Raw Data'!DY43))) ->  | C44: =IF('Raw Data'!DZ43="","",'Raw Data'!DZ43) ->  | D44: =IF('Raw Data'!EA43="","",'Raw Data'!EA43) ->  | E44: =IF('Raw Data'!EB43="","",'Raw Data'!EB43/60) ->  | F44: =IF('Raw Data'!EC43="","",'Raw Data'!EC43) ->  | G44: =IF('Raw Data'!EE43="","",'Raw Data'!EE43) ->  | H44: =IF('Raw Data'!EF43="","",'Raw Data'!EF43/60) -> 
B45: =IF('Raw Data'!DY44="","",IF('Raw Data'!DY44="(not set)","*Google Does Not Provide due to https:",IF('Raw Data'!DY44="N/A","*Google Does Not Provide due to https:",'Raw Data'!DY44))) ->  | C45: =IF('Raw Data'!DZ44="","",'Raw Data'!DZ44) ->  | D45: =IF('Raw Data'!EA44="","",'Raw Data'!EA44) ->  | E45: =IF('Raw Data'!EB44="","",'Raw Data'!EB44/60) ->  | F45: =IF('Raw Data'!EC44="","",'Raw Data'!EC44) ->  | G45: =IF('Raw Data'!EE44="","",'Raw Data'!EE44) ->  | H45: =IF('Raw Data'!EF44="","",'Raw Data'!EF44/60) -> 
B46: =IF('Raw Data'!DY45="","",IF('Raw Data'!DY45="(not set)","*Google Does Not Provide due to https:",IF('Raw Data'!DY45="N/A","*Google Does Not Provide due to https:",'Raw Data'!DY45))) ->  | C46: =IF('Raw Data'!DZ45="","",'Raw Data'!DZ45) ->  | D46: =IF('Raw Data'!EA45="","",'Raw Data'!EA45) ->  | E46: =IF('Raw Data'!EB45="","",'Raw Data'!EB45/60) ->  | F46: =IF('Raw Data'!EC45="","",'Raw Data'!EC45) ->  | G46: =IF('Raw Data'!EE45="","",'Raw Data'!EE45) ->  | H46: =IF('Raw Data'!EF45="","",'Raw Data'!EF45/60) -> 
B47: =IF('Raw Data'!DY46="","",IF('Raw Data'!DY46="(not set)","*Google Does Not Provide due to https:",IF('Raw Data'!DY46="N/A","*Google Does Not Provide due to https:",'Raw Data'!DY46))) ->  | C47: =IF('Raw Data'!DZ46="","",'Raw Data'!DZ46) ->  | D47: =IF('Raw Data'!EA46="","",'Raw Data'!EA46) ->  | E47: =IF('Raw Data'!EB46="","",'Raw Data'!EB46/60) ->  | F47: =IF('Raw Data'!EC46="","",'Raw Data'!EC46) ->  | G47: =IF('Raw Data'!EE46="","",'Raw Data'!EE46) ->  | H47: =IF('Raw Data'!EF46="","",'Raw Data'!EF46/60) -> 
B48: =IF('Raw Data'!DY47="","",IF('Raw Data'!DY47="(not set)","*Google Does Not Provide due to https:",IF('Raw Data'!DY47="N/A","*Google Does Not Provide due to https:",'Raw Data'!DY47))) ->  | C48: =IF('Raw Data'!DZ47="","",'Raw Data'!DZ47) ->  | D48: =IF('Raw Data'!EA47="","",'Raw Data'!EA47) ->  | E48: =IF('Raw Data'!EB47="","",'Raw Data'!EB47/60) ->  | F48: =IF('Raw Data'!EC47="","",'Raw Data'!EC47) ->  | G48: =IF('Raw Data'!EE47="","",'Raw Data'!EE47) ->  | H48: =IF('Raw Data'!EF47="","",'Raw Data'!EF47/60) -> 
B49: =IF('Raw Data'!DY48="","",IF('Raw Data'!DY48="(not set)","*Google Does Not Provide due to https:",IF('Raw Data'!DY48="N/A","*Google Does Not Provide due to https:",'Raw Data'!DY48))) ->  | C49: =IF('Raw Data'!DZ48="","",'Raw Data'!DZ48) ->  | D49: =IF('Raw Data'!EA48="","",'Raw Data'!EA48) ->  | E49: =IF('Raw Data'!EB48="","",'Raw Data'!EB48/60) ->  | F49: =IF('Raw Data'!EC48="","",'Raw Data'!EC48) ->  | G49: =IF('Raw Data'!EE48="","",'Raw Data'!EE48) ->  | H49: =IF('Raw Data'!EF48="","",'Raw Data'!EF48/60) -> 
B50: =IF('Raw Data'!DY49="","",IF('Raw Data'!DY49="(not set)","*Google Does Not Provide due to https:",IF('Raw Data'!DY49="N/A","*Google Does Not Provide due to https:",'Raw Data'!DY49))) ->  | C50: =IF('Raw Data'!DZ49="","",'Raw Data'!DZ49) ->  | D50: =IF('Raw Data'!EA49="","",'Raw Data'!EA49) ->  | E50: =IF('Raw Data'!EB49="","",'Raw Data'!EB49/60) ->  | F50: =IF('Raw Data'!EC49="","",'Raw Data'!EC49) ->  | G50: =IF('Raw Data'!EE49="","",'Raw Data'!EE49) ->  | H50: =IF('Raw Data'!EF49="","",'Raw Data'!EF49/60) -> 
B51: =IF('Raw Data'!DY50="","",IF('Raw Data'!DY50="(not set)","*Google Does Not Provide due to https:",IF('Raw Data'!DY50="N/A","*Google Does Not Provide due to https:",'Raw Data'!DY50))) ->  | C51: =IF('Raw Data'!DZ50="","",'Raw Data'!DZ50) ->  | D51: =IF('Raw Data'!EA50="","",'Raw Data'!EA50) ->  | E51: =IF('Raw Data'!EB50="","",'Raw Data'!EB50/60) ->  | F51: =IF('Raw Data'!EC50="","",'Raw Data'!EC50) ->  | G51: =IF('Raw Data'!EE50="","",'Raw Data'!EE50) ->  | H51: =IF('Raw Data'!EF50="","",'Raw Data'!EF50/60) -> 
B52: =IF('Raw Data'!DY51="","",IF('Raw Data'!DY51="(not set)","*Google Does Not Provide due to https:",IF('Raw Data'!DY51="N/A","*Google Does Not Provide due to https:",'Raw Data'!DY51))) ->  | C52: =IF('Raw Data'!DZ51="","",'Raw Data'!DZ51) ->  | D52: =IF('Raw Data'!EA51="","",'Raw Data'!EA51) ->  | E52: =IF('Raw Data'!EB51="","",'Raw Data'!EB51/60) ->  | F52: =IF('Raw Data'!EC51="","",'Raw Data'!EC51) ->  | G52: =IF('Raw Data'!EE51="","",'Raw Data'!EE51) ->  | H52: =IF('Raw Data'!EF51="","",'Raw Data'!EF51/60) -> 
B53: =IF('Raw Data'!DY52="","",IF('Raw Data'!DY52="(not set)","*Google Does Not Provide due to https:",IF('Raw Data'!DY52="N/A","*Google Does Not Provide due to https:",'Raw Data'!DY52))) ->  | C53: =IF('Raw Data'!DZ52="","",'Raw Data'!DZ52) ->  | D53: =IF('Raw Data'!EA52="","",'Raw Data'!EA52) ->  | E53: =IF('Raw Data'!EB52="","",'Raw Data'!EB52/60) ->  | F53: =IF('Raw Data'!EC52="","",'Raw Data'!EC52) ->  | G53: =IF('Raw Data'!EE52="","",'Raw Data'!EE52) ->  | H53: =IF('Raw Data'!EF52="","",'Raw Data'!EF52/60) -> 
B54: =IF('Raw Data'!DY53="","",IF('Raw Data'!DY53="(not set)","*Google Does Not Provide due to https:",IF('Raw Data'!DY53="N/A","*Google Does Not Provide due to https:",'Raw Data'!DY53))) ->  | C54: =IF('Raw Data'!DZ53="","",'Raw Data'!DZ53) ->  | D54: =IF('Raw Data'!EA53="","",'Raw Data'!EA53) ->  | E54: =IF('Raw Data'!EB53="","",'Raw Data'!EB53/60) ->  | F54: =IF('Raw Data'!EC53="","",'Raw Data'!EC53) ->  | G54: =IF('Raw Data'!EE53="","",'Raw Data'!EE53) ->  | H54: =IF('Raw Data'!EF53="","",'Raw Data'!EF53/60) -> 
B55: =IF('Raw Data'!DY54="","",IF('Raw Data'!DY54="(not set)","*Google Does Not Provide due to https:",IF('Raw Data'!DY54="N/A","*Google Does Not Provide due to https:",'Raw Data'!DY54))) ->  | C55: =IF('Raw Data'!DZ54="","",'Raw Data'!DZ54) ->  | D55: =IF('Raw Data'!EA54="","",'Raw Data'!EA54) ->  | E55: =IF('Raw Data'!EB54="","",'Raw Data'!EB54/60) ->  | F55: =IF('Raw Data'!EC54="","",'Raw Data'!EC54) ->  | G55: =IF('Raw Data'!EE54="","",'Raw Data'!EE54) ->  | H55: =IF('Raw Data'!EF54="","",'Raw Data'!EF54/60) -> 
B56: =IF('Raw Data'!DY55="","",IF('Raw Data'!DY55="(not set)","*Google Does Not Provide due to https:",IF('Raw Data'!DY55="N/A","*Google Does Not Provide due to https:",'Raw Data'!DY55))) ->  | C56: =IF('Raw Data'!DZ55="","",'Raw Data'!DZ55) ->  | D56: =IF('Raw Data'!EA55="","",'Raw Data'!EA55) ->  | E56: =IF('Raw Data'!EB55="","",'Raw Data'!EB55/60) ->  | F56: =IF('Raw Data'!EC55="","",'Raw Data'!EC55) ->  | G56: =IF('Raw Data'!EE55="","",'Raw Data'!EE55) ->  | H56: =IF('Raw Data'!EF55="","",'Raw Data'!EF55/60) -> 
B57: =IF('Raw Data'!DY56="","",IF('Raw Data'!DY56="(not set)","*Google Does Not Provide due to https:",IF('Raw Data'!DY56="N/A","*Google Does Not Provide due to https:",'Raw Data'!DY56))) ->  | C57: =IF('Raw Data'!DZ56="","",'Raw Data'!DZ56) ->  | D57: =IF('Raw Data'!EA56="","",'Raw Data'!EA56) ->  | E57: =IF('Raw Data'!EB56="","",'Raw Data'!EB56/60) ->  | F57: =IF('Raw Data'!EC56="","",'Raw Data'!EC56) ->  | G57: =IF('Raw Data'!EE56="","",'Raw Data'!EE56) ->  | H57: =IF('Raw Data'!EF56="","",'Raw Data'!EF56/60) -> 
B58: =IF('Raw Data'!DY57="","",IF('Raw Data'!DY57="(not set)","*Google Does Not Provide due to https:",IF('Raw Data'!DY57="N/A","*Google Does Not Provide due to https:",'Raw Data'!DY57))) ->  | C58: =IF('Raw Data'!DZ57="","",'Raw Data'!DZ57) ->  | D58: =IF('Raw Data'!EA57="","",'Raw Data'!EA57) ->  | E58: =IF('Raw Data'!EB57="","",'Raw Data'!EB57/60) ->  | F58: =IF('Raw Data'!EC57="","",'Raw Data'!EC57) ->  | G58: =IF('Raw Data'!EE57="","",'Raw Data'!EE57) ->  | H58: =IF('Raw Data'!EF57="","",'Raw Data'!EF57/60) -> 
B59: =IF('Raw Data'!DY58="","",IF('Raw Data'!DY58="(not set)","*Google Does Not Provide due to https:",IF('Raw Data'!DY58="N/A","*Google Does Not Provide due to https:",'Raw Data'!DY58))) ->  | C59: =IF('Raw Data'!DZ58="","",'Raw Data'!DZ58) ->  | D59: =IF('Raw Data'!EA58="","",'Raw Data'!EA58) ->  | E59: =IF('Raw Data'!EB58="","",'Raw Data'!EB58/60) ->  | F59: =IF('Raw Data'!EC58="","",'Raw Data'!EC58) ->  | G59: =IF('Raw Data'!EE58="","",'Raw Data'!EE58) ->  | H59: =IF('Raw Data'!EF58="","",'Raw Data'!EF58/60) -> 
B60: =IF('Raw Data'!DY59="","",IF('Raw Data'!DY59="(not set)","*Google Does Not Provide due to https:",IF('Raw Data'!DY59="N/A","*Google Does Not Provide due to https:",'Raw Data'!DY59))) ->  | C60: =IF('Raw Data'!DZ59="","",'Raw Data'!DZ59) ->  | D60: =IF('Raw Data'!EA59="","",'Raw Data'!EA59) ->  | E60: =IF('Raw Data'!EB59="","",'Raw Data'!EB59/60) ->  | F60: =IF('Raw Data'!EC59="","",'Raw Data'!EC59) ->  | G60: =IF('Raw Data'!EE59="","",'Raw Data'!EE59) ->  | H60: =IF('Raw Data'!EF59="","",'Raw Data'!EF59/60) -> 
B61: =IF('Raw Data'!DY60="","",IF('Raw Data'!DY60="(not set)","*Google Does Not Provide due to https:",IF('Raw Data'!DY60="N/A","*Google Does Not Provide due to https:",'Raw Data'!DY60))) ->  | C61: =IF('Raw Data'!DZ60="","",'Raw Data'!DZ60) ->  | D61: =IF('Raw Data'!EA60="","",'Raw Data'!EA60) ->  | E61: =IF('Raw Data'!EB60="","",'Raw Data'!EB60/60) ->  | F61: =IF('Raw Data'!EC60="","",'Raw Data'!EC60) ->  | G61: =IF('Raw Data'!EE60="","",'Raw Data'!EE60) ->  | H61: =IF('Raw Data'!EF60="","",'Raw Data'!EF60/60) -> 
B62: =IF('Raw Data'!DY61="","",IF('Raw Data'!DY61="(not set)","*Google Does Not Provide due to https:",IF('Raw Data'!DY61="N/A","*Google Does Not Provide due to https:",'Raw Data'!DY61))) ->  | C62: =IF('Raw Data'!DZ61="","",'Raw Data'!DZ61) ->  | D62: =IF('Raw Data'!EA61="","",'Raw Data'!EA61) ->  | E62: =IF('Raw Data'!EB61="","",'Raw Data'!EB61/60) ->  | F62: =IF('Raw Data'!EC61="","",'Raw Data'!EC61) ->  | G62: =IF('Raw Data'!EE61="","",'Raw Data'!EE61) ->  | H62: =IF('Raw Data'!EF61="","",'Raw Data'!EF61/60) -> 
B63: =IF('Raw Data'!DY62="","",IF('Raw Data'!DY62="(not set)","*Google Does Not Provide due to https:",IF('Raw Data'!DY62="N/A","*Google Does Not Provide due to https:",'Raw Data'!DY62))) ->  | C63: =IF('Raw Data'!DZ62="","",'Raw Data'!DZ62) ->  | D63: =IF('Raw Data'!EA62="","",'Raw Data'!EA62) ->  | E63: =IF('Raw Data'!EB62="","",'Raw Data'!EB62/60) ->  | F63: =IF('Raw Data'!EC62="","",'Raw Data'!EC62) ->  | G63: =IF('Raw Data'!EE62="","",'Raw Data'!EE62) ->  | H63: =IF('Raw Data'!EF62="","",'Raw Data'!EF62/60) -> 
B64: =IF('Raw Data'!DY63="","",IF('Raw Data'!DY63="(not set)","*Google Does Not Provide due to https:",IF('Raw Data'!DY63="N/A","*Google Does Not Provide due to https:",'Raw Data'!DY63))) ->  | C64: =IF('Raw Data'!DZ63="","",'Raw Data'!DZ63) ->  | D64: =IF('Raw Data'!EA63="","",'Raw Data'!EA63) ->  | E64: =IF('Raw Data'!EB63="","",'Raw Data'!EB63/60) ->  | G64: =IF('Raw Data'!EE63="","",'Raw Data'!EE63) ->  | H64: =IF('Raw Data'!EF63="","",'Raw Data'!EF63/60) -> 
B65: =IF('Raw Data'!DY64="","",IF('Raw Data'!DY64="(not set)","*Google Does Not Provide due to https:",IF('Raw Data'!DY64="N/A","*Google Does Not Provide due to https:",'Raw Data'!DY64))) ->  | C65: =IF('Raw Data'!DZ64="","",'Raw Data'!DZ64) ->  | D65: =IF('Raw Data'!EA64="","",'Raw Data'!EA64) ->  | E65: =IF('Raw Data'!EB64="","",'Raw Data'!EB64/60) ->  | F65: =IF('Raw Data'!EC64="","",'Raw Data'!EC64) ->  | G65: =IF('Raw Data'!EE64="","",'Raw Data'!EE64) ->  | H65: =IF('Raw Data'!EF64="","",'Raw Data'!EF64/60) -> 
B66: =IF('Raw Data'!DY65="","",IF('Raw Data'!DY65="(not set)","*Google Does Not Provide due to https:",IF('Raw Data'!DY65="N/A","*Google Does Not Provide due to https:",'Raw Data'!DY65))) ->  | C66: =IF('Raw Data'!DZ65="","",'Raw Data'!DZ65) ->  | D66: =IF('Raw Data'!EA65="","",'Raw Data'!EA65) ->  | E66: =IF('Raw Data'!EB65="","",'Raw Data'!EB65/60) ->  | F66: =IF('Raw Data'!EC65="","",'Raw Data'!EC65) ->  | G66: =IF('Raw Data'!EE65="","",'Raw Data'!EE65) ->  | H66: =IF('Raw Data'!EF65="","",'Raw Data'!EF65/60) -> 
B67: =IF('Raw Data'!DY66="","",IF('Raw Data'!DY66="(not set)","*Google Does Not Provide due to https:",IF('Raw Data'!DY66="N/A","*Google Does Not Provide due to https:",'Raw Data'!DY66))) ->  | C67: =IF('Raw Data'!DZ66="","",'Raw Data'!DZ66) ->  | D67: =IF('Raw Data'!EA66="","",'Raw Data'!EA66) ->  | E67: =IF('Raw Data'!EB66="","",'Raw Data'!EB66/60) ->  | F67: =IF('Raw Data'!EC66="","",'Raw Data'!EC66) ->  | G67: =IF('Raw Data'!EE66="","",'Raw Data'!EE66) ->  | H67: =IF('Raw Data'!EF66="","",'Raw Data'!EF66/60) -> 
B68: =IF('Raw Data'!DY67="","",IF('Raw Data'!DY67="(not set)","*Google Does Not Provide due to https:",IF('Raw Data'!DY67="N/A","*Google Does Not Provide due to https:",'Raw Data'!DY67))) ->  | C68: =IF('Raw Data'!DZ67="","",'Raw Data'!DZ67) ->  | D68: =IF('Raw Data'!EA67="","",'Raw Data'!EA67) ->  | E68: =IF('Raw Data'!EB67="","",'Raw Data'!EB67/60) ->  | F68: =IF('Raw Data'!EC67="","",'Raw Data'!EC67) ->  | G68: =IF('Raw Data'!EE67="","",'Raw Data'!EE67) ->  | H68: =IF('Raw Data'!EF67="","",'Raw Data'!EF67/60) -> 
B69: =IF('Raw Data'!DY68="","",IF('Raw Data'!DY68="(not set)","*Google Does Not Provide due to https:",IF('Raw Data'!DY68="N/A","*Google Does Not Provide due to https:",'Raw Data'!DY68))) ->  | C69: =IF('Raw Data'!DZ68="","",'Raw Data'!DZ68) ->  | D69: =IF('Raw Data'!EA68="","",'Raw Data'!EA68) ->  | E69: =IF('Raw Data'!EB68="","",'Raw Data'!EB68/60) ->  | F69: =IF('Raw Data'!EC68="","",'Raw Data'!EC68) ->  | G69: =IF('Raw Data'!EE68="","",'Raw Data'!EE68) ->  | H69: =IF('Raw Data'!EF68="","",'Raw Data'!EF68/60) -> 
B70: =IF('Raw Data'!DY69="","",IF('Raw Data'!DY69="(not set)","*Google Does Not Provide due to https:",IF('Raw Data'!DY69="N/A","*Google Does Not Provide due to https:",'Raw Data'!DY69))) ->  | C70: =IF('Raw Data'!DZ69="","",'Raw Data'!DZ69) ->  | D70: =IF('Raw Data'!EA69="","",'Raw Data'!EA69) ->  | E70: =IF('Raw Data'!EB69="","",'Raw Data'!EB69/60) ->  | F70: =IF('Raw Data'!EC69="","",'Raw Data'!EC69) ->  | G70: =IF('Raw Data'!EE69="","",'Raw Data'!EE69) ->  | H70: =IF('Raw Data'!EF69="","",'Raw Data'!EF69/60) -> 
B71: =IF('Raw Data'!DY70="","",IF('Raw Data'!DY70="(not set)","*Google Does Not Provide due to https:",IF('Raw Data'!DY70="N/A","*Google Does Not Provide due to https:",'Raw Data'!DY70))) ->  | C71: =IF('Raw Data'!DZ70="","",'Raw Data'!DZ70) ->  | D71: =IF('Raw Data'!EA70="","",'Raw Data'!EA70) ->  | E71: =IF('Raw Data'!EB70="","",'Raw Data'!EB70/60) ->  | F71: =IF('Raw Data'!EC70="","",'Raw Data'!EC70) ->  | G71: =IF('Raw Data'!EE70="","",'Raw Data'!EE70) ->  | H71: =IF('Raw Data'!EF70="","",'Raw Data'!EF70/60) -> 
B72: =IF('Raw Data'!DY71="","",IF('Raw Data'!DY71="(not set)","*Google Does Not Provide due to https:",IF('Raw Data'!DY71="N/A","*Google Does Not Provide due to https:",'Raw Data'!DY71))) ->  | C72: =IF('Raw Data'!DZ71="","",'Raw Data'!DZ71) ->  | D72: =IF('Raw Data'!EA71="","",'Raw Data'!EA71) ->  | E72: =IF('Raw Data'!EB71="","",'Raw Data'!EB71/60) ->  | F72: =IF('Raw Data'!EC71="","",'Raw Data'!EC71) ->  | G72: =IF('Raw Data'!EE71="","",'Raw Data'!EE71) ->  | H72: =IF('Raw Data'!EF71="","",'Raw Data'!EF71/60) -> 
B73: =IF('Raw Data'!DY72="","",IF('Raw Data'!DY72="(not set)","*Google Does Not Provide due to https:",IF('Raw Data'!DY72="N/A","*Google Does Not Provide due to https:",'Raw Data'!DY72))) ->  | C73: =IF('Raw Data'!DZ72="","",'Raw Data'!DZ72) ->  | D73: =IF('Raw Data'!EA72="","",'Raw Data'!EA72) ->  | E73: =IF('Raw Data'!EB72="","",'Raw Data'!EB72/60) ->  | F73: =IF('Raw Data'!EC72="","",'Raw Data'!EC72) ->  | G73: =IF('Raw Data'!EE72="","",'Raw Data'!EE72) ->  | H73: =IF('Raw Data'!EF72="","",'Raw Data'!EF72/60) -> 
B74: =IF('Raw Data'!DY73="","",IF('Raw Data'!DY73="(not set)","*Google Does Not Provide due to https:",IF('Raw Data'!DY73="N/A","*Google Does Not Provide due to https:",'Raw Data'!DY73))) ->  | C74: =IF('Raw Data'!DZ73="","",'Raw Data'!DZ73) ->  | D74: =IF('Raw Data'!EA73="","",'Raw Data'!EA73) ->  | E74: =IF('Raw Data'!EB73="","",'Raw Data'!EB73/60) ->  | F74: =IF('Raw Data'!EC73="","",'Raw Data'!EC73) ->  | G74: =IF('Raw Data'!EE73="","",'Raw Data'!EE73) ->  | H74: =IF('Raw Data'!EF73="","",'Raw Data'!EF73/60) -> 
B75: =IF('Raw Data'!DY74="","",IF('Raw Data'!DY74="(not set)","*Google Does Not Provide due to https:",IF('Raw Data'!DY74="N/A","*Google Does Not Provide due to https:",'Raw Data'!DY74))) ->  | C75: =IF('Raw Data'!DZ74="","",'Raw Data'!DZ74) ->  | D75: =IF('Raw Data'!EA74="","",'Raw Data'!EA74) ->  | E75: =IF('Raw Data'!EB74="","",'Raw Data'!EB74/60) ->  | F75: =IF('Raw Data'!EC74="","",'Raw Data'!EC74) ->  | G75: =IF('Raw Data'!EE74="","",'Raw Data'!EE74) ->  | H75: =IF('Raw Data'!EF74="","",'Raw Data'!EF74/60) -> 
B76: =IF('Raw Data'!DY75="","",IF('Raw Data'!DY75="(not set)","*Google Does Not Provide due to https:",IF('Raw Data'!DY75="N/A","*Google Does Not Provide due to https:",'Raw Data'!DY75))) ->  | C76: =IF('Raw Data'!DZ75="","",'Raw Data'!DZ75) ->  | D76: =IF('Raw Data'!EA75="","",'Raw Data'!EA75) ->  | E76: =IF('Raw Data'!EB75="","",'Raw Data'!EB75/60) ->  | F76: =IF('Raw Data'!EC75="","",'Raw Data'!EC75) ->  | G76: =IF('Raw Data'!EE75="","",'Raw Data'!EE75) ->  | H76: =IF('Raw Data'!EF75="","",'Raw Data'!EF75/60) -> 
B77: =IF('Raw Data'!DY76="","",IF('Raw Data'!DY76="(not set)","*Google Does Not Provide due to https:",IF('Raw Data'!DY76="N/A","*Google Does Not Provide due to https:",'Raw Data'!DY76))) ->  | C77: =IF('Raw Data'!DZ76="","",'Raw Data'!DZ76) ->  | D77: =IF('Raw Data'!EA76="","",'Raw Data'!EA76) ->  | E77: =IF('Raw Data'!EB76="","",'Raw Data'!EB76/60) ->  | F77: =IF('Raw Data'!EC76="","",'Raw Data'!EC76) ->  | G77: =IF('Raw Data'!EE76="","",'Raw Data'!EE76) ->  | H77: =IF('Raw Data'!EF76="","",'Raw Data'!EF76/60) -> 
B78: =IF('Raw Data'!DY77="","",IF('Raw Data'!DY77="(not set)","*Google Does Not Provide due to https:",IF('Raw Data'!DY77="N/A","*Google Does Not Provide due to https:",'Raw Data'!DY77))) ->  | C78: =IF('Raw Data'!DZ77="","",'Raw Data'!DZ77) ->  | D78: =IF('Raw Data'!EA77="","",'Raw Data'!EA77) ->  | E78: =IF('Raw Data'!EB77="","",'Raw Data'!EB77/60) ->  | F78: =IF('Raw Data'!EC77="","",'Raw Data'!EC77) ->  | G78: =IF('Raw Data'!EE77="","",'Raw Data'!EE77) ->  | H78: =IF('Raw Data'!EF77="","",'Raw Data'!EF77/60) -> 
B79: =IF('Raw Data'!DY78="","",IF('Raw Data'!DY78="(not set)","*Google Does Not Provide due to https:",IF('Raw Data'!DY78="N/A","*Google Does Not Provide due to https:",'Raw Data'!DY78))) ->  | C79: =IF('Raw Data'!DZ78="","",'Raw Data'!DZ78) ->  | D79: =IF('Raw Data'!EA78="","",'Raw Data'!EA78) ->  | E79: =IF('Raw Data'!EB78="","",'Raw Data'!EB78/60) ->  | F79: =IF('Raw Data'!EC78="","",'Raw Data'!EC78) ->  | G79: =IF('Raw Data'!EE78="","",'Raw Data'!EE78) ->  | H79: =IF('Raw Data'!EF78="","",'Raw Data'!EF78/60) -> 
B80: =IF('Raw Data'!DY79="","",IF('Raw Data'!DY79="(not set)","*Google Does Not Provide due to https:",IF('Raw Data'!DY79="N/A","*Google Does Not Provide due to https:",'Raw Data'!DY79))) ->  | C80: =IF('Raw Data'!DZ79="","",'Raw Data'!DZ79) ->  | D80: =IF('Raw Data'!EA79="","",'Raw Data'!EA79) ->  | E80: =IF('Raw Data'!EB79="","",'Raw Data'!EB79/60) ->  | F80: =IF('Raw Data'!EC79="","",'Raw Data'!EC79) ->  | G80: =IF('Raw Data'!EE79="","",'Raw Data'!EE79) ->  | H80: =IF('Raw Data'!EF79="","",'Raw Data'!EF79/60) -> 
B81: =IF('Raw Data'!DY80="","",IF('Raw Data'!DY80="(not set)","*Google Does Not Provide due to https:",IF('Raw Data'!DY80="N/A","*Google Does Not Provide due to https:",'Raw Data'!DY80))) ->  | C81: =IF('Raw Data'!DZ80="","",'Raw Data'!DZ80) ->  | D81: =IF('Raw Data'!EA80="","",'Raw Data'!EA80) ->  | E81: =IF('Raw Data'!EB80="","",'Raw Data'!EB80/60) ->  | F81: =IF('Raw Data'!EC80="","",'Raw Data'!EC80) ->  | G81: =IF('Raw Data'!EE80="","",'Raw Data'!EE80) ->  | H81: =IF('Raw Data'!EF80="","",'Raw Data'!EF80/60) -> 
B82: =IF('Raw Data'!DY81="","",IF('Raw Data'!DY81="(not set)","*Google Does Not Provide due to https:",IF('Raw Data'!DY81="N/A","*Google Does Not Provide due to https:",'Raw Data'!DY81))) ->  | C82: =IF('Raw Data'!DZ81="","",'Raw Data'!DZ81) ->  | D82: =IF('Raw Data'!EA81="","",'Raw Data'!EA81) ->  | E82: =IF('Raw Data'!EB81="","",'Raw Data'!EB81/60) ->  | F82: =IF('Raw Data'!EC81="","",'Raw Data'!EC81) ->  | G82: =IF('Raw Data'!EE81="","",'Raw Data'!EE81) ->  | H82: =IF('Raw Data'!EF81="","",'Raw Data'!EF81/60) -> 
B83: =IF('Raw Data'!DY82="","",IF('Raw Data'!DY82="(not set)","*Google Does Not Provide due to https:",IF('Raw Data'!DY82="N/A","*Google Does Not Provide due to https:",'Raw Data'!DY82))) ->  | C83: =IF('Raw Data'!DZ82="","",'Raw Data'!DZ82) ->  | D83: =IF('Raw Data'!EA82="","",'Raw Data'!EA82) ->  | E83: =IF('Raw Data'!EB82="","",'Raw Data'!EB82/60) ->  | F83: =IF('Raw Data'!EC82="","",'Raw Data'!EC82) ->  | G83: =IF('Raw Data'!EE82="","",'Raw Data'!EE82) ->  | H83: =IF('Raw Data'!EF82="","",'Raw Data'!EF82/60) -> 
B84: =IF('Raw Data'!DY83="","",IF('Raw Data'!DY83="(not set)","*Google Does Not Provide due to https:",IF('Raw Data'!DY83="N/A","*Google Does Not Provide due to https:",'Raw Data'!DY83))) ->  | C84: =IF('Raw Data'!DZ83="","",'Raw Data'!DZ83) ->  | D84: =IF('Raw Data'!EA83="","",'Raw Data'!EA83) ->  | E84: =IF('Raw Data'!EB83="","",'Raw Data'!EB83/60) ->  | F84: =IF('Raw Data'!EC83="","",'Raw Data'!EC83) ->  | G84: =IF('Raw Data'!EE83="","",'Raw Data'!EE83) ->  | H84: =IF('Raw Data'!EF83="","",'Raw Data'!EF83/60) -> 
B85: =IF('Raw Data'!DY84="","",IF('Raw Data'!DY84="(not set)","*Google Does Not Provide due to https:",IF('Raw Data'!DY84="N/A","*Google Does Not Provide due to https:",'Raw Data'!DY84))) ->  | C85: =IF('Raw Data'!DZ84="","",'Raw Data'!DZ84) ->  | D85: =IF('Raw Data'!EA84="","",'Raw Data'!EA84) ->  | E85: =IF('Raw Data'!EB84="","",'Raw Data'!EB84/60) ->  | F85: =IF('Raw Data'!EC84="","",'Raw Data'!EC84) ->  | G85: =IF('Raw Data'!EE84="","",'Raw Data'!EE84) ->  | H85: =IF('Raw Data'!EF84="","",'Raw Data'!EF84/60) -> 
B86: =IF('Raw Data'!DY85="","",IF('Raw Data'!DY85="(not set)","*Google Does Not Provide due to https:",IF('Raw Data'!DY85="N/A","*Google Does Not Provide due to https:",'Raw Data'!DY85))) ->  | C86: =IF('Raw Data'!DZ85="","",'Raw Data'!DZ85) ->  | D86: =IF('Raw Data'!EA85="","",'Raw Data'!EA85) ->  | E86: =IF('Raw Data'!EB85="","",'Raw Data'!EB85/60) ->  | F86: =IF('Raw Data'!EC85="","",'Raw Data'!EC85) ->  | G86: =IF('Raw Data'!EE85="","",'Raw Data'!EE85) ->  | H86: =IF('Raw Data'!EF85="","",'Raw Data'!EF85/60) -> 
B87: =IF('Raw Data'!DY86="","",IF('Raw Data'!DY86="(not set)","*Google Does Not Provide due to https:",IF('Raw Data'!DY86="N/A","*Google Does Not Provide due to https:",'Raw Data'!DY86))) ->  | C87: =IF('Raw Data'!DZ86="","",'Raw Data'!DZ86) ->  | D87: =IF('Raw Data'!EA86="","",'Raw Data'!EA86) ->  | E87: =IF('Raw Data'!EB86="","",'Raw Data'!EB86/60) ->  | F87: =IF('Raw Data'!EC86="","",'Raw Data'!EC86) ->  | G87: =IF('Raw Data'!EE86="","",'Raw Data'!EE86) ->  | H87: =IF('Raw Data'!EF86="","",'Raw Data'!EF86/60) -> 
B88: =IF('Raw Data'!DY87="","",IF('Raw Data'!DY87="(not set)","*Google Does Not Provide due to https:",IF('Raw Data'!DY87="N/A","*Google Does Not Provide due to https:",'Raw Data'!DY87))) ->  | C88: =IF('Raw Data'!DZ87="","",'Raw Data'!DZ87) ->  | D88: =IF('Raw Data'!EA87="","",'Raw Data'!EA87) ->  | E88: =IF('Raw Data'!EB87="","",'Raw Data'!EB87/60) ->  | F88: =IF('Raw Data'!EC87="","",'Raw Data'!EC87) ->  | G88: =IF('Raw Data'!EE87="","",'Raw Data'!EE87) ->  | H88: =IF('Raw Data'!EF87="","",'Raw Data'!EF87/60) -> 
B89: =IF('Raw Data'!DY88="","",IF('Raw Data'!DY88="(not set)","*Google Does Not Provide due to https:",IF('Raw Data'!DY88="N/A","*Google Does Not Provide due to https:",'Raw Data'!DY88))) ->  | C89: =IF('Raw Data'!DZ88="","",'Raw Data'!DZ88) ->  | D89: =IF('Raw Data'!EA88="","",'Raw Data'!EA88) ->  | E89: =IF('Raw Data'!EB88="","",'Raw Data'!EB88/60) ->  | F89: =IF('Raw Data'!EC88="","",'Raw Data'!EC88) ->  | G89: =IF('Raw Data'!EE88="","",'Raw Data'!EE88) ->  | H89: =IF('Raw Data'!EF88="","",'Raw Data'!EF88/60) -> 
B90: =IF('Raw Data'!DY89="","",IF('Raw Data'!DY89="(not set)","*Google Does Not Provide due to https:",IF('Raw Data'!DY89="N/A","*Google Does Not Provide due to https:",'Raw Data'!DY89))) ->  | C90: =IF('Raw Data'!DZ89="","",'Raw Data'!DZ89) ->  | D90: =IF('Raw Data'!EA89="","",'Raw Data'!EA89) ->  | E90: =IF('Raw Data'!EB89="","",'Raw Data'!EB89/60) ->  | F90: =IF('Raw Data'!EC89="","",'Raw Data'!EC89) ->  | G90: =IF('Raw Data'!EE89="","",'Raw Data'!EE89) ->  | H90: =IF('Raw Data'!EF89="","",'Raw Data'!EF89/60) -> 
B91: =IF('Raw Data'!DY90="","",IF('Raw Data'!DY90="(not set)","*Google Does Not Provide due to https:",IF('Raw Data'!DY90="N/A","*Google Does Not Provide due to https:",'Raw Data'!DY90))) ->  | C91: =IF('Raw Data'!DZ90="","",'Raw Data'!DZ90) ->  | D91: =IF('Raw Data'!EA90="","",'Raw Data'!EA90) ->  | E91: =IF('Raw Data'!EB90="","",'Raw Data'!EB90/60) ->  | F91: =IF('Raw Data'!EC90="","",'Raw Data'!EC90) ->  | G91: =IF('Raw Data'!EE90="","",'Raw Data'!EE90) ->  | H91: =IF('Raw Data'!EF90="","",'Raw Data'!EF90/60) -> 
B92: =IF('Raw Data'!DY91="","",IF('Raw Data'!DY91="(not set)","*Google Does Not Provide due to https:",IF('Raw Data'!DY91="N/A","*Google Does Not Provide due to https:",'Raw Data'!DY91))) ->  | C92: =IF('Raw Data'!DZ91="","",'Raw Data'!DZ91) ->  | D92: =IF('Raw Data'!EA91="","",'Raw Data'!EA91) ->  | E92: =IF('Raw Data'!EB91="","",'Raw Data'!EB91/60) ->  | F92: =IF('Raw Data'!EC91="","",'Raw Data'!EC91) ->  | G92: =IF('Raw Data'!EE91="","",'Raw Data'!EE91) ->  | H92: =IF('Raw Data'!EF91="","",'Raw Data'!EF91/60) -> 
B93: =IF('Raw Data'!DY92="","",IF('Raw Data'!DY92="(not set)","*Google Does Not Provide due to https:",IF('Raw Data'!DY92="N/A","*Google Does Not Provide due to https:",'Raw Data'!DY92))) ->  | C93: =IF('Raw Data'!DZ92="","",'Raw Data'!DZ92) ->  | D93: =IF('Raw Data'!EA92="","",'Raw Data'!EA92) ->  | E93: =IF('Raw Data'!EB92="","",'Raw Data'!EB92/60) ->  | F93: =IF('Raw Data'!EC92="","",'Raw Data'!EC92) ->  | G93: =IF('Raw Data'!EE92="","",'Raw Data'!EE92) ->  | H93: =IF('Raw Data'!EF92="","",'Raw Data'!EF92/60) -> 
B94: =IF('Raw Data'!DY93="","",IF('Raw Data'!DY93="(not set)","*Google Does Not Provide due to https:",IF('Raw Data'!DY93="N/A","*Google Does Not Provide due to https:",'Raw Data'!DY93))) ->  | C94: =IF('Raw Data'!DZ93="","",'Raw Data'!DZ93) ->  | D94: =IF('Raw Data'!EA93="","",'Raw Data'!EA93) ->  | E94: =IF('Raw Data'!EB93="","",'Raw Data'!EB93/60) ->  | F94: =IF('Raw Data'!EC93="","",'Raw Data'!EC93) ->  | G94: =IF('Raw Data'!EE93="","",'Raw Data'!EE93) ->  | H94: =IF('Raw Data'!EF93="","",'Raw Data'!EF93/60) -> 
B95: =IF('Raw Data'!DY94="","",IF('Raw Data'!DY94="(not set)","*Google Does Not Provide due to https:",IF('Raw Data'!DY94="N/A","*Google Does Not Provide due to https:",'Raw Data'!DY94))) ->  | C95: =IF('Raw Data'!DZ94="","",'Raw Data'!DZ94) ->  | D95: =IF('Raw Data'!EA94="","",'Raw Data'!EA94) ->  | E95: =IF('Raw Data'!EB94="","",'Raw Data'!EB94/60) ->  | F95: =IF('Raw Data'!EC94="","",'Raw Data'!EC94) ->  | G95: =IF('Raw Data'!EE94="","",'Raw Data'!EE94) ->  | H95: =IF('Raw Data'!EF94="","",'Raw Data'!EF94/60) -> 
B96: =IF('Raw Data'!DY95="","",IF('Raw Data'!DY95="(not set)","*Google Does Not Provide due to https:",IF('Raw Data'!DY95="N/A","*Google Does Not Provide due to https:",'Raw Data'!DY95))) ->  | C96: =IF('Raw Data'!DZ95="","",'Raw Data'!DZ95) ->  | D96: =IF('Raw Data'!EA95="","",'Raw Data'!EA95) ->  | E96: =IF('Raw Data'!EB95="","",'Raw Data'!EB95/60) ->  | F96: =IF('Raw Data'!EC95="","",'Raw Data'!EC95) ->  | G96: =IF('Raw Data'!EE95="","",'Raw Data'!EE95) ->  | H96: =IF('Raw Data'!EF95="","",'Raw Data'!EF95/60) -> 
B97: =IF('Raw Data'!DY96="","",IF('Raw Data'!DY96="(not set)","*Google Does Not Provide due to https:",IF('Raw Data'!DY96="N/A","*Google Does Not Provide due to https:",'Raw Data'!DY96))) ->  | C97: =IF('Raw Data'!DZ96="","",'Raw Data'!DZ96) ->  | D97: =IF('Raw Data'!EA96="","",'Raw Data'!EA96) ->  | E97: =IF('Raw Data'!EB96="","",'Raw Data'!EB96/60) ->  | F97: =IF('Raw Data'!EC96="","",'Raw Data'!EC96) ->  | G97: =IF('Raw Data'!EE96="","",'Raw Data'!EE96) ->  | H97: =IF('Raw Data'!EF96="","",'Raw Data'!EF96/60) -> 
B98: =IF('Raw Data'!DY97="","",IF('Raw Data'!DY97="(not set)","*Google Does Not Provide due to https:",IF('Raw Data'!DY97="N/A","*Google Does Not Provide due to https:",'Raw Data'!DY97))) ->  | C98: =IF('Raw Data'!DZ97="","",'Raw Data'!DZ97) ->  | D98: =IF('Raw Data'!EA97="","",'Raw Data'!EA97) ->  | E98: =IF('Raw Data'!EB97="","",'Raw Data'!EB97/60) ->  | F98: =IF('Raw Data'!EC97="","",'Raw Data'!EC97) ->  | G98: =IF('Raw Data'!EE97="","",'Raw Data'!EE97) ->  | H98: =IF('Raw Data'!EF97="","",'Raw Data'!EF97/60) -> 
B99: =IF('Raw Data'!DY98="","",IF('Raw Data'!DY98="(not set)","*Google Does Not Provide due to https:",IF('Raw Data'!DY98="N/A","*Google Does Not Provide due to https:",'Raw Data'!DY98))) ->  | C99: =IF('Raw Data'!DZ98="","",'Raw Data'!DZ98) ->  | D99: =IF('Raw Data'!EA98="","",'Raw Data'!EA98) ->  | E99: =IF('Raw Data'!EB98="","",'Raw Data'!EB98/60) ->  | F99: =IF('Raw Data'!EC98="","",'Raw Data'!EC98) ->  | G99: =IF('Raw Data'!EE98="","",'Raw Data'!EE98) ->  | H99: =IF('Raw Data'!EF98="","",'Raw Data'!EF98/60) -> 
B100: =IF('Raw Data'!DY99="","",IF('Raw Data'!DY99="(not set)","*Google Does Not Provide due to https:",IF('Raw Data'!DY99="N/A","*Google Does Not Provide due to https:",'Raw Data'!DY99))) ->  | C100: =IF('Raw Data'!DZ99="","",'Raw Data'!DZ99) ->  | D100: =IF('Raw Data'!EA99="","",'Raw Data'!EA99) ->  | E100: =IF('Raw Data'!EB99="","",'Raw Data'!EB99/60) ->  | F100: =IF('Raw Data'!EC99="","",'Raw Data'!EC99) ->  | G100: =IF('Raw Data'!EE99="","",'Raw Data'!EE99) ->  | H100: =IF('Raw Data'!EF99="","",'Raw Data'!EF99/60) -> 
B101: =IF('Raw Data'!DY100="","",IF('Raw Data'!DY100="(not set)","*Google Does Not Provide due to https:",IF('Raw Data'!DY100="N/A","*Google Does Not Provide due to https:",'Raw Data'!DY100))) ->  | C101: =IF('Raw Data'!DZ100="","",'Raw Data'!DZ100) ->  | D101: =IF('Raw Data'!EA100="","",'Raw Data'!EA100) ->  | E101: =IF('Raw Data'!EB100="","",'Raw Data'!EB100/60) ->  | F101: =IF('Raw Data'!EC100="","",'Raw Data'!EC100) ->  | G101: =IF('Raw Data'!EE100="","",'Raw Data'!EE100) ->  | H101: =IF('Raw Data'!EF100="","",'Raw Data'!EF100/60) -> 
B102: =IF('Raw Data'!DY101="","",IF('Raw Data'!DY101="(not set)","*Google Does Not Provide due to https:",IF('Raw Data'!DY101="N/A","*Google Does Not Provide due to https:",'Raw Data'!DY101))) ->  | C102: =IF('Raw Data'!DZ101="","",'Raw Data'!DZ101) ->  | D102: =IF('Raw Data'!EA101="","",'Raw Data'!EA101) ->  | E102: =IF('Raw Data'!EB101="","",'Raw Data'!EB101/60) ->  | F102: =IF('Raw Data'!EC101="","",'Raw Data'!EC101) ->  | G102: =IF('Raw Data'!EE101="","",'Raw Data'!EE101) ->  | H102: =IF('Raw Data'!EF101="","",'Raw Data'!EF101/60) -> 
B103: =IF('Raw Data'!DY102="","",IF('Raw Data'!DY102="(not set)","*Google Does Not Provide due to https:",IF('Raw Data'!DY102="N/A","*Google Does Not Provide due to https:",'Raw Data'!DY102))) ->  | C103: =IF('Raw Data'!DZ102="","",'Raw Data'!DZ102) ->  | D103: =IF('Raw Data'!EA102="","",'Raw Data'!EA102) ->  | E103: =IF('Raw Data'!EB102="","",'Raw Data'!EB102/60) ->  | F103: =IF('Raw Data'!EC102="","",'Raw Data'!EC102) ->  | G103: =IF('Raw Data'!EE102="","",'Raw Data'!EE102) ->  | H103: =IF('Raw Data'!EF102="","",'Raw Data'!EF102/60) -> 
B104: =IF('Raw Data'!DY103="","",IF('Raw Data'!DY103="(not set)","*Google Does Not Provide due to https:",IF('Raw Data'!DY103="N/A","*Google Does Not Provide due to https:",'Raw Data'!DY103))) ->  | C104: =IF('Raw Data'!DZ103="","",'Raw Data'!DZ103) ->  | D104: =IF('Raw Data'!EA103="","",'Raw Data'!EA103) ->  | E104: =IF('Raw Data'!EB103="","",'Raw Data'!EB103/60) ->  | F104: =IF('Raw Data'!EC103="","",'Raw Data'!EC103) ->  | G104: =IF('Raw Data'!EE103="","",'Raw Data'!EE103) ->  | H104: =IF('Raw Data'!EF103="","",'Raw Data'!EF103/60) -> 
B105: =IF('Raw Data'!DY104="","",IF('Raw Data'!DY104="(not set)","*Google Does Not Provide due to https:",IF('Raw Data'!DY104="N/A","*Google Does Not Provide due to https:",'Raw Data'!DY104))) ->  | C105: =IF('Raw Data'!DZ104="","",'Raw Data'!DZ104) ->  | D105: =IF('Raw Data'!EA104="","",'Raw Data'!EA104) ->  | E105: =IF('Raw Data'!EB104="","",'Raw Data'!EB104/60) ->  | F105: =IF('Raw Data'!EC104="","",'Raw Data'!EC104) ->  | G105: =IF('Raw Data'!EE104="","",'Raw Data'!EE104) ->  | H105: =IF('Raw Data'!EF104="","",'Raw Data'!EF104/60) -> 
B106: =IF('Raw Data'!DY105="","",IF('Raw Data'!DY105="(not set)","*Google Does Not Provide due to https:",IF('Raw Data'!DY105="N/A","*Google Does Not Provide due to https:",'Raw Data'!DY105))) ->  | C106: =IF('Raw Data'!DZ105="","",'Raw Data'!DZ105) ->  | D106: =IF('Raw Data'!EA105="","",'Raw Data'!EA105) ->  | E106: =IF('Raw Data'!EB105="","",'Raw Data'!EB105/60) ->  | F106: =IF('Raw Data'!EC105="","",'Raw Data'!EC105) ->  | G106: =IF('Raw Data'!EE105="","",'Raw Data'!EE105) ->  | H106: =IF('Raw Data'!EF105="","",'Raw Data'!EF105/60) -> 
B107: =IF('Raw Data'!DY106="","",IF('Raw Data'!DY106="(not set)","*Google Does Not Provide due to https:",IF('Raw Data'!DY106="N/A","*Google Does Not Provide due to https:",'Raw Data'!DY106))) ->  | C107: =IF('Raw Data'!DZ106="","",'Raw Data'!DZ106) ->  | D107: =IF('Raw Data'!EA106="","",'Raw Data'!EA106) ->  | E107: =IF('Raw Data'!EB106="","",'Raw Data'!EB106/60) ->  | F107: =IF('Raw Data'!EC106="","",'Raw Data'!EC106) ->  | G107: =IF('Raw Data'!EE106="","",'Raw Data'!EE106) ->  | H107: =IF('Raw Data'!EF106="","",'Raw Data'!EF106/60) -> 
B108: =IF('Raw Data'!DY107="","",IF('Raw Data'!DY107="(not set)","*Google Does Not Provide due to https:",IF('Raw Data'!DY107="N/A","*Google Does Not Provide due to https:",'Raw Data'!DY107))) ->  | C108: =IF('Raw Data'!DZ107="","",'Raw Data'!DZ107) ->  | D108: =IF('Raw Data'!EA107="","",'Raw Data'!EA107) ->  | E108: =IF('Raw Data'!EB107="","",'Raw Data'!EB107/60) ->  | F108: =IF('Raw Data'!EC107="","",'Raw Data'!EC107) ->  | G108: =IF('Raw Data'!EE107="","",'Raw Data'!EE107) ->  | H108: =IF('Raw Data'!EF107="","",'Raw Data'!EF107/60) -> 
B109: =IF('Raw Data'!DY108="","",IF('Raw Data'!DY108="(not set)","*Google Does Not Provide due to https:",IF('Raw Data'!DY108="N/A","*Google Does Not Provide due to https:",'Raw Data'!DY108))) ->  | C109: =IF('Raw Data'!DZ108="","",'Raw Data'!DZ108) ->  | D109: =IF('Raw Data'!EA108="","",'Raw Data'!EA108) ->  | E109: =IF('Raw Data'!EB108="","",'Raw Data'!EB108/60) ->  | F109: =IF('Raw Data'!EC108="","",'Raw Data'!EC108) ->  | G109: =IF('Raw Data'!EE108="","",'Raw Data'!EE108) ->  | H109: =IF('Raw Data'!EF108="","",'Raw Data'!EF108/60) -> 
B110: =IF('Raw Data'!DY109="","",IF('Raw Data'!DY109="(not set)","*Google Does Not Provide due to https:",IF('Raw Data'!DY109="N/A","*Google Does Not Provide due to https:",'Raw Data'!DY109))) ->  | C110: =IF('Raw Data'!DZ109="","",'Raw Data'!DZ109) ->  | D110: =IF('Raw Data'!EA109="","",'Raw Data'!EA109) ->  | E110: =IF('Raw Data'!EB109="","",'Raw Data'!EB109/60) ->  | F110: =IF('Raw Data'!EC109="","",'Raw Data'!EC109) ->  | G110: =IF('Raw Data'!EE109="","",'Raw Data'!EE109) ->  | H110: =IF('Raw Data'!EF109="","",'Raw Data'!EF109/60) -> 
B111: =IF('Raw Data'!DY110="","",IF('Raw Data'!DY110="(not set)","*Google Does Not Provide due to https:",IF('Raw Data'!DY110="N/A","*Google Does Not Provide due to https:",'Raw Data'!DY110))) ->  | C111: =IF('Raw Data'!DZ110="","",'Raw Data'!DZ110) ->  | D111: =IF('Raw Data'!EA110="","",'Raw Data'!EA110) ->  | E111: =IF('Raw Data'!EB110="","",'Raw Data'!EB110/60) ->  | F111: =IF('Raw Data'!EC110="","",'Raw Data'!EC110) ->  | G111: =IF('Raw Data'!EE110="","",'Raw Data'!EE110) ->  | H111: =IF('Raw Data'!EF110="","",'Raw Data'!EF110/60) -> 
B112: =IF('Raw Data'!DY111="","",IF('Raw Data'!DY111="(not set)","*Google Does Not Provide due to https:",IF('Raw Data'!DY111="N/A","*Google Does Not Provide due to https:",'Raw Data'!DY111))) ->  | C112: =IF('Raw Data'!DZ111="","",'Raw Data'!DZ111) ->  | D112: =IF('Raw Data'!EA111="","",'Raw Data'!EA111) ->  | E112: =IF('Raw Data'!EB111="","",'Raw Data'!EB111/60) ->  | F112: =IF('Raw Data'!EC111="","",'Raw Data'!EC111) ->  | G112: =IF('Raw Data'!EE111="","",'Raw Data'!EE111) ->  | H112: =IF('Raw Data'!EF111="","",'Raw Data'!EF111/60) -> 
B113: =IF('Raw Data'!DY112="","",IF('Raw Data'!DY112="(not set)","*Google Does Not Provide due to https:",IF('Raw Data'!DY112="N/A","*Google Does Not Provide due to https:",'Raw Data'!DY112))) ->  | C113: =IF('Raw Data'!DZ112="","",'Raw Data'!DZ112) ->  | D113: =IF('Raw Data'!EA112="","",'Raw Data'!EA112) ->  | E113: =IF('Raw Data'!EB112="","",'Raw Data'!EB112/60) ->  | F113: =IF('Raw Data'!EC112="","",'Raw Data'!EC112) ->  | G113: =IF('Raw Data'!EE112="","",'Raw Data'!EE112) ->  | H113: =IF('Raw Data'!EF112="","",'Raw Data'!EF112/60) -> 
B114: =IF('Raw Data'!DY113="","",IF('Raw Data'!DY113="(not set)","*Google Does Not Provide due to https:",IF('Raw Data'!DY113="N/A","*Google Does Not Provide due to https:",'Raw Data'!DY113))) ->  | C114: =IF('Raw Data'!DZ113="","",'Raw Data'!DZ113) ->  | D114: =IF('Raw Data'!EA113="","",'Raw Data'!EA113) ->  | E114: =IF('Raw Data'!EB113="","",'Raw Data'!EB113/60) ->  | F114: =IF('Raw Data'!EC113="","",'Raw Data'!EC113) ->  | G114: =IF('Raw Data'!EE113="","",'Raw Data'!EE113) ->  | H114: =IF('Raw Data'!EF113="","",'Raw Data'!EF113/60) -> 
B115: =IF('Raw Data'!DY114="","",IF('Raw Data'!DY114="(not set)","*Google Does Not Provide due to https:",IF('Raw Data'!DY114="N/A","*Google Does Not Provide due to https:",'Raw Data'!DY114))) ->  | C115: =IF('Raw Data'!DZ114="","",'Raw Data'!DZ114) ->  | D115: =IF('Raw Data'!EA114="","",'Raw Data'!EA114) ->  | E115: =IF('Raw Data'!EB114="","",'Raw Data'!EB114/60) ->  | F115: =IF('Raw Data'!EC114="","",'Raw Data'!EC114) ->  | G115: =IF('Raw Data'!EE114="","",'Raw Data'!EE114) ->  | H115: =IF('Raw Data'!EF114="","",'Raw Data'!EF114/60) -> 
B116: =IF('Raw Data'!DY115="","",IF('Raw Data'!DY115="(not set)","*Google Does Not Provide due to https:",IF('Raw Data'!DY115="N/A","*Google Does Not Provide due to https:",'Raw Data'!DY115))) ->  | C116: =IF('Raw Data'!DZ115="","",'Raw Data'!DZ115) ->  | D116: =IF('Raw Data'!EA115="","",'Raw Data'!EA115) ->  | E116: =IF('Raw Data'!EB115="","",'Raw Data'!EB115/60) ->  | F116: =IF('Raw Data'!EC115="","",'Raw Data'!EC115) ->  | G116: =IF('Raw Data'!EE115="","",'Raw Data'!EE115) ->  | H116: =IF('Raw Data'!EF115="","",'Raw Data'!EF115/60) -> 
B117: =IF('Raw Data'!DY116="","",IF('Raw Data'!DY116="(not set)","*Google Does Not Provide due to https:",IF('Raw Data'!DY116="N/A","*Google Does Not Provide due to https:",'Raw Data'!DY116))) ->  | C117: =IF('Raw Data'!DZ116="","",'Raw Data'!DZ116) ->  | D117: =IF('Raw Data'!EA116="","",'Raw Data'!EA116) ->  | E117: =IF('Raw Data'!EB116="","",'Raw Data'!EB116/60) ->  | F117: =IF('Raw Data'!EC116="","",'Raw Data'!EC116) ->  | G117: =IF('Raw Data'!EE116="","",'Raw Data'!EE116) ->  | H117: =IF('Raw Data'!EF116="","",'Raw Data'!EF116/60) -> 
B118: =IF('Raw Data'!DY117="","",IF('Raw Data'!DY117="(not set)","*Google Does Not Provide due to https:",IF('Raw Data'!DY117="N/A","*Google Does Not Provide due to https:",'Raw Data'!DY117))) ->  | C118: =IF('Raw Data'!DZ117="","",'Raw Data'!DZ117) ->  | D118: =IF('Raw Data'!EA117="","",'Raw Data'!EA117) ->  | E118: =IF('Raw Data'!EB117="","",'Raw Data'!EB117/60) ->  | F118: =IF('Raw Data'!EC117="","",'Raw Data'!EC117) ->  | G118: =IF('Raw Data'!EE117="","",'Raw Data'!EE117) ->  | H118: =IF('Raw Data'!EF117="","",'Raw Data'!EF117/60) -> 
B119: =IF('Raw Data'!DY118="","",IF('Raw Data'!DY118="(not set)","*Google Does Not Provide due to https:",IF('Raw Data'!DY118="N/A","*Google Does Not Provide due to https:",'Raw Data'!DY118))) ->  | C119: =IF('Raw Data'!DZ118="","",'Raw Data'!DZ118) ->  | D119: =IF('Raw Data'!EA118="","",'Raw Data'!EA118) ->  | E119: =IF('Raw Data'!EB118="","",'Raw Data'!EB118/60) ->  | F119: =IF('Raw Data'!EC118="","",'Raw Data'!EC118) ->  | G119: =IF('Raw Data'!EE118="","",'Raw Data'!EE118) ->  | H119: =IF('Raw Data'!EF118="","",'Raw Data'!EF118/60) -> 
B120: =IF('Raw Data'!DY119="","",IF('Raw Data'!DY119="(not set)","*Google Does Not Provide due to https:",IF('Raw Data'!DY119="N/A","*Google Does Not Provide due to https:",'Raw Data'!DY119))) ->  | C120: =IF('Raw Data'!DZ119="","",'Raw Data'!DZ119) ->  | D120: =IF('Raw Data'!EA119="","",'Raw Data'!EA119) ->  | E120: =IF('Raw Data'!EB119="","",'Raw Data'!EB119/60) ->  | F120: =IF('Raw Data'!EC119="","",'Raw Data'!EC119) ->  | G120: =IF('Raw Data'!EE119="","",'Raw Data'!EE119) ->  | H120: =IF('Raw Data'!EF119="","",'Raw Data'!EF119/60) -> 
B121: =IF('Raw Data'!DY120="","",IF('Raw Data'!DY120="(not set)","*Google Does Not Provide due to https:",IF('Raw Data'!DY120="N/A","*Google Does Not Provide due to https:",'Raw Data'!DY120))) ->  | C121: =IF('Raw Data'!DZ120="","",'Raw Data'!DZ120) ->  | D121: =IF('Raw Data'!EA120="","",'Raw Data'!EA120) ->  | E121: =IF('Raw Data'!EB120="","",'Raw Data'!EB120/60) ->  | F121: =IF('Raw Data'!EC120="","",'Raw Data'!EC120) ->  | G121: =IF('Raw Data'!EE120="","",'Raw Data'!EE120) ->  | H121: =IF('Raw Data'!EF120="","",'Raw Data'!EF120/60) -> 
B122: =IF('Raw Data'!DY121="","",IF('Raw Data'!DY121="(not set)","*Google Does Not Provide due to https:",IF('Raw Data'!DY121="N/A","*Google Does Not Provide due to https:",'Raw Data'!DY121))) ->  | C122: =IF('Raw Data'!DZ121="","",'Raw Data'!DZ121) ->  | D122: =IF('Raw Data'!EA121="","",'Raw Data'!EA121) ->  | E122: =IF('Raw Data'!EB121="","",'Raw Data'!EB121/60) ->  | F122: =IF('Raw Data'!EC121="","",'Raw Data'!EC121) ->  | G122: =IF('Raw Data'!EE121="","",'Raw Data'!EE121) ->  | H122: =IF('Raw Data'!EF121="","",'Raw Data'!EF121/60) -> 
B123: =IF('Raw Data'!DY122="","",IF('Raw Data'!DY122="(not set)","*Google Does Not Provide due to https:",IF('Raw Data'!DY122="N/A","*Google Does Not Provide due to https:",'Raw Data'!DY122))) ->  | C123: =IF('Raw Data'!DZ122="","",'Raw Data'!DZ122) ->  | D123: =IF('Raw Data'!EA122="","",'Raw Data'!EA122) ->  | E123: =IF('Raw Data'!EB122="","",'Raw Data'!EB122/60) ->  | F123: =IF('Raw Data'!EC122="","",'Raw Data'!EC122) ->  | G123: =IF('Raw Data'!EE122="","",'Raw Data'!EE122) ->  | H123: =IF('Raw Data'!EF122="","",'Raw Data'!EF122/60) -> 
B124: =IF('Raw Data'!DY123="","",IF('Raw Data'!DY123="(not set)","*Google Does Not Provide due to https:",IF('Raw Data'!DY123="N/A","*Google Does Not Provide due to https:",'Raw Data'!DY123))) ->  | C124: =IF('Raw Data'!DZ123="","",'Raw Data'!DZ123) ->  | D124: =IF('Raw Data'!EA123="","",'Raw Data'!EA123) ->  | E124: =IF('Raw Data'!EB123="","",'Raw Data'!EB123/60) ->  | F124: =IF('Raw Data'!EC123="","",'Raw Data'!EC123) ->  | G124: =IF('Raw Data'!EE123="","",'Raw Data'!EE123) ->  | H124: =IF('Raw Data'!EF123="","",'Raw Data'!EF123/60) -> 
B125: =IF('Raw Data'!DY124="","",IF('Raw Data'!DY124="(not set)","*Google Does Not Provide due to https:",IF('Raw Data'!DY124="N/A","*Google Does Not Provide due to https:",'Raw Data'!DY124))) ->  | C125: =IF('Raw Data'!DZ124="","",'Raw Data'!DZ124) ->  | D125: =IF('Raw Data'!EA124="","",'Raw Data'!EA124) ->  | E125: =IF('Raw Data'!EB124="","",'Raw Data'!EB124/60) ->  | F125: =IF('Raw Data'!EC124="","",'Raw Data'!EC124) ->  | G125: =IF('Raw Data'!EE124="","",'Raw Data'!EE124) ->  | H125: =IF('Raw Data'!EF124="","",'Raw Data'!EF124/60) -> 
B126: =IF('Raw Data'!DY125="","",IF('Raw Data'!DY125="(not set)","*Google Does Not Provide due to https:",IF('Raw Data'!DY125="N/A","*Google Does Not Provide due to https:",'Raw Data'!DY125))) ->  | C126: =IF('Raw Data'!DZ125="","",'Raw Data'!DZ125) ->  | D126: =IF('Raw Data'!EA125="","",'Raw Data'!EA125) ->  | E126: =IF('Raw Data'!EB125="","",'Raw Data'!EB125/60) ->  | F126: =IF('Raw Data'!EC125="","",'Raw Data'!EC125) ->  | G126: =IF('Raw Data'!EE125="","",'Raw Data'!EE125) ->  | H126: =IF('Raw Data'!EF125="","",'Raw Data'!EF125/60) -> 
B127: =IF('Raw Data'!DY126="","",IF('Raw Data'!DY126="(not set)","*Google Does Not Provide due to https:",IF('Raw Data'!DY126="N/A","*Google Does Not Provide due to https:",'Raw Data'!DY126))) ->  | C127: =IF('Raw Data'!DZ126="","",'Raw Data'!DZ126) ->  | D127: =IF('Raw Data'!EA126="","",'Raw Data'!EA126) ->  | E127: =IF('Raw Data'!EB126="","",'Raw Data'!EB126/60) ->  | F127: =IF('Raw Data'!EC126="","",'Raw Data'!EC126) ->  | G127: =IF('Raw Data'!EE126="","",'Raw Data'!EE126) ->  | H127: =IF('Raw Data'!EF126="","",'Raw Data'!EF126/60) -> 
B128: =IF('Raw Data'!DY127="","",IF('Raw Data'!DY127="(not set)","*Google Does Not Provide due to https:",IF('Raw Data'!DY127="N/A","*Google Does Not Provide due to https:",'Raw Data'!DY127))) ->  | C128: =IF('Raw Data'!DZ127="","",'Raw Data'!DZ127) ->  | D128: =IF('Raw Data'!EA127="","",'Raw Data'!EA127) ->  | E128: =IF('Raw Data'!EB127="","",'Raw Data'!EB127/60) ->  | F128: =IF('Raw Data'!EC127="","",'Raw Data'!EC127) ->  | G128: =IF('Raw Data'!EE127="","",'Raw Data'!EE127) ->  | H128: =IF('Raw Data'!EF127="","",'Raw Data'!EF127/60) -> 
B129: =IF('Raw Data'!DY128="","",IF('Raw Data'!DY128="(not set)","*Google Does Not Provide due to https:",IF('Raw Data'!DY128="N/A","*Google Does Not Provide due to https:",'Raw Data'!DY128))) ->  | C129: =IF('Raw Data'!DZ128="","",'Raw Data'!DZ128) ->  | D129: =IF('Raw Data'!EA128="","",'Raw Data'!EA128) ->  | E129: =IF('Raw Data'!EB128="","",'Raw Data'!EB128/60) ->  | F129: =IF('Raw Data'!EC128="","",'Raw Data'!EC128) ->  | G129: =IF('Raw Data'!EE128="","",'Raw Data'!EE128) ->  | H129: =IF('Raw Data'!EF128="","",'Raw Data'!EF128/60) -> 
B130: =IF('Raw Data'!DY129="","",IF('Raw Data'!DY129="(not set)","*Google Does Not Provide due to https:",IF('Raw Data'!DY129="N/A","*Google Does Not Provide due to https:",'Raw Data'!DY129))) ->  | C130: =IF('Raw Data'!DZ129="","",'Raw Data'!DZ129) ->  | D130: =IF('Raw Data'!EA129="","",'Raw Data'!EA129) ->  | E130: =IF('Raw Data'!EB129="","",'Raw Data'!EB129/60) ->  | F130: =IF('Raw Data'!EC129="","",'Raw Data'!EC129) ->  | G130: =IF('Raw Data'!EE129="","",'Raw Data'!EE129) ->  | H130: =IF('Raw Data'!EF129="","",'Raw Data'!EF129/60) -> 
B131: =IF('Raw Data'!DY130="","",IF('Raw Data'!DY130="(not set)","*Google Does Not Provide due to https:",IF('Raw Data'!DY130="N/A","*Google Does Not Provide due to https:",'Raw Data'!DY130))) ->  | C131: =IF('Raw Data'!DZ130="","",'Raw Data'!DZ130) ->  | D131: =IF('Raw Data'!EA130="","",'Raw Data'!EA130) ->  | E131: =IF('Raw Data'!EB130="","",'Raw Data'!EB130/60) ->  | F131: =IF('Raw Data'!EC130="","",'Raw Data'!EC130) ->  | G131: =IF('Raw Data'!EE130="","",'Raw Data'!EE130) ->  | H131: =IF('Raw Data'!EF130="","",'Raw Data'!EF130/60) -> 
B132: =IF('Raw Data'!DY131="","",IF('Raw Data'!DY131="(not set)","*Google Does Not Provide due to https:",IF('Raw Data'!DY131="N/A","*Google Does Not Provide due to https:",'Raw Data'!DY131))) ->  | C132: =IF('Raw Data'!DZ131="","",'Raw Data'!DZ131) ->  | D132: =IF('Raw Data'!EA131="","",'Raw Data'!EA131) ->  | E132: =IF('Raw Data'!EB131="","",'Raw Data'!EB131/60) ->  | F132: =IF('Raw Data'!EC131="","",'Raw Data'!EC131) ->  | G132: =IF('Raw Data'!EE131="","",'Raw Data'!EE131) ->  | H132: =IF('Raw Data'!EF131="","",'Raw Data'!EF131/60) -> 
B133: =IF('Raw Data'!DY132="","",IF('Raw Data'!DY132="(not set)","*Google Does Not Provide due to https:",IF('Raw Data'!DY132="N/A","*Google Does Not Provide due to https:",'Raw Data'!DY132))) ->  | C133: =IF('Raw Data'!DZ132="","",'Raw Data'!DZ132) ->  | D133: =IF('Raw Data'!EA132="","",'Raw Data'!EA132) ->  | E133: =IF('Raw Data'!EB132="","",'Raw Data'!EB132/60) ->  | F133: =IF('Raw Data'!EC132="","",'Raw Data'!EC132) ->  | G133: =IF('Raw Data'!EE132="","",'Raw Data'!EE132) ->  | H133: =IF('Raw Data'!EF132="","",'Raw Data'!EF132/60) -> 
B134: =IF('Raw Data'!DY133="","",IF('Raw Data'!DY133="(not set)","*Google Does Not Provide due to https:",IF('Raw Data'!DY133="N/A","*Google Does Not Provide due to https:",'Raw Data'!DY133))) ->  | C134: =IF('Raw Data'!DZ133="","",'Raw Data'!DZ133) ->  | D134: =IF('Raw Data'!EA133="","",'Raw Data'!EA133) ->  | E134: =IF('Raw Data'!EB133="","",'Raw Data'!EB133/60) ->  | F134: =IF('Raw Data'!EC133="","",'Raw Data'!EC133) ->  | G134: =IF('Raw Data'!EE133="","",'Raw Data'!EE133) ->  | H134: =IF('Raw Data'!EF133="","",'Raw Data'!EF133/60) -> 
B135: =IF('Raw Data'!DY134="","",IF('Raw Data'!DY134="(not set)","*Google Does Not Provide due to https:",IF('Raw Data'!DY134="N/A","*Google Does Not Provide due to https:",'Raw Data'!DY134))) ->  | C135: =IF('Raw Data'!DZ134="","",'Raw Data'!DZ134) ->  | D135: =IF('Raw Data'!EA134="","",'Raw Data'!EA134) ->  | E135: =IF('Raw Data'!EB134="","",'Raw Data'!EB134/60) ->  | F135: =IF('Raw Data'!EC134="","",'Raw Data'!EC134) ->  | G135: =IF('Raw Data'!EE134="","",'Raw Data'!EE134) ->  | H135: =IF('Raw Data'!EF134="","",'Raw Data'!EF134/60) -> 
B136: =IF('Raw Data'!DY135="","",IF('Raw Data'!DY135="(not set)","*Google Does Not Provide due to https:",IF('Raw Data'!DY135="N/A","*Google Does Not Provide due to https:",'Raw Data'!DY135))) ->  | C136: =IF('Raw Data'!DZ135="","",'Raw Data'!DZ135) ->  | D136: =IF('Raw Data'!EA135="","",'Raw Data'!EA135) ->  | E136: =IF('Raw Data'!EB135="","",'Raw Data'!EB135/60) ->  | F136: =IF('Raw Data'!EC135="","",'Raw Data'!EC135) ->  | G136: =IF('Raw Data'!EE135="","",'Raw Data'!EE135) ->  | H136: =IF('Raw Data'!EF135="","",'Raw Data'!EF135/60) -> 
B137: =IF('Raw Data'!DY136="","",IF('Raw Data'!DY136="(not set)","*Google Does Not Provide due to https:",IF('Raw Data'!DY136="N/A","*Google Does Not Provide due to https:",'Raw Data'!DY136))) ->  | C137: =IF('Raw Data'!DZ136="","",'Raw Data'!DZ136) ->  | D137: =IF('Raw Data'!EA136="","",'Raw Data'!EA136) ->  | E137: =IF('Raw Data'!EB136="","",'Raw Data'!EB136/60) ->  | F137: =IF('Raw Data'!EC136="","",'Raw Data'!EC136) ->  | G137: =IF('Raw Data'!EE136="","",'Raw Data'!EE136) ->  | H137: =IF('Raw Data'!EF136="","",'Raw Data'!EF136/60) -> 
B138: =IF('Raw Data'!DY137="","",IF('Raw Data'!DY137="(not set)","*Google Does Not Provide due to https:",IF('Raw Data'!DY137="N/A","*Google Does Not Provide due to https:",'Raw Data'!DY137))) ->  | C138: =IF('Raw Data'!DZ137="","",'Raw Data'!DZ137) ->  | D138: =IF('Raw Data'!EA137="","",'Raw Data'!EA137) ->  | E138: =IF('Raw Data'!EB137="","",'Raw Data'!EB137/60) ->  | F138: =IF('Raw Data'!EC137="","",'Raw Data'!EC137) ->  | G138: =IF('Raw Data'!EE137="","",'Raw Data'!EE137) ->  | H138: =IF('Raw Data'!EF137="","",'Raw Data'!EF137/60) -> 
B139: =IF('Raw Data'!DY138="","",IF('Raw Data'!DY138="(not set)","*Google Does Not Provide due to https:",IF('Raw Data'!DY138="N/A","*Google Does Not Provide due to https:",'Raw Data'!DY138))) ->  | C139: =IF('Raw Data'!DZ138="","",'Raw Data'!DZ138) ->  | D139: =IF('Raw Data'!EA138="","",'Raw Data'!EA138) ->  | E139: =IF('Raw Data'!EB138="","",'Raw Data'!EB138/60) ->  | F139: =IF('Raw Data'!EC138="","",'Raw Data'!EC138) ->  | G139: =IF('Raw Data'!EE138="","",'Raw Data'!EE138) ->  | H139: =IF('Raw Data'!EF138="","",'Raw Data'!EF138/60) -> 
B140: =IF('Raw Data'!DY139="","",IF('Raw Data'!DY139="(not set)","*Google Does Not Provide due to https:",IF('Raw Data'!DY139="N/A","*Google Does Not Provide due to https:",'Raw Data'!DY139))) ->  | C140: =IF('Raw Data'!DZ139="","",'Raw Data'!DZ139) ->  | D140: =IF('Raw Data'!EA139="","",'Raw Data'!EA139) ->  | E140: =IF('Raw Data'!EB139="","",'Raw Data'!EB139/60) ->  | F140: =IF('Raw Data'!EC139="","",'Raw Data'!EC139) ->  | G140: =IF('Raw Data'!EE139="","",'Raw Data'!EE139) ->  | H140: =IF('Raw Data'!EF139="","",'Raw Data'!EF139/60) -> 
B141: =IF('Raw Data'!DY140="","",IF('Raw Data'!DY140="(not set)","*Google Does Not Provide due to https:",IF('Raw Data'!DY140="N/A","*Google Does Not Provide due to https:",'Raw Data'!DY140))) ->  | C141: =IF('Raw Data'!DZ140="","",'Raw Data'!DZ140) ->  | D141: =IF('Raw Data'!EA140="","",'Raw Data'!EA140) ->  | E141: =IF('Raw Data'!EB140="","",'Raw Data'!EB140/60) ->  | F141: =IF('Raw Data'!EC140="","",'Raw Data'!EC140) ->  | G141: =IF('Raw Data'!EE140="","",'Raw Data'!EE140) ->  | H141: =IF('Raw Data'!EF140="","",'Raw Data'!EF140/60) -> 
B142: =IF('Raw Data'!DY141="","",IF('Raw Data'!DY141="(not set)","*Google Does Not Provide due to https:",IF('Raw Data'!DY141="N/A","*Google Does Not Provide due to https:",'Raw Data'!DY141))) ->  | C142: =IF('Raw Data'!DZ141="","",'Raw Data'!DZ141) ->  | D142: =IF('Raw Data'!EA141="","",'Raw Data'!EA141) ->  | E142: =IF('Raw Data'!EB141="","",'Raw Data'!EB141/60) ->  | F142: =IF('Raw Data'!EC141="","",'Raw Data'!EC141) ->  | G142: =IF('Raw Data'!EE141="","",'Raw Data'!EE141) ->  | H142: =IF('Raw Data'!EF141="","",'Raw Data'!EF141/60) -> 
B143: =IF('Raw Data'!DY142="","",IF('Raw Data'!DY142="(not set)","*Google Does Not Provide due to https:",IF('Raw Data'!DY142="N/A","*Google Does Not Provide due to https:",'Raw Data'!DY142))) ->  | C143: =IF('Raw Data'!DZ142="","",'Raw Data'!DZ142) ->  | D143: =IF('Raw Data'!EA142="","",'Raw Data'!EA142) ->  | E143: =IF('Raw Data'!EB142="","",'Raw Data'!EB142/60) ->  | F143: =IF('Raw Data'!EC142="","",'Raw Data'!EC142) ->  | G143: =IF('Raw Data'!EE142="","",'Raw Data'!EE142) ->  | H143: =IF('Raw Data'!EF142="","",'Raw Data'!EF142/60) -> 
B144: =IF('Raw Data'!DY143="","",IF('Raw Data'!DY143="(not set)","*Google Does Not Provide due to https:",IF('Raw Data'!DY143="N/A","*Google Does Not Provide due to https:",'Raw Data'!DY143))) ->  | C144: =IF('Raw Data'!DZ143="","",'Raw Data'!DZ143) ->  | D144: =IF('Raw Data'!EA143="","",'Raw Data'!EA143) ->  | E144: =IF('Raw Data'!EB143="","",'Raw Data'!EB143/60) ->  | F144: =IF('Raw Data'!EC143="","",'Raw Data'!EC143) ->  | G144: =IF('Raw Data'!EE143="","",'Raw Data'!EE143) ->  | H144: =IF('Raw Data'!EF143="","",'Raw Data'!EF143/60) -> 
B145: =IF('Raw Data'!DY144="","",IF('Raw Data'!DY144="(not set)","*Google Does Not Provide due to https:",IF('Raw Data'!DY144="N/A","*Google Does Not Provide due to https:",'Raw Data'!DY144))) ->  | C145: =IF('Raw Data'!DZ144="","",'Raw Data'!DZ144) ->  | D145: =IF('Raw Data'!EA144="","",'Raw Data'!EA144) ->  | E145: =IF('Raw Data'!EB144="","",'Raw Data'!EB144/60) ->  | F145: =IF('Raw Data'!EC144="","",'Raw Data'!EC144) ->  | G145: =IF('Raw Data'!EE144="","",'Raw Data'!EE144) ->  | H145: =IF('Raw Data'!EF144="","",'Raw Data'!EF144/60) -> 
B146: =IF('Raw Data'!DY145="","",IF('Raw Data'!DY145="(not set)","*Google Does Not Provide due to https:",IF('Raw Data'!DY145="N/A","*Google Does Not Provide due to https:",'Raw Data'!DY145))) ->  | C146: =IF('Raw Data'!DZ145="","",'Raw Data'!DZ145) ->  | D146: =IF('Raw Data'!EA145="","",'Raw Data'!EA145) ->  | E146: =IF('Raw Data'!EB145="","",'Raw Data'!EB145/60) ->  | F146: =IF('Raw Data'!EC145="","",'Raw Data'!EC145) ->  | G146: =IF('Raw Data'!EE145="","",'Raw Data'!EE145) ->  | H146: =IF('Raw Data'!EF145="","",'Raw Data'!EF145/60) -> 
B147: =IF('Raw Data'!DY146="","",IF('Raw Data'!DY146="(not set)","*Google Does Not Provide due to https:",IF('Raw Data'!DY146="N/A","*Google Does Not Provide due to https:",'Raw Data'!DY146))) ->  | C147: =IF('Raw Data'!DZ146="","",'Raw Data'!DZ146) ->  | D147: =IF('Raw Data'!EA146="","",'Raw Data'!EA146) ->  | E147: =IF('Raw Data'!EB146="","",'Raw Data'!EB146/60) ->  | F147: =IF('Raw Data'!EC146="","",'Raw Data'!EC146) ->  | G147: =IF('Raw Data'!EE146="","",'Raw Data'!EE146) ->  | H147: =IF('Raw Data'!EF146="","",'Raw Data'!EF146/60) -> 
B148: =IF('Raw Data'!DY147="","",IF('Raw Data'!DY147="(not set)","*Google Does Not Provide due to https:",IF('Raw Data'!DY147="N/A","*Google Does Not Provide due to https:",'Raw Data'!DY147))) ->  | C148: =IF('Raw Data'!DZ147="","",'Raw Data'!DZ147) ->  | D148: =IF('Raw Data'!EA147="","",'Raw Data'!EA147) ->  | E148: =IF('Raw Data'!EB147="","",'Raw Data'!EB147/60) ->  | F148: =IF('Raw Data'!EC147="","",'Raw Data'!EC147) ->  | G148: =IF('Raw Data'!EE147="","",'Raw Data'!EE147) ->  | H148: =IF('Raw Data'!EF147="","",'Raw Data'!EF147/60) -> 
B149: =IF('Raw Data'!DY148="","",IF('Raw Data'!DY148="(not set)","*Google Does Not Provide due to https:",IF('Raw Data'!DY148="N/A","*Google Does Not Provide due to https:",'Raw Data'!DY148))) ->  | C149: =IF('Raw Data'!DZ148="","",'Raw Data'!DZ148) ->  | D149: =IF('Raw Data'!EA148="","",'Raw Data'!EA148) ->  | E149: =IF('Raw Data'!EB148="","",'Raw Data'!EB148/60) ->  | F149: =IF('Raw Data'!EC148="","",'Raw Data'!EC148) ->  | G149: =IF('Raw Data'!EE148="","",'Raw Data'!EE148) ->  | H149: =IF('Raw Data'!EF148="","",'Raw Data'!EF148/60) -> 
B150: =IF('Raw Data'!DY149="","",IF('Raw Data'!DY149="(not set)","*Google Does Not Provide due to https:",IF('Raw Data'!DY149="N/A","*Google Does Not Provide due to https:",'Raw Data'!DY149))) ->  | C150: =IF('Raw Data'!DZ149="","",'Raw Data'!DZ149) ->  | D150: =IF('Raw Data'!EA149="","",'Raw Data'!EA149) ->  | E150: =IF('Raw Data'!EB149="","",'Raw Data'!EB149/60) ->  | F150: =IF('Raw Data'!EC149="","",'Raw Data'!EC149) ->  | G150: =IF('Raw Data'!EE149="","",'Raw Data'!EE149) ->  | H150: =IF('Raw Data'!EF149="","",'Raw Data'!EF149/60) -> 
B151: =IF('Raw Data'!DY150="","",IF('Raw Data'!DY150="(not set)","*Google Does Not Provide due to https:",IF('Raw Data'!DY150="N/A","*Google Does Not Provide due to https:",'Raw Data'!DY150))) ->  | C151: =IF('Raw Data'!DZ150="","",'Raw Data'!DZ150) ->  | D151: =IF('Raw Data'!EA150="","",'Raw Data'!EA150) ->  | E151: =IF('Raw Data'!EB150="","",'Raw Data'!EB150/60) ->  | F151: =IF('Raw Data'!EC150="","",'Raw Data'!EC150) ->  | G151: =IF('Raw Data'!EE150="","",'Raw Data'!EE150) ->  | H151: =IF('Raw Data'!EF150="","",'Raw Data'!EF150/60) -> 
B152: =IF('Raw Data'!DY151="","",IF('Raw Data'!DY151="(not set)","*Google Does Not Provide due to https:",IF('Raw Data'!DY151="N/A","*Google Does Not Provide due to https:",'Raw Data'!DY151))) ->  | C152: =IF('Raw Data'!DZ151="","",'Raw Data'!DZ151) ->  | D152: =IF('Raw Data'!EA151="","",'Raw Data'!EA151) ->  | E152: =IF('Raw Data'!EB151="","",'Raw Data'!EB151/60) ->  | F152: =IF('Raw Data'!EC151="","",'Raw Data'!EC151) ->  | G152: =IF('Raw Data'!EE151="","",'Raw Data'!EE151) ->  | H152: =IF('Raw Data'!EF151="","",'Raw Data'!EF151/60) -> 
B153: =IF('Raw Data'!DY152="","",IF('Raw Data'!DY152="(not set)","*Google Does Not Provide due to https:",IF('Raw Data'!DY152="N/A","*Google Does Not Provide due to https:",'Raw Data'!DY152))) ->  | C153: =IF('Raw Data'!DZ152="","",'Raw Data'!DZ152) ->  | D153: =IF('Raw Data'!EA152="","",'Raw Data'!EA152) ->  | E153: =IF('Raw Data'!EB152="","",'Raw Data'!EB152/60) ->  | F153: =IF('Raw Data'!EC152="","",'Raw Data'!EC152) ->  | G153: =IF('Raw Data'!EE152="","",'Raw Data'!EE152) ->  | H153: =IF('Raw Data'!EF152="","",'Raw Data'!EF152/60) -> 
B154: =IF('Raw Data'!DY153="","",IF('Raw Data'!DY153="(not set)","*Google Does Not Provide due to https:",IF('Raw Data'!DY153="N/A","*Google Does Not Provide due to https:",'Raw Data'!DY153))) ->  | C154: =IF('Raw Data'!DZ153="","",'Raw Data'!DZ153) ->  | D154: =IF('Raw Data'!EA153="","",'Raw Data'!EA153) ->  | E154: =IF('Raw Data'!EB153="","",'Raw Data'!EB153/60) ->  | F154: =IF('Raw Data'!EC153="","",'Raw Data'!EC153) ->  | G154: =IF('Raw Data'!EE153="","",'Raw Data'!EE153) ->  | H154: =IF('Raw Data'!EF153="","",'Raw Data'!EF153/60) -> 
B155: =IF('Raw Data'!DY154="","",IF('Raw Data'!DY154="(not set)","*Google Does Not Provide due to https:",IF('Raw Data'!DY154="N/A","*Google Does Not Provide due to https:",'Raw Data'!DY154))) ->  | C155: =IF('Raw Data'!DZ154="","",'Raw Data'!DZ154) ->  | D155: =IF('Raw Data'!EA154="","",'Raw Data'!EA154) ->  | E155: =IF('Raw Data'!EB154="","",'Raw Data'!EB154/60) ->  | F155: =IF('Raw Data'!EC154="","",'Raw Data'!EC154) ->  | G155: =IF('Raw Data'!EE154="","",'Raw Data'!EE154) ->  | H155: =IF('Raw Data'!EF154="","",'Raw Data'!EF154/60) -> 
B156: =IF('Raw Data'!DY155="","",IF('Raw Data'!DY155="(not set)","*Google Does Not Provide due to https:",IF('Raw Data'!DY155="N/A","*Google Does Not Provide due to https:",'Raw Data'!DY155))) ->  | C156: =IF('Raw Data'!DZ155="","",'Raw Data'!DZ155) ->  | D156: =IF('Raw Data'!EA155="","",'Raw Data'!EA155) ->  | E156: =IF('Raw Data'!EB155="","",'Raw Data'!EB155/60) ->  | F156: =IF('Raw Data'!EC155="","",'Raw Data'!EC155) ->  | G156: =IF('Raw Data'!EE155="","",'Raw Data'!EE155) ->  | H156: =IF('Raw Data'!EF155="","",'Raw Data'!EF155/60) -> 
B157: =IF('Raw Data'!DY156="","",IF('Raw Data'!DY156="(not set)","*Google Does Not Provide due to https:",IF('Raw Data'!DY156="N/A","*Google Does Not Provide due to https:",'Raw Data'!DY156))) ->  | C157: =IF('Raw Data'!DZ156="","",'Raw Data'!DZ156) ->  | D157: =IF('Raw Data'!EA156="","",'Raw Data'!EA156) ->  | E157: =IF('Raw Data'!EB156="","",'Raw Data'!EB156/60) ->  | F157: =IF('Raw Data'!EC156="","",'Raw Data'!EC156) ->  | G157: =IF('Raw Data'!EE156="","",'Raw Data'!EE156) ->  | H157: =IF('Raw Data'!EF156="","",'Raw Data'!EF156/60) -> 
B158: =IF('Raw Data'!DY157="","",IF('Raw Data'!DY157="(not set)","*Google Does Not Provide due to https:",IF('Raw Data'!DY157="N/A","*Google Does Not Provide due to https:",'Raw Data'!DY157))) ->  | C158: =IF('Raw Data'!DZ157="","",'Raw Data'!DZ157) ->  | D158: =IF('Raw Data'!EA157="","",'Raw Data'!EA157) ->  | E158: =IF('Raw Data'!EB157="","",'Raw Data'!EB157/60) ->  | F158: =IF('Raw Data'!EC157="","",'Raw Data'!EC157) ->  | G158: =IF('Raw Data'!EE157="","",'Raw Data'!EE157) ->  | H158: =IF('Raw Data'!EF157="","",'Raw Data'!EF157/60) -> 
B159: =IF('Raw Data'!DY158="","",IF('Raw Data'!DY158="(not set)","*Google Does Not Provide due to https:",IF('Raw Data'!DY158="N/A","*Google Does Not Provide due to https:",'Raw Data'!DY158))) ->  | C159: =IF('Raw Data'!DZ158="","",'Raw Data'!DZ158) ->  | D159: =IF('Raw Data'!EA158="","",'Raw Data'!EA158) ->  | E159: =IF('Raw Data'!EB158="","",'Raw Data'!EB158/60) ->  | F159: =IF('Raw Data'!EC158="","",'Raw Data'!EC158) ->  | G159: =IF('Raw Data'!EE158="","",'Raw Data'!EE158) ->  | H159: =IF('Raw Data'!EF158="","",'Raw Data'!EF158/60) -> 
B160: =IF('Raw Data'!DY159="","",IF('Raw Data'!DY159="(not set)","*Google Does Not Provide due to https:",IF('Raw Data'!DY159="N/A","*Google Does Not Provide due to https:",'Raw Data'!DY159))) ->  | C160: =IF('Raw Data'!DZ159="","",'Raw Data'!DZ159) ->  | D160: =IF('Raw Data'!EA159="","",'Raw Data'!EA159) ->  | E160: =IF('Raw Data'!EB159="","",'Raw Data'!EB159/60) ->  | F160: =IF('Raw Data'!EC159="","",'Raw Data'!EC159) ->  | G160: =IF('Raw Data'!EE159="","",'Raw Data'!EE159) ->  | H160: =IF('Raw Data'!EF159="","",'Raw Data'!EF159/60) -> 
B161: =IF('Raw Data'!DY160="","",IF('Raw Data'!DY160="(not set)","*Google Does Not Provide due to https:",IF('Raw Data'!DY160="N/A","*Google Does Not Provide due to https:",'Raw Data'!DY160))) ->  | C161: =IF('Raw Data'!DZ160="","",'Raw Data'!DZ160) ->  | D161: =IF('Raw Data'!EA160="","",'Raw Data'!EA160) ->  | E161: =IF('Raw Data'!EB160="","",'Raw Data'!EB160/60) ->  | F161: =IF('Raw Data'!EC160="","",'Raw Data'!EC160) ->  | G161: =IF('Raw Data'!EE160="","",'Raw Data'!EE160) ->  | H161: =IF('Raw Data'!EF160="","",'Raw Data'!EF160/60) -> 
B162: =IF('Raw Data'!DY161="","",IF('Raw Data'!DY161="(not set)","*Google Does Not Provide due to https:",IF('Raw Data'!DY161="N/A","*Google Does Not Provide due to https:",'Raw Data'!DY161))) ->  | C162: =IF('Raw Data'!DZ161="","",'Raw Data'!DZ161) ->  | D162: =IF('Raw Data'!EA161="","",'Raw Data'!EA161) ->  | E162: =IF('Raw Data'!EB161="","",'Raw Data'!EB161/60) ->  | F162: =IF('Raw Data'!EC161="","",'Raw Data'!EC161) ->  | G162: =IF('Raw Data'!EE161="","",'Raw Data'!EE161) ->  | H162: =IF('Raw Data'!EF161="","",'Raw Data'!EF161/60) -> 
B163: =IF('Raw Data'!DY162="","",IF('Raw Data'!DY162="(not set)","*Google Does Not Provide due to https:",IF('Raw Data'!DY162="N/A","*Google Does Not Provide due to https:",'Raw Data'!DY162))) ->  | C163: =IF('Raw Data'!DZ162="","",'Raw Data'!DZ162) ->  | D163: =IF('Raw Data'!EA162="","",'Raw Data'!EA162) ->  | E163: =IF('Raw Data'!EB162="","",'Raw Data'!EB162/60) ->  | F163: =IF('Raw Data'!EC162="","",'Raw Data'!EC162) ->  | G163: =IF('Raw Data'!EE162="","",'Raw Data'!EE162) ->  | H163: =IF('Raw Data'!EF162="","",'Raw Data'!EF162/60) -> 
B164: =IF('Raw Data'!DY163="","",IF('Raw Data'!DY163="(not set)","*Google Does Not Provide due to https:",IF('Raw Data'!DY163="N/A","*Google Does Not Provide due to https:",'Raw Data'!DY163))) ->  | C164: =IF('Raw Data'!DZ163="","",'Raw Data'!DZ163) ->  | D164: =IF('Raw Data'!EA163="","",'Raw Data'!EA163) ->  | E164: =IF('Raw Data'!EB163="","",'Raw Data'!EB163/60) ->  | F164: =IF('Raw Data'!EC163="","",'Raw Data'!EC163) ->  | G164: =IF('Raw Data'!EE163="","",'Raw Data'!EE163) ->  | H164: =IF('Raw Data'!EF163="","",'Raw Data'!EF163/60) -> 
B165: =IF('Raw Data'!DY164="","",IF('Raw Data'!DY164="(not set)","*Google Does Not Provide due to https:",IF('Raw Data'!DY164="N/A","*Google Does Not Provide due to https:",'Raw Data'!DY164))) ->  | C165: =IF('Raw Data'!DZ164="","",'Raw Data'!DZ164) ->  | D165: =IF('Raw Data'!EA164="","",'Raw Data'!EA164) ->  | E165: =IF('Raw Data'!EB164="","",'Raw Data'!EB164/60) ->  | F165: =IF('Raw Data'!EC164="","",'Raw Data'!EC164) ->  | G165: =IF('Raw Data'!EE164="","",'Raw Data'!EE164) ->  | H165: =IF('Raw Data'!EF164="","",'Raw Data'!EF164/60) -> 
B166: =IF('Raw Data'!DY165="","",IF('Raw Data'!DY165="(not set)","*Google Does Not Provide due to https:",IF('Raw Data'!DY165="N/A","*Google Does Not Provide due to https:",'Raw Data'!DY165))) ->  | C166: =IF('Raw Data'!DZ165="","",'Raw Data'!DZ165) ->  | D166: =IF('Raw Data'!EA165="","",'Raw Data'!EA165) ->  | E166: =IF('Raw Data'!EB165="","",'Raw Data'!EB165/60) ->  | F166: =IF('Raw Data'!EC165="","",'Raw Data'!EC165) ->  | G166: =IF('Raw Data'!EE165="","",'Raw Data'!EE165) ->  | H166: =IF('Raw Data'!EF165="","",'Raw Data'!EF165/60) -> 
B167: =IF('Raw Data'!DY166="","",IF('Raw Data'!DY166="(not set)","*Google Does Not Provide due to https:",IF('Raw Data'!DY166="N/A","*Google Does Not Provide due to https:",'Raw Data'!DY166))) ->  | C167: =IF('Raw Data'!DZ166="","",'Raw Data'!DZ166) ->  | D167: =IF('Raw Data'!EA166="","",'Raw Data'!EA166) ->  | E167: =IF('Raw Data'!EB166="","",'Raw Data'!EB166/60) ->  | F167: =IF('Raw Data'!EC166="","",'Raw Data'!EC166) ->  | G167: =IF('Raw Data'!EE166="","",'Raw Data'!EE166) ->  | H167: =IF('Raw Data'!EF166="","",'Raw Data'!EF166/60) -> 
B168: =IF('Raw Data'!DY167="","",IF('Raw Data'!DY167="(not set)","*Google Does Not Provide due to https:",IF('Raw Data'!DY167="N/A","*Google Does Not Provide due to https:",'Raw Data'!DY167))) ->  | C168: =IF('Raw Data'!DZ167="","",'Raw Data'!DZ167) ->  | D168: =IF('Raw Data'!EA167="","",'Raw Data'!EA167) ->  | E168: =IF('Raw Data'!EB167="","",'Raw Data'!EB167/60) ->  | F168: =IF('Raw Data'!EC167="","",'Raw Data'!EC167) ->  | G168: =IF('Raw Data'!EE167="","",'Raw Data'!EE167) ->  | H168: =IF('Raw Data'!EF167="","",'Raw Data'!EF167/60) -> 
B169: =IF('Raw Data'!DY168="","",IF('Raw Data'!DY168="(not set)","*Google Does Not Provide due to https:",IF('Raw Data'!DY168="N/A","*Google Does Not Provide due to https:",'Raw Data'!DY168))) ->  | C169: =IF('Raw Data'!DZ168="","",'Raw Data'!DZ168) ->  | D169: =IF('Raw Data'!EA168="","",'Raw Data'!EA168) ->  | E169: =IF('Raw Data'!EB168="","",'Raw Data'!EB168/60) ->  | F169: =IF('Raw Data'!EC168="","",'Raw Data'!EC168) ->  | G169: =IF('Raw Data'!EE168="","",'Raw Data'!EE168) ->  | H169: =IF('Raw Data'!EF168="","",'Raw Data'!EF168/60) -> 
B170: =IF('Raw Data'!DY169="","",IF('Raw Data'!DY169="(not set)","*Google Does Not Provide due to https:",IF('Raw Data'!DY169="N/A","*Google Does Not Provide due to https:",'Raw Data'!DY169))) ->  | C170: =IF('Raw Data'!DZ169="","",'Raw Data'!DZ169) ->  | D170: =IF('Raw Data'!EA169="","",'Raw Data'!EA169) ->  | E170: =IF('Raw Data'!EB169="","",'Raw Data'!EB169/60) ->  | F170: =IF('Raw Data'!EC169="","",'Raw Data'!EC169) ->  | G170: =IF('Raw Data'!EE169="","",'Raw Data'!EE169) ->  | H170: =IF('Raw Data'!EF169="","",'Raw Data'!EF169/60) -> 
B171: =IF('Raw Data'!DY170="","",IF('Raw Data'!DY170="(not set)","*Google Does Not Provide due to https:",IF('Raw Data'!DY170="N/A","*Google Does Not Provide due to https:",'Raw Data'!DY170))) ->  | C171: =IF('Raw Data'!DZ170="","",'Raw Data'!DZ170) ->  | D171: =IF('Raw Data'!EA170="","",'Raw Data'!EA170) ->  | E171: =IF('Raw Data'!EB170="","",'Raw Data'!EB170/60) ->  | F171: =IF('Raw Data'!EC170="","",'Raw Data'!EC170) ->  | G171: =IF('Raw Data'!EE170="","",'Raw Data'!EE170) ->  | H171: =IF('Raw Data'!EF170="","",'Raw Data'!EF170/60) -> 
B172: =IF('Raw Data'!DY171="","",IF('Raw Data'!DY171="(not set)","*Google Does Not Provide due to https:",IF('Raw Data'!DY171="N/A","*Google Does Not Provide due to https:",'Raw Data'!DY171))) ->  | C172: =IF('Raw Data'!DZ171="","",'Raw Data'!DZ171) ->  | D172: =IF('Raw Data'!EA171="","",'Raw Data'!EA171) ->  | E172: =IF('Raw Data'!EB171="","",'Raw Data'!EB171/60) ->  | F172: =IF('Raw Data'!EC171="","",'Raw Data'!EC171) ->  | G172: =IF('Raw Data'!EE171="","",'Raw Data'!EE171) ->  | H172: =IF('Raw Data'!EF171="","",'Raw Data'!EF171/60) -> 
B173: =IF('Raw Data'!DY172="","",IF('Raw Data'!DY172="(not set)","*Google Does Not Provide due to https:",IF('Raw Data'!DY172="N/A","*Google Does Not Provide due to https:",'Raw Data'!DY172))) ->  | C173: =IF('Raw Data'!DZ172="","",'Raw Data'!DZ172) ->  | D173: =IF('Raw Data'!EA172="","",'Raw Data'!EA172) ->  | E173: =IF('Raw Data'!EB172="","",'Raw Data'!EB172/60) ->  | F173: =IF('Raw Data'!EC172="","",'Raw Data'!EC172) ->  | G173: =IF('Raw Data'!EE172="","",'Raw Data'!EE172) ->  | H173: =IF('Raw Data'!EF172="","",'Raw Data'!EF172/60) -> 
B174: =IF('Raw Data'!DY173="","",IF('Raw Data'!DY173="(not set)","*Google Does Not Provide due to https:",IF('Raw Data'!DY173="N/A","*Google Does Not Provide due to https:",'Raw Data'!DY173))) ->  | C174: =IF('Raw Data'!DZ173="","",'Raw Data'!DZ173) ->  | D174: =IF('Raw Data'!EA173="","",'Raw Data'!EA173) ->  | E174: =IF('Raw Data'!EB173="","",'Raw Data'!EB173/60) ->  | F174: =IF('Raw Data'!EC173="","",'Raw Data'!EC173) ->  | G174: =IF('Raw Data'!EE173="","",'Raw Data'!EE173) ->  | H174: =IF('Raw Data'!EF173="","",'Raw Data'!EF173/60) -> 
B175: =IF('Raw Data'!DY174="","",IF('Raw Data'!DY174="(not set)","*Google Does Not Provide due to https:",IF('Raw Data'!DY174="N/A","*Google Does Not Provide due to https:",'Raw Data'!DY174))) ->  | C175: =IF('Raw Data'!DZ174="","",'Raw Data'!DZ174) ->  | D175: =IF('Raw Data'!EA174="","",'Raw Data'!EA174) ->  | E175: =IF('Raw Data'!EB174="","",'Raw Data'!EB174/60) ->  | F175: =IF('Raw Data'!EC174="","",'Raw Data'!EC174) ->  | G175: =IF('Raw Data'!EE174="","",'Raw Data'!EE174) ->  | H175: =IF('Raw Data'!EF174="","",'Raw Data'!EF174/60) -> 
B176: =IF('Raw Data'!DY175="","",IF('Raw Data'!DY175="(not set)","*Google Does Not Provide due to https:",IF('Raw Data'!DY175="N/A","*Google Does Not Provide due to https:",'Raw Data'!DY175))) ->  | C176: =IF('Raw Data'!DZ175="","",'Raw Data'!DZ175) ->  | D176: =IF('Raw Data'!EA175="","",'Raw Data'!EA175) ->  | E176: =IF('Raw Data'!EB175="","",'Raw Data'!EB175/60) ->  | F176: =IF('Raw Data'!EC175="","",'Raw Data'!EC175) ->  | G176: =IF('Raw Data'!EE175="","",'Raw Data'!EE175) ->  | H176: =IF('Raw Data'!EF175="","",'Raw Data'!EF175/60) -> 
B177: =IF('Raw Data'!DY176="","",IF('Raw Data'!DY176="(not set)","*Google Does Not Provide due to https:",IF('Raw Data'!DY176="N/A","*Google Does Not Provide due to https:",'Raw Data'!DY176))) ->  | C177: =IF('Raw Data'!DZ176="","",'Raw Data'!DZ176) ->  | D177: =IF('Raw Data'!EA176="","",'Raw Data'!EA176) ->  | E177: =IF('Raw Data'!EB176="","",'Raw Data'!EB176/60) ->  | F177: =IF('Raw Data'!EC176="","",'Raw Data'!EC176) ->  | G177: =IF('Raw Data'!EE176="","",'Raw Data'!EE176) ->  | H177: =IF('Raw Data'!EF176="","",'Raw Data'!EF176/60) -> 
B178: =IF('Raw Data'!DY177="","",IF('Raw Data'!DY177="(not set)","*Google Does Not Provide due to https:",IF('Raw Data'!DY177="N/A","*Google Does Not Provide due to https:",'Raw Data'!DY177))) ->  | C178: =IF('Raw Data'!DZ177="","",'Raw Data'!DZ177) ->  | D178: =IF('Raw Data'!EA177="","",'Raw Data'!EA177) ->  | E178: =IF('Raw Data'!EB177="","",'Raw Data'!EB177/60) ->  | F178: =IF('Raw Data'!EC177="","",'Raw Data'!EC177) ->  | G178: =IF('Raw Data'!EE177="","",'Raw Data'!EE177) ->  | H178: =IF('Raw Data'!EF177="","",'Raw Data'!EF177/60) -> 
B179: =IF('Raw Data'!DY178="","",IF('Raw Data'!DY178="(not set)","*Google Does Not Provide due to https:",IF('Raw Data'!DY178="N/A","*Google Does Not Provide due to https:",'Raw Data'!DY178))) ->  | C179: =IF('Raw Data'!DZ178="","",'Raw Data'!DZ178) ->  | D179: =IF('Raw Data'!EA178="","",'Raw Data'!EA178) ->  | E179: =IF('Raw Data'!EB178="","",'Raw Data'!EB178/60) ->  | F179: =IF('Raw Data'!EC178="","",'Raw Data'!EC178) ->  | G179: =IF('Raw Data'!EE178="","",'Raw Data'!EE178) ->  | H179: =IF('Raw Data'!EF178="","",'Raw Data'!EF178/60) -> 
B180: =IF('Raw Data'!DY179="","",IF('Raw Data'!DY179="(not set)","*Google Does Not Provide due to https:",IF('Raw Data'!DY179="N/A","*Google Does Not Provide due to https:",'Raw Data'!DY179))) ->  | C180: =IF('Raw Data'!DZ179="","",'Raw Data'!DZ179) ->  | D180: =IF('Raw Data'!EA179="","",'Raw Data'!EA179) ->  | E180: =IF('Raw Data'!EB179="","",'Raw Data'!EB179/60) ->  | F180: =IF('Raw Data'!EC179="","",'Raw Data'!EC179) ->  | G180: =IF('Raw Data'!EE179="","",'Raw Data'!EE179) ->  | H180: =IF('Raw Data'!EF179="","",'Raw Data'!EF179/60) -> 
B181: =IF('Raw Data'!DY180="","",IF('Raw Data'!DY180="(not set)","*Google Does Not Provide due to https:",IF('Raw Data'!DY180="N/A","*Google Does Not Provide due to https:",'Raw Data'!DY180))) ->  | C181: =IF('Raw Data'!DZ180="","",'Raw Data'!DZ180) ->  | D181: =IF('Raw Data'!EA180="","",'Raw Data'!EA180) ->  | E181: =IF('Raw Data'!EB180="","",'Raw Data'!EB180/60) ->  | F181: =IF('Raw Data'!EC180="","",'Raw Data'!EC180) ->  | G181: =IF('Raw Data'!EE180="","",'Raw Data'!EE180) ->  | H181: =IF('Raw Data'!EF180="","",'Raw Data'!EF180/60) -> 
B182: =IF('Raw Data'!DY181="","",IF('Raw Data'!DY181="(not set)","*Google Does Not Provide due to https:",IF('Raw Data'!DY181="N/A","*Google Does Not Provide due to https:",'Raw Data'!DY181))) ->  | C182: =IF('Raw Data'!DZ181="","",'Raw Data'!DZ181) ->  | D182: =IF('Raw Data'!EA181="","",'Raw Data'!EA181) ->  | E182: =IF('Raw Data'!EB181="","",'Raw Data'!EB181/60) ->  | F182: =IF('Raw Data'!EC181="","",'Raw Data'!EC181) ->  | G182: =IF('Raw Data'!EE181="","",'Raw Data'!EE181) ->  | H182: =IF('Raw Data'!EF181="","",'Raw Data'!EF181/60) -> 
B183: =IF('Raw Data'!DY182="","",IF('Raw Data'!DY182="(not set)","*Google Does Not Provide due to https:",IF('Raw Data'!DY182="N/A","*Google Does Not Provide due to https:",'Raw Data'!DY182))) ->  | C183: =IF('Raw Data'!DZ182="","",'Raw Data'!DZ182) ->  | D183: =IF('Raw Data'!EA182="","",'Raw Data'!EA182) ->  | E183: =IF('Raw Data'!EB182="","",'Raw Data'!EB182/60) ->  | F183: =IF('Raw Data'!EC182="","",'Raw Data'!EC182) ->  | G183: =IF('Raw Data'!EE182="","",'Raw Data'!EE182) ->  | H183: =IF('Raw Data'!EF182="","",'Raw Data'!EF182/60) -> 
B184: =IF('Raw Data'!DY183="","",IF('Raw Data'!DY183="(not set)","*Google Does Not Provide due to https:",IF('Raw Data'!DY183="N/A","*Google Does Not Provide due to https:",'Raw Data'!DY183))) ->  | C184: =IF('Raw Data'!DZ183="","",'Raw Data'!DZ183) ->  | D184: =IF('Raw Data'!EA183="","",'Raw Data'!EA183) ->  | E184: =IF('Raw Data'!EB183="","",'Raw Data'!EB183/60) ->  | F184: =IF('Raw Data'!EC183="","",'Raw Data'!EC183) ->  | G184: =IF('Raw Data'!EE183="","",'Raw Data'!EE183) ->  | H184: =IF('Raw Data'!EF183="","",'Raw Data'!EF183/60) -> 
B185: =IF('Raw Data'!DY184="","",IF('Raw Data'!DY184="(not set)","*Google Does Not Provide due to https:",IF('Raw Data'!DY184="N/A","*Google Does Not Provide due to https:",'Raw Data'!DY184))) ->  | C185: =IF('Raw Data'!DZ184="","",'Raw Data'!DZ184) ->  | D185: =IF('Raw Data'!EA184="","",'Raw Data'!EA184) ->  | E185: =IF('Raw Data'!EB184="","",'Raw Data'!EB184/60) ->  | F185: =IF('Raw Data'!EC184="","",'Raw Data'!EC184) ->  | G185: =IF('Raw Data'!EE184="","",'Raw Data'!EE184) ->  | H185: =IF('Raw Data'!EF184="","",'Raw Data'!EF184/60) -> 
B186: =IF('Raw Data'!DY185="","",IF('Raw Data'!DY185="(not set)","*Google Does Not Provide due to https:",IF('Raw Data'!DY185="N/A","*Google Does Not Provide due to https:",'Raw Data'!DY185))) ->  | C186: =IF('Raw Data'!DZ185="","",'Raw Data'!DZ185) ->  | D186: =IF('Raw Data'!EA185="","",'Raw Data'!EA185) ->  | E186: =IF('Raw Data'!EB185="","",'Raw Data'!EB185/60) ->  | F186: =IF('Raw Data'!EC185="","",'Raw Data'!EC185) ->  | G186: =IF('Raw Data'!EE185="","",'Raw Data'!EE185) ->  | H186: =IF('Raw Data'!EF185="","",'Raw Data'!EF185/60) -> 
B187: =IF('Raw Data'!DY186="","",IF('Raw Data'!DY186="(not set)","*Google Does Not Provide due to https:",IF('Raw Data'!DY186="N/A","*Google Does Not Provide due to https:",'Raw Data'!DY186))) ->  | C187: =IF('Raw Data'!DZ186="","",'Raw Data'!DZ186) ->  | D187: =IF('Raw Data'!EA186="","",'Raw Data'!EA186) ->  | E187: =IF('Raw Data'!EB186="","",'Raw Data'!EB186/60) ->  | F187: =IF('Raw Data'!EC186="","",'Raw Data'!EC186) ->  | G187: =IF('Raw Data'!EE186="","",'Raw Data'!EE186) ->  | H187: =IF('Raw Data'!EF186="","",'Raw Data'!EF186/60) -> 
B188: =IF('Raw Data'!DY187="","",IF('Raw Data'!DY187="(not set)","*Google Does Not Provide due to https:",IF('Raw Data'!DY187="N/A","*Google Does Not Provide due to https:",'Raw Data'!DY187))) ->  | C188: =IF('Raw Data'!DZ187="","",'Raw Data'!DZ187) ->  | D188: =IF('Raw Data'!EA187="","",'Raw Data'!EA187) ->  | E188: =IF('Raw Data'!EB187="","",'Raw Data'!EB187/60) ->  | F188: =IF('Raw Data'!EC187="","",'Raw Data'!EC187) ->  | G188: =IF('Raw Data'!EE187="","",'Raw Data'!EE187) ->  | H188: =IF('Raw Data'!EF187="","",'Raw Data'!EF187/60) -> 
B189: =IF('Raw Data'!DY188="","",IF('Raw Data'!DY188="(not set)","*Google Does Not Provide due to https:",IF('Raw Data'!DY188="N/A","*Google Does Not Provide due to https:",'Raw Data'!DY188))) ->  | C189: =IF('Raw Data'!DZ188="","",'Raw Data'!DZ188) ->  | D189: =IF('Raw Data'!EA188="","",'Raw Data'!EA188) ->  | E189: =IF('Raw Data'!EB188="","",'Raw Data'!EB188/60) ->  | F189: =IF('Raw Data'!EC188="","",'Raw Data'!EC188) ->  | G189: =IF('Raw Data'!EE188="","",'Raw Data'!EE188) ->  | H189: =IF('Raw Data'!EF188="","",'Raw Data'!EF188/60) -> 
B190: =IF('Raw Data'!DY189="","",IF('Raw Data'!DY189="(not set)","*Google Does Not Provide due to https:",IF('Raw Data'!DY189="N/A","*Google Does Not Provide due to https:",'Raw Data'!DY189))) ->  | C190: =IF('Raw Data'!DZ189="","",'Raw Data'!DZ189) ->  | D190: =IF('Raw Data'!EA189="","",'Raw Data'!EA189) ->  | E190: =IF('Raw Data'!EB189="","",'Raw Data'!EB189/60) ->  | F190: =IF('Raw Data'!EC189="","",'Raw Data'!EC189) ->  | G190: =IF('Raw Data'!EE189="","",'Raw Data'!EE189) ->  | H190: =IF('Raw Data'!EF189="","",'Raw Data'!EF189/60) -> 
B191: =IF('Raw Data'!DY190="","",IF('Raw Data'!DY190="(not set)","*Google Does Not Provide due to https:",IF('Raw Data'!DY190="N/A","*Google Does Not Provide due to https:",'Raw Data'!DY190))) ->  | C191: =IF('Raw Data'!DZ190="","",'Raw Data'!DZ190) ->  | D191: =IF('Raw Data'!EA190="","",'Raw Data'!EA190) ->  | E191: =IF('Raw Data'!EB190="","",'Raw Data'!EB190/60) ->  | F191: =IF('Raw Data'!EC190="","",'Raw Data'!EC190) ->  | G191: =IF('Raw Data'!EE190="","",'Raw Data'!EE190) ->  | H191: =IF('Raw Data'!EF190="","",'Raw Data'!EF190/60) -> 
B192: =IF('Raw Data'!DY191="","",IF('Raw Data'!DY191="(not set)","*Google Does Not Provide due to https:",IF('Raw Data'!DY191="N/A","*Google Does Not Provide due to https:",'Raw Data'!DY191))) ->  | C192: =IF('Raw Data'!DZ191="","",'Raw Data'!DZ191) ->  | D192: =IF('Raw Data'!EA191="","",'Raw Data'!EA191) ->  | E192: =IF('Raw Data'!EB191="","",'Raw Data'!EB191/60) ->  | F192: =IF('Raw Data'!EC191="","",'Raw Data'!EC191) ->  | G192: =IF('Raw Data'!EE191="","",'Raw Data'!EE191) ->  | H192: =IF('Raw Data'!EF191="","",'Raw Data'!EF191/60) -> 
B193: =IF('Raw Data'!DY192="","",IF('Raw Data'!DY192="(not set)","*Google Does Not Provide due to https:",IF('Raw Data'!DY192="N/A","*Google Does Not Provide due to https:",'Raw Data'!DY192))) ->  | C193: =IF('Raw Data'!DZ192="","",'Raw Data'!DZ192) ->  | D193: =IF('Raw Data'!EA192="","",'Raw Data'!EA192) ->  | E193: =IF('Raw Data'!EB192="","",'Raw Data'!EB192/60) ->  | F193: =IF('Raw Data'!EC192="","",'Raw Data'!EC192) ->  | G193: =IF('Raw Data'!EE192="","",'Raw Data'!EE192) ->  | H193: =IF('Raw Data'!EF192="","",'Raw Data'!EF192/60) -> 
B194: =IF('Raw Data'!DY193="","",IF('Raw Data'!DY193="(not set)","*Google Does Not Provide due to https:",IF('Raw Data'!DY193="N/A","*Google Does Not Provide due to https:",'Raw Data'!DY193))) ->  | C194: =IF('Raw Data'!DZ193="","",'Raw Data'!DZ193) ->  | D194: =IF('Raw Data'!EA193="","",'Raw Data'!EA193) ->  | E194: =IF('Raw Data'!EB193="","",'Raw Data'!EB193/60) ->  | F194: =IF('Raw Data'!EC193="","",'Raw Data'!EC193) ->  | G194: =IF('Raw Data'!EE193="","",'Raw Data'!EE193) ->  | H194: =IF('Raw Data'!EF193="","",'Raw Data'!EF193/60) -> 
B195: =IF('Raw Data'!DY194="","",IF('Raw Data'!DY194="(not set)","*Google Does Not Provide due to https:",IF('Raw Data'!DY194="N/A","*Google Does Not Provide due to https:",'Raw Data'!DY194))) ->  | C195: =IF('Raw Data'!DZ194="","",'Raw Data'!DZ194) ->  | D195: =IF('Raw Data'!EA194="","",'Raw Data'!EA194) ->  | E195: =IF('Raw Data'!EB194="","",'Raw Data'!EB194/60) ->  | F195: =IF('Raw Data'!EC194="","",'Raw Data'!EC194) ->  | G195: =IF('Raw Data'!EE194="","",'Raw Data'!EE194) ->  | H195: =IF('Raw Data'!EF194="","",'Raw Data'!EF194/60) -> 
B196: =IF('Raw Data'!DY195="","",IF('Raw Data'!DY195="(not set)","*Google Does Not Provide due to https:",IF('Raw Data'!DY195="N/A","*Google Does Not Provide due to https:",'Raw Data'!DY195))) ->  | C196: =IF('Raw Data'!DZ195="","",'Raw Data'!DZ195) ->  | D196: =IF('Raw Data'!EA195="","",'Raw Data'!EA195) ->  | E196: =IF('Raw Data'!EB195="","",'Raw Data'!EB195/60) ->  | F196: =IF('Raw Data'!EC195="","",'Raw Data'!EC195) ->  | G196: =IF('Raw Data'!EE195="","",'Raw Data'!EE195) ->  | H196: =IF('Raw Data'!EF195="","",'Raw Data'!EF195/60) -> 
B197: =IF('Raw Data'!DY196="","",IF('Raw Data'!DY196="(not set)","*Google Does Not Provide due to https:",IF('Raw Data'!DY196="N/A","*Google Does Not Provide due to https:",'Raw Data'!DY196))) ->  | C197: =IF('Raw Data'!DZ196="","",'Raw Data'!DZ196) ->  | D197: =IF('Raw Data'!EA196="","",'Raw Data'!EA196) ->  | E197: =IF('Raw Data'!EB196="","",'Raw Data'!EB196/60) ->  | F197: =IF('Raw Data'!EC196="","",'Raw Data'!EC196) ->  | G197: =IF('Raw Data'!EE196="","",'Raw Data'!EE196) ->  | H197: =IF('Raw Data'!EF196="","",'Raw Data'!EF196/60) -> 
B198: =IF('Raw Data'!DY197="","",IF('Raw Data'!DY197="(not set)","*Google Does Not Provide due to https:",IF('Raw Data'!DY197="N/A","*Google Does Not Provide due to https:",'Raw Data'!DY197))) ->  | C198: =IF('Raw Data'!DZ197="","",'Raw Data'!DZ197) ->  | D198: =IF('Raw Data'!EA197="","",'Raw Data'!EA197) ->  | E198: =IF('Raw Data'!EB197="","",'Raw Data'!EB197/60) ->  | F198: =IF('Raw Data'!EC197="","",'Raw Data'!EC197) ->  | G198: =IF('Raw Data'!EE197="","",'Raw Data'!EE197) ->  | H198: =IF('Raw Data'!EF197="","",'Raw Data'!EF197/60) -> 
B199: =IF('Raw Data'!DY198="","",IF('Raw Data'!DY198="(not set)","*Google Does Not Provide due to https:",IF('Raw Data'!DY198="N/A","*Google Does Not Provide due to https:",'Raw Data'!DY198))) ->  | C199: =IF('Raw Data'!DZ198="","",'Raw Data'!DZ198) ->  | D199: =IF('Raw Data'!EA198="","",'Raw Data'!EA198) ->  | E199: =IF('Raw Data'!EB198="","",'Raw Data'!EB198/60) ->  | F199: =IF('Raw Data'!EC198="","",'Raw Data'!EC198) ->  | G199: =IF('Raw Data'!EE198="","",'Raw Data'!EE198) ->  | H199: =IF('Raw Data'!EF198="","",'Raw Data'!EF198/60) -> 
B200: =IF('Raw Data'!DY199="","",IF('Raw Data'!DY199="(not set)","*Google Does Not Provide due to https:",IF('Raw Data'!DY199="N/A","*Google Does Not Provide due to https:",'Raw Data'!DY199))) ->  | C200: =IF('Raw Data'!DZ199="","",'Raw Data'!DZ199) ->  | D200: =IF('Raw Data'!EA199="","",'Raw Data'!EA199) ->  | E200: =IF('Raw Data'!EB199="","",'Raw Data'!EB199/60) ->  | F200: =IF('Raw Data'!EC199="","",'Raw Data'!EC199) ->  | G200: =IF('Raw Data'!EE199="","",'Raw Data'!EE199) ->  | H200: =IF('Raw Data'!EF199="","",'Raw Data'!EF199/60) -> 
B201: =IF('Raw Data'!DY200="","",IF('Raw Data'!DY200="(not set)","*Google Does Not Provide due to https:",IF('Raw Data'!DY200="N/A","*Google Does Not Provide due to https:",'Raw Data'!DY200))) ->  | C201: =IF('Raw Data'!DZ200="","",'Raw Data'!DZ200) ->  | D201: =IF('Raw Data'!EA200="","",'Raw Data'!EA200) ->  | E201: =IF('Raw Data'!EB200="","",'Raw Data'!EB200/60) ->  | F201: =IF('Raw Data'!EC200="","",'Raw Data'!EC200) ->  | G201: =IF('Raw Data'!EE200="","",'Raw Data'!EE200) ->  | H201: =IF('Raw Data'!EF200="","",'Raw Data'!EF200/60) -> 
B202: =IF('Raw Data'!DY201="","",IF('Raw Data'!DY201="(not set)","*Google Does Not Provide due to https:",IF('Raw Data'!DY201="N/A","*Google Does Not Provide due to https:",'Raw Data'!DY201))) ->  | C202: =IF('Raw Data'!DZ201="","",'Raw Data'!DZ201) ->  | D202: =IF('Raw Data'!EA201="","",'Raw Data'!EA201) ->  | E202: =IF('Raw Data'!EB201="","",'Raw Data'!EB201/60) ->  | F202: =IF('Raw Data'!EC201="","",'Raw Data'!EC201) ->  | G202: =IF('Raw Data'!EE201="","",'Raw Data'!EE201) ->  | H202: =IF('Raw Data'!EF201="","",'Raw Data'!EF201/60) -> 
B203: =IF('Raw Data'!DY202="","",IF('Raw Data'!DY202="(not set)","*Google Does Not Provide due to https:",IF('Raw Data'!DY202="N/A","*Google Does Not Provide due to https:",'Raw Data'!DY202))) ->  | C203: =IF('Raw Data'!DZ202="","",'Raw Data'!DZ202) ->  | D203: =IF('Raw Data'!EA202="","",'Raw Data'!EA202) ->  | E203: =IF('Raw Data'!EB202="","",'Raw Data'!EB202/60) ->  | F203: =IF('Raw Data'!EC202="","",'Raw Data'!EC202) ->  | G203: =IF('Raw Data'!EE202="","",'Raw Data'!EE202) ->  | H203: =IF('Raw Data'!EF202="","",'Raw Data'!EF202/60) -> 
B204: =IF('Raw Data'!DY203="","",IF('Raw Data'!DY203="(not set)","*Google Does Not Provide due to https:",IF('Raw Data'!DY203="N/A","*Google Does Not Provide due to https:",'Raw Data'!DY203))) ->  | C204: =IF('Raw Data'!DZ203="","",'Raw Data'!DZ203) ->  | D204: =IF('Raw Data'!EA203="","",'Raw Data'!EA203) ->  | E204: =IF('Raw Data'!EB203="","",'Raw Data'!EB203/60) ->  | F204: =IF('Raw Data'!EC203="","",'Raw Data'!EC203) ->  | G204: =IF('Raw Data'!EE203="","",'Raw Data'!EE203) ->  | H204: =IF('Raw Data'!EF203="","",'Raw Data'!EF203/60) -> 
